Workbook

Sheet OVERALL
J1: SEARCH IN SHEET
C2: SNIPE SUPER SERIES | J2: Search athlete | Z2: POS | AB2: =IF(N2="","",MATCH(N2,C17:C2516,0)) ->  | AF2: PTS | AH2: =IF(AB2="","",LOOKUP(AB2,B17:G2516)) -> 
H5: ATHLETES | K5: ATHLETES | N5: ATHLETES | Q5: ATHLETES | T5: ATHLETES | W5: ATHLETES | Z5: ATHLETES | AC5: ATHLETES | AF5: ATHLETES | AI5: ATHLETES | AL5: ATHLETES | AO5: ATHLETES | AR5: ATHLETES | AU5: ATHLETES | AX5: ATHLETES | BA5: ATHLETES | BD5: ATHLETES | BG5: ATHLETES | BJ5: ATHLETES | BM5: ATHLETES | BP5: ATHLETES | BS5: ATHLETES | BV5: ATHLETES | BY5: ATHLETES | CB5: ATHLETES | CE5: ATHLETES | CH5: ATHLETES | CK5: ATHLETES | CN5: ATHLETES | CQ5: ATHLETES | CT5: ATHLETES | CW5: ATHLETES | CZ5: ATHLETES | DC5: ATHLETES | DF5: ATHLETES | DI5: ATHLETES | DL5: ATHLETES | DO5: ATHLETES | DR5: ATHLETES | DU5: ATHLETES | DX5: ATHLETES | EA5: ATHLETES | ED5: ATHLETES | EG5: ATHLETES | EJ5: ATHLETES | EM5: ATHLETES | EP5: ATHLETES | ES5: ATHLETES | EV5: ATHLETES | EY5: ATHLETES | FB5: ATHLETES | FE5: ATHLETES | FH5: ATHLETES | FK5: ATHLETES
H6: =2500-COUNTIF(H17:H2516,"") -> 33 | K6: =2500-COUNTIF(K17:K2516,"") -> 112 | N6: =2500-COUNTIF(N17:N2516,"") -> 40 | Q6: =2500-COUNTIF(Q17:Q2516,"") -> 44 | T6: =2500-COUNTIF(T17:T2516,"") -> 22 | W6: =2500-COUNTIF(W17:W2516,"") -> 36 | Z6: =2500-COUNTIF(Z17:Z2516,"") -> 46 | AC6: =2500-COUNTIF(AC17:AC2516,"") -> 43 | AF6: =2500-COUNTIF(AF17:AF2516,"") -> 25 | AI6: =2500-COUNTIF(AI17:AI2516,"") -> 36 | AL6: =2500-COUNTIF(AL17:AL2516,"") -> 48 | AO6: =2500-COUNTIF(AO17:AO2516,"") -> 13 | AR6: =2500-COUNTIF(AR17:AR2516,"") -> 78 | AU6: =2500-COUNTIF(AU17:AU2516,"") -> 86 | AX6: =2500-COUNTIF(AX17:AX2516,"") -> 44 | BA6: =2500-COUNTIF(BA17:BA2516,"") -> 21 | BD6: =2500-COUNTIF(BD17:BD2516,"") -> 23 | BG6: =2500-COUNTIF(BG17:BG2516,"") -> 26 | BJ6: =2500-COUNTIF(BJ17:BJ2516,"") -> 50 | BM6: =2500-COUNTIF(BM17:BM2516,"") -> 24 | BP6: =2500-COUNTIF(BP17:BP2516,"") -> 38 | BS6: =2500-COUNTIF(BS17:BS2516,"") -> 40 | BV6: =2500-COUNTIF(BV17:BV2516,"") -> 20 | BY6: =2500-COUNTIF(BY17:BY2516,"") -> 56 | CB6: =2500-COUNTIF(CB17:CB2516,"") -> 28 | CE6: =2500-COUNTIF(CE17:CE2516,"") -> 24 | CH6: =2500-COUNTIF(CH17:CH2516,"") -> 34 | CK6: =2500-COUNTIF(CK17:CK2516,"") -> 78 | CN6: =2500-COUNTIF(CN17:CN2516,"") -> 26 | CQ6: =2500-COUNTIF(CQ17:CQ2516,"") -> 29 | CT6: 16 | CW6: 30 | CZ6: 26 | DC6: 56 | DF6: 22 | DI6: 30 | DL6: 22 | DO6: 44 | DR6: 133 | DU6: 16 | DX6: =2500-COUNTIF(DX17:DX2516,"") -> 113 | EA6: =2500-COUNTIF(EA17:EA2516,"") -> 0 | ED6: =2500-COUNTIF(ED17:ED2516,"") -> 0 | EG6: =2500-COUNTIF(EG17:EG2516,"") -> 0 | EJ6: =2500-COUNTIF(EJ17:EJ2516,"") -> 0 | EM6: =2500-COUNTIF(EM17:EM2516,"") -> 0 | EP6: =2500-COUNTIF(EP17:EP2516,"") -> 0 | ES6: =2500-COUNTIF(ES17:ES2516,"") -> 0 | EV6: =2500-COUNTIF(EV17:EV2516,"") -> 0 | EY6: =2500-COUNTIF(EY17:EY2516,"") -> 0 | FB6: =2500-COUNTIF(FB17:FB2516,"") -> 0 | FE6: =2500-COUNTIF(FE17:FE2516,"") -> 0 | FH6: =2500-COUNTIF(FH17:FH2516,"") -> 0 | FK6: =2500-COUNTIF(FK17:FK2516,"") -> 0
H7: =IF(H11="",0,1) -> 1 | K7: =IF(K11="",0,1) -> 1 | N7: =IF(N11="",0,1) -> 1 | Q7: =IF(Q11="",0,1) -> 1 | T7: =IF(T11="",0,1) -> 1 | W7: =IF(W11="",0,1) -> 1 | Z7: =IF(Z11="",0,1) -> 1 | AC7: =IF(AC11="",0,1) -> 1 | AF7: =IF(AF11="",0,1) -> 1 | AI7: =IF(AI11="",0,1) -> 1 | AL7: =IF(AL11="",0,1) -> 1 | AO7: =IF(AO11="",0,1) -> 1 | AR7: =IF(AR11="",0,1) -> 1 | AU7: =IF(AU11="",0,1) -> 1 | AX7: =IF(AX11="",0,1) -> 1 | BA7: =IF(BA11="",0,1) -> 1 | BD7: =IF(BD11="",0,1) -> 1 | BG7: =IF(BG11="",0,1) -> 1 | BJ7: =IF(BJ11="",0,1) -> 1 | BM7: =IF(BM11="",0,1) -> 1 | BP7: =IF(BP11="",0,1) -> 1 | BS7: =IF(BS11="",0,1) -> 1 | BV7: =IF(BV11="",0,1) -> 1 | BY7: =IF(BY11="",0,1) -> 1 | CB7: =IF(CB11="",0,1) -> 1 | CE7: =IF(CE11="",0,1) -> 1 | CH7: =IF(CH11="",0,1) -> 1 | CK7: =IF(CK11="",0,1) -> 1 | CN7: =IF(CN11="",0,1) -> 1 | CQ7: =IF(CQ11="",0,1) -> 1 | CT7: =IF(CT11="",0,1) -> 1 | CW7: =IF(CW11="",0,1) -> 1 | CZ7: =IF(CZ11="",0,1) -> 1 | DC7: =IF(DC11="",0,1) -> 1 | DF7: =IF(DF11="",0,1) -> 1 | DI7: =IF(DI11="",0,1) -> 1 | DL7: =IF(DL11="",0,1) -> 1 | DO7: =IF(DO11="",0,1) -> 1 | DR7: =IF(DR11="",0,1) -> 1 | DU7: =IF(DU11="",0,1) -> 1 | DX7: =IF(DX11="",0,1) -> 1 | EA7: =IF(EA11="",0,1) -> 0 | ED7: =IF(ED11="",0,1) -> 0 | EG7: =IF(EG11="",0,1) -> 0 | EJ7: =IF(EJ11="",0,1) -> 0 | EM7: =IF(EM11="",0,1) -> 0 | EP7: =IF(EP11="",0,1) -> 0 | ES7: =IF(ES11="",0,1) -> 0 | EV7: =IF(EV11="",0,1) -> 0 | EY7: =IF(EY11="",0,1) -> 0 | FB7: =IF(FB11="",0,1) -> 0 | FE7: =IF(FE11="",0,1) -> 0 | FH7: =IF(FH11="",0,1) -> 0 | FK7: =IF(FK11="",0,1) -> 0
H8: ORGANIZ. | K8: ORGANIZ. | N8: ORGANIZ. | Q8: ORGANIZ. | T8: ORGANIZ. | W8: ORGANIZ. | Z8: ORGANIZ. | AC8: ORGANIZ. | AF8: ORGANIZ. | AI8: ORGANIZ. | AL8: ORGANIZ. | AO8: ORGANIZ. | AR8: ORGANIZ. | AU8: ORGANIZ. | AX8: ORGANIZ. | BA8: ORGANIZ. | BD8: ORGANIZ. | BG8: ORGANIZ. | BJ8: ORGANIZ. | BM8: ORGANIZ. | BP8: ORGANIZ. | BS8: ORGANIZ. | BV8: ORGANIZ. | BY8: ORGANIZ. | CB8: ORGANIZ. | CE8: ORGANIZ. | CH8: ORGANIZ. | CK8: ORGANIZ. | CN8: ORGANIZ. | CQ8: ORGANIZ. | CT8: ORGANIZ. | CW8: ORGANIZ. | CZ8: ORGANIZ. | DC8: ORGANIZ. | DF8: ORGANIZ. | DI8: ORGANIZ. | DL8: ORGANIZ. | DO8: ORGANIZ. | DR8: ORGANIZ. | DU8: ORGANIZ. | DX8: ORGANIZ. | EA8: ORGANIZ. | ED8: ORGANIZ. | EG8: ORGANIZ. | EJ8: ORGANIZ. | EM8: ORGANIZ. | EP8: ORGANIZ. | ES8: ORGANIZ. | EV8: ORGANIZ. | EY8: ORGANIZ. | FB8: ORGANIZ. | FE8: ORGANIZ. | FH8: ORGANIZ. | FK8: ORGANIZ.
H9: USA | K9: BRA | N9: USA | Q9: POR | T9: ARG | W9: BRA | Z9: ARG | AC9: ESP | AF9: BRA | AI9: BEL | AL9: ESP | AO9: USA | AR9: USA | AU9: ESP | AX9: POR | BA9: GBR | BD9: USA | BG9: ITA | BJ9: ITA | BM9: USA | BP9: COL | BS9: ARG | BV9: SWE | BY9: DEN | CB9: ITA | CE9: POL | CH9: FRA | CK9: ITA | CN9: ESP | CQ9: USA | CT9: CRO | CW9: FIN | CZ9: BRA | DC9: POR | DF9: CAN | DI9: USA | DL9: AUT | DO9: NOR | DR9: USA | DU9: POL | DX9: BRA
H10: REGATTA | K10: REGATTA | N10: REGATTA | Q10: REGATTA | T10: REGATTA | W10: REGATTA | Z10: REGATTA | AC10: REGATTA | AF10: REGATTA | AI10: REGATTA | AL10: REGATTA | AO10: REGATTA | AR10: REGATTA | AU10: REGATTA | AX10: REGATTA | BA10: REGATTA | BD10: REGATTA | BG10: REGATTA | BJ10: REGATTA | BM10: REGATTA | BP10: REGATTA | BS10: REGATTA | BV10: REGATTA | BY10: REGATTA | CB10: REGATTA | CE10: REGATTA | CH10: REGATTA | CK10: REGATTA | CN10: REGATTA | CQ10: REGATTA | CT10: REGATTA | CW10: REGATTA | CZ10: REGATTA | DC10: REGATTA | DF10: REGATTA | DI10: REGATTA | DL10: REGATTA | DO10: REGATTA | DR10: REGATTA | DU10: REGATTA | DX10: REGATTA | EA10: REGATTA | ED10: REGATTA | EG10: REGATTA | EJ10: REGATTA | EM10: REGATTA | EP10: REGATTA | ES10: REGATTA | EV10: REGATTA | EY10: REGATTA | FB10: REGATTA | FE10: REGATTA | FH10: REGATTA | FK10: REGATTA
H11: MAJOR REGATTA | K11: NATIONAL | N11: MAJOR REGATTA | Q11: MAJOR REGATTA | T11: MAJOR REGATTA | W11: MAJOR REGATTA | Z11: MAJOR REGATTA | AC11: MAJOR REGATTA | AF11: MAJOR REGATTA | AI11: MAJOR REGATTA | AL11: MAJOR REGATTA | AO11: MAJOR REGATTA | AR11: MAJOR REGATTA | AU11: NATIONAL | AX11: NATIONAL | BA11: MAJOR REGATTA | BD11: MAJOR REGATTA | BG11: NATIONAL | BJ11: NATIONAL | BM11: MAJOR REGATTA | BP11: NATIONAL | BS11: NATIONAL | BV11: MAJOR REGATTA | BY11: MAJOR REGATTA | CB11: NATIONAL | CE11: NATIONAL | CH11: NATIONAL | CK11: MAJOR REGATTA | CN11: MAJOR REGATTA | CQ11: MAJOR REGATTA | CT11: MAJOR REGATTA | CW11: MAJOR REGATTA | CZ11: MAJOR REGATTA | DC11: NATIONAL | DF11: MAJOR REGATTA | DI11: MAJOR REGATTA | DL11: CONTINENTAL | DO11: MAJOR REGATTA | DR11: NATIONAL | DU11: MAJOR REGATTA | DX11: MAJOR REGATTA
C12: REGATTAS TO COUNT | G12: =SUM(H7:DU7) -> 40
H13: =IF(H11=FACTORS!$H$24,1.8,IF(H11=FACTORS!$H$25,1.62,IF(H11=FACTORS!$H$26,1.17,IF(H11=FACTORS!$H$27,1.3,IF(H11=FACTORS!$H$28,1.35,IF(H11=FACTORS!$H$29,1.5,IF(H11=FACTORS!$H$30,1.8,IF(H11=FACTORS!$H$31,2,"")))))))) -> 1.3 | K13: =IF(K11=FACTORS!$H$24,1.8,IF(K11=FACTORS!$H$25,1.62,IF(K11=FACTORS!$H$26,1.17,IF(K11=FACTORS!$H$27,1.3,IF(K11=FACTORS!$H$28,1.35,IF(K11=FACTORS!$H$29,1.5,IF(K11=FACTORS!$H$30,1.8,IF(K11=FACTORS!$H$31,2,"")))))))) -> 1.5 | N13: =IF(N11=FACTORS!$H$24,1.8,IF(N11=FACTORS!$H$25,1.62,IF(N11=FACTORS!$H$26,1.17,IF(N11=FACTORS!$H$27,1.3,IF(N11=FACTORS!$H$28,1.35,IF(N11=FACTORS!$H$29,1.5,IF(N11=FACTORS!$H$30,1.8,IF(N11=FACTORS!$H$31,2,"")))))))) -> 1.3 | Q13: =IF(Q11=FACTORS!$H$24,1.8,IF(Q11=FACTORS!$H$25,1.62,IF(Q11=FACTORS!$H$26,1.17,IF(Q11=FACTORS!$H$27,1.3,IF(Q11=FACTORS!$H$28,1.35,IF(Q11=FACTORS!$H$29,1.5,IF(Q11=FACTORS!$H$30,1.8,IF(Q11=FACTORS!$H$31,2,"")))))))) -> 1.3 | T13: =IF(T11=FACTORS!$H$24,1.8,IF(T11=FACTORS!$H$25,1.62,IF(T11=FACTORS!$H$26,1.17,IF(T11=FACTORS!$H$27,1.3,IF(T11=FACTORS!$H$28,1.35,IF(T11=FACTORS!$H$29,1.5,IF(T11=FACTORS!$H$30,1.8,IF(T11=FACTORS!$H$31,2,"")))))))) -> 1.3 | W13: =IF(W11=FACTORS!$H$24,1.8,IF(W11=FACTORS!$H$25,1.62,IF(W11=FACTORS!$H$26,1.17,IF(W11=FACTORS!$H$27,1.3,IF(W11=FACTORS!$H$28,1.35,IF(W11=FACTORS!$H$29,1.5,IF(W11=FACTORS!$H$30,1.8,IF(W11=FACTORS!$H$31,2,"")))))))) -> 1.3 | Z13: =IF(Z11=FACTORS!$H$24,1.8,IF(Z11=FACTORS!$H$25,1.62,IF(Z11=FACTORS!$H$26,1.17,IF(Z11=FACTORS!$H$27,1.3,IF(Z11=FACTORS!$H$28,1.35,IF(Z11=FACTORS!$H$29,1.5,IF(Z11=FACTORS!$H$30,1.8,IF(Z11=FACTORS!$H$31,2,"")))))))) -> 1.3 | AC13: =IF(AC11=FACTORS!$H$24,1.8,IF(AC11=FACTORS!$H$25,1.62,IF(AC11=FACTORS!$H$26,1.17,IF(AC11=FACTORS!$H$27,1.3,IF(AC11=FACTORS!$H$28,1.35,IF(AC11=FACTORS!$H$29,1.5,IF(AC11=FACTORS!$H$30,1.8,IF(AC11=FACTORS!$H$31,2,"")))))))) -> 1.3 | AF13: =IF(AF11=FACTORS!$H$24,1.8,IF(AF11=FACTORS!$H$25,1.62,IF(AF11=FACTORS!$H$26,1.17,IF(AF11=FACTORS!$H$27,1.3,IF(AF11=FACTORS!$H$28,1.35,IF(AF11=FACTORS!$H$29,1.5,IF(AF11=FACTORS!$H$30,1.8,IF(AF11=FACTORS!$H$31,2,"")))))))) -> 1.3 | AI13: =IF(AI11=FACTORS!$H$24,1.8,IF(AI11=FACTORS!$H$25,1.62,IF(AI11=FACTORS!$H$26,1.17,IF(AI11=FACTORS!$H$27,1.3,IF(AI11=FACTORS!$H$28,1.35,IF(AI11=FACTORS!$H$29,1.5,IF(AI11=FACTORS!$H$30,1.8,IF(AI11=FACTORS!$H$31,2,"")))))))) -> 1.3 | AL13: =IF(AL11=FACTORS!$H$24,1.8,IF(AL11=FACTORS!$H$25,1.62,IF(AL11=FACTORS!$H$26,1.17,IF(AL11=FACTORS!$H$27,1.3,IF(AL11=FACTORS!$H$28,1.35,IF(AL11=FACTORS!$H$29,1.5,IF(AL11=FACTORS!$H$30,1.8,IF(AL11=FACTORS!$H$31,2,"")))))))) -> 1.3 | AO13: =IF(AO11=FACTORS!$H$24,1.8,IF(AO11=FACTORS!$H$25,1.62,IF(AO11=FACTORS!$H$26,1.17,IF(AO11=FACTORS!$H$27,1.3,IF(AO11=FACTORS!$H$28,1.35,IF(AO11=FACTORS!$H$29,1.5,IF(AO11=FACTORS!$H$30,1.8,IF(AO11=FACTORS!$H$31,2,"")))))))) -> 1.3 | AR13: =IF(AR11=FACTORS!$H$24,1.8,IF(AR11=FACTORS!$H$25,1.62,IF(AR11=FACTORS!$H$26,1.17,IF(AR11=FACTORS!$H$27,1.3,IF(AR11=FACTORS!$H$28,1.35,IF(AR11=FACTORS!$H$29,1.5,IF(AR11=FACTORS!$H$30,1.8,IF(AR11=FACTORS!$H$31,2,"")))))))) -> 1.3 | AU13: =IF(AU11=FACTORS!$H$24,1.8,IF(AU11=FACTORS!$H$25,1.62,IF(AU11=FACTORS!$H$26,1.17,IF(AU11=FACTORS!$H$27,1.3,IF(AU11=FACTORS!$H$28,1.35,IF(AU11=FACTORS!$H$29,1.5,IF(AU11=FACTORS!$H$30,1.8,IF(AU11=FACTORS!$H$31,2,"")))))))) -> 1.5 | AX13: =IF(AX11=FACTORS!$H$24,1.8,IF(AX11=FACTORS!$H$25,1.62,IF(AX11=FACTORS!$H$26,1.17,IF(AX11=FACTORS!$H$27,1.3,IF(AX11=FACTORS!$H$28,1.35,IF(AX11=FACTORS!$H$29,1.5,IF(AX11=FACTORS!$H$30,1.8,IF(AX11=FACTORS!$H$31,2,"")))))))) -> 1.5 | BA13: =IF(BA11=FACTORS!$H$24,1.8,IF(BA11=FACTORS!$H$25,1.62,IF(BA11=FACTORS!$H$26,1.17,IF(BA11=FACTORS!$H$27,1.3,IF(BA11=FACTORS!$H$28,1.35,IF(BA11=FACTORS!$H$29,1.5,IF(BA11=FACTORS!$H$30,1.8,IF(BA11=FACTORS!$H$31,2,"")))))))) -> 1.3 | BD13: =IF(BD11=FACTORS!$H$24,1.8,IF(BD11=FACTORS!$H$25,1.62,IF(BD11=FACTORS!$H$26,1.17,IF(BD11=FACTORS!$H$27,1.3,IF(BD11=FACTORS!$H$28,1.35,IF(BD11=FACTORS!$H$29,1.5,IF(BD11=FACTORS!$H$30,1.8,IF(BD11=FACTORS!$H$31,2,"")))))))) -> 1.3 | BG13: =IF(BG11=FACTORS!$H$24,1.8,IF(BG11=FACTORS!$H$25,1.62,IF(BG11=FACTORS!$H$26,1.17,IF(BG11=FACTORS!$H$27,1.3,IF(BG11=FACTORS!$H$28,1.35,IF(BG11=FACTORS!$H$29,1.5,IF(BG11=FACTORS!$H$30,1.8,IF(BG11=FACTORS!$H$31,2,"")))))))) -> 1.5 | BJ13: =IF(BJ11=FACTORS!$H$24,1.8,IF(BJ11=FACTORS!$H$25,1.62,IF(BJ11=FACTORS!$H$26,1.17,IF(BJ11=FACTORS!$H$27,1.3,IF(BJ11=FACTORS!$H$28,1.35,IF(BJ11=FACTORS!$H$29,1.5,IF(BJ11=FACTORS!$H$30,1.8,IF(BJ11=FACTORS!$H$31,2,"")))))))) -> 1.5 | BM13: =IF(BM11=FACTORS!$H$24,1.8,IF(BM11=FACTORS!$H$25,1.62,IF(BM11=FACTORS!$H$26,1.17,IF(BM11=FACTORS!$H$27,1.3,IF(BM11=FACTORS!$H$28,1.35,IF(BM11=FACTORS!$H$29,1.5,IF(BM11=FACTORS!$H$30,1.8,IF(BM11=FACTORS!$H$31,2,"")))))))) -> 1.3 | BP13: =IF(BP11=FACTORS!$H$24,1.8,IF(BP11=FACTORS!$H$25,1.62,IF(BP11=FACTORS!$H$26,1.17,IF(BP11=FACTORS!$H$27,1.3,IF(BP11=FACTORS!$H$28,1.35,IF(BP11=FACTORS!$H$29,1.5,IF(BP11=FACTORS!$H$30,1.8,IF(BP11=FACTORS!$H$31,2,"")))))))) -> 1.5 | BS13: =IF(BS11=FACTORS!$H$24,1.8,IF(BS11=FACTORS!$H$25,1.62,IF(BS11=FACTORS!$H$26,1.17,IF(BS11=FACTORS!$H$27,1.3,IF(BS11=FACTORS!$H$28,1.35,IF(BS11=FACTORS!$H$29,1.5,IF(BS11=FACTORS!$H$30,1.8,IF(BS11=FACTORS!$H$31,2,"")))))))) -> 1.5 | BV13: =IF(BV11=FACTORS!$H$24,1.8,IF(BV11=FACTORS!$H$25,1.62,IF(BV11=FACTORS!$H$26,1.17,IF(BV11=FACTORS!$H$27,1.3,IF(BV11=FACTORS!$H$28,1.35,IF(BV11=FACTORS!$H$29,1.5,IF(BV11=FACTORS!$H$30,1.8,IF(BV11=FACTORS!$H$31,2,"")))))))) -> 1.3 | BY13: =IF(BY11=FACTORS!$H$24,1.8,IF(BY11=FACTORS!$H$25,1.62,IF(BY11=FACTORS!$H$26,1.17,IF(BY11=FACTORS!$H$27,1.3,IF(BY11=FACTORS!$H$28,1.35,IF(BY11=FACTORS!$H$29,1.5,IF(BY11=FACTORS!$H$30,1.8,IF(BY11=FACTORS!$H$31,2,"")))))))) -> 1.3 | CB13: =IF(CB11=FACTORS!$H$24,1.8,IF(CB11=FACTORS!$H$25,1.62,IF(CB11=FACTORS!$H$26,1.17,IF(CB11=FACTORS!$H$27,1.3,IF(CB11=FACTORS!$H$28,1.35,IF(CB11=FACTORS!$H$29,1.5,IF(CB11=FACTORS!$H$30,1.8,IF(CB11=FACTORS!$H$31,2,"")))))))) -> 1.5 | CE13: =IF(CE11=FACTORS!$H$24,1.8,IF(CE11=FACTORS!$H$25,1.62,IF(CE11=FACTORS!$H$26,1.17,IF(CE11=FACTORS!$H$27,1.3,IF(CE11=FACTORS!$H$28,1.35,IF(CE11=FACTORS!$H$29,1.5,IF(CE11=FACTORS!$H$30,1.8,IF(CE11=FACTORS!$H$31,2,"")))))))) -> 1.5 | CH13: =IF(CH11=FACTORS!$H$24,1.8,IF(CH11=FACTORS!$H$25,1.62,IF(CH11=FACTORS!$H$26,1.17,IF(CH11=FACTORS!$H$27,1.3,IF(CH11=FACTORS!$H$28,1.35,IF(CH11=FACTORS!$H$29,1.5,IF(CH11=FACTORS!$H$30,1.8,IF(CH11=FACTORS!$H$31,2,"")))))))) -> 1.5 | CK13: =IF(CK11=FACTORS!$H$24,1.8,IF(CK11=FACTORS!$H$25,1.62,IF(CK11=FACTORS!$H$26,1.17,IF(CK11=FACTORS!$H$27,1.3,IF(CK11=FACTORS!$H$28,1.35,IF(CK11=FACTORS!$H$29,1.5,IF(CK11=FACTORS!$H$30,1.8,IF(CK11=FACTORS!$H$31,2,"")))))))) -> 1.3 | CN13: =IF(CN11=FACTORS!$H$24,1.8,IF(CN11=FACTORS!$H$25,1.62,IF(CN11=FACTORS!$H$26,1.17,IF(CN11=FACTORS!$H$27,1.3,IF(CN11=FACTORS!$H$28,1.35,IF(CN11=FACTORS!$H$29,1.5,IF(CN11=FACTORS!$H$30,1.8,IF(CN11=FACTORS!$H$31,2,"")))))))) -> 1.3 | CQ13: =IF(CQ11=FACTORS!$H$24,1.8,IF(CQ11=FACTORS!$H$25,1.62,IF(CQ11=FACTORS!$H$26,1.17,IF(CQ11=FACTORS!$H$27,1.3,IF(CQ11=FACTORS!$H$28,1.35,IF(CQ11=FACTORS!$H$29,1.5,IF(CQ11=FACTORS!$H$30,1.8,IF(CQ11=FACTORS!$H$31,2,"")))))))) -> 1.3 | CT13: =IF(CT11=FACTORS!$H$24,1.8,IF(CT11=FACTORS!$H$25,1.62,IF(CT11=FACTORS!$H$26,1.17,IF(CT11=FACTORS!$H$27,1.3,IF(CT11=FACTORS!$H$28,1.35,IF(CT11=FACTORS!$H$29,1.5,IF(CT11=FACTORS!$H$30,1.8,IF(CT11=FACTORS!$H$31,2,"")))))))) -> 1.3 | CW13: =IF(CW11=FACTORS!$H$24,1.8,IF(CW11=FACTORS!$H$25,1.62,IF(CW11=FACTORS!$H$26,1.17,IF(CW11=FACTORS!$H$27,1.3,IF(CW11=FACTORS!$H$28,1.35,IF(CW11=FACTORS!$H$29,1.5,IF(CW11=FACTORS!$H$30,1.8,IF(CW11=FACTORS!$H$31,2,"")))))))) -> 1.3 | CZ13: =IF(CZ11=FACTORS!$H$24,1.8,IF(CZ11=FACTORS!$H$25,1.62,IF(CZ11=FACTORS!$H$26,1.17,IF(CZ11=FACTORS!$H$27,1.3,IF(CZ11=FACTORS!$H$28,1.35,IF(CZ11=FACTORS!$H$29,1.5,IF(CZ11=FACTORS!$H$30,1.8,IF(CZ11=FACTORS!$H$31,2,"")))))))) -> 1.3 | DC13: =IF(DC11=FACTORS!$H$24,1.8,IF(DC11=FACTORS!$H$25,1.62,IF(DC11=FACTORS!$H$26,1.17,IF(DC11=FACTORS!$H$27,1.3,IF(DC11=FACTORS!$H$28,1.35,IF(DC11=FACTORS!$H$29,1.5,IF(DC11=FACTORS!$H$30,1.8,IF(DC11=FACTORS!$H$31,2,"")))))))) -> 1.5 | DF13: =IF(DF11=FACTORS!$H$24,1.8,IF(DF11=FACTORS!$H$25,1.62,IF(DF11=FACTORS!$H$26,1.17,IF(DF11=FACTORS!$H$27,1.3,IF(DF11=FACTORS!$H$28,1.35,IF(DF11=FACTORS!$H$29,1.5,IF(DF11=FACTORS!$H$30,1.8,IF(DF11=FACTORS!$H$31,2,"")))))))) -> 1.3 | DI13: =IF(DI11=FACTORS!$H$24,1.8,IF(DI11=FACTORS!$H$25,1.62,IF(DI11=FACTORS!$H$26,1.17,IF(DI11=FACTORS!$H$27,1.3,IF(DI11=FACTORS!$H$28,1.35,IF(DI11=FACTORS!$H$29,1.5,IF(DI11=FACTORS!$H$30,1.8,IF(DI11=FACTORS!$H$31,2,"")))))))) -> 1.3 | DL13: =IF(DL11=FACTORS!$H$24,1.8,IF(DL11=FACTORS!$H$25,1.62,IF(DL11=FACTORS!$H$26,1.17,IF(DL11=FACTORS!$H$27,1.3,IF(DL11=FACTORS!$H$28,1.35,IF(DL11=FACTORS!$H$29,1.5,IF(DL11=FACTORS!$H$30,1.8,IF(DL11=FACTORS!$H$31,2,"")))))))) -> 1.8 | DO13: =IF(DO11=FACTORS!$H$24,1.8,IF(DO11=FACTORS!$H$25,1.62,IF(DO11=FACTORS!$H$26,1.17,IF(DO11=FACTORS!$H$27,1.3,IF(DO11=FACTORS!$H$28,1.35,IF(DO11=FACTORS!$H$29,1.5,IF(DO11=FACTORS!$H$30,1.8,IF(DO11=FACTORS!$H$31,2,"")))))))) -> 1.3 | DR13: =IF(DR11=FACTORS!$H$24,1.8,IF(DR11=FACTORS!$H$25,1.62,IF(DR11=FACTORS!$H$26,1.17,IF(DR11=FACTORS!$H$27,1.3,IF(DR11=FACTORS!$H$28,1.35,IF(DR11=FACTORS!$H$29,1.5,IF(DR11=FACTORS!$H$30,1.8,IF(DR11=FACTORS!$H$31,2,"")))))))) -> 1.5 | DU13: =IF(DU11=FACTORS!$H$24,1.8,IF(DU11=FACTORS!$H$25,1.62,IF(DU11=FACTORS!$H$26,1.17,IF(DU11=FACTORS!$H$27,1.3,IF(DU11=FACTORS!$H$28,1.35,IF(DU11=FACTORS!$H$29,1.5,IF(DU11=FACTORS!$H$30,1.8,IF(DU11=FACTORS!$H$31,2,"")))))))) -> 1.3 | DX13: =IF(DX11=FACTORS!$H$24,1.8,IF(DX11=FACTORS!$H$25,1.62,IF(DX11=FACTORS!$H$26,1.17,IF(DX11=FACTORS!$H$27,1.3,IF(DX11=FACTORS!$H$28,1.35,IF(DX11=FACTORS!$H$29,1.5,IF(DX11=FACTORS!$H$30,1.8,IF(DX11=FACTORS!$H$31,2,"")))))))) -> 1.3 | EA13: =IF(EA11=FACTORS!$H$24,1.8,IF(EA11=FACTORS!$H$25,1.62,IF(EA11=FACTORS!$H$26,1.17,IF(EA11=FACTORS!$H$27,1.3,IF(EA11=FACTORS!$H$28,1.35,IF(EA11=FACTORS!$H$29,1.5,IF(EA11=FACTORS!$H$30,1.8,IF(EA11=FACTORS!$H$31,2,"")))))))) ->  | ED13: =IF(ED11=FACTORS!$H$24,1.8,IF(ED11=FACTORS!$H$25,1.62,IF(ED11=FACTORS!$H$26,1.17,IF(ED11=FACTORS!$H$27,1.3,IF(ED11=FACTORS!$H$28,1.35,IF(ED11=FACTORS!$H$29,1.5,IF(ED11=FACTORS!$H$30,1.8,IF(ED11=FACTORS!$H$31,2,"")))))))) ->  | EG13: =IF(EG11=FACTORS!$H$24,1.8,IF(EG11=FACTORS!$H$25,1.62,IF(EG11=FACTORS!$H$26,1.17,IF(EG11=FACTORS!$H$27,1.3,IF(EG11=FACTORS!$H$28,1.35,IF(EG11=FACTORS!$H$29,1.5,IF(EG11=FACTORS!$H$30,1.8,IF(EG11=FACTORS!$H$31,2,"")))))))) ->  | EJ13: =IF(EJ11=FACTORS!$H$24,1.8,IF(EJ11=FACTORS!$H$25,1.62,IF(EJ11=FACTORS!$H$26,1.17,IF(EJ11=FACTORS!$H$27,1.3,IF(EJ11=FACTORS!$H$28,1.35,IF(EJ11=FACTORS!$H$29,1.5,IF(EJ11=FACTORS!$H$30,1.8,IF(EJ11=FACTORS!$H$31,2,"")))))))) ->  | EM13: =IF(EM11=FACTORS!$H$24,1.8,IF(EM11=FACTORS!$H$25,1.62,IF(EM11=FACTORS!$H$26,1.17,IF(EM11=FACTORS!$H$27,1.3,IF(EM11=FACTORS!$H$28,1.35,IF(EM11=FACTORS!$H$29,1.5,IF(EM11=FACTORS!$H$30,1.8,IF(EM11=FACTORS!$H$31,2,"")))))))) ->  | EP13: =IF(EP11=FACTORS!$H$24,1.8,IF(EP11=FACTORS!$H$25,1.62,IF(EP11=FACTORS!$H$26,1.17,IF(EP11=FACTORS!$H$27,1.3,IF(EP11=FACTORS!$H$28,1.35,IF(EP11=FACTORS!$H$29,1.5,IF(EP11=FACTORS!$H$30,1.8,IF(EP11=FACTORS!$H$31,2,"")))))))) ->  | ES13: =IF(ES11=FACTORS!$H$24,1.8,IF(ES11=FACTORS!$H$25,1.62,IF(ES11=FACTORS!$H$26,1.17,IF(ES11=FACTORS!$H$27,1.3,IF(ES11=FACTORS!$H$28,1.35,IF(ES11=FACTORS!$H$29,1.5,IF(ES11=FACTORS!$H$30,1.8,IF(ES11=FACTORS!$H$31,2,"")))))))) ->  | EV13: =IF(EV11=FACTORS!$H$24,1.8,IF(EV11=FACTORS!$H$25,1.62,IF(EV11=FACTORS!$H$26,1.17,IF(EV11=FACTORS!$H$27,1.3,IF(EV11=FACTORS!$H$28,1.35,IF(EV11=FACTORS!$H$29,1.5,IF(EV11=FACTORS!$H$30,1.8,IF(EV11=FACTORS!$H$31,2,"")))))))) ->  | EY13: =IF(EY11=FACTORS!$H$24,1.8,IF(EY11=FACTORS!$H$25,1.62,IF(EY11=FACTORS!$H$26,1.17,IF(EY11=FACTORS!$H$27,1.3,IF(EY11=FACTORS!$H$28,1.35,IF(EY11=FACTORS!$H$29,1.5,IF(EY11=FACTORS!$H$30,1.8,IF(EY11=FACTORS!$H$31,2,"")))))))) ->  | FB13: =IF(FB11=FACTORS!$H$24,1.8,IF(FB11=FACTORS!$H$25,1.62,IF(FB11=FACTORS!$H$26,1.17,IF(FB11=FACTORS!$H$27,1.3,IF(FB11=FACTORS!$H$28,1.35,IF(FB11=FACTORS!$H$29,1.5,IF(FB11=FACTORS!$H$30,1.8,IF(FB11=FACTORS!$H$31,2,"")))))))) ->  | FE13: =IF(FE11=FACTORS!$H$24,1.8,IF(FE11=FACTORS!$H$25,1.62,IF(FE11=FACTORS!$H$26,1.17,IF(FE11=FACTORS!$H$27,1.3,IF(FE11=FACTORS!$H$28,1.35,IF(FE11=FACTORS!$H$29,1.5,IF(FE11=FACTORS!$H$30,1.8,IF(FE11=FACTORS!$H$31,2,"")))))))) ->  | FH13: =IF(FH11=FACTORS!$H$24,1.8,IF(FH11=FACTORS!$H$25,1.62,IF(FH11=FACTORS!$H$26,1.17,IF(FH11=FACTORS!$H$27,1.3,IF(FH11=FACTORS!$H$28,1.35,IF(FH11=FACTORS!$H$29,1.5,IF(FH11=FACTORS!$H$30,1.8,IF(FH11=FACTORS!$H$31,2,"")))))))) ->  | FK13: =IF(FK11=FACTORS!$H$24,1.8,IF(FK11=FACTORS!$H$25,1.62,IF(FK11=FACTORS!$H$26,1.17,IF(FK11=FACTORS!$H$27,1.3,IF(FK11=FACTORS!$H$28,1.35,IF(FK11=FACTORS!$H$29,1.5,IF(FK11=FACTORS!$H$30,1.8,IF(FK11=FACTORS!$H$31,2,"")))))))) -> 
H14: =IF(H11=FACTORS!$H$26,1.1,IF(H11=FACTORS!$H$27,1.1,IF(H11=FACTORS!$H$28,1.1,IF(H11=FACTORS!$H$29,1.1,1)))) -> 1.1 | K14: =IF(K11=FACTORS!$H$26,1.1,IF(K11=FACTORS!$H$27,1.1,IF(K11=FACTORS!$H$28,1.1,IF(K11=FACTORS!$H$29,1.1,1)))) -> 1.1 | N14: =IF(N11=FACTORS!$H$26,1.1,IF(N11=FACTORS!$H$27,1.1,IF(N11=FACTORS!$H$28,1.1,IF(N11=FACTORS!$H$29,1.1,1)))) -> 1.1 | Q14: =IF(Q11=FACTORS!$H$26,1.1,IF(Q11=FACTORS!$H$27,1.1,IF(Q11=FACTORS!$H$28,1.1,IF(Q11=FACTORS!$H$29,1.1,1)))) -> 1.1 | T14: =IF(T11=FACTORS!$H$26,1.1,IF(T11=FACTORS!$H$27,1.1,IF(T11=FACTORS!$H$28,1.1,IF(T11=FACTORS!$H$29,1.1,1)))) -> 1.1 | W14: =IF(W11=FACTORS!$H$26,1.1,IF(W11=FACTORS!$H$27,1.1,IF(W11=FACTORS!$H$28,1.1,IF(W11=FACTORS!$H$29,1.1,1)))) -> 1.1 | Z14: =IF(Z11=FACTORS!$H$26,1.1,IF(Z11=FACTORS!$H$27,1.1,IF(Z11=FACTORS!$H$28,1.1,IF(Z11=FACTORS!$H$29,1.1,1)))) -> 1.1 | AC14: =IF(AC11=FACTORS!$H$26,1.1,IF(AC11=FACTORS!$H$27,1.1,IF(AC11=FACTORS!$H$28,1.1,IF(AC11=FACTORS!$H$29,1.1,1)))) -> 1.1 | AF14: =IF(AF11=FACTORS!$H$26,1.1,IF(AF11=FACTORS!$H$27,1.1,IF(AF11=FACTORS!$H$28,1.1,IF(AF11=FACTORS!$H$29,1.1,1)))) -> 1.1 | AI14: =IF(AI11=FACTORS!$H$26,1.1,IF(AI11=FACTORS!$H$27,1.1,IF(AI11=FACTORS!$H$28,1.1,IF(AI11=FACTORS!$H$29,1.1,1)))) -> 1.1 | AL14: =IF(AL11=FACTORS!$H$26,1.1,IF(AL11=FACTORS!$H$27,1.1,IF(AL11=FACTORS!$H$28,1.1,IF(AL11=FACTORS!$H$29,1.1,1)))) -> 1.1 | AO14: =IF(AO11=FACTORS!$H$26,1.1,IF(AO11=FACTORS!$H$27,1.1,IF(AO11=FACTORS!$H$28,1.1,IF(AO11=FACTORS!$H$29,1.1,1)))) -> 1.1 | AR14: =IF(AR11=FACTORS!$H$26,1.1,IF(AR11=FACTORS!$H$27,1.1,IF(AR11=FACTORS!$H$28,1.1,IF(AR11=FACTORS!$H$29,1.1,1)))) -> 1.1 | AU14: =IF(AU11=FACTORS!$H$26,1.1,IF(AU11=FACTORS!$H$27,1.1,IF(AU11=FACTORS!$H$28,1.1,IF(AU11=FACTORS!$H$29,1.1,1)))) -> 1.1 | AX14: =IF(AX11=FACTORS!$H$26,1.1,IF(AX11=FACTORS!$H$27,1.1,IF(AX11=FACTORS!$H$28,1.1,IF(AX11=FACTORS!$H$29,1.1,1)))) -> 1.1 | BA14: =IF(BA11=FACTORS!$H$26,1.1,IF(BA11=FACTORS!$H$27,1.1,IF(BA11=FACTORS!$H$28,1.1,IF(BA11=FACTORS!$H$29,1.1,1)))) -> 1.1 | BD14: =IF(BD11=FACTORS!$H$26,1.1,IF(BD11=FACTORS!$H$27,1.1,IF(BD11=FACTORS!$H$28,1.1,IF(BD11=FACTORS!$H$29,1.1,1)))) -> 1.1 | BG14: =IF(BG11=FACTORS!$H$26,1.1,IF(BG11=FACTORS!$H$27,1.1,IF(BG11=FACTORS!$H$28,1.1,IF(BG11=FACTORS!$H$29,1.1,1)))) -> 1.1 | BJ14: =IF(BJ11=FACTORS!$H$26,1.1,IF(BJ11=FACTORS!$H$27,1.1,IF(BJ11=FACTORS!$H$28,1.1,IF(BJ11=FACTORS!$H$29,1.1,1)))) -> 1.1 | BM14: =IF(BM11=FACTORS!$H$26,1.1,IF(BM11=FACTORS!$H$27,1.1,IF(BM11=FACTORS!$H$28,1.1,IF(BM11=FACTORS!$H$29,1.1,1)))) -> 1.1 | BP14: =IF(BP11=FACTORS!$H$26,1.1,IF(BP11=FACTORS!$H$27,1.1,IF(BP11=FACTORS!$H$28,1.1,IF(BP11=FACTORS!$H$29,1.1,1)))) -> 1.1 | BS14: =IF(BS11=FACTORS!$H$26,1.1,IF(BS11=FACTORS!$H$27,1.1,IF(BS11=FACTORS!$H$28,1.1,IF(BS11=FACTORS!$H$29,1.1,1)))) -> 1.1 | BV14: =IF(BV11=FACTORS!$H$26,1.1,IF(BV11=FACTORS!$H$27,1.1,IF(BV11=FACTORS!$H$28,1.1,IF(BV11=FACTORS!$H$29,1.1,1)))) -> 1.1 | BY14: =IF(BY11=FACTORS!$H$26,1.1,IF(BY11=FACTORS!$H$27,1.1,IF(BY11=FACTORS!$H$28,1.1,IF(BY11=FACTORS!$H$29,1.1,1)))) -> 1.1 | CB14: =IF(CB11=FACTORS!$H$26,1.1,IF(CB11=FACTORS!$H$27,1.1,IF(CB11=FACTORS!$H$28,1.1,IF(CB11=FACTORS!$H$29,1.1,1)))) -> 1.1 | CE14: =IF(CE11=FACTORS!$H$26,1.1,IF(CE11=FACTORS!$H$27,1.1,IF(CE11=FACTORS!$H$28,1.1,IF(CE11=FACTORS!$H$29,1.1,1)))) -> 1.1 | CH14: =IF(CH11=FACTORS!$H$26,1.1,IF(CH11=FACTORS!$H$27,1.1,IF(CH11=FACTORS!$H$28,1.1,IF(CH11=FACTORS!$H$29,1.1,1)))) -> 1.1 | CK14: =IF(CK11=FACTORS!$H$26,1.1,IF(CK11=FACTORS!$H$27,1.1,IF(CK11=FACTORS!$H$28,1.1,IF(CK11=FACTORS!$H$29,1.1,1)))) -> 1.1 | CN14: =IF(CN11=FACTORS!$H$26,1.1,IF(CN11=FACTORS!$H$27,1.1,IF(CN11=FACTORS!$H$28,1.1,IF(CN11=FACTORS!$H$29,1.1,1)))) -> 1.1 | CQ14: =IF(CQ11=FACTORS!$H$26,1.1,IF(CQ11=FACTORS!$H$27,1.1,IF(CQ11=FACTORS!$H$28,1.1,IF(CQ11=FACTORS!$H$29,1.1,1)))) -> 1.1 | CT14: =IF(CT11=FACTORS!$H$26,1.1,IF(CT11=FACTORS!$H$27,1.1,IF(CT11=FACTORS!$H$28,1.1,IF(CT11=FACTORS!$H$29,1.1,1)))) -> 1.1 | CW14: =IF(CW11=FACTORS!$H$26,1.1,IF(CW11=FACTORS!$H$27,1.1,IF(CW11=FACTORS!$H$28,1.1,IF(CW11=FACTORS!$H$29,1.1,1)))) -> 1.1 | CZ14: =IF(CZ11=FACTORS!$H$26,1.1,IF(CZ11=FACTORS!$H$27,1.1,IF(CZ11=FACTORS!$H$28,1.1,IF(CZ11=FACTORS!$H$29,1.1,1)))) -> 1.1 | DC14: =IF(DC11=FACTORS!$H$26,1.1,IF(DC11=FACTORS!$H$27,1.1,IF(DC11=FACTORS!$H$28,1.1,IF(DC11=FACTORS!$H$29,1.1,1)))) -> 1.1 | DF14: =IF(DF11=FACTORS!$H$26,1.1,IF(DF11=FACTORS!$H$27,1.1,IF(DF11=FACTORS!$H$28,1.1,IF(DF11=FACTORS!$H$29,1.1,1)))) -> 1.1 | DI14: =IF(DI11=FACTORS!$H$26,1.1,IF(DI11=FACTORS!$H$27,1.1,IF(DI11=FACTORS!$H$28,1.1,IF(DI11=FACTORS!$H$29,1.1,1)))) -> 1.1 | DL14: =IF(DL11=FACTORS!$H$26,1.1,IF(DL11=FACTORS!$H$27,1.1,IF(DL11=FACTORS!$H$28,1.1,IF(DL11=FACTORS!$H$29,1.1,1)))) -> 1 | DO14: =IF(DO11=FACTORS!$H$26,1.1,IF(DO11=FACTORS!$H$27,1.1,IF(DO11=FACTORS!$H$28,1.1,IF(DO11=FACTORS!$H$29,1.1,1)))) -> 1.1 | DR14: =IF(DR11=FACTORS!$H$26,1.1,IF(DR11=FACTORS!$H$27,1.1,IF(DR11=FACTORS!$H$28,1.1,IF(DR11=FACTORS!$H$29,1.1,1)))) -> 1.1 | DU14: =IF(DU11=FACTORS!$H$26,1.1,IF(DU11=FACTORS!$H$27,1.1,IF(DU11=FACTORS!$H$28,1.1,IF(DU11=FACTORS!$H$29,1.1,1)))) -> 1.1 | DX14: =IF(DX11=FACTORS!$H$26,1.1,IF(DX11=FACTORS!$H$27,1.1,IF(DX11=FACTORS!$H$28,1.1,IF(DX11=FACTORS!$H$29,1.1,1)))) -> 1.1 | EA14: =IF(EA11=FACTORS!$H$26,1.1,IF(EA11=FACTORS!$H$27,1.1,IF(EA11=FACTORS!$H$28,1.1,IF(EA11=FACTORS!$H$29,1.1,1)))) -> 1 | ED14: =IF(ED11=FACTORS!$H$26,1.1,IF(ED11=FACTORS!$H$27,1.1,IF(ED11=FACTORS!$H$28,1.1,IF(ED11=FACTORS!$H$29,1.1,1)))) -> 1 | EG14: =IF(EG11=FACTORS!$H$26,1.1,IF(EG11=FACTORS!$H$27,1.1,IF(EG11=FACTORS!$H$28,1.1,IF(EG11=FACTORS!$H$29,1.1,1)))) -> 1 | EJ14: =IF(EJ11=FACTORS!$H$26,1.1,IF(EJ11=FACTORS!$H$27,1.1,IF(EJ11=FACTORS!$H$28,1.1,IF(EJ11=FACTORS!$H$29,1.1,1)))) -> 1 | EM14: =IF(EM11=FACTORS!$H$26,1.1,IF(EM11=FACTORS!$H$27,1.1,IF(EM11=FACTORS!$H$28,1.1,IF(EM11=FACTORS!$H$29,1.1,1)))) -> 1 | EP14: =IF(EP11=FACTORS!$H$26,1.1,IF(EP11=FACTORS!$H$27,1.1,IF(EP11=FACTORS!$H$28,1.1,IF(EP11=FACTORS!$H$29,1.1,1)))) -> 1 | ES14: =IF(ES11=FACTORS!$H$26,1.1,IF(ES11=FACTORS!$H$27,1.1,IF(ES11=FACTORS!$H$28,1.1,IF(ES11=FACTORS!$H$29,1.1,1)))) -> 1 | EV14: =IF(EV11=FACTORS!$H$26,1.1,IF(EV11=FACTORS!$H$27,1.1,IF(EV11=FACTORS!$H$28,1.1,IF(EV11=FACTORS!$H$29,1.1,1)))) -> 1 | EY14: =IF(EY11=FACTORS!$H$26,1.1,IF(EY11=FACTORS!$H$27,1.1,IF(EY11=FACTORS!$H$28,1.1,IF(EY11=FACTORS!$H$29,1.1,1)))) -> 1 | FB14: =IF(FB11=FACTORS!$H$26,1.1,IF(FB11=FACTORS!$H$27,1.1,IF(FB11=FACTORS!$H$28,1.1,IF(FB11=FACTORS!$H$29,1.1,1)))) -> 1 | FE14: =IF(FE11=FACTORS!$H$26,1.1,IF(FE11=FACTORS!$H$27,1.1,IF(FE11=FACTORS!$H$28,1.1,IF(FE11=FACTORS!$H$29,1.1,1)))) -> 1 | FH14: =IF(FH11=FACTORS!$H$26,1.1,IF(FH11=FACTORS!$H$27,1.1,IF(FH11=FACTORS!$H$28,1.1,IF(FH11=FACTORS!$H$29,1.1,1)))) -> 1 | FK14: =IF(FK11=FACTORS!$H$26,1.1,IF(FK11=FACTORS!$H$27,1.1,IF(FK11=FACTORS!$H$28,1.1,IF(FK11=FACTORS!$H$29,1.1,1)))) -> 1
H15: LAS VEGAS | K15: NATIONALS | N15: COMODORO RASCO | Q15: RIMINI
C16: COMPETITOR | D16: NATION | E16: ROLE | F16: POIINTS | G16: TOTAL | H16: Pos. | J16: Pts. | K16: Pos. | M16: Pts. | N16: Pos. | P16: Pts. | Q16: Pos. | S16: Pts. | T16: Pos. | V16: Pts. | W16: Pos. | Y16: Pts. | Z16: Pos. | AB16: Pts. | AC16: Pos. | AE16: Pts. | AF16: Pos. | AH16: Pts. | AI16: Pos. | AK16: Pts. | AL16: Pos. | AN16: Pts. | AO16: Pos. | AQ16: Pts. | AR16: Pos. | AT16: Pts. | AU16: Pos. | AW16: Pts. | AX16: Pos. | AZ16: Pts. | BA16: Pos. | BC16: Pts. | BD16: Pos. | BF16: Pts. | BG16: Pos. | BI16: Pts. | BJ16: Pos. | BL16: Pts. | BM16: Pos. | BO16: Pts. | BP16: Pos. | BR16: Pts. | BS16: Pos. | BU16: Pts. | BV16: Pos. | BX16: Pts. | BY16: Pos. | CA16: Pts. | CB16: Pos. | CD16: Pts. | CE16: Pos. | CG16: Pts. | CH16: Pos. | CJ16: Pts. | CK16: Pos. | CM16: Pts. | CN16: Pos. | CP16: Pts. | CQ16: Pos. | CS16: Pts. | CT16: Pos. | CV16: Pts. | CW16: Pos. | CY16: Pts. | CZ16: Pos. | DB16: Pts. | DC16: Pos. | DE16: Pts. | DF16: Pos. | DH16: Pts. | DI16: Pos. | DK16: Pts. | DL16: Pos. | DN16: Pts. | DO16: Pos. | DQ16: Pts. | DR16: Pos. | DT16: Pts. | DU16: Pos. | DW16: Pts. | DX16: Pos. | DZ16: Pts. | EA16: Pos. | EC16: Pts. | ED16: Pos. | EF16: Pts. | EG16: Pos. | EI16: Pts. | EJ16: Pos. | EL16: Pts. | EM16: Pos. | EO16: Pts. | EP16: Pos. | ER16: Pts. | ES16: Pos. | EU16: Pts. | EV16: Pos. | EX16: Pts. | EY16: Pos. | FA16: Pts. | FB16: Pos. | FD16: Pts. | FE16: Pos. | FG16: Pts. | FH16: Pos. | FJ16: Pts. | FK16: Pos. | FM16: Pts.
B17: =IF(C17="","",RANK(F17,F$17:F$2516)) -> 1 | C17: Alexandre Tinoco | D17: BRA | F17: =IF(D17="",0,J17+M17+P17+S17+V17+Y17+AB17+AE17+AH17+AK17+AN17+AQ17+AT17+AW17+AZ17+BC17+BF17+BI17+BL17+BO17+BR17+BU17+BX17+CA17+CD17+CG17+CJ17+CM17+CP17+CS17+CV17+CY17+DB17+DE17+DH17+DK17+DN17+DQ17+DT17+DW17+DZ17+EC17+EF17+EI17+EL17+EO17+ER17+EU17+EX17+FA17+FD17+FG17+FJ17+FM17) -> 1044.51 | G17: =F17&" "&"points" -> 1044,51 points | I17: =IF($D17=H$9,1,H$14) -> 1.1 | J17: =IF(H17="",0,LOOKUP(H17,FACTORS!$L$9:$M$128)*H$13*I17) -> 0 | K17: 18 | L17: =IF($D17=K$9,1,K$14) -> 1 | M17: =IF(K17="",0,LOOKUP(K17,FACTORS!$L$9:$M$128)*K$13*L17) -> 154.5 | O17: =IF($D17=N$9,1,N$14) -> 1.1 | P17: =IF(N17="",0,LOOKUP(N17,FACTORS!$L$9:$M$128)*N$13*O17) -> 0 | R17: =IF($D17=Q$9,1,Q$14) -> 1.1 | S17: =IF(Q17="",0,LOOKUP(Q17,FACTORS!$L$9:$M$128)*Q$13*R17) -> 0 | U17: =IF($D17=T$9,1,T$14) -> 1.1 | V17: =IF(T17="",0,LOOKUP(T17,FACTORS!$L$9:$M$128)*T$13*U17) -> 0 | X17: =IF($D17=W$9,1,W$14) -> 1 | Y17: =IF(W17="",0,LOOKUP(W17,FACTORS!$L$9:$M$128)*W$13*X17) -> 0 | AA17: =IF($D17=Z$9,1,Z$14) -> 1.1 | AB17: =IF(Z17="",0,LOOKUP(Z17,FACTORS!$L$9:$M$128)*Z$13*AA17) -> 0 | AD17: =IF($D17=AC$9,1,AC$14) -> 1.1 | AE17: =IF(AC17="",0,LOOKUP(AC17,FACTORS!$L$9:$M$128)*AC$13*AD17) -> 0 | AG17: =IF($D17=AF$9,1,AF$14) -> 1 | AH17: =IF(AF17="",0,LOOKUP(AF17,FACTORS!$L$9:$M$128)*AF$13*AG17) -> 0 | AI17: 1 | AJ17: =IF($D17=AI$9,1,AI$14) -> 1.1 | AK17: =IF(AI17="",0,LOOKUP(AI17,FACTORS!$L$9:$M$128)*AI$13*AJ17) -> 171.6 | AM17: =IF($D17=AL$9,1,AL$14) -> 1.1 | AN17: =IF(AL17="",0,LOOKUP(AL17,FACTORS!$L$9:$M$128)*AL$13*AM17) -> 0 | AP17: =IF($D17=AO$9,1,AO$14) -> 1.1 | AQ17: =IF(AO17="",0,LOOKUP(AO17,FACTORS!$L$9:$M$128)*AO$13*AP17) -> 0 | AS17: =IF($D17=AR$9,1,AR$14) -> 1.1 | AT17: =IF(AR17="",0,LOOKUP(AR17,FACTORS!$L$9:$M$128)*AR$13*AS17) -> 0 | AU17: 4 | AV17: =IF($D17=AU$9,1,AU$14) -> 1.1 | AW17: =IF(AU17="",0,LOOKUP(AU17,FACTORS!$L$9:$M$128)*AU$13*AV17) -> 193.05 | AY17: =IF($D17=AX$9,1,AX$14) -> 1.1 | AZ17: =IF(AX17="",0,LOOKUP(AX17,FACTORS!$L$9:$M$128)*AX$13*AY17) -> 0 | BA17: 1 | BB17: =IF($D17=BA$9,1,BA$14) -> 1.1 | BC17: =IF(BA17="",0,LOOKUP(BA17,FACTORS!$L$9:$M$128)*BA$13*BB17) -> 171.6 | BE17: =IF($D17=BD$9,1,BD$14) -> 1.1 | BF17: =IF(BD17="",0,LOOKUP(BD17,FACTORS!$L$9:$M$128)*BD$13*BE17) -> 0 | BH17: =IF($D17=BG$9,1,BG$14) -> 1.1 | BI17: =IF(BG17="",0,LOOKUP(BG17,FACTORS!$L$9:$M$128)*BG$13*BH17) -> 0 | BK17: =IF($D17=BJ$9,1,BJ$14) -> 1.1 | BL17: =IF(BJ17="",0,LOOKUP(BJ17,FACTORS!$L$9:$M$128)*BJ$13*BK17) -> 0 | BN17: =IF($D17=BM$9,1,BM$14) -> 1.1 | BO17: =IF(BM17="",0,LOOKUP(BM17,FACTORS!$L$9:$M$128)*BM$13*BN17) -> 0 | BQ17: =IF($D17=BP$9,1,BP$14) -> 1.1 | BR17: =IF(BP17="",0,LOOKUP(BP17,FACTORS!$L$9:$M$128)*BP$13*BQ17) -> 0 | BT17: =IF($D17=BS$9,1,BS$14) -> 1.1 | BU17: =IF(BS17="",0,LOOKUP(BS17,FACTORS!$L$9:$M$128)*BS$13*BT17) -> 0 | BW17: =IF($D17=BV$9,1,BV$14) -> 1.1 | BX17: =IF(BV17="",0,LOOKUP(BV17,FACTORS!$L$9:$M$128)*BV$13*BW17) -> 0 | BY17: 4 | BZ17: =IF($D17=BY$9,1,BY$14) -> 1.1 | CA17: =IF(BY17="",0,LOOKUP(BY17,FACTORS!$L$9:$M$128)*BY$13*BZ17) -> 167.31 | CC17: =IF($D17=CB$9,1,CB$14) -> 1.1 | CD17: =IF(CB17="",0,LOOKUP(CB17,FACTORS!$L$9:$M$128)*CB$13*CC17) -> 0 | CF17: =IF($D17=CE$9,1,CE$14) -> 1.1 | CG17: =IF(CE17="",0,LOOKUP(CE17,FACTORS!$L$9:$M$128)*CE$13*CF17) -> 0 | CI17: =IF($D17=CH$9,1,CH$14) -> 1.1 | CJ17: =IF(CH17="",0,LOOKUP(CH17,FACTORS!$L$9:$M$128)*CH$13*CI17) -> 0 | CL17: =IF($D17=CK$9,1,CK$14) -> 1.1 | CM17: =IF(CK17="",0,LOOKUP(CK17,FACTORS!$L$9:$M$128)*CK$13*CL17) -> 0 | CO17: =IF($D17=CN$9,1,CN$14) -> 1.1 | CP17: =IF(CN17="",0,LOOKUP(CN17,FACTORS!$L$9:$M$128)*CN$13*CO17) -> 0 | CR17: =IF($D17=CQ$9,1,CQ$14) -> 1.1 | CS17: =IF(CQ17="",0,LOOKUP(CQ17,FACTORS!$L$9:$M$128)*CQ$13*CR17) -> 0 | CU17: =IF($D17=CT$9,1,CT$14) -> 1.1 | CV17: =IF(CT17="",0,LOOKUP(CT17,FACTORS!$L$9:$M$128)*CT$13*CU17) -> 0 | CX17: =IF($D17=CW$9,1,CW$14) -> 1.1 | CY17: =IF(CW17="",0,LOOKUP(CW17,FACTORS!$L$9:$M$128)*CW$13*CX17) -> 0 | DA17: =IF($D17=CZ$9,1,CZ$14) -> 1 | DB17: =IF(CZ17="",0,LOOKUP(CZ17,FACTORS!$L$9:$M$128)*CZ$13*DA17) -> 0 | DC17: 8 | DD17: =IF($D17=DC$9,1,DC$14) -> 1.1 | DE17: =IF(DC17="",0,LOOKUP(DC17,FACTORS!$L$9:$M$128)*DC$13*DD17) -> 186.45 | DG17: =IF($D17=DF$9,1,DF$14) -> 1.1 | DH17: =IF(DF17="",0,LOOKUP(DF17,FACTORS!$L$9:$M$128)*DF$13*DG17) -> 0 | DJ17: =IF($D17=DI$9,1,DI$14) -> 1.1 | DK17: =IF(DI17="",0,LOOKUP(DI17,FACTORS!$L$9:$M$128)*DI$13*DJ17) -> 0 | DM17: =IF($D17=DL$9,1,DL$14) -> 1 | DN17: =IF(DL17="",0,LOOKUP(DL17,FACTORS!$L$9:$M$128)*DL$13*DM17) -> 0 | DP17: =IF($D17=DO$9,1,DO$14) -> 1.1 | DQ17: =IF(DO17="",0,LOOKUP(DO17,FACTORS!$L$9:$M$128)*DO$13*DP17) -> 0 | DS17: =IF($D17=DR$9,1,DR$14) -> 1.1 | DT17: =IF(DR17="",0,LOOKUP(DR17,FACTORS!$L$9:$M$128)*DR$13*DS17) -> 0 | DV17: =IF($D17=DU$9,1,DU$14) -> 1.1 | DW17: =IF(DU17="",0,LOOKUP(DU17,FACTORS!$L$9:$M$128)*DU$13*DV17) -> 0 | DY17: =IF($D17=DX$9,1,DX$14) -> 1 | DZ17: =IF(DX17="",0,LOOKUP(DX17,FACTORS!$L$9:$M$128)*DX$13*DY17) -> 0 | EB17: =IF($D17=EA$9,1,EA$14) -> 1 | EC17: =IF(EA17="",0,LOOKUP(EA17,FACTORS!$L$9:$M$128)*EA$13*EB17) -> 0 | EE17: =IF($D17=ED$9,1,ED$14) -> 1 | EF17: =IF(ED17="",0,LOOKUP(ED17,FACTORS!$L$9:$M$128)*ED$13*EE17) -> 0 | EH17: =IF($D17=EG$9,1,EG$14) -> 1 | EI17: =IF(EG17="",0,LOOKUP(EG17,FACTORS!$L$9:$M$128)*EG$13*EH17) -> 0 | EK17: =IF($D17=EJ$9,1,EJ$14) -> 1 | EL17: =IF(EJ17="",0,LOOKUP(EJ17,FACTORS!$L$9:$M$128)*EJ$13*EK17) -> 0 | EN17: =IF($D17=EM$9,1,EM$14) -> 1 | EO17: =IF(EM17="",0,LOOKUP(EM17,FACTORS!$L$9:$M$128)*EM$13*EN17) -> 0 | EQ17: =IF($D17=EP$9,1,EP$14) -> 1 | ER17: =IF(EP17="",0,LOOKUP(EP17,FACTORS!$L$9:$M$128)*EP$13*EQ17) -> 0 | ET17: =IF($D17=ES$9,1,ES$14) -> 1 | EU17: =IF(ES17="",0,LOOKUP(ES17,FACTORS!$L$9:$M$128)*ES$13*ET17) -> 0 | EW17: =IF($D17=EV$9,1,EV$14) -> 1 | EX17: =IF(EV17="",0,LOOKUP(EV17,FACTORS!$L$9:$M$128)*EV$13*EW17) -> 0 | EZ17: =IF($D17=EY$9,1,EY$14) -> 1 | FA17: =IF(EY17="",0,LOOKUP(EY17,FACTORS!$L$9:$M$128)*EY$13*EZ17) -> 0 | FC17: =IF($D17=FB$9,1,FB$14) -> 1 | FD17: =IF(FB17="",0,LOOKUP(FB17,FACTORS!$L$9:$M$128)*FB$13*FC17) -> 0 | FF17: =IF($D17=FE$9,1,FE$14) -> 1 | FG17: =IF(FE17="",0,LOOKUP(FE17,FACTORS!$L$9:$M$128)*FE$13*FF17) -> 0 | FI17: =IF($D17=FH$9,1,FH$14) -> 1 | FJ17: =IF(FH17="",0,LOOKUP(FH17,FACTORS!$L$9:$M$128)*FH$13*FI17) -> 0 | FL17: =IF($D17=FK$9,1,FK$14) -> 1 | FM17: =IF(FK17="",0,LOOKUP(FK17,FACTORS!$L$9:$M$128)*FK$13*FL17) -> 0
B18: 2 | C18: Hal Gilreath | D18: USA | F18: 914.9 | G18: 914,9 points | I18: 1 | J18: =IF(H18="",0,LOOKUP(H18,FACTORS!$L$9:$M$128)*H$13*I18) -> 0 | L18: 1.1 | M18: =IF(K18="",0,LOOKUP(K18,FACTORS!$L$9:$M$128)*K$13*L18) -> 0 | N18: 12 | O18: 1 | P18: =IF(N18="",0,LOOKUP(N18,FACTORS!$L$9:$M$128)*N$13*O18) -> 141.7 | R18: 1.1 | S18: =IF(Q18="",0,LOOKUP(Q18,FACTORS!$L$9:$M$128)*Q$13*R18) -> 0 | U18: 1.1 | V18: =IF(T18="",0,LOOKUP(T18,FACTORS!$L$9:$M$128)*T$13*U18) -> 0 | X18: 1.1 | Y18: =IF(W18="",0,LOOKUP(W18,FACTORS!$L$9:$M$128)*W$13*X18) -> 0 | AA18: 1.1 | AB18: =IF(Z18="",0,LOOKUP(Z18,FACTORS!$L$9:$M$128)*Z$13*AA18) -> 0 | AD18: 1.1 | AE18: =IF(AC18="",0,LOOKUP(AC18,FACTORS!$L$9:$M$128)*AC$13*AD18) -> 0 | AG18: 1.1 | AH18: =IF(AF18="",0,LOOKUP(AF18,FACTORS!$L$9:$M$128)*AF$13*AG18) -> 0 | AJ18: 1.1 | AK18: =IF(AI18="",0,LOOKUP(AI18,FACTORS!$L$9:$M$128)*AI$13*AJ18) -> 0 | AM18: 1.1 | AN18: =IF(AL18="",0,LOOKUP(AL18,FACTORS!$L$9:$M$128)*AL$13*AM18) -> 0 | AO18: 1 | AP18: 1 | AQ18: =IF(AO18="",0,LOOKUP(AO18,FACTORS!$L$9:$M$128)*AO$13*AP18) -> 156 | AR18: 10 | AS18: 1 | AT18: =IF(AR18="",0,LOOKUP(AR18,FACTORS!$L$9:$M$128)*AR$13*AS18) -> 144.3 | AV18: 1.1 | AW18: =IF(AU18="",0,LOOKUP(AU18,FACTORS!$L$9:$M$128)*AU$13*AV18) -> 0 | AY18: 1.1 | AZ18: =IF(AX18="",0,LOOKUP(AX18,FACTORS!$L$9:$M$128)*AX$13*AY18) -> 0 | BB18: 1.1 | BC18: =IF(BA18="",0,LOOKUP(BA18,FACTORS!$L$9:$M$128)*BA$13*BB18) -> 0 | BD18: 2 | BE18: 1 | BF18: =IF(BD18="",0,LOOKUP(BD18,FACTORS!$L$9:$M$128)*BD$13*BE18) -> 154.7 | BH18: 1.1 | BI18: =IF(BG18="",0,LOOKUP(BG18,FACTORS!$L$9:$M$128)*BG$13*BH18) -> 0 | BK18: 1.1 | BL18: =IF(BJ18="",0,LOOKUP(BJ18,FACTORS!$L$9:$M$128)*BJ$13*BK18) -> 0 | BM18: 2 | BN18: 1 | BO18: =IF(BM18="",0,LOOKUP(BM18,FACTORS!$L$9:$M$128)*BM$13*BN18) -> 154.7 | BQ18: 1.1 | BR18: =IF(BP18="",0,LOOKUP(BP18,FACTORS!$L$9:$M$128)*BP$13*BQ18) -> 0 | BT18: 1.1 | BU18: =IF(BS18="",0,LOOKUP(BS18,FACTORS!$L$9:$M$128)*BS$13*BT18) -> 0 | BW18: 1.1 | BX18: =IF(BV18="",0,LOOKUP(BV18,FACTORS!$L$9:$M$128)*BV$13*BW18) -> 0 | BZ18: 1.1 | CA18: =IF(BY18="",0,LOOKUP(BY18,FACTORS!$L$9:$M$128)*BY$13*BZ18) -> 0 | CC18: 1.1 | CD18: =IF(CB18="",0,LOOKUP(CB18,FACTORS!$L$9:$M$128)*CB$13*CC18) -> 0 | CF18: 1.1 | CG18: =IF(CE18="",0,LOOKUP(CE18,FACTORS!$L$9:$M$128)*CE$13*CF18) -> 0 | CI18: 1.1 | CJ18: =IF(CH18="",0,LOOKUP(CH18,FACTORS!$L$9:$M$128)*CH$13*CI18) -> 0 | CL18: 1.1 | CM18: =IF(CK18="",0,LOOKUP(CK18,FACTORS!$L$9:$M$128)*CK$13*CL18) -> 0 | CO18: 1.1 | CP18: =IF(CN18="",0,LOOKUP(CN18,FACTORS!$L$9:$M$128)*CN$13*CO18) -> 0 | CR18: 1 | CS18: =IF(CQ18="",0,LOOKUP(CQ18,FACTORS!$L$9:$M$128)*CQ$13*CR18) -> 0 | CU18: 1.1 | CV18: =IF(CT18="",0,LOOKUP(CT18,FACTORS!$L$9:$M$128)*CT$13*CU18) -> 0 | CX18: 1.1 | CY18: =IF(CW18="",0,LOOKUP(CW18,FACTORS!$L$9:$M$128)*CW$13*CX18) -> 0 | DA18: 1.1 | DB18: =IF(CZ18="",0,LOOKUP(CZ18,FACTORS!$L$9:$M$128)*CZ$13*DA18) -> 0 | DD18: 1.1 | DE18: =IF(DC18="",0,LOOKUP(DC18,FACTORS!$L$9:$M$128)*DC$13*DD18) -> 0 | DG18: 1.1 | DH18: =IF(DF18="",0,LOOKUP(DF18,FACTORS!$L$9:$M$128)*DF$13*DG18) -> 0 | DJ18: 1 | DK18: =IF(DI18="",0,LOOKUP(DI18,FACTORS!$L$9:$M$128)*DI$13*DJ18) -> 0 | DM18: 1 | DN18: =IF(DL18="",0,LOOKUP(DL18,FACTORS!$L$9:$M$128)*DL$13*DM18) -> 0 | DP18: 1.1 | DQ18: =IF(DO18="",0,LOOKUP(DO18,FACTORS!$L$9:$M$128)*DO$13*DP18) -> 0 | DR18: 12 | DS18: 1 | DT18: =IF(DR18="",0,LOOKUP(DR18,FACTORS!$L$9:$M$128)*DR$13*DS18) -> 163.5 | DV18: 1.1 | DW18: =IF(DU18="",0,LOOKUP(DU18,FACTORS!$L$9:$M$128)*DU$13*DV18) -> 0 | DY18: 1.1 | DZ18: =IF(DX18="",0,LOOKUP(DX18,FACTORS!$L$9:$M$128)*DX$13*DY18) -> 0 | EB18: 1 | EC18: =IF(EA18="",0,LOOKUP(EA18,FACTORS!$L$9:$M$128)*EA$13*EB18) -> 0 | EE18: 1 | EF18: =IF(ED18="",0,LOOKUP(ED18,FACTORS!$L$9:$M$128)*ED$13*EE18) -> 0 | EH18: 1 | EI18: =IF(EG18="",0,LOOKUP(EG18,FACTORS!$L$9:$M$128)*EG$13*EH18) -> 0 | EK18: 1 | EL18: =IF(EJ18="",0,LOOKUP(EJ18,FACTORS!$L$9:$M$128)*EJ$13*EK18) -> 0 | EN18: 1 | EO18: =IF(EM18="",0,LOOKUP(EM18,FACTORS!$L$9:$M$128)*EM$13*EN18) -> 0 | EQ18: 1 | ER18: =IF(EP18="",0,LOOKUP(EP18,FACTORS!$L$9:$M$128)*EP$13*EQ18) -> 0 | ET18: 1 | EU18: =IF(ES18="",0,LOOKUP(ES18,FACTORS!$L$9:$M$128)*ES$13*ET18) -> 0 | EW18: 1 | EX18: =IF(EV18="",0,LOOKUP(EV18,FACTORS!$L$9:$M$128)*EV$13*EW18) -> 0 | EZ18: 1 | FA18: =IF(EY18="",0,LOOKUP(EY18,FACTORS!$L$9:$M$128)*EY$13*EZ18) -> 0 | FC18: 1 | FD18: =IF(FB18="",0,LOOKUP(FB18,FACTORS!$L$9:$M$128)*FB$13*FC18) -> 0 | FF18: 1 | FG18: =IF(FE18="",0,LOOKUP(FE18,FACTORS!$L$9:$M$128)*FE$13*FF18) -> 0 | FI18: 1 | FJ18: =IF(FH18="",0,LOOKUP(FH18,FACTORS!$L$9:$M$128)*FH$13*FI18) -> 0 | FL18: 1 | FM18: =IF(FK18="",0,LOOKUP(FK18,FACTORS!$L$9:$M$128)*FK$13*FL18) -> 0
B19: 3 | C19: Pietro Fantoni | D19: ITA | F19: 872.73 | G19: 872,73 points | I19: 1.1 | J19: =IF(H19="",0,LOOKUP(H19,FACTORS!$L$9:$M$128)*H$13*I19) -> 0 | L19: 1.1 | M19: =IF(K19="",0,LOOKUP(K19,FACTORS!$L$9:$M$128)*K$13*L19) -> 0 | O19: 1.1 | P19: =IF(N19="",0,LOOKUP(N19,FACTORS!$L$9:$M$128)*N$13*O19) -> 0 | R19: 1.1 | S19: =IF(Q19="",0,LOOKUP(Q19,FACTORS!$L$9:$M$128)*Q$13*R19) -> 0 | U19: 1.1 | V19: =IF(T19="",0,LOOKUP(T19,FACTORS!$L$9:$M$128)*T$13*U19) -> 0 | X19: 1.1 | Y19: =IF(W19="",0,LOOKUP(W19,FACTORS!$L$9:$M$128)*W$13*X19) -> 0 | AA19: 1.1 | AB19: =IF(Z19="",0,LOOKUP(Z19,FACTORS!$L$9:$M$128)*Z$13*AA19) -> 0 | AD19: 1.1 | AE19: =IF(AC19="",0,LOOKUP(AC19,FACTORS!$L$9:$M$128)*AC$13*AD19) -> 0 | AG19: 1.1 | AH19: =IF(AF19="",0,LOOKUP(AF19,FACTORS!$L$9:$M$128)*AF$13*AG19) -> 0 | AJ19: 1.1 | AK19: =IF(AI19="",0,LOOKUP(AI19,FACTORS!$L$9:$M$128)*AI$13*AJ19) -> 0 | AM19: 1.1 | AN19: =IF(AL19="",0,LOOKUP(AL19,FACTORS!$L$9:$M$128)*AL$13*AM19) -> 0 | AP19: 1.1 | AQ19: =IF(AO19="",0,LOOKUP(AO19,FACTORS!$L$9:$M$128)*AO$13*AP19) -> 0 | AR19: 9 | AS19: 1.1 | AT19: =IF(AR19="",0,LOOKUP(AR19,FACTORS!$L$9:$M$128)*AR$13*AS19) -> 160.16 | AV19: 1.1 | AW19: =IF(AU19="",0,LOOKUP(AU19,FACTORS!$L$9:$M$128)*AU$13*AV19) -> 0 | AY19: 1.1 | AZ19: =IF(AX19="",0,LOOKUP(AX19,FACTORS!$L$9:$M$128)*AX$13*AY19) -> 0 | BB19: 1.1 | BC19: =IF(BA19="",0,LOOKUP(BA19,FACTORS!$L$9:$M$128)*BA$13*BB19) -> 0 | BE19: 1.1 | BF19: =IF(BD19="",0,LOOKUP(BD19,FACTORS!$L$9:$M$128)*BD$13*BE19) -> 0 | BH19: 1 | BI19: =IF(BG19="",0,LOOKUP(BG19,FACTORS!$L$9:$M$128)*BG$13*BH19) -> 0 | BJ19: 1 | BK19: 1 | BL19: =IF(BJ19="",0,LOOKUP(BJ19,FACTORS!$L$9:$M$128)*BJ$13*BK19) -> 180 | BN19: 1.1 | BO19: =IF(BM19="",0,LOOKUP(BM19,FACTORS!$L$9:$M$128)*BM$13*BN19) -> 0 | BQ19: 1.1 | BR19: =IF(BP19="",0,LOOKUP(BP19,FACTORS!$L$9:$M$128)*BP$13*BQ19) -> 0 | BT19: 1.1 | BU19: =IF(BS19="",0,LOOKUP(BS19,FACTORS!$L$9:$M$128)*BS$13*BT19) -> 0 | BW19: 1.1 | BX19: =IF(BV19="",0,LOOKUP(BV19,FACTORS!$L$9:$M$128)*BV$13*BW19) -> 0 | BZ19: 1.1 | CA19: =IF(BY19="",0,LOOKUP(BY19,FACTORS!$L$9:$M$128)*BY$13*BZ19) -> 0 | CC19: 1 | CD19: =IF(CB19="",0,LOOKUP(CB19,FACTORS!$L$9:$M$128)*CB$13*CC19) -> 0 | CF19: 1.1 | CG19: =IF(CE19="",0,LOOKUP(CE19,FACTORS!$L$9:$M$128)*CE$13*CF19) -> 0 | CI19: 1.1 | CJ19: =IF(CH19="",0,LOOKUP(CH19,FACTORS!$L$9:$M$128)*CH$13*CI19) -> 0 | CK19: 7 | CL19: 1 | CM19: =IF(CK19="",0,LOOKUP(CK19,FACTORS!$L$9:$M$128)*CK$13*CL19) -> 148.2 | CO19: 1.1 | CP19: =IF(CN19="",0,LOOKUP(CN19,FACTORS!$L$9:$M$128)*CN$13*CO19) -> 0 | CR19: 1.1 | CS19: =IF(CQ19="",0,LOOKUP(CQ19,FACTORS!$L$9:$M$128)*CQ$13*CR19) -> 0 | CT19: 2 | CU19: 1.1 | CV19: =IF(CT19="",0,LOOKUP(CT19,FACTORS!$L$9:$M$128)*CT$13*CU19) -> 170.17 | CX19: 1.1 | CY19: =IF(CW19="",0,LOOKUP(CW19,FACTORS!$L$9:$M$128)*CW$13*CX19) -> 0 | DA19: 1.1 | DB19: =IF(CZ19="",0,LOOKUP(CZ19,FACTORS!$L$9:$M$128)*CZ$13*DA19) -> 0 | DD19: 1.1 | DE19: =IF(DC19="",0,LOOKUP(DC19,FACTORS!$L$9:$M$128)*DC$13*DD19) -> 0 | DG19: 1.1 | DH19: =IF(DF19="",0,LOOKUP(DF19,FACTORS!$L$9:$M$128)*DF$13*DG19) -> 0 | DJ19: 1.1 | DK19: =IF(DI19="",0,LOOKUP(DI19,FACTORS!$L$9:$M$128)*DI$13*DJ19) -> 0 | DL19: 2 | DM19: 1 | DN19: =IF(DL19="",0,LOOKUP(DL19,FACTORS!$L$9:$M$128)*DL$13*DM19) -> 214.2 | DP19: 1.1 | DQ19: =IF(DO19="",0,LOOKUP(DO19,FACTORS!$L$9:$M$128)*DO$13*DP19) -> 0 | DS19: 1.1 | DT19: =IF(DR19="",0,LOOKUP(DR19,FACTORS!$L$9:$M$128)*DR$13*DS19) -> 0 | DV19: 1.1 | DW19: =IF(DU19="",0,LOOKUP(DU19,FACTORS!$L$9:$M$128)*DU$13*DV19) -> 0 | DY19: 1.1 | DZ19: =IF(DX19="",0,LOOKUP(DX19,FACTORS!$L$9:$M$128)*DX$13*DY19) -> 0 | EB19: 1 | EC19: =IF(EA19="",0,LOOKUP(EA19,FACTORS!$L$9:$M$128)*EA$13*EB19) -> 0 | EE19: 1 | EF19: =IF(ED19="",0,LOOKUP(ED19,FACTORS!$L$9:$M$128)*ED$13*EE19) -> 0 | EH19: 1 | EI19: =IF(EG19="",0,LOOKUP(EG19,FACTORS!$L$9:$M$128)*EG$13*EH19) -> 0 | EK19: 1 | EL19: =IF(EJ19="",0,LOOKUP(EJ19,FACTORS!$L$9:$M$128)*EJ$13*EK19) -> 0 | EN19: 1 | EO19: =IF(EM19="",0,LOOKUP(EM19,FACTORS!$L$9:$M$128)*EM$13*EN19) -> 0 | EQ19: 1 | ER19: =IF(EP19="",0,LOOKUP(EP19,FACTORS!$L$9:$M$128)*EP$13*EQ19) -> 0 | ET19: 1 | EU19: =IF(ES19="",0,LOOKUP(ES19,FACTORS!$L$9:$M$128)*ES$13*ET19) -> 0 | EW19: 1 | EX19: =IF(EV19="",0,LOOKUP(EV19,FACTORS!$L$9:$M$128)*EV$13*EW19) -> 0 | EZ19: 1 | FA19: =IF(EY19="",0,LOOKUP(EY19,FACTORS!$L$9:$M$128)*EY$13*EZ19) -> 0 | FC19: 1 | FD19: =IF(FB19="",0,LOOKUP(FB19,FACTORS!$L$9:$M$128)*FB$13*FC19) -> 0 | FF19: 1 | FG19: =IF(FE19="",0,LOOKUP(FE19,FACTORS!$L$9:$M$128)*FE$13*FF19) -> 0 | FI19: 1 | FJ19: =IF(FH19="",0,LOOKUP(FH19,FACTORS!$L$9:$M$128)*FH$13*FI19) -> 0 | FL19: 1 | FM19: =IF(FK19="",0,LOOKUP(FK19,FACTORS!$L$9:$M$128)*FK$13*FL19) -> 0
B20: 4 | C20: Ernesto Rodríguez | D20: USA | F20: 810.8 | G20: 810,8 points | I20: 1 | J20: =IF(H20="",0,LOOKUP(H20,FACTORS!$L$9:$M$128)*H$13*I20) -> 0 | L20: 1.1 | M20: =IF(K20="",0,LOOKUP(K20,FACTORS!$L$9:$M$128)*K$13*L20) -> 0 | N20: 2 | O20: 1 | P20: =IF(N20="",0,LOOKUP(N20,FACTORS!$L$9:$M$128)*N$13*O20) -> 154.7 | R20: 1.1 | S20: =IF(Q20="",0,LOOKUP(Q20,FACTORS!$L$9:$M$128)*Q$13*R20) -> 0 | U20: 1.1 | V20: =IF(T20="",0,LOOKUP(T20,FACTORS!$L$9:$M$128)*T$13*U20) -> 0 | X20: 1.1 | Y20: =IF(W20="",0,LOOKUP(W20,FACTORS!$L$9:$M$128)*W$13*X20) -> 0 | AA20: 1.1 | AB20: =IF(Z20="",0,LOOKUP(Z20,FACTORS!$L$9:$M$128)*Z$13*AA20) -> 0 | AD20: 1.1 | AE20: =IF(AC20="",0,LOOKUP(AC20,FACTORS!$L$9:$M$128)*AC$13*AD20) -> 0 | AG20: 1.1 | AH20: =IF(AF20="",0,LOOKUP(AF20,FACTORS!$L$9:$M$128)*AF$13*AG20) -> 0 | AJ20: 1.1 | AK20: =IF(AI20="",0,LOOKUP(AI20,FACTORS!$L$9:$M$128)*AI$13*AJ20) -> 0 | AM20: 1.1 | AN20: =IF(AL20="",0,LOOKUP(AL20,FACTORS!$L$9:$M$128)*AL$13*AM20) -> 0 | AP20: 1 | AQ20: =IF(AO20="",0,LOOKUP(AO20,FACTORS!$L$9:$M$128)*AO$13*AP20) -> 0 | AR20: 1 | AS20: 1 | AT20: =IF(AR20="",0,LOOKUP(AR20,FACTORS!$L$9:$M$128)*AR$13*AS20) -> 156 | AV20: 1.1 | AW20: =IF(AU20="",0,LOOKUP(AU20,FACTORS!$L$9:$M$128)*AU$13*AV20) -> 0 | AY20: 1.1 | AZ20: =IF(AX20="",0,LOOKUP(AX20,FACTORS!$L$9:$M$128)*AX$13*AY20) -> 0 | BA20: 1 | BB20: 1.1 | BC20: =IF(BA20="",0,LOOKUP(BA20,FACTORS!$L$9:$M$128)*BA$13*BB20) -> 171.6 | BE20: 1 | BF20: =IF(BD20="",0,LOOKUP(BD20,FACTORS!$L$9:$M$128)*BD$13*BE20) -> 0 | BH20: 1.1 | BI20: =IF(BG20="",0,LOOKUP(BG20,FACTORS!$L$9:$M$128)*BG$13*BH20) -> 0 | BK20: 1.1 | BL20: =IF(BJ20="",0,LOOKUP(BJ20,FACTORS!$L$9:$M$128)*BJ$13*BK20) -> 0 | BM20: 1 | BN20: 1 | BO20: =IF(BM20="",0,LOOKUP(BM20,FACTORS!$L$9:$M$128)*BM$13*BN20) -> 156 | BQ20: 1.1 | BR20: =IF(BP20="",0,LOOKUP(BP20,FACTORS!$L$9:$M$128)*BP$13*BQ20) -> 0 | BT20: 1.1 | BU20: =IF(BS20="",0,LOOKUP(BS20,FACTORS!$L$9:$M$128)*BS$13*BT20) -> 0 | BW20: 1.1 | BX20: =IF(BV20="",0,LOOKUP(BV20,FACTORS!$L$9:$M$128)*BV$13*BW20) -> 0 | BZ20: 1.1 | CA20: =IF(BY20="",0,LOOKUP(BY20,FACTORS!$L$9:$M$128)*BY$13*BZ20) -> 0 | CC20: 1.1 | CD20: =IF(CB20="",0,LOOKUP(CB20,FACTORS!$L$9:$M$128)*CB$13*CC20) -> 0 | CF20: 1.1 | CG20: =IF(CE20="",0,LOOKUP(CE20,FACTORS!$L$9:$M$128)*CE$13*CF20) -> 0 | CI20: 1.1 | CJ20: =IF(CH20="",0,LOOKUP(CH20,FACTORS!$L$9:$M$128)*CH$13*CI20) -> 0 | CL20: 1.1 | CM20: =IF(CK20="",0,LOOKUP(CK20,FACTORS!$L$9:$M$128)*CK$13*CL20) -> 0 | CO20: 1.1 | CP20: =IF(CN20="",0,LOOKUP(CN20,FACTORS!$L$9:$M$128)*CN$13*CO20) -> 0 | CR20: 1 | CS20: =IF(CQ20="",0,LOOKUP(CQ20,FACTORS!$L$9:$M$128)*CQ$13*CR20) -> 0 | CU20: 1.1 | CV20: =IF(CT20="",0,LOOKUP(CT20,FACTORS!$L$9:$M$128)*CT$13*CU20) -> 0 | CX20: 1.1 | CY20: =IF(CW20="",0,LOOKUP(CW20,FACTORS!$L$9:$M$128)*CW$13*CX20) -> 0 | DA20: 1.1 | DB20: =IF(CZ20="",0,LOOKUP(CZ20,FACTORS!$L$9:$M$128)*CZ$13*DA20) -> 0 | DD20: 1.1 | DE20: =IF(DC20="",0,LOOKUP(DC20,FACTORS!$L$9:$M$128)*DC$13*DD20) -> 0 | DG20: 1.1 | DH20: =IF(DF20="",0,LOOKUP(DF20,FACTORS!$L$9:$M$128)*DF$13*DG20) -> 0 | DJ20: 1 | DK20: =IF(DI20="",0,LOOKUP(DI20,FACTORS!$L$9:$M$128)*DI$13*DJ20) -> 0 | DM20: 1 | DN20: =IF(DL20="",0,LOOKUP(DL20,FACTORS!$L$9:$M$128)*DL$13*DM20) -> 0 | DP20: 1.1 | DQ20: =IF(DO20="",0,LOOKUP(DO20,FACTORS!$L$9:$M$128)*DO$13*DP20) -> 0 | DR20: 6 | DS20: 1 | DT20: =IF(DR20="",0,LOOKUP(DR20,FACTORS!$L$9:$M$128)*DR$13*DS20) -> 172.5 | DV20: 1.1 | DW20: =IF(DU20="",0,LOOKUP(DU20,FACTORS!$L$9:$M$128)*DU$13*DV20) -> 0 | DY20: 1.1 | DZ20: =IF(DX20="",0,LOOKUP(DX20,FACTORS!$L$9:$M$128)*DX$13*DY20) -> 0 | EB20: 1 | EC20: =IF(EA20="",0,LOOKUP(EA20,FACTORS!$L$9:$M$128)*EA$13*EB20) -> 0 | EE20: 1 | EF20: =IF(ED20="",0,LOOKUP(ED20,FACTORS!$L$9:$M$128)*ED$13*EE20) -> 0 | EH20: 1 | EI20: =IF(EG20="",0,LOOKUP(EG20,FACTORS!$L$9:$M$128)*EG$13*EH20) -> 0 | EK20: 1 | EL20: =IF(EJ20="",0,LOOKUP(EJ20,FACTORS!$L$9:$M$128)*EJ$13*EK20) -> 0 | EN20: 1 | EO20: =IF(EM20="",0,LOOKUP(EM20,FACTORS!$L$9:$M$128)*EM$13*EN20) -> 0 | EQ20: 1 | ER20: =IF(EP20="",0,LOOKUP(EP20,FACTORS!$L$9:$M$128)*EP$13*EQ20) -> 0 | ET20: 1 | EU20: =IF(ES20="",0,LOOKUP(ES20,FACTORS!$L$9:$M$128)*ES$13*ET20) -> 0 | EW20: 1 | EX20: =IF(EV20="",0,LOOKUP(EV20,FACTORS!$L$9:$M$128)*EV$13*EW20) -> 0 | EZ20: 1 | FA20: =IF(EY20="",0,LOOKUP(EY20,FACTORS!$L$9:$M$128)*EY$13*EZ20) -> 0 | FC20: 1 | FD20: =IF(FB20="",0,LOOKUP(FB20,FACTORS!$L$9:$M$128)*FB$13*FC20) -> 0 | FF20: 1 | FG20: =IF(FE20="",0,LOOKUP(FE20,FACTORS!$L$9:$M$128)*FE$13*FF20) -> 0 | FI20: 1 | FJ20: =IF(FH20="",0,LOOKUP(FH20,FACTORS!$L$9:$M$128)*FH$13*FI20) -> 0 | FL20: 1 | FM20: =IF(FK20="",0,LOOKUP(FK20,FACTORS!$L$9:$M$128)*FK$13*FL20) -> 0
B21: 5 | C21: Nick Voss | D21: USA | F21: 775 | G21: 775 points | I21: 1 | J21: =IF(H21="",0,LOOKUP(H21,FACTORS!$L$9:$M$128)*H$13*I21) -> 0 | L21: 1.1 | M21: =IF(K21="",0,LOOKUP(K21,FACTORS!$L$9:$M$128)*K$13*L21) -> 0 | N21: 6 | O21: 1 | P21: =IF(N21="",0,LOOKUP(N21,FACTORS!$L$9:$M$128)*N$13*O21) -> 149.5 | R21: 1.1 | S21: =IF(Q21="",0,LOOKUP(Q21,FACTORS!$L$9:$M$128)*Q$13*R21) -> 0 | U21: 1.1 | V21: =IF(T21="",0,LOOKUP(T21,FACTORS!$L$9:$M$128)*T$13*U21) -> 0 | X21: 1.1 | Y21: =IF(W21="",0,LOOKUP(W21,FACTORS!$L$9:$M$128)*W$13*X21) -> 0 | AA21: 1.1 | AB21: =IF(Z21="",0,LOOKUP(Z21,FACTORS!$L$9:$M$128)*Z$13*AA21) -> 0 | AD21: 1.1 | AE21: =IF(AC21="",0,LOOKUP(AC21,FACTORS!$L$9:$M$128)*AC$13*AD21) -> 0 | AG21: 1.1 | AH21: =IF(AF21="",0,LOOKUP(AF21,FACTORS!$L$9:$M$128)*AF$13*AG21) -> 0 | AJ21: 1.1 | AK21: =IF(AI21="",0,LOOKUP(AI21,FACTORS!$L$9:$M$128)*AI$13*AJ21) -> 0 | AM21: 1.1 | AN21: =IF(AL21="",0,LOOKUP(AL21,FACTORS!$L$9:$M$128)*AL$13*AM21) -> 0 | AP21: 1 | AQ21: =IF(AO21="",0,LOOKUP(AO21,FACTORS!$L$9:$M$128)*AO$13*AP21) -> 0 | AR21: 8 | AS21: 1 | AT21: =IF(AR21="",0,LOOKUP(AR21,FACTORS!$L$9:$M$128)*AR$13*AS21) -> 146.9 | AV21: 1.1 | AW21: =IF(AU21="",0,LOOKUP(AU21,FACTORS!$L$9:$M$128)*AU$13*AV21) -> 0 | AY21: 1.1 | AZ21: =IF(AX21="",0,LOOKUP(AX21,FACTORS!$L$9:$M$128)*AX$13*AY21) -> 0 | BB21: 1.1 | BC21: =IF(BA21="",0,LOOKUP(BA21,FACTORS!$L$9:$M$128)*BA$13*BB21) -> 0 | BD21: 4 | BE21: 1 | BF21: =IF(BD21="",0,LOOKUP(BD21,FACTORS!$L$9:$M$128)*BD$13*BE21) -> 152.1 | BH21: 1.1 | BI21: =IF(BG21="",0,LOOKUP(BG21,FACTORS!$L$9:$M$128)*BG$13*BH21) -> 0 | BK21: 1.1 | BL21: =IF(BJ21="",0,LOOKUP(BJ21,FACTORS!$L$9:$M$128)*BJ$13*BK21) -> 0 | BM21: 6 | BN21: 1 | BO21: =IF(BM21="",0,LOOKUP(BM21,FACTORS!$L$9:$M$128)*BM$13*BN21) -> 149.5 | BQ21: 1.1 | BR21: =IF(BP21="",0,LOOKUP(BP21,FACTORS!$L$9:$M$128)*BP$13*BQ21) -> 0 | BT21: 1.1 | BU21: =IF(BS21="",0,LOOKUP(BS21,FACTORS!$L$9:$M$128)*BS$13*BT21) -> 0 | BW21: 1.1 | BX21: =IF(BV21="",0,LOOKUP(BV21,FACTORS!$L$9:$M$128)*BV$13*BW21) -> 0 | BZ21: 1.1 | CA21: =IF(BY21="",0,LOOKUP(BY21,FACTORS!$L$9:$M$128)*BY$13*BZ21) -> 0 | CC21: 1.1 | CD21: =IF(CB21="",0,LOOKUP(CB21,FACTORS!$L$9:$M$128)*CB$13*CC21) -> 0 | CF21: 1.1 | CG21: =IF(CE21="",0,LOOKUP(CE21,FACTORS!$L$9:$M$128)*CE$13*CF21) -> 0 | CI21: 1.1 | CJ21: =IF(CH21="",0,LOOKUP(CH21,FACTORS!$L$9:$M$128)*CH$13*CI21) -> 0 | CL21: 1.1 | CM21: =IF(CK21="",0,LOOKUP(CK21,FACTORS!$L$9:$M$128)*CK$13*CL21) -> 0 | CO21: 1.1 | CP21: =IF(CN21="",0,LOOKUP(CN21,FACTORS!$L$9:$M$128)*CN$13*CO21) -> 0 | CR21: 1 | CS21: =IF(CQ21="",0,LOOKUP(CQ21,FACTORS!$L$9:$M$128)*CQ$13*CR21) -> 0 | CU21: 1.1 | CV21: =IF(CT21="",0,LOOKUP(CT21,FACTORS!$L$9:$M$128)*CT$13*CU21) -> 0 | CX21: 1.1 | CY21: =IF(CW21="",0,LOOKUP(CW21,FACTORS!$L$9:$M$128)*CW$13*CX21) -> 0 | DA21: 1.1 | DB21: =IF(CZ21="",0,LOOKUP(CZ21,FACTORS!$L$9:$M$128)*CZ$13*DA21) -> 0 | DD21: 1.1 | DE21: =IF(DC21="",0,LOOKUP(DC21,FACTORS!$L$9:$M$128)*DC$13*DD21) -> 0 | DG21: 1.1 | DH21: =IF(DF21="",0,LOOKUP(DF21,FACTORS!$L$9:$M$128)*DF$13*DG21) -> 0 | DJ21: 1 | DK21: =IF(DI21="",0,LOOKUP(DI21,FACTORS!$L$9:$M$128)*DI$13*DJ21) -> 0 | DM21: 1 | DN21: =IF(DL21="",0,LOOKUP(DL21,FACTORS!$L$9:$M$128)*DL$13*DM21) -> 0 | DP21: 1.1 | DQ21: =IF(DO21="",0,LOOKUP(DO21,FACTORS!$L$9:$M$128)*DO$13*DP21) -> 0 | DR21: 3 | DS21: 1 | DT21: =IF(DR21="",0,LOOKUP(DR21,FACTORS!$L$9:$M$128)*DR$13*DS21) -> 177 | DV21: 1.1 | DW21: =IF(DU21="",0,LOOKUP(DU21,FACTORS!$L$9:$M$128)*DU$13*DV21) -> 0 | DY21: 1.1 | DZ21: =IF(DX21="",0,LOOKUP(DX21,FACTORS!$L$9:$M$128)*DX$13*DY21) -> 0 | EB21: 1 | EC21: =IF(EA21="",0,LOOKUP(EA21,FACTORS!$L$9:$M$128)*EA$13*EB21) -> 0 | EE21: 1 | EF21: =IF(ED21="",0,LOOKUP(ED21,FACTORS!$L$9:$M$128)*ED$13*EE21) -> 0 | EH21: 1 | EI21: =IF(EG21="",0,LOOKUP(EG21,FACTORS!$L$9:$M$128)*EG$13*EH21) -> 0 | EK21: 1 | EL21: =IF(EJ21="",0,LOOKUP(EJ21,FACTORS!$L$9:$M$128)*EJ$13*EK21) -> 0 | EN21: 1 | EO21: =IF(EM21="",0,LOOKUP(EM21,FACTORS!$L$9:$M$128)*EM$13*EN21) -> 0 | EQ21: 1 | ER21: =IF(EP21="",0,LOOKUP(EP21,FACTORS!$L$9:$M$128)*EP$13*EQ21) -> 0 | ET21: 1 | EU21: =IF(ES21="",0,LOOKUP(ES21,FACTORS!$L$9:$M$128)*ES$13*ET21) -> 0 | EW21: 1 | EX21: =IF(EV21="",0,LOOKUP(EV21,FACTORS!$L$9:$M$128)*EV$13*EW21) -> 0 | EZ21: 1 | FA21: =IF(EY21="",0,LOOKUP(EY21,FACTORS!$L$9:$M$128)*EY$13*EZ21) -> 0 | FC21: 1 | FD21: =IF(FB21="",0,LOOKUP(FB21,FACTORS!$L$9:$M$128)*FB$13*FC21) -> 0 | FF21: 1 | FG21: =IF(FE21="",0,LOOKUP(FE21,FACTORS!$L$9:$M$128)*FE$13*FF21) -> 0 | FI21: 1 | FJ21: =IF(FH21="",0,LOOKUP(FH21,FACTORS!$L$9:$M$128)*FH$13*FI21) -> 0 | FL21: 1 | FM21: =IF(FK21="",0,LOOKUP(FK21,FACTORS!$L$9:$M$128)*FK$13*FL21) -> 0
B22: 6 | C22: David Hernández | D22: USA | F22: 773.4 | G22: 773,4 points | I22: 1 | J22: =IF(H22="",0,LOOKUP(H22,FACTORS!$L$9:$M$128)*H$13*I22) -> 0 | L22: 1.1 | M22: =IF(K22="",0,LOOKUP(K22,FACTORS!$L$9:$M$128)*K$13*L22) -> 0 | N22: 3 | O22: 1 | P22: =IF(N22="",0,LOOKUP(N22,FACTORS!$L$9:$M$128)*N$13*O22) -> 153.4 | R22: 1.1 | S22: =IF(Q22="",0,LOOKUP(Q22,FACTORS!$L$9:$M$128)*Q$13*R22) -> 0 | U22: 1.1 | V22: =IF(T22="",0,LOOKUP(T22,FACTORS!$L$9:$M$128)*T$13*U22) -> 0 | X22: 1.1 | Y22: =IF(W22="",0,LOOKUP(W22,FACTORS!$L$9:$M$128)*W$13*X22) -> 0 | AA22: 1.1 | AB22: =IF(Z22="",0,LOOKUP(Z22,FACTORS!$L$9:$M$128)*Z$13*AA22) -> 0 | AD22: 1.1 | AE22: =IF(AC22="",0,LOOKUP(AC22,FACTORS!$L$9:$M$128)*AC$13*AD22) -> 0 | AG22: 1.1 | AH22: =IF(AF22="",0,LOOKUP(AF22,FACTORS!$L$9:$M$128)*AF$13*AG22) -> 0 | AJ22: 1.1 | AK22: =IF(AI22="",0,LOOKUP(AI22,FACTORS!$L$9:$M$128)*AI$13*AJ22) -> 0 | AM22: 1.1 | AN22: =IF(AL22="",0,LOOKUP(AL22,FACTORS!$L$9:$M$128)*AL$13*AM22) -> 0 | AP22: 1 | AQ22: =IF(AO22="",0,LOOKUP(AO22,FACTORS!$L$9:$M$128)*AO$13*AP22) -> 0 | AR22: 6 | AS22: 1 | AT22: =IF(AR22="",0,LOOKUP(AR22,FACTORS!$L$9:$M$128)*AR$13*AS22) -> 149.5 | AV22: 1.1 | AW22: =IF(AU22="",0,LOOKUP(AU22,FACTORS!$L$9:$M$128)*AU$13*AV22) -> 0 | AY22: 1.1 | AZ22: =IF(AX22="",0,LOOKUP(AX22,FACTORS!$L$9:$M$128)*AX$13*AY22) -> 0 | BB22: 1.1 | BC22: =IF(BA22="",0,LOOKUP(BA22,FACTORS!$L$9:$M$128)*BA$13*BB22) -> 0 | BD22: 3 | BE22: 1 | BF22: =IF(BD22="",0,LOOKUP(BD22,FACTORS!$L$9:$M$128)*BD$13*BE22) -> 153.4 | BH22: 1.1 | BI22: =IF(BG22="",0,LOOKUP(BG22,FACTORS!$L$9:$M$128)*BG$13*BH22) -> 0 | BK22: 1.1 | BL22: =IF(BJ22="",0,LOOKUP(BJ22,FACTORS!$L$9:$M$128)*BJ$13*BK22) -> 0 | BM22: 4 | BN22: 1 | BO22: =IF(BM22="",0,LOOKUP(BM22,FACTORS!$L$9:$M$128)*BM$13*BN22) -> 152.1 | BQ22: 1.1 | BR22: =IF(BP22="",0,LOOKUP(BP22,FACTORS!$L$9:$M$128)*BP$13*BQ22) -> 0 | BT22: 1.1 | BU22: =IF(BS22="",0,LOOKUP(BS22,FACTORS!$L$9:$M$128)*BS$13*BT22) -> 0 | BW22: 1.1 | BX22: =IF(BV22="",0,LOOKUP(BV22,FACTORS!$L$9:$M$128)*BV$13*BW22) -> 0 | BZ22: 1.1 | CA22: =IF(BY22="",0,LOOKUP(BY22,FACTORS!$L$9:$M$128)*BY$13*BZ22) -> 0 | CC22: 1.1 | CD22: =IF(CB22="",0,LOOKUP(CB22,FACTORS!$L$9:$M$128)*CB$13*CC22) -> 0 | CF22: 1.1 | CG22: =IF(CE22="",0,LOOKUP(CE22,FACTORS!$L$9:$M$128)*CE$13*CF22) -> 0 | CI22: 1.1 | CJ22: =IF(CH22="",0,LOOKUP(CH22,FACTORS!$L$9:$M$128)*CH$13*CI22) -> 0 | CL22: 1.1 | CM22: =IF(CK22="",0,LOOKUP(CK22,FACTORS!$L$9:$M$128)*CK$13*CL22) -> 0 | CO22: 1.1 | CP22: =IF(CN22="",0,LOOKUP(CN22,FACTORS!$L$9:$M$128)*CN$13*CO22) -> 0 | CR22: 1 | CS22: =IF(CQ22="",0,LOOKUP(CQ22,FACTORS!$L$9:$M$128)*CQ$13*CR22) -> 0 | CU22: 1.1 | CV22: =IF(CT22="",0,LOOKUP(CT22,FACTORS!$L$9:$M$128)*CT$13*CU22) -> 0 | CX22: 1.1 | CY22: =IF(CW22="",0,LOOKUP(CW22,FACTORS!$L$9:$M$128)*CW$13*CX22) -> 0 | DA22: 1.1 | DB22: =IF(CZ22="",0,LOOKUP(CZ22,FACTORS!$L$9:$M$128)*CZ$13*DA22) -> 0 | DD22: 1.1 | DE22: =IF(DC22="",0,LOOKUP(DC22,FACTORS!$L$9:$M$128)*DC$13*DD22) -> 0 | DG22: 1.1 | DH22: =IF(DF22="",0,LOOKUP(DF22,FACTORS!$L$9:$M$128)*DF$13*DG22) -> 0 | DJ22: 1 | DK22: =IF(DI22="",0,LOOKUP(DI22,FACTORS!$L$9:$M$128)*DI$13*DJ22) -> 0 | DM22: 1 | DN22: =IF(DL22="",0,LOOKUP(DL22,FACTORS!$L$9:$M$128)*DL$13*DM22) -> 0 | DP22: 1.1 | DQ22: =IF(DO22="",0,LOOKUP(DO22,FACTORS!$L$9:$M$128)*DO$13*DP22) -> 0 | DR22: 11 | DS22: 1 | DT22: =IF(DR22="",0,LOOKUP(DR22,FACTORS!$L$9:$M$128)*DR$13*DS22) -> 165 | DV22: 1.1 | DW22: =IF(DU22="",0,LOOKUP(DU22,FACTORS!$L$9:$M$128)*DU$13*DV22) -> 0 | DY22: 1.1 | DZ22: =IF(DX22="",0,LOOKUP(DX22,FACTORS!$L$9:$M$128)*DX$13*DY22) -> 0 | EB22: 1 | EC22: =IF(EA22="",0,LOOKUP(EA22,FACTORS!$L$9:$M$128)*EA$13*EB22) -> 0 | EE22: 1 | EF22: =IF(ED22="",0,LOOKUP(ED22,FACTORS!$L$9:$M$128)*ED$13*EE22) -> 0 | EH22: 1 | EI22: =IF(EG22="",0,LOOKUP(EG22,FACTORS!$L$9:$M$128)*EG$13*EH22) -> 0 | EK22: 1 | EL22: =IF(EJ22="",0,LOOKUP(EJ22,FACTORS!$L$9:$M$128)*EJ$13*EK22) -> 0 | EN22: 1 | EO22: =IF(EM22="",0,LOOKUP(EM22,FACTORS!$L$9:$M$128)*EM$13*EN22) -> 0 | EQ22: 1 | ER22: =IF(EP22="",0,LOOKUP(EP22,FACTORS!$L$9:$M$128)*EP$13*EQ22) -> 0 | ET22: 1 | EU22: =IF(ES22="",0,LOOKUP(ES22,FACTORS!$L$9:$M$128)*ES$13*ET22) -> 0 | EW22: 1 | EX22: =IF(EV22="",0,LOOKUP(EV22,FACTORS!$L$9:$M$128)*EV$13*EW22) -> 0 | EZ22: 1 | FA22: =IF(EY22="",0,LOOKUP(EY22,FACTORS!$L$9:$M$128)*EY$13*EZ22) -> 0 | FC22: 1 | FD22: =IF(FB22="",0,LOOKUP(FB22,FACTORS!$L$9:$M$128)*FB$13*FC22) -> 0 | FF22: 1 | FG22: =IF(FE22="",0,LOOKUP(FE22,FACTORS!$L$9:$M$128)*FE$13*FF22) -> 0 | FI22: 1 | FJ22: =IF(FH22="",0,LOOKUP(FH22,FACTORS!$L$9:$M$128)*FH$13*FI22) -> 0 | FL22: 1 | FM22: =IF(FK22="",0,LOOKUP(FK22,FACTORS!$L$9:$M$128)*FK$13*FL22) -> 0
B23: 7 | C23: André Guaragna | D23: USA | F23: 765.4 | G23: 765,4 points | I23: 1 | J23: =IF(H23="",0,LOOKUP(H23,FACTORS!$L$9:$M$128)*H$13*I23) -> 0 | L23: 1.1 | M23: =IF(K23="",0,LOOKUP(K23,FACTORS!$L$9:$M$128)*K$13*L23) -> 0 | N23: 10 | O23: 1 | P23: =IF(N23="",0,LOOKUP(N23,FACTORS!$L$9:$M$128)*N$13*O23) -> 144.3 | R23: 1.1 | S23: =IF(Q23="",0,LOOKUP(Q23,FACTORS!$L$9:$M$128)*Q$13*R23) -> 0 | U23: 1.1 | V23: =IF(T23="",0,LOOKUP(T23,FACTORS!$L$9:$M$128)*T$13*U23) -> 0 | X23: 1.1 | Y23: =IF(W23="",0,LOOKUP(W23,FACTORS!$L$9:$M$128)*W$13*X23) -> 0 | AA23: 1.1 | AB23: =IF(Z23="",0,LOOKUP(Z23,FACTORS!$L$9:$M$128)*Z$13*AA23) -> 0 | AD23: 1.1 | AE23: =IF(AC23="",0,LOOKUP(AC23,FACTORS!$L$9:$M$128)*AC$13*AD23) -> 0 | AG23: 1.1 | AH23: =IF(AF23="",0,LOOKUP(AF23,FACTORS!$L$9:$M$128)*AF$13*AG23) -> 0 | AJ23: 1.1 | AK23: =IF(AI23="",0,LOOKUP(AI23,FACTORS!$L$9:$M$128)*AI$13*AJ23) -> 0 | AM23: 1.1 | AN23: =IF(AL23="",0,LOOKUP(AL23,FACTORS!$L$9:$M$128)*AL$13*AM23) -> 0 | AP23: 1 | AQ23: =IF(AO23="",0,LOOKUP(AO23,FACTORS!$L$9:$M$128)*AO$13*AP23) -> 0 | AR23: 2 | AS23: 1 | AT23: =IF(AR23="",0,LOOKUP(AR23,FACTORS!$L$9:$M$128)*AR$13*AS23) -> 154.7 | AV23: 1.1 | AW23: =IF(AU23="",0,LOOKUP(AU23,FACTORS!$L$9:$M$128)*AU$13*AV23) -> 0 | AY23: 1.1 | AZ23: =IF(AX23="",0,LOOKUP(AX23,FACTORS!$L$9:$M$128)*AX$13*AY23) -> 0 | BB23: 1.1 | BC23: =IF(BA23="",0,LOOKUP(BA23,FACTORS!$L$9:$M$128)*BA$13*BB23) -> 0 | BD23: 7 | BE23: 1 | BF23: =IF(BD23="",0,LOOKUP(BD23,FACTORS!$L$9:$M$128)*BD$13*BE23) -> 148.2 | BH23: 1.1 | BI23: =IF(BG23="",0,LOOKUP(BG23,FACTORS!$L$9:$M$128)*BG$13*BH23) -> 0 | BK23: 1.1 | BL23: =IF(BJ23="",0,LOOKUP(BJ23,FACTORS!$L$9:$M$128)*BJ$13*BK23) -> 0 | BM23: 2 | BN23: 1 | BO23: =IF(BM23="",0,LOOKUP(BM23,FACTORS!$L$9:$M$128)*BM$13*BN23) -> 154.7 | BQ23: 1.1 | BR23: =IF(BP23="",0,LOOKUP(BP23,FACTORS!$L$9:$M$128)*BP$13*BQ23) -> 0 | BT23: 1.1 | BU23: =IF(BS23="",0,LOOKUP(BS23,FACTORS!$L$9:$M$128)*BS$13*BT23) -> 0 | BW23: 1.1 | BX23: =IF(BV23="",0,LOOKUP(BV23,FACTORS!$L$9:$M$128)*BV$13*BW23) -> 0 | BZ23: 1.1 | CA23: =IF(BY23="",0,LOOKUP(BY23,FACTORS!$L$9:$M$128)*BY$13*BZ23) -> 0 | CC23: 1.1 | CD23: =IF(CB23="",0,LOOKUP(CB23,FACTORS!$L$9:$M$128)*CB$13*CC23) -> 0 | CF23: 1.1 | CG23: =IF(CE23="",0,LOOKUP(CE23,FACTORS!$L$9:$M$128)*CE$13*CF23) -> 0 | CI23: 1.1 | CJ23: =IF(CH23="",0,LOOKUP(CH23,FACTORS!$L$9:$M$128)*CH$13*CI23) -> 0 | CL23: 1.1 | CM23: =IF(CK23="",0,LOOKUP(CK23,FACTORS!$L$9:$M$128)*CK$13*CL23) -> 0 | CO23: 1.1 | CP23: =IF(CN23="",0,LOOKUP(CN23,FACTORS!$L$9:$M$128)*CN$13*CO23) -> 0 | CR23: 1 | CS23: =IF(CQ23="",0,LOOKUP(CQ23,FACTORS!$L$9:$M$128)*CQ$13*CR23) -> 0 | CU23: 1.1 | CV23: =IF(CT23="",0,LOOKUP(CT23,FACTORS!$L$9:$M$128)*CT$13*CU23) -> 0 | CX23: 1.1 | CY23: =IF(CW23="",0,LOOKUP(CW23,FACTORS!$L$9:$M$128)*CW$13*CX23) -> 0 | DA23: 1.1 | DB23: =IF(CZ23="",0,LOOKUP(CZ23,FACTORS!$L$9:$M$128)*CZ$13*DA23) -> 0 | DD23: 1.1 | DE23: =IF(DC23="",0,LOOKUP(DC23,FACTORS!$L$9:$M$128)*DC$13*DD23) -> 0 | DG23: 1.1 | DH23: =IF(DF23="",0,LOOKUP(DF23,FACTORS!$L$9:$M$128)*DF$13*DG23) -> 0 | DJ23: 1 | DK23: =IF(DI23="",0,LOOKUP(DI23,FACTORS!$L$9:$M$128)*DI$13*DJ23) -> 0 | DM23: 1 | DN23: =IF(DL23="",0,LOOKUP(DL23,FACTORS!$L$9:$M$128)*DL$13*DM23) -> 0 | DP23: 1.1 | DQ23: =IF(DO23="",0,LOOKUP(DO23,FACTORS!$L$9:$M$128)*DO$13*DP23) -> 0 | DR23: 12 | DS23: 1 | DT23: =IF(DR23="",0,LOOKUP(DR23,FACTORS!$L$9:$M$128)*DR$13*DS23) -> 163.5 | DV23: 1.1 | DW23: =IF(DU23="",0,LOOKUP(DU23,FACTORS!$L$9:$M$128)*DU$13*DV23) -> 0 | DY23: 1.1 | DZ23: =IF(DX23="",0,LOOKUP(DX23,FACTORS!$L$9:$M$128)*DX$13*DY23) -> 0 | EB23: 1 | EC23: =IF(EA23="",0,LOOKUP(EA23,FACTORS!$L$9:$M$128)*EA$13*EB23) -> 0 | EE23: 1 | EF23: =IF(ED23="",0,LOOKUP(ED23,FACTORS!$L$9:$M$128)*ED$13*EE23) -> 0 | EH23: 1 | EI23: =IF(EG23="",0,LOOKUP(EG23,FACTORS!$L$9:$M$128)*EG$13*EH23) -> 0 | EK23: 1 | EL23: =IF(EJ23="",0,LOOKUP(EJ23,FACTORS!$L$9:$M$128)*EJ$13*EK23) -> 0 | EN23: 1 | EO23: =IF(EM23="",0,LOOKUP(EM23,FACTORS!$L$9:$M$128)*EM$13*EN23) -> 0 | EQ23: 1 | ER23: =IF(EP23="",0,LOOKUP(EP23,FACTORS!$L$9:$M$128)*EP$13*EQ23) -> 0 | ET23: 1 | EU23: =IF(ES23="",0,LOOKUP(ES23,FACTORS!$L$9:$M$128)*ES$13*ET23) -> 0 | EW23: 1 | EX23: =IF(EV23="",0,LOOKUP(EV23,FACTORS!$L$9:$M$128)*EV$13*EW23) -> 0 | EZ23: 1 | FA23: =IF(EY23="",0,LOOKUP(EY23,FACTORS!$L$9:$M$128)*EY$13*EZ23) -> 0 | FC23: 1 | FD23: =IF(FB23="",0,LOOKUP(FB23,FACTORS!$L$9:$M$128)*FB$13*FC23) -> 0 | FF23: 1 | FG23: =IF(FE23="",0,LOOKUP(FE23,FACTORS!$L$9:$M$128)*FE$13*FF23) -> 0 | FI23: 1 | FJ23: =IF(FH23="",0,LOOKUP(FH23,FACTORS!$L$9:$M$128)*FH$13*FI23) -> 0 | FL23: 1 | FM23: =IF(FK23="",0,LOOKUP(FK23,FACTORS!$L$9:$M$128)*FK$13*FL23) -> 0
B24: 8 | C24: Randy Lake | D24: USA | F24: 626.9 | G24: 626,9 points | H24: 4 | I24: 1 | J24: =IF(H24="",0,LOOKUP(H24,FACTORS!$L$9:$M$128)*H$13*I24) -> 152.1 | L24: 1.1 | M24: =IF(K24="",0,LOOKUP(K24,FACTORS!$L$9:$M$128)*K$13*L24) -> 0 | O24: 1 | P24: =IF(N24="",0,LOOKUP(N24,FACTORS!$L$9:$M$128)*N$13*O24) -> 0 | R24: 1.1 | S24: =IF(Q24="",0,LOOKUP(Q24,FACTORS!$L$9:$M$128)*Q$13*R24) -> 0 | U24: 1.1 | V24: =IF(T24="",0,LOOKUP(T24,FACTORS!$L$9:$M$128)*T$13*U24) -> 0 | X24: 1.1 | Y24: =IF(W24="",0,LOOKUP(W24,FACTORS!$L$9:$M$128)*W$13*X24) -> 0 | AA24: 1.1 | AB24: =IF(Z24="",0,LOOKUP(Z24,FACTORS!$L$9:$M$128)*Z$13*AA24) -> 0 | AD24: 1.1 | AE24: =IF(AC24="",0,LOOKUP(AC24,FACTORS!$L$9:$M$128)*AC$13*AD24) -> 0 | AG24: 1.1 | AH24: =IF(AF24="",0,LOOKUP(AF24,FACTORS!$L$9:$M$128)*AF$13*AG24) -> 0 | AJ24: 1.1 | AK24: =IF(AI24="",0,LOOKUP(AI24,FACTORS!$L$9:$M$128)*AI$13*AJ24) -> 0 | AM24: 1.1 | AN24: =IF(AL24="",0,LOOKUP(AL24,FACTORS!$L$9:$M$128)*AL$13*AM24) -> 0 | AP24: 1 | AQ24: =IF(AO24="",0,LOOKUP(AO24,FACTORS!$L$9:$M$128)*AO$13*AP24) -> 0 | AR24: 4 | AS24: 1 | AT24: =IF(AR24="",0,LOOKUP(AR24,FACTORS!$L$9:$M$128)*AR$13*AS24) -> 152.1 | AV24: 1.1 | AW24: =IF(AU24="",0,LOOKUP(AU24,FACTORS!$L$9:$M$128)*AU$13*AV24) -> 0 | AY24: 1.1 | AZ24: =IF(AX24="",0,LOOKUP(AX24,FACTORS!$L$9:$M$128)*AX$13*AY24) -> 0 | BB24: 1.1 | BC24: =IF(BA24="",0,LOOKUP(BA24,FACTORS!$L$9:$M$128)*BA$13*BB24) -> 0 | BE24: 1 | BF24: =IF(BD24="",0,LOOKUP(BD24,FACTORS!$L$9:$M$128)*BD$13*BE24) -> 0 | BH24: 1.1 | BI24: =IF(BG24="",0,LOOKUP(BG24,FACTORS!$L$9:$M$128)*BG$13*BH24) -> 0 | BK24: 1.1 | BL24: =IF(BJ24="",0,LOOKUP(BJ24,FACTORS!$L$9:$M$128)*BJ$13*BK24) -> 0 | BN24: 1 | BO24: =IF(BM24="",0,LOOKUP(BM24,FACTORS!$L$9:$M$128)*BM$13*BN24) -> 0 | BQ24: 1.1 | BR24: =IF(BP24="",0,LOOKUP(BP24,FACTORS!$L$9:$M$128)*BP$13*BQ24) -> 0 | BT24: 1.1 | BU24: =IF(BS24="",0,LOOKUP(BS24,FACTORS!$L$9:$M$128)*BS$13*BT24) -> 0 | BW24: 1.1 | BX24: =IF(BV24="",0,LOOKUP(BV24,FACTORS!$L$9:$M$128)*BV$13*BW24) -> 0 | BZ24: 1.1 | CA24: =IF(BY24="",0,LOOKUP(BY24,FACTORS!$L$9:$M$128)*BY$13*BZ24) -> 0 | CC24: 1.1 | CD24: =IF(CB24="",0,LOOKUP(CB24,FACTORS!$L$9:$M$128)*CB$13*CC24) -> 0 | CF24: 1.1 | CG24: =IF(CE24="",0,LOOKUP(CE24,FACTORS!$L$9:$M$128)*CE$13*CF24) -> 0 | CI24: 1.1 | CJ24: =IF(CH24="",0,LOOKUP(CH24,FACTORS!$L$9:$M$128)*CH$13*CI24) -> 0 | CL24: 1.1 | CM24: =IF(CK24="",0,LOOKUP(CK24,FACTORS!$L$9:$M$128)*CK$13*CL24) -> 0 | CO24: 1.1 | CP24: =IF(CN24="",0,LOOKUP(CN24,FACTORS!$L$9:$M$128)*CN$13*CO24) -> 0 | CQ24: 2 | CR24: 1 | CS24: =IF(CQ24="",0,LOOKUP(CQ24,FACTORS!$L$9:$M$128)*CQ$13*CR24) -> 154.7 | CU24: 1.1 | CV24: =IF(CT24="",0,LOOKUP(CT24,FACTORS!$L$9:$M$128)*CT$13*CU24) -> 0 | CX24: 1.1 | CY24: =IF(CW24="",0,LOOKUP(CW24,FACTORS!$L$9:$M$128)*CW$13*CX24) -> 0 | DA24: 1.1 | DB24: =IF(CZ24="",0,LOOKUP(CZ24,FACTORS!$L$9:$M$128)*CZ$13*DA24) -> 0 | DD24: 1.1 | DE24: =IF(DC24="",0,LOOKUP(DC24,FACTORS!$L$9:$M$128)*DC$13*DD24) -> 0 | DG24: 1.1 | DH24: =IF(DF24="",0,LOOKUP(DF24,FACTORS!$L$9:$M$128)*DF$13*DG24) -> 0 | DJ24: 1 | DK24: =IF(DI24="",0,LOOKUP(DI24,FACTORS!$L$9:$M$128)*DI$13*DJ24) -> 0 | DM24: 1 | DN24: =IF(DL24="",0,LOOKUP(DL24,FACTORS!$L$9:$M$128)*DL$13*DM24) -> 0 | DP24: 1.1 | DQ24: =IF(DO24="",0,LOOKUP(DO24,FACTORS!$L$9:$M$128)*DO$13*DP24) -> 0 | DR24: 9 | DS24: 1 | DT24: =IF(DR24="",0,LOOKUP(DR24,FACTORS!$L$9:$M$128)*DR$13*DS24) -> 168 | DV24: 1.1 | DW24: =IF(DU24="",0,LOOKUP(DU24,FACTORS!$L$9:$M$128)*DU$13*DV24) -> 0 | DY24: 1.1 | DZ24: =IF(DX24="",0,LOOKUP(DX24,FACTORS!$L$9:$M$128)*DX$13*DY24) -> 0 | EB24: 1 | EC24: =IF(EA24="",0,LOOKUP(EA24,FACTORS!$L$9:$M$128)*EA$13*EB24) -> 0 | EE24: 1 | EF24: =IF(ED24="",0,LOOKUP(ED24,FACTORS!$L$9:$M$128)*ED$13*EE24) -> 0 | EH24: 1 | EI24: =IF(EG24="",0,LOOKUP(EG24,FACTORS!$L$9:$M$128)*EG$13*EH24) -> 0 | EK24: 1 | EL24: =IF(EJ24="",0,LOOKUP(EJ24,FACTORS!$L$9:$M$128)*EJ$13*EK24) -> 0 | EN24: 1 | EO24: =IF(EM24="",0,LOOKUP(EM24,FACTORS!$L$9:$M$128)*EM$13*EN24) -> 0 | EQ24: 1 | ER24: =IF(EP24="",0,LOOKUP(EP24,FACTORS!$L$9:$M$128)*EP$13*EQ24) -> 0 | ET24: 1 | EU24: =IF(ES24="",0,LOOKUP(ES24,FACTORS!$L$9:$M$128)*ES$13*ET24) -> 0 | EW24: 1 | EX24: =IF(EV24="",0,LOOKUP(EV24,FACTORS!$L$9:$M$128)*EV$13*EW24) -> 0 | EZ24: 1 | FA24: =IF(EY24="",0,LOOKUP(EY24,FACTORS!$L$9:$M$128)*EY$13*EZ24) -> 0 | FC24: 1 | FD24: =IF(FB24="",0,LOOKUP(FB24,FACTORS!$L$9:$M$128)*FB$13*FC24) -> 0 | FF24: 1 | FG24: =IF(FE24="",0,LOOKUP(FE24,FACTORS!$L$9:$M$128)*FE$13*FF24) -> 0 | FI24: 1 | FJ24: =IF(FH24="",0,LOOKUP(FH24,FACTORS!$L$9:$M$128)*FH$13*FI24) -> 0 | FL24: 1 | FM24: =IF(FK24="",0,LOOKUP(FK24,FACTORS!$L$9:$M$128)*FK$13*FL24) -> 0
B25: 9 | C25: Flavio Castro | D25: BRA | F25: 626 | G25: 626 points | I25: 1.1 | J25: =IF(H25="",0,LOOKUP(H25,FACTORS!$L$9:$M$128)*H$13*I25) -> 0 | K25: 7 | L25: 1 | M25: =IF(K25="",0,LOOKUP(K25,FACTORS!$L$9:$M$128)*K$13*L25) -> 171 | O25: 1.1 | P25: =IF(N25="",0,LOOKUP(N25,FACTORS!$L$9:$M$128)*N$13*O25) -> 0 | R25: 1.1 | S25: =IF(Q25="",0,LOOKUP(Q25,FACTORS!$L$9:$M$128)*Q$13*R25) -> 0 | U25: 1.1 | V25: =IF(T25="",0,LOOKUP(T25,FACTORS!$L$9:$M$128)*T$13*U25) -> 0 | W25: 1 | X25: 1 | Y25: =IF(W25="",0,LOOKUP(W25,FACTORS!$L$9:$M$128)*W$13*X25) -> 156 | AA25: 1.1 | AB25: =IF(Z25="",0,LOOKUP(Z25,FACTORS!$L$9:$M$128)*Z$13*AA25) -> 0 | AD25: 1.1 | AE25: =IF(AC25="",0,LOOKUP(AC25,FACTORS!$L$9:$M$128)*AC$13*AD25) -> 0 | AF25: 4 | AG25: 1 | AH25: =IF(AF25="",0,LOOKUP(AF25,FACTORS!$L$9:$M$128)*AF$13*AG25) -> 152.1 | AJ25: 1.1 | AK25: =IF(AI25="",0,LOOKUP(AI25,FACTORS!$L$9:$M$128)*AI$13*AJ25) -> 0 | AM25: 1.1 | AN25: =IF(AL25="",0,LOOKUP(AL25,FACTORS!$L$9:$M$128)*AL$13*AM25) -> 0 | AP25: 1.1 | AQ25: =IF(AO25="",0,LOOKUP(AO25,FACTORS!$L$9:$M$128)*AO$13*AP25) -> 0 | AS25: 1.1 | AT25: =IF(AR25="",0,LOOKUP(AR25,FACTORS!$L$9:$M$128)*AR$13*AS25) -> 0 | AV25: 1.1 | AW25: =IF(AU25="",0,LOOKUP(AU25,FACTORS!$L$9:$M$128)*AU$13*AV25) -> 0 | AY25: 1.1 | AZ25: =IF(AX25="",0,LOOKUP(AX25,FACTORS!$L$9:$M$128)*AX$13*AY25) -> 0 | BB25: 1.1 | BC25: =IF(BA25="",0,LOOKUP(BA25,FACTORS!$L$9:$M$128)*BA$13*BB25) -> 0 | BE25: 1.1 | BF25: =IF(BD25="",0,LOOKUP(BD25,FACTORS!$L$9:$M$128)*BD$13*BE25) -> 0 | BH25: 1.1 | BI25: =IF(BG25="",0,LOOKUP(BG25,FACTORS!$L$9:$M$128)*BG$13*BH25) -> 0 | BK25: 1.1 | BL25: =IF(BJ25="",0,LOOKUP(BJ25,FACTORS!$L$9:$M$128)*BJ$13*BK25) -> 0 | BN25: 1.1 | BO25: =IF(BM25="",0,LOOKUP(BM25,FACTORS!$L$9:$M$128)*BM$13*BN25) -> 0 | BQ25: 1.1 | BR25: =IF(BP25="",0,LOOKUP(BP25,FACTORS!$L$9:$M$128)*BP$13*BQ25) -> 0 | BT25: 1.1 | BU25: =IF(BS25="",0,LOOKUP(BS25,FACTORS!$L$9:$M$128)*BS$13*BT25) -> 0 | BW25: 1.1 | BX25: =IF(BV25="",0,LOOKUP(BV25,FACTORS!$L$9:$M$128)*BV$13*BW25) -> 0 | BZ25: 1.1 | CA25: =IF(BY25="",0,LOOKUP(BY25,FACTORS!$L$9:$M$128)*BY$13*BZ25) -> 0 | CC25: 1.1 | CD25: =IF(CB25="",0,LOOKUP(CB25,FACTORS!$L$9:$M$128)*CB$13*CC25) -> 0 | CF25: 1.1 | CG25: =IF(CE25="",0,LOOKUP(CE25,FACTORS!$L$9:$M$128)*CE$13*CF25) -> 0 | CI25: 1.1 | CJ25: =IF(CH25="",0,LOOKUP(CH25,FACTORS!$L$9:$M$128)*CH$13*CI25) -> 0 | CL25: 1.1 | CM25: =IF(CK25="",0,LOOKUP(CK25,FACTORS!$L$9:$M$128)*CK$13*CL25) -> 0 | CO25: 1.1 | CP25: =IF(CN25="",0,LOOKUP(CN25,FACTORS!$L$9:$M$128)*CN$13*CO25) -> 0 | CR25: 1.1 | CS25: =IF(CQ25="",0,LOOKUP(CQ25,FACTORS!$L$9:$M$128)*CQ$13*CR25) -> 0 | CU25: 1.1 | CV25: =IF(CT25="",0,LOOKUP(CT25,FACTORS!$L$9:$M$128)*CT$13*CU25) -> 0 | CX25: 1.1 | CY25: =IF(CW25="",0,LOOKUP(CW25,FACTORS!$L$9:$M$128)*CW$13*CX25) -> 0 | DA25: 1 | DB25: =IF(CZ25="",0,LOOKUP(CZ25,FACTORS!$L$9:$M$128)*CZ$13*DA25) -> 0 | DD25: 1.1 | DE25: =IF(DC25="",0,LOOKUP(DC25,FACTORS!$L$9:$M$128)*DC$13*DD25) -> 0 | DG25: 1.1 | DH25: =IF(DF25="",0,LOOKUP(DF25,FACTORS!$L$9:$M$128)*DF$13*DG25) -> 0 | DJ25: 1.1 | DK25: =IF(DI25="",0,LOOKUP(DI25,FACTORS!$L$9:$M$128)*DI$13*DJ25) -> 0 | DM25: 1 | DN25: =IF(DL25="",0,LOOKUP(DL25,FACTORS!$L$9:$M$128)*DL$13*DM25) -> 0 | DP25: 1.1 | DQ25: =IF(DO25="",0,LOOKUP(DO25,FACTORS!$L$9:$M$128)*DO$13*DP25) -> 0 | DS25: 1.1 | DT25: =IF(DR25="",0,LOOKUP(DR25,FACTORS!$L$9:$M$128)*DR$13*DS25) -> 0 | DV25: 1.1 | DW25: =IF(DU25="",0,LOOKUP(DU25,FACTORS!$L$9:$M$128)*DU$13*DV25) -> 0 | DX25: 8 | DY25: 1 | DZ25: =IF(DX25="",0,LOOKUP(DX25,FACTORS!$L$9:$M$128)*DX$13*DY25) -> 146.9 | EB25: 1 | EC25: =IF(EA25="",0,LOOKUP(EA25,FACTORS!$L$9:$M$128)*EA$13*EB25) -> 0 | EE25: 1 | EF25: =IF(ED25="",0,LOOKUP(ED25,FACTORS!$L$9:$M$128)*ED$13*EE25) -> 0 | EH25: 1 | EI25: =IF(EG25="",0,LOOKUP(EG25,FACTORS!$L$9:$M$128)*EG$13*EH25) -> 0 | EK25: 1 | EL25: =IF(EJ25="",0,LOOKUP(EJ25,FACTORS!$L$9:$M$128)*EJ$13*EK25) -> 0 | EN25: 1 | EO25: =IF(EM25="",0,LOOKUP(EM25,FACTORS!$L$9:$M$128)*EM$13*EN25) -> 0 | EQ25: 1 | ER25: =IF(EP25="",0,LOOKUP(EP25,FACTORS!$L$9:$M$128)*EP$13*EQ25) -> 0 | ET25: 1 | EU25: =IF(ES25="",0,LOOKUP(ES25,FACTORS!$L$9:$M$128)*ES$13*ET25) -> 0 | EW25: 1 | EX25: =IF(EV25="",0,LOOKUP(EV25,FACTORS!$L$9:$M$128)*EV$13*EW25) -> 0 | EZ25: 1 | FA25: =IF(EY25="",0,LOOKUP(EY25,FACTORS!$L$9:$M$128)*EY$13*EZ25) -> 0 | FC25: 1 | FD25: =IF(FB25="",0,LOOKUP(FB25,FACTORS!$L$9:$M$128)*FB$13*FC25) -> 0 | FF25: 1 | FG25: =IF(FE25="",0,LOOKUP(FE25,FACTORS!$L$9:$M$128)*FE$13*FF25) -> 0 | FI25: 1 | FJ25: =IF(FH25="",0,LOOKUP(FH25,FACTORS!$L$9:$M$128)*FH$13*FI25) -> 0 | FL25: 1 | FM25: =IF(FK25="",0,LOOKUP(FK25,FACTORS!$L$9:$M$128)*FK$13*FL25) -> 0
B26: 10 | C26: Antonio Viegas | D26: POR | F26: 625.15 | G26: 625,15 points | I26: 1.1 | J26: =IF(H26="",0,LOOKUP(H26,FACTORS!$L$9:$M$128)*H$13*I26) -> 0 | L26: 1.1 | M26: =IF(K26="",0,LOOKUP(K26,FACTORS!$L$9:$M$128)*K$13*L26) -> 0 | O26: 1.1 | P26: =IF(N26="",0,LOOKUP(N26,FACTORS!$L$9:$M$128)*N$13*O26) -> 0 | Q26: 12 | R26: 1 | S26: =IF(Q26="",0,LOOKUP(Q26,FACTORS!$L$9:$M$128)*Q$13*R26) -> 141.7 | U26: 1.1 | V26: =IF(T26="",0,LOOKUP(T26,FACTORS!$L$9:$M$128)*T$13*U26) -> 0 | X26: 1.1 | Y26: =IF(W26="",0,LOOKUP(W26,FACTORS!$L$9:$M$128)*W$13*X26) -> 0 | AA26: 1.1 | AB26: =IF(Z26="",0,LOOKUP(Z26,FACTORS!$L$9:$M$128)*Z$13*AA26) -> 0 | AD26: 1.1 | AE26: =IF(AC26="",0,LOOKUP(AC26,FACTORS!$L$9:$M$128)*AC$13*AD26) -> 0 | AG26: 1.1 | AH26: =IF(AF26="",0,LOOKUP(AF26,FACTORS!$L$9:$M$128)*AF$13*AG26) -> 0 | AJ26: 1.1 | AK26: =IF(AI26="",0,LOOKUP(AI26,FACTORS!$L$9:$M$128)*AI$13*AJ26) -> 0 | AM26: 1.1 | AN26: =IF(AL26="",0,LOOKUP(AL26,FACTORS!$L$9:$M$128)*AL$13*AM26) -> 0 | AP26: 1.1 | AQ26: =IF(AO26="",0,LOOKUP(AO26,FACTORS!$L$9:$M$128)*AO$13*AP26) -> 0 | AS26: 1.1 | AT26: =IF(AR26="",0,LOOKUP(AR26,FACTORS!$L$9:$M$128)*AR$13*AS26) -> 0 | AU26: 28 | AV26: 1.1 | AW26: =IF(AU26="",0,LOOKUP(AU26,FACTORS!$L$9:$M$128)*AU$13*AV26) -> 153.45 | AX26: 10 | AY26: 1 | AZ26: =IF(AX26="",0,LOOKUP(AX26,FACTORS!$L$9:$M$128)*AX$13*AY26) -> 166.5 | BB26: 1.1 | BC26: =IF(BA26="",0,LOOKUP(BA26,FACTORS!$L$9:$M$128)*BA$13*BB26) -> 0 | BE26: 1.1 | BF26: =IF(BD26="",0,LOOKUP(BD26,FACTORS!$L$9:$M$128)*BD$13*BE26) -> 0 | BH26: 1.1 | BI26: =IF(BG26="",0,LOOKUP(BG26,FACTORS!$L$9:$M$128)*BG$13*BH26) -> 0 | BK26: 1.1 | BL26: =IF(BJ26="",0,LOOKUP(BJ26,FACTORS!$L$9:$M$128)*BJ$13*BK26) -> 0 | BN26: 1.1 | BO26: =IF(BM26="",0,LOOKUP(BM26,FACTORS!$L$9:$M$128)*BM$13*BN26) -> 0 | BQ26: 1.1 | BR26: =IF(BP26="",0,LOOKUP(BP26,FACTORS!$L$9:$M$128)*BP$13*BQ26) -> 0 | BT26: 1.1 | BU26: =IF(BS26="",0,LOOKUP(BS26,FACTORS!$L$9:$M$128)*BS$13*BT26) -> 0 | BW26: 1.1 | BX26: =IF(BV26="",0,LOOKUP(BV26,FACTORS!$L$9:$M$128)*BV$13*BW26) -> 0 | BZ26: 1.1 | CA26: =IF(BY26="",0,LOOKUP(BY26,FACTORS!$L$9:$M$128)*BY$13*BZ26) -> 0 | CC26: 1.1 | CD26: =IF(CB26="",0,LOOKUP(CB26,FACTORS!$L$9:$M$128)*CB$13*CC26) -> 0 | CF26: 1.1 | CG26: =IF(CE26="",0,LOOKUP(CE26,FACTORS!$L$9:$M$128)*CE$13*CF26) -> 0 | CI26: 1.1 | CJ26: =IF(CH26="",0,LOOKUP(CH26,FACTORS!$L$9:$M$128)*CH$13*CI26) -> 0 | CL26: 1.1 | CM26: =IF(CK26="",0,LOOKUP(CK26,FACTORS!$L$9:$M$128)*CK$13*CL26) -> 0 | CO26: 1.1 | CP26: =IF(CN26="",0,LOOKUP(CN26,FACTORS!$L$9:$M$128)*CN$13*CO26) -> 0 | CR26: 1.1 | CS26: =IF(CQ26="",0,LOOKUP(CQ26,FACTORS!$L$9:$M$128)*CQ$13*CR26) -> 0 | CU26: 1.1 | CV26: =IF(CT26="",0,LOOKUP(CT26,FACTORS!$L$9:$M$128)*CT$13*CU26) -> 0 | CX26: 1.1 | CY26: =IF(CW26="",0,LOOKUP(CW26,FACTORS!$L$9:$M$128)*CW$13*CX26) -> 0 | DA26: 1.1 | DB26: =IF(CZ26="",0,LOOKUP(CZ26,FACTORS!$L$9:$M$128)*CZ$13*DA26) -> 0 | DC26: 12 | DD26: 1 | DE26: =IF(DC26="",0,LOOKUP(DC26,FACTORS!$L$9:$M$128)*DC$13*DD26) -> 163.5 | DG26: 1.1 | DH26: =IF(DF26="",0,LOOKUP(DF26,FACTORS!$L$9:$M$128)*DF$13*DG26) -> 0 | DJ26: 1.1 | DK26: =IF(DI26="",0,LOOKUP(DI26,FACTORS!$L$9:$M$128)*DI$13*DJ26) -> 0 | DM26: 1 | DN26: =IF(DL26="",0,LOOKUP(DL26,FACTORS!$L$9:$M$128)*DL$13*DM26) -> 0 | DP26: 1.1 | DQ26: =IF(DO26="",0,LOOKUP(DO26,FACTORS!$L$9:$M$128)*DO$13*DP26) -> 0 | DS26: 1.1 | DT26: =IF(DR26="",0,LOOKUP(DR26,FACTORS!$L$9:$M$128)*DR$13*DS26) -> 0 | DV26: 1.1 | DW26: =IF(DU26="",0,LOOKUP(DU26,FACTORS!$L$9:$M$128)*DU$13*DV26) -> 0 | DY26: 1.1 | DZ26: =IF(DX26="",0,LOOKUP(DX26,FACTORS!$L$9:$M$128)*DX$13*DY26) -> 0 | EB26: 1 | EC26: =IF(EA26="",0,LOOKUP(EA26,FACTORS!$L$9:$M$128)*EA$13*EB26) -> 0 | EE26: 1 | EF26: =IF(ED26="",0,LOOKUP(ED26,FACTORS!$L$9:$M$128)*ED$13*EE26) -> 0 | EH26: 1 | EI26: =IF(EG26="",0,LOOKUP(EG26,FACTORS!$L$9:$M$128)*EG$13*EH26) -> 0 | EK26: 1 | EL26: =IF(EJ26="",0,LOOKUP(EJ26,FACTORS!$L$9:$M$128)*EJ$13*EK26) -> 0 | EN26: 1 | EO26: =IF(EM26="",0,LOOKUP(EM26,FACTORS!$L$9:$M$128)*EM$13*EN26) -> 0 | EQ26: 1 | ER26: =IF(EP26="",0,LOOKUP(EP26,FACTORS!$L$9:$M$128)*EP$13*EQ26) -> 0 | ET26: 1 | EU26: =IF(ES26="",0,LOOKUP(ES26,FACTORS!$L$9:$M$128)*ES$13*ET26) -> 0 | EW26: 1 | EX26: =IF(EV26="",0,LOOKUP(EV26,FACTORS!$L$9:$M$128)*EV$13*EW26) -> 0 | EZ26: 1 | FA26: =IF(EY26="",0,LOOKUP(EY26,FACTORS!$L$9:$M$128)*EY$13*EZ26) -> 0 | FC26: 1 | FD26: =IF(FB26="",0,LOOKUP(FB26,FACTORS!$L$9:$M$128)*FB$13*FC26) -> 0 | FF26: 1 | FG26: =IF(FE26="",0,LOOKUP(FE26,FACTORS!$L$9:$M$128)*FE$13*FF26) -> 0 | FI26: 1 | FJ26: =IF(FH26="",0,LOOKUP(FH26,FACTORS!$L$9:$M$128)*FH$13*FI26) -> 0 | FL26: 1 | FM26: =IF(FK26="",0,LOOKUP(FK26,FACTORS!$L$9:$M$128)*FK$13*FL26) -> 0
B27: 10 | C27: Francisco Mauricio | D27: POR | F27: 625.15 | G27: 625,15 points | I27: 1.1 | J27: =IF(H27="",0,LOOKUP(H27,FACTORS!$L$9:$M$128)*H$13*I27) -> 0 | L27: 1.1 | M27: =IF(K27="",0,LOOKUP(K27,FACTORS!$L$9:$M$128)*K$13*L27) -> 0 | O27: 1.1 | P27: =IF(N27="",0,LOOKUP(N27,FACTORS!$L$9:$M$128)*N$13*O27) -> 0 | Q27: 12 | R27: 1 | S27: =IF(Q27="",0,LOOKUP(Q27,FACTORS!$L$9:$M$128)*Q$13*R27) -> 141.7 | U27: 1.1 | V27: =IF(T27="",0,LOOKUP(T27,FACTORS!$L$9:$M$128)*T$13*U27) -> 0 | X27: 1.1 | Y27: =IF(W27="",0,LOOKUP(W27,FACTORS!$L$9:$M$128)*W$13*X27) -> 0 | AA27: 1.1 | AB27: =IF(Z27="",0,LOOKUP(Z27,FACTORS!$L$9:$M$128)*Z$13*AA27) -> 0 | AD27: 1.1 | AE27: =IF(AC27="",0,LOOKUP(AC27,FACTORS!$L$9:$M$128)*AC$13*AD27) -> 0 | AG27: 1.1 | AH27: =IF(AF27="",0,LOOKUP(AF27,FACTORS!$L$9:$M$128)*AF$13*AG27) -> 0 | AJ27: 1.1 | AK27: =IF(AI27="",0,LOOKUP(AI27,FACTORS!$L$9:$M$128)*AI$13*AJ27) -> 0 | AM27: 1.1 | AN27: =IF(AL27="",0,LOOKUP(AL27,FACTORS!$L$9:$M$128)*AL$13*AM27) -> 0 | AP27: 1.1 | AQ27: =IF(AO27="",0,LOOKUP(AO27,FACTORS!$L$9:$M$128)*AO$13*AP27) -> 0 | AS27: 1.1 | AT27: =IF(AR27="",0,LOOKUP(AR27,FACTORS!$L$9:$M$128)*AR$13*AS27) -> 0 | AU27: 28 | AV27: 1.1 | AW27: =IF(AU27="",0,LOOKUP(AU27,FACTORS!$L$9:$M$128)*AU$13*AV27) -> 153.45 | AX27: 10 | AY27: 1 | AZ27: =IF(AX27="",0,LOOKUP(AX27,FACTORS!$L$9:$M$128)*AX$13*AY27) -> 166.5 | BB27: 1.1 | BC27: =IF(BA27="",0,LOOKUP(BA27,FACTORS!$L$9:$M$128)*BA$13*BB27) -> 0 | BE27: 1.1 | BF27: =IF(BD27="",0,LOOKUP(BD27,FACTORS!$L$9:$M$128)*BD$13*BE27) -> 0 | BH27: 1.1 | BI27: =IF(BG27="",0,LOOKUP(BG27,FACTORS!$L$9:$M$128)*BG$13*BH27) -> 0 | BK27: 1.1 | BL27: =IF(BJ27="",0,LOOKUP(BJ27,FACTORS!$L$9:$M$128)*BJ$13*BK27) -> 0 | BN27: 1.1 | BO27: =IF(BM27="",0,LOOKUP(BM27,FACTORS!$L$9:$M$128)*BM$13*BN27) -> 0 | BQ27: 1.1 | BR27: =IF(BP27="",0,LOOKUP(BP27,FACTORS!$L$9:$M$128)*BP$13*BQ27) -> 0 | BT27: 1.1 | BU27: =IF(BS27="",0,LOOKUP(BS27,FACTORS!$L$9:$M$128)*BS$13*BT27) -> 0 | BW27: 1.1 | BX27: =IF(BV27="",0,LOOKUP(BV27,FACTORS!$L$9:$M$128)*BV$13*BW27) -> 0 | BZ27: 1.1 | CA27: =IF(BY27="",0,LOOKUP(BY27,FACTORS!$L$9:$M$128)*BY$13*BZ27) -> 0 | CC27: 1.1 | CD27: =IF(CB27="",0,LOOKUP(CB27,FACTORS!$L$9:$M$128)*CB$13*CC27) -> 0 | CF27: 1.1 | CG27: =IF(CE27="",0,LOOKUP(CE27,FACTORS!$L$9:$M$128)*CE$13*CF27) -> 0 | CI27: 1.1 | CJ27: =IF(CH27="",0,LOOKUP(CH27,FACTORS!$L$9:$M$128)*CH$13*CI27) -> 0 | CL27: 1.1 | CM27: =IF(CK27="",0,LOOKUP(CK27,FACTORS!$L$9:$M$128)*CK$13*CL27) -> 0 | CO27: 1.1 | CP27: =IF(CN27="",0,LOOKUP(CN27,FACTORS!$L$9:$M$128)*CN$13*CO27) -> 0 | CR27: 1.1 | CS27: =IF(CQ27="",0,LOOKUP(CQ27,FACTORS!$L$9:$M$128)*CQ$13*CR27) -> 0 | CU27: 1.1 | CV27: =IF(CT27="",0,LOOKUP(CT27,FACTORS!$L$9:$M$128)*CT$13*CU27) -> 0 | CX27: 1.1 | CY27: =IF(CW27="",0,LOOKUP(CW27,FACTORS!$L$9:$M$128)*CW$13*CX27) -> 0 | DA27: 1.1 | DB27: =IF(CZ27="",0,LOOKUP(CZ27,FACTORS!$L$9:$M$128)*CZ$13*DA27) -> 0 | DC27: 12 | DD27: 1 | DE27: =IF(DC27="",0,LOOKUP(DC27,FACTORS!$L$9:$M$128)*DC$13*DD27) -> 163.5 | DG27: 1.1 | DH27: =IF(DF27="",0,LOOKUP(DF27,FACTORS!$L$9:$M$128)*DF$13*DG27) -> 0 | DJ27: 1.1 | DK27: =IF(DI27="",0,LOOKUP(DI27,FACTORS!$L$9:$M$128)*DI$13*DJ27) -> 0 | DM27: 1 | DN27: =IF(DL27="",0,LOOKUP(DL27,FACTORS!$L$9:$M$128)*DL$13*DM27) -> 0 | DP27: 1.1 | DQ27: =IF(DO27="",0,LOOKUP(DO27,FACTORS!$L$9:$M$128)*DO$13*DP27) -> 0 | DS27: 1.1 | DT27: =IF(DR27="",0,LOOKUP(DR27,FACTORS!$L$9:$M$128)*DR$13*DS27) -> 0 | DV27: 1.1 | DW27: =IF(DU27="",0,LOOKUP(DU27,FACTORS!$L$9:$M$128)*DU$13*DV27) -> 0 | DY27: 1.1 | DZ27: =IF(DX27="",0,LOOKUP(DX27,FACTORS!$L$9:$M$128)*DX$13*DY27) -> 0 | EB27: 1 | EC27: =IF(EA27="",0,LOOKUP(EA27,FACTORS!$L$9:$M$128)*EA$13*EB27) -> 0 | EE27: 1 | EF27: =IF(ED27="",0,LOOKUP(ED27,FACTORS!$L$9:$M$128)*ED$13*EE27) -> 0 | EH27: 1 | EI27: =IF(EG27="",0,LOOKUP(EG27,FACTORS!$L$9:$M$128)*EG$13*EH27) -> 0 | EK27: 1 | EL27: =IF(EJ27="",0,LOOKUP(EJ27,FACTORS!$L$9:$M$128)*EJ$13*EK27) -> 0 | EN27: 1 | EO27: =IF(EM27="",0,LOOKUP(EM27,FACTORS!$L$9:$M$128)*EM$13*EN27) -> 0 | EQ27: 1 | ER27: =IF(EP27="",0,LOOKUP(EP27,FACTORS!$L$9:$M$128)*EP$13*EQ27) -> 0 | ET27: 1 | EU27: =IF(ES27="",0,LOOKUP(ES27,FACTORS!$L$9:$M$128)*ES$13*ET27) -> 0 | EW27: 1 | EX27: =IF(EV27="",0,LOOKUP(EV27,FACTORS!$L$9:$M$128)*EV$13*EW27) -> 0 | EZ27: 1 | FA27: =IF(EY27="",0,LOOKUP(EY27,FACTORS!$L$9:$M$128)*EY$13*EZ27) -> 0 | FC27: 1 | FD27: =IF(FB27="",0,LOOKUP(FB27,FACTORS!$L$9:$M$128)*FB$13*FC27) -> 0 | FF27: 1 | FG27: =IF(FE27="",0,LOOKUP(FE27,FACTORS!$L$9:$M$128)*FE$13*FF27) -> 0 | FI27: 1 | FJ27: =IF(FH27="",0,LOOKUP(FH27,FACTORS!$L$9:$M$128)*FH$13*FI27) -> 0 | FL27: 1 | FM27: =IF(FK27="",0,LOOKUP(FK27,FACTORS!$L$9:$M$128)*FK$13*FL27) -> 0
B28: 12 | C28: Julia Melton | D28: USA | F28: 624.7 | G28: 624,7 points | I28: 1 | J28: =IF(H28="",0,LOOKUP(H28,FACTORS!$L$9:$M$128)*H$13*I28) -> 0 | L28: 1.1 | M28: =IF(K28="",0,LOOKUP(K28,FACTORS!$L$9:$M$128)*K$13*L28) -> 0 | N28: 1 | O28: 1 | P28: =IF(N28="",0,LOOKUP(N28,FACTORS!$L$9:$M$128)*N$13*O28) -> 156 | R28: 1.1 | S28: =IF(Q28="",0,LOOKUP(Q28,FACTORS!$L$9:$M$128)*Q$13*R28) -> 0 | U28: 1.1 | V28: =IF(T28="",0,LOOKUP(T28,FACTORS!$L$9:$M$128)*T$13*U28) -> 0 | X28: 1.1 | Y28: =IF(W28="",0,LOOKUP(W28,FACTORS!$L$9:$M$128)*W$13*X28) -> 0 | AA28: 1.1 | AB28: =IF(Z28="",0,LOOKUP(Z28,FACTORS!$L$9:$M$128)*Z$13*AA28) -> 0 | AD28: 1.1 | AE28: =IF(AC28="",0,LOOKUP(AC28,FACTORS!$L$9:$M$128)*AC$13*AD28) -> 0 | AG28: 1.1 | AH28: =IF(AF28="",0,LOOKUP(AF28,FACTORS!$L$9:$M$128)*AF$13*AG28) -> 0 | AJ28: 1.1 | AK28: =IF(AI28="",0,LOOKUP(AI28,FACTORS!$L$9:$M$128)*AI$13*AJ28) -> 0 | AM28: 1.1 | AN28: =IF(AL28="",0,LOOKUP(AL28,FACTORS!$L$9:$M$128)*AL$13*AM28) -> 0 | AP28: 1 | AQ28: =IF(AO28="",0,LOOKUP(AO28,FACTORS!$L$9:$M$128)*AO$13*AP28) -> 0 | AR28: 9 | AS28: 1 | AT28: =IF(AR28="",0,LOOKUP(AR28,FACTORS!$L$9:$M$128)*AR$13*AS28) -> 145.6 | AV28: 1.1 | AW28: =IF(AU28="",0,LOOKUP(AU28,FACTORS!$L$9:$M$128)*AU$13*AV28) -> 0 | AY28: 1.1 | AZ28: =IF(AX28="",0,LOOKUP(AX28,FACTORS!$L$9:$M$128)*AX$13*AY28) -> 0 | BB28: 1.1 | BC28: =IF(BA28="",0,LOOKUP(BA28,FACTORS!$L$9:$M$128)*BA$13*BB28) -> 0 | BE28: 1 | BF28: =IF(BD28="",0,LOOKUP(BD28,FACTORS!$L$9:$M$128)*BD$13*BE28) -> 0 | BH28: 1.1 | BI28: =IF(BG28="",0,LOOKUP(BG28,FACTORS!$L$9:$M$128)*BG$13*BH28) -> 0 | BK28: 1.1 | BL28: =IF(BJ28="",0,LOOKUP(BJ28,FACTORS!$L$9:$M$128)*BJ$13*BK28) -> 0 | BM28: 4 | BN28: 1 | BO28: =IF(BM28="",0,LOOKUP(BM28,FACTORS!$L$9:$M$128)*BM$13*BN28) -> 152.1 | BQ28: 1.1 | BR28: =IF(BP28="",0,LOOKUP(BP28,FACTORS!$L$9:$M$128)*BP$13*BQ28) -> 0 | BT28: 1.1 | BU28: =IF(BS28="",0,LOOKUP(BS28,FACTORS!$L$9:$M$128)*BS$13*BT28) -> 0 | BW28: 1.1 | BX28: =IF(BV28="",0,LOOKUP(BV28,FACTORS!$L$9:$M$128)*BV$13*BW28) -> 0 | BZ28: 1.1 | CA28: =IF(BY28="",0,LOOKUP(BY28,FACTORS!$L$9:$M$128)*BY$13*BZ28) -> 0 | CC28: 1.1 | CD28: =IF(CB28="",0,LOOKUP(CB28,FACTORS!$L$9:$M$128)*CB$13*CC28) -> 0 | CF28: 1.1 | CG28: =IF(CE28="",0,LOOKUP(CE28,FACTORS!$L$9:$M$128)*CE$13*CF28) -> 0 | CI28: 1.1 | CJ28: =IF(CH28="",0,LOOKUP(CH28,FACTORS!$L$9:$M$128)*CH$13*CI28) -> 0 | CL28: 1.1 | CM28: =IF(CK28="",0,LOOKUP(CK28,FACTORS!$L$9:$M$128)*CK$13*CL28) -> 0 | CO28: 1.1 | CP28: =IF(CN28="",0,LOOKUP(CN28,FACTORS!$L$9:$M$128)*CN$13*CO28) -> 0 | CR28: 1 | CS28: =IF(CQ28="",0,LOOKUP(CQ28,FACTORS!$L$9:$M$128)*CQ$13*CR28) -> 0 | CU28: 1.1 | CV28: =IF(CT28="",0,LOOKUP(CT28,FACTORS!$L$9:$M$128)*CT$13*CU28) -> 0 | CX28: 1.1 | CY28: =IF(CW28="",0,LOOKUP(CW28,FACTORS!$L$9:$M$128)*CW$13*CX28) -> 0 | DA28: 1.1 | DB28: =IF(CZ28="",0,LOOKUP(CZ28,FACTORS!$L$9:$M$128)*CZ$13*DA28) -> 0 | DD28: 1.1 | DE28: =IF(DC28="",0,LOOKUP(DC28,FACTORS!$L$9:$M$128)*DC$13*DD28) -> 0 | DG28: 1.1 | DH28: =IF(DF28="",0,LOOKUP(DF28,FACTORS!$L$9:$M$128)*DF$13*DG28) -> 0 | DJ28: 1 | DK28: =IF(DI28="",0,LOOKUP(DI28,FACTORS!$L$9:$M$128)*DI$13*DJ28) -> 0 | DM28: 1 | DN28: =IF(DL28="",0,LOOKUP(DL28,FACTORS!$L$9:$M$128)*DL$13*DM28) -> 0 | DP28: 1.1 | DQ28: =IF(DO28="",0,LOOKUP(DO28,FACTORS!$L$9:$M$128)*DO$13*DP28) -> 0 | DR28: 7 | DS28: 1 | DT28: =IF(DR28="",0,LOOKUP(DR28,FACTORS!$L$9:$M$128)*DR$13*DS28) -> 171 | DV28: 1.1 | DW28: =IF(DU28="",0,LOOKUP(DU28,FACTORS!$L$9:$M$128)*DU$13*DV28) -> 0 | DY28: 1.1 | DZ28: =IF(DX28="",0,LOOKUP(DX28,FACTORS!$L$9:$M$128)*DX$13*DY28) -> 0 | EB28: 1 | EC28: =IF(EA28="",0,LOOKUP(EA28,FACTORS!$L$9:$M$128)*EA$13*EB28) -> 0 | EE28: 1 | EF28: =IF(ED28="",0,LOOKUP(ED28,FACTORS!$L$9:$M$128)*ED$13*EE28) -> 0 | EH28: 1 | EI28: =IF(EG28="",0,LOOKUP(EG28,FACTORS!$L$9:$M$128)*EG$13*EH28) -> 0 | EK28: 1 | EL28: =IF(EJ28="",0,LOOKUP(EJ28,FACTORS!$L$9:$M$128)*EJ$13*EK28) -> 0 | EN28: 1 | EO28: =IF(EM28="",0,LOOKUP(EM28,FACTORS!$L$9:$M$128)*EM$13*EN28) -> 0 | EQ28: 1 | ER28: =IF(EP28="",0,LOOKUP(EP28,FACTORS!$L$9:$M$128)*EP$13*EQ28) -> 0 | ET28: 1 | EU28: =IF(ES28="",0,LOOKUP(ES28,FACTORS!$L$9:$M$128)*ES$13*ET28) -> 0 | EW28: 1 | EX28: =IF(EV28="",0,LOOKUP(EV28,FACTORS!$L$9:$M$128)*EV$13*EW28) -> 0 | EZ28: 1 | FA28: =IF(EY28="",0,LOOKUP(EY28,FACTORS!$L$9:$M$128)*EY$13*EZ28) -> 0 | FC28: 1 | FD28: =IF(FB28="",0,LOOKUP(FB28,FACTORS!$L$9:$M$128)*FB$13*FC28) -> 0 | FF28: 1 | FG28: =IF(FE28="",0,LOOKUP(FE28,FACTORS!$L$9:$M$128)*FE$13*FF28) -> 0 | FI28: 1 | FJ28: =IF(FH28="",0,LOOKUP(FH28,FACTORS!$L$9:$M$128)*FH$13*FI28) -> 0 | FL28: 1 | FM28: =IF(FK28="",0,LOOKUP(FK28,FACTORS!$L$9:$M$128)*FK$13*FL28) -> 0
B29: 13 | C29: Giovanna Gangitano | D29: ITA | F29: 621.9 | G29: 621,9 points | I29: 1.1 | J29: =IF(H29="",0,LOOKUP(H29,FACTORS!$L$9:$M$128)*H$13*I29) -> 0 | L29: 1.1 | M29: =IF(K29="",0,LOOKUP(K29,FACTORS!$L$9:$M$128)*K$13*L29) -> 0 | O29: 1.1 | P29: =IF(N29="",0,LOOKUP(N29,FACTORS!$L$9:$M$128)*N$13*O29) -> 0 | R29: 1.1 | S29: =IF(Q29="",0,LOOKUP(Q29,FACTORS!$L$9:$M$128)*Q$13*R29) -> 0 | U29: 1.1 | V29: =IF(T29="",0,LOOKUP(T29,FACTORS!$L$9:$M$128)*T$13*U29) -> 0 | X29: 1.1 | Y29: =IF(W29="",0,LOOKUP(W29,FACTORS!$L$9:$M$128)*W$13*X29) -> 0 | AA29: 1.1 | AB29: =IF(Z29="",0,LOOKUP(Z29,FACTORS!$L$9:$M$128)*Z$13*AA29) -> 0 | AD29: 1.1 | AE29: =IF(AC29="",0,LOOKUP(AC29,FACTORS!$L$9:$M$128)*AC$13*AD29) -> 0 | AG29: 1.1 | AH29: =IF(AF29="",0,LOOKUP(AF29,FACTORS!$L$9:$M$128)*AF$13*AG29) -> 0 | AJ29: 1.1 | AK29: =IF(AI29="",0,LOOKUP(AI29,FACTORS!$L$9:$M$128)*AI$13*AJ29) -> 0 | AM29: 1.1 | AN29: =IF(AL29="",0,LOOKUP(AL29,FACTORS!$L$9:$M$128)*AL$13*AM29) -> 0 | AP29: 1.1 | AQ29: =IF(AO29="",0,LOOKUP(AO29,FACTORS!$L$9:$M$128)*AO$13*AP29) -> 0 | AR29: 31 | AS29: 1.1 | AT29: =IF(AR29="",0,LOOKUP(AR29,FACTORS!$L$9:$M$128)*AR$13*AS29) -> 128.7 | AV29: 1.1 | AW29: =IF(AU29="",0,LOOKUP(AU29,FACTORS!$L$9:$M$128)*AU$13*AV29) -> 0 | AY29: 1.1 | AZ29: =IF(AX29="",0,LOOKUP(AX29,FACTORS!$L$9:$M$128)*AX$13*AY29) -> 0 | BB29: 1.1 | BC29: =IF(BA29="",0,LOOKUP(BA29,FACTORS!$L$9:$M$128)*BA$13*BB29) -> 0 | BE29: 1.1 | BF29: =IF(BD29="",0,LOOKUP(BD29,FACTORS!$L$9:$M$128)*BD$13*BE29) -> 0 | BG29: 2 | BH29: 1 | BI29: =IF(BG29="",0,LOOKUP(BG29,FACTORS!$L$9:$M$128)*BG$13*BH29) -> 178.5 | BJ29: 10 | BK29: 1 | BL29: =IF(BJ29="",0,LOOKUP(BJ29,FACTORS!$L$9:$M$128)*BJ$13*BK29) -> 166.5 | BN29: 1.1 | BO29: =IF(BM29="",0,LOOKUP(BM29,FACTORS!$L$9:$M$128)*BM$13*BN29) -> 0 | BQ29: 1.1 | BR29: =IF(BP29="",0,LOOKUP(BP29,FACTORS!$L$9:$M$128)*BP$13*BQ29) -> 0 | BT29: 1.1 | BU29: =IF(BS29="",0,LOOKUP(BS29,FACTORS!$L$9:$M$128)*BS$13*BT29) -> 0 | BW29: 1.1 | BX29: =IF(BV29="",0,LOOKUP(BV29,FACTORS!$L$9:$M$128)*BV$13*BW29) -> 0 | BZ29: 1.1 | CA29: =IF(BY29="",0,LOOKUP(BY29,FACTORS!$L$9:$M$128)*BY$13*BZ29) -> 0 | CC29: 1 | CD29: =IF(CB29="",0,LOOKUP(CB29,FACTORS!$L$9:$M$128)*CB$13*CC29) -> 0 | CF29: 1.1 | CG29: =IF(CE29="",0,LOOKUP(CE29,FACTORS!$L$9:$M$128)*CE$13*CF29) -> 0 | CI29: 1.1 | CJ29: =IF(CH29="",0,LOOKUP(CH29,FACTORS!$L$9:$M$128)*CH$13*CI29) -> 0 | CK29: 7 | CL29: 1 | CM29: =IF(CK29="",0,LOOKUP(CK29,FACTORS!$L$9:$M$128)*CK$13*CL29) -> 148.2 | CO29: 1.1 | CP29: =IF(CN29="",0,LOOKUP(CN29,FACTORS!$L$9:$M$128)*CN$13*CO29) -> 0 | CR29: 1.1 | CS29: =IF(CQ29="",0,LOOKUP(CQ29,FACTORS!$L$9:$M$128)*CQ$13*CR29) -> 0 | CU29: 1.1 | CV29: =IF(CT29="",0,LOOKUP(CT29,FACTORS!$L$9:$M$128)*CT$13*CU29) -> 0 | CX29: 1.1 | CY29: =IF(CW29="",0,LOOKUP(CW29,FACTORS!$L$9:$M$128)*CW$13*CX29) -> 0 | DA29: 1.1 | DB29: =IF(CZ29="",0,LOOKUP(CZ29,FACTORS!$L$9:$M$128)*CZ$13*DA29) -> 0 | DD29: 1.1 | DE29: =IF(DC29="",0,LOOKUP(DC29,FACTORS!$L$9:$M$128)*DC$13*DD29) -> 0 | DG29: 1.1 | DH29: =IF(DF29="",0,LOOKUP(DF29,FACTORS!$L$9:$M$128)*DF$13*DG29) -> 0 | DJ29: 1.1 | DK29: =IF(DI29="",0,LOOKUP(DI29,FACTORS!$L$9:$M$128)*DI$13*DJ29) -> 0 | DM29: 1 | DN29: =IF(DL29="",0,LOOKUP(DL29,FACTORS!$L$9:$M$128)*DL$13*DM29) -> 0 | DP29: 1.1 | DQ29: =IF(DO29="",0,LOOKUP(DO29,FACTORS!$L$9:$M$128)*DO$13*DP29) -> 0 | DS29: 1.1 | DT29: =IF(DR29="",0,LOOKUP(DR29,FACTORS!$L$9:$M$128)*DR$13*DS29) -> 0 | DV29: 1.1 | DW29: =IF(DU29="",0,LOOKUP(DU29,FACTORS!$L$9:$M$128)*DU$13*DV29) -> 0 | DY29: 1.1 | DZ29: =IF(DX29="",0,LOOKUP(DX29,FACTORS!$L$9:$M$128)*DX$13*DY29) -> 0 | EB29: 1 | EC29: =IF(EA29="",0,LOOKUP(EA29,FACTORS!$L$9:$M$128)*EA$13*EB29) -> 0 | EE29: 1 | EF29: =IF(ED29="",0,LOOKUP(ED29,FACTORS!$L$9:$M$128)*ED$13*EE29) -> 0 | EH29: 1 | EI29: =IF(EG29="",0,LOOKUP(EG29,FACTORS!$L$9:$M$128)*EG$13*EH29) -> 0 | EK29: 1 | EL29: =IF(EJ29="",0,LOOKUP(EJ29,FACTORS!$L$9:$M$128)*EJ$13*EK29) -> 0 | EN29: 1 | EO29: =IF(EM29="",0,LOOKUP(EM29,FACTORS!$L$9:$M$128)*EM$13*EN29) -> 0 | EQ29: 1 | ER29: =IF(EP29="",0,LOOKUP(EP29,FACTORS!$L$9:$M$128)*EP$13*EQ29) -> 0 | ET29: 1 | EU29: =IF(ES29="",0,LOOKUP(ES29,FACTORS!$L$9:$M$128)*ES$13*ET29) -> 0 | EW29: 1 | EX29: =IF(EV29="",0,LOOKUP(EV29,FACTORS!$L$9:$M$128)*EV$13*EW29) -> 0 | EZ29: 1 | FA29: =IF(EY29="",0,LOOKUP(EY29,FACTORS!$L$9:$M$128)*EY$13*EZ29) -> 0 | FC29: 1 | FD29: =IF(FB29="",0,LOOKUP(FB29,FACTORS!$L$9:$M$128)*FB$13*FC29) -> 0 | FF29: 1 | FG29: =IF(FE29="",0,LOOKUP(FE29,FACTORS!$L$9:$M$128)*FE$13*FF29) -> 0 | FI29: 1 | FJ29: =IF(FH29="",0,LOOKUP(FH29,FACTORS!$L$9:$M$128)*FH$13*FI29) -> 0 | FL29: 1 | FM29: =IF(FK29="",0,LOOKUP(FK29,FACTORS!$L$9:$M$128)*FK$13*FL29) -> 0
B30: 14 | C30: Christine Desilva | D30: USA | F30: 621.3 | G30: 621,3 points | I30: 1 | J30: =IF(H30="",0,LOOKUP(H30,FACTORS!$L$9:$M$128)*H$13*I30) -> 0 | L30: 1.1 | M30: =IF(K30="",0,LOOKUP(K30,FACTORS!$L$9:$M$128)*K$13*L30) -> 0 | N30: 3 | O30: 1 | P30: =IF(N30="",0,LOOKUP(N30,FACTORS!$L$9:$M$128)*N$13*O30) -> 153.4 | R30: 1.1 | S30: =IF(Q30="",0,LOOKUP(Q30,FACTORS!$L$9:$M$128)*Q$13*R30) -> 0 | U30: 1.1 | V30: =IF(T30="",0,LOOKUP(T30,FACTORS!$L$9:$M$128)*T$13*U30) -> 0 | X30: 1.1 | Y30: =IF(W30="",0,LOOKUP(W30,FACTORS!$L$9:$M$128)*W$13*X30) -> 0 | AA30: 1.1 | AB30: =IF(Z30="",0,LOOKUP(Z30,FACTORS!$L$9:$M$128)*Z$13*AA30) -> 0 | AD30: 1.1 | AE30: =IF(AC30="",0,LOOKUP(AC30,FACTORS!$L$9:$M$128)*AC$13*AD30) -> 0 | AG30: 1.1 | AH30: =IF(AF30="",0,LOOKUP(AF30,FACTORS!$L$9:$M$128)*AF$13*AG30) -> 0 | AJ30: 1.1 | AK30: =IF(AI30="",0,LOOKUP(AI30,FACTORS!$L$9:$M$128)*AI$13*AJ30) -> 0 | AM30: 1.1 | AN30: =IF(AL30="",0,LOOKUP(AL30,FACTORS!$L$9:$M$128)*AL$13*AM30) -> 0 | AP30: 1 | AQ30: =IF(AO30="",0,LOOKUP(AO30,FACTORS!$L$9:$M$128)*AO$13*AP30) -> 0 | AR30: 6 | AS30: 1 | AT30: =IF(AR30="",0,LOOKUP(AR30,FACTORS!$L$9:$M$128)*AR$13*AS30) -> 149.5 | AV30: 1.1 | AW30: =IF(AU30="",0,LOOKUP(AU30,FACTORS!$L$9:$M$128)*AU$13*AV30) -> 0 | AY30: 1.1 | AZ30: =IF(AX30="",0,LOOKUP(AX30,FACTORS!$L$9:$M$128)*AX$13*AY30) -> 0 | BB30: 1.1 | BC30: =IF(BA30="",0,LOOKUP(BA30,FACTORS!$L$9:$M$128)*BA$13*BB30) -> 0 | BD30: 3 | BE30: 1 | BF30: =IF(BD30="",0,LOOKUP(BD30,FACTORS!$L$9:$M$128)*BD$13*BE30) -> 153.4 | BH30: 1.1 | BI30: =IF(BG30="",0,LOOKUP(BG30,FACTORS!$L$9:$M$128)*BG$13*BH30) -> 0 | BK30: 1.1 | BL30: =IF(BJ30="",0,LOOKUP(BJ30,FACTORS!$L$9:$M$128)*BJ$13*BK30) -> 0 | BN30: 1 | BO30: =IF(BM30="",0,LOOKUP(BM30,FACTORS!$L$9:$M$128)*BM$13*BN30) -> 0 | BQ30: 1.1 | BR30: =IF(BP30="",0,LOOKUP(BP30,FACTORS!$L$9:$M$128)*BP$13*BQ30) -> 0 | BT30: 1.1 | BU30: =IF(BS30="",0,LOOKUP(BS30,FACTORS!$L$9:$M$128)*BS$13*BT30) -> 0 | BW30: 1.1 | BX30: =IF(BV30="",0,LOOKUP(BV30,FACTORS!$L$9:$M$128)*BV$13*BW30) -> 0 | BZ30: 1.1 | CA30: =IF(BY30="",0,LOOKUP(BY30,FACTORS!$L$9:$M$128)*BY$13*BZ30) -> 0 | CC30: 1.1 | CD30: =IF(CB30="",0,LOOKUP(CB30,FACTORS!$L$9:$M$128)*CB$13*CC30) -> 0 | CF30: 1.1 | CG30: =IF(CE30="",0,LOOKUP(CE30,FACTORS!$L$9:$M$128)*CE$13*CF30) -> 0 | CI30: 1.1 | CJ30: =IF(CH30="",0,LOOKUP(CH30,FACTORS!$L$9:$M$128)*CH$13*CI30) -> 0 | CL30: 1.1 | CM30: =IF(CK30="",0,LOOKUP(CK30,FACTORS!$L$9:$M$128)*CK$13*CL30) -> 0 | CO30: 1.1 | CP30: =IF(CN30="",0,LOOKUP(CN30,FACTORS!$L$9:$M$128)*CN$13*CO30) -> 0 | CR30: 1 | CS30: =IF(CQ30="",0,LOOKUP(CQ30,FACTORS!$L$9:$M$128)*CQ$13*CR30) -> 0 | CU30: 1.1 | CV30: =IF(CT30="",0,LOOKUP(CT30,FACTORS!$L$9:$M$128)*CT$13*CU30) -> 0 | CX30: 1.1 | CY30: =IF(CW30="",0,LOOKUP(CW30,FACTORS!$L$9:$M$128)*CW$13*CX30) -> 0 | DA30: 1.1 | DB30: =IF(CZ30="",0,LOOKUP(CZ30,FACTORS!$L$9:$M$128)*CZ$13*DA30) -> 0 | DD30: 1.1 | DE30: =IF(DC30="",0,LOOKUP(DC30,FACTORS!$L$9:$M$128)*DC$13*DD30) -> 0 | DG30: 1.1 | DH30: =IF(DF30="",0,LOOKUP(DF30,FACTORS!$L$9:$M$128)*DF$13*DG30) -> 0 | DJ30: 1 | DK30: =IF(DI30="",0,LOOKUP(DI30,FACTORS!$L$9:$M$128)*DI$13*DJ30) -> 0 | DM30: 1 | DN30: =IF(DL30="",0,LOOKUP(DL30,FACTORS!$L$9:$M$128)*DL$13*DM30) -> 0 | DP30: 1.1 | DQ30: =IF(DO30="",0,LOOKUP(DO30,FACTORS!$L$9:$M$128)*DO$13*DP30) -> 0 | DR30: 11 | DS30: 1 | DT30: =IF(DR30="",0,LOOKUP(DR30,FACTORS!$L$9:$M$128)*DR$13*DS30) -> 165 | DV30: 1.1 | DW30: =IF(DU30="",0,LOOKUP(DU30,FACTORS!$L$9:$M$128)*DU$13*DV30) -> 0 | DY30: 1.1 | DZ30: =IF(DX30="",0,LOOKUP(DX30,FACTORS!$L$9:$M$128)*DX$13*DY30) -> 0 | EB30: 1 | EC30: =IF(EA30="",0,LOOKUP(EA30,FACTORS!$L$9:$M$128)*EA$13*EB30) -> 0 | EE30: 1 | EF30: =IF(ED30="",0,LOOKUP(ED30,FACTORS!$L$9:$M$128)*ED$13*EE30) -> 0 | EH30: 1 | EI30: =IF(EG30="",0,LOOKUP(EG30,FACTORS!$L$9:$M$128)*EG$13*EH30) -> 0 | EK30: 1 | EL30: =IF(EJ30="",0,LOOKUP(EJ30,FACTORS!$L$9:$M$128)*EJ$13*EK30) -> 0 | EN30: 1 | EO30: =IF(EM30="",0,LOOKUP(EM30,FACTORS!$L$9:$M$128)*EM$13*EN30) -> 0 | EQ30: 1 | ER30: =IF(EP30="",0,LOOKUP(EP30,FACTORS!$L$9:$M$128)*EP$13*EQ30) -> 0 | ET30: 1 | EU30: =IF(ES30="",0,LOOKUP(ES30,FACTORS!$L$9:$M$128)*ES$13*ET30) -> 0 | EW30: 1 | EX30: =IF(EV30="",0,LOOKUP(EV30,FACTORS!$L$9:$M$128)*EV$13*EW30) -> 0 | EZ30: 1 | FA30: =IF(EY30="",0,LOOKUP(EY30,FACTORS!$L$9:$M$128)*EY$13*EZ30) -> 0 | FC30: 1 | FD30: =IF(FB30="",0,LOOKUP(FB30,FACTORS!$L$9:$M$128)*FB$13*FC30) -> 0 | FF30: 1 | FG30: =IF(FE30="",0,LOOKUP(FE30,FACTORS!$L$9:$M$128)*FE$13*FF30) -> 0 | FI30: 1 | FJ30: =IF(FH30="",0,LOOKUP(FH30,FACTORS!$L$9:$M$128)*FH$13*FI30) -> 0 | FL30: 1 | FM30: =IF(FK30="",0,LOOKUP(FK30,FACTORS!$L$9:$M$128)*FK$13*FL30) -> 0
B31: 15 | C31: Kim Couranz | D31: USA | F31: 595.5 | G31: 595,5 points | H31: 13 | I31: 1 | J31: =IF(H31="",0,LOOKUP(H31,FACTORS!$L$9:$M$128)*H$13*I31) -> 140.4 | L31: 1.1 | M31: =IF(K31="",0,LOOKUP(K31,FACTORS!$L$9:$M$128)*K$13*L31) -> 0 | N31: 4 | O31: 1 | P31: =IF(N31="",0,LOOKUP(N31,FACTORS!$L$9:$M$128)*N$13*O31) -> 152.1 | R31: 1.1 | S31: =IF(Q31="",0,LOOKUP(Q31,FACTORS!$L$9:$M$128)*Q$13*R31) -> 0 | U31: 1.1 | V31: =IF(T31="",0,LOOKUP(T31,FACTORS!$L$9:$M$128)*T$13*U31) -> 0 | X31: 1.1 | Y31: =IF(W31="",0,LOOKUP(W31,FACTORS!$L$9:$M$128)*W$13*X31) -> 0 | AA31: 1.1 | AB31: =IF(Z31="",0,LOOKUP(Z31,FACTORS!$L$9:$M$128)*Z$13*AA31) -> 0 | AD31: 1.1 | AE31: =IF(AC31="",0,LOOKUP(AC31,FACTORS!$L$9:$M$128)*AC$13*AD31) -> 0 | AG31: 1.1 | AH31: =IF(AF31="",0,LOOKUP(AF31,FACTORS!$L$9:$M$128)*AF$13*AG31) -> 0 | AJ31: 1.1 | AK31: =IF(AI31="",0,LOOKUP(AI31,FACTORS!$L$9:$M$128)*AI$13*AJ31) -> 0 | AM31: 1.1 | AN31: =IF(AL31="",0,LOOKUP(AL31,FACTORS!$L$9:$M$128)*AL$13*AM31) -> 0 | AP31: 1 | AQ31: =IF(AO31="",0,LOOKUP(AO31,FACTORS!$L$9:$M$128)*AO$13*AP31) -> 0 | AR31: 16 | AS31: 1 | AT31: =IF(AR31="",0,LOOKUP(AR31,FACTORS!$L$9:$M$128)*AR$13*AS31) -> 136.5 | AV31: 1.1 | AW31: =IF(AU31="",0,LOOKUP(AU31,FACTORS!$L$9:$M$128)*AU$13*AV31) -> 0 | AY31: 1.1 | AZ31: =IF(AX31="",0,LOOKUP(AX31,FACTORS!$L$9:$M$128)*AX$13*AY31) -> 0 | BB31: 1.1 | BC31: =IF(BA31="",0,LOOKUP(BA31,FACTORS!$L$9:$M$128)*BA$13*BB31) -> 0 | BE31: 1 | BF31: =IF(BD31="",0,LOOKUP(BD31,FACTORS!$L$9:$M$128)*BD$13*BE31) -> 0 | BH31: 1.1 | BI31: =IF(BG31="",0,LOOKUP(BG31,FACTORS!$L$9:$M$128)*BG$13*BH31) -> 0 | BK31: 1.1 | BL31: =IF(BJ31="",0,LOOKUP(BJ31,FACTORS!$L$9:$M$128)*BJ$13*BK31) -> 0 | BN31: 1 | BO31: =IF(BM31="",0,LOOKUP(BM31,FACTORS!$L$9:$M$128)*BM$13*BN31) -> 0 | BQ31: 1.1 | BR31: =IF(BP31="",0,LOOKUP(BP31,FACTORS!$L$9:$M$128)*BP$13*BQ31) -> 0 | BT31: 1.1 | BU31: =IF(BS31="",0,LOOKUP(BS31,FACTORS!$L$9:$M$128)*BS$13*BT31) -> 0 | BW31: 1.1 | BX31: =IF(BV31="",0,LOOKUP(BV31,FACTORS!$L$9:$M$128)*BV$13*BW31) -> 0 | BZ31: 1.1 | CA31: =IF(BY31="",0,LOOKUP(BY31,FACTORS!$L$9:$M$128)*BY$13*BZ31) -> 0 | CC31: 1.1 | CD31: =IF(CB31="",0,LOOKUP(CB31,FACTORS!$L$9:$M$128)*CB$13*CC31) -> 0 | CF31: 1.1 | CG31: =IF(CE31="",0,LOOKUP(CE31,FACTORS!$L$9:$M$128)*CE$13*CF31) -> 0 | CI31: 1.1 | CJ31: =IF(CH31="",0,LOOKUP(CH31,FACTORS!$L$9:$M$128)*CH$13*CI31) -> 0 | CL31: 1.1 | CM31: =IF(CK31="",0,LOOKUP(CK31,FACTORS!$L$9:$M$128)*CK$13*CL31) -> 0 | CO31: 1.1 | CP31: =IF(CN31="",0,LOOKUP(CN31,FACTORS!$L$9:$M$128)*CN$13*CO31) -> 0 | CR31: 1 | CS31: =IF(CQ31="",0,LOOKUP(CQ31,FACTORS!$L$9:$M$128)*CQ$13*CR31) -> 0 | CU31: 1.1 | CV31: =IF(CT31="",0,LOOKUP(CT31,FACTORS!$L$9:$M$128)*CT$13*CU31) -> 0 | CX31: 1.1 | CY31: =IF(CW31="",0,LOOKUP(CW31,FACTORS!$L$9:$M$128)*CW$13*CX31) -> 0 | DA31: 1.1 | DB31: =IF(CZ31="",0,LOOKUP(CZ31,FACTORS!$L$9:$M$128)*CZ$13*DA31) -> 0 | DD31: 1.1 | DE31: =IF(DC31="",0,LOOKUP(DC31,FACTORS!$L$9:$M$128)*DC$13*DD31) -> 0 | DG31: 1.1 | DH31: =IF(DF31="",0,LOOKUP(DF31,FACTORS!$L$9:$M$128)*DF$13*DG31) -> 0 | DJ31: 1 | DK31: =IF(DI31="",0,LOOKUP(DI31,FACTORS!$L$9:$M$128)*DI$13*DJ31) -> 0 | DM31: 1 | DN31: =IF(DL31="",0,LOOKUP(DL31,FACTORS!$L$9:$M$128)*DL$13*DM31) -> 0 | DP31: 1.1 | DQ31: =IF(DO31="",0,LOOKUP(DO31,FACTORS!$L$9:$M$128)*DO$13*DP31) -> 0 | DR31: 10 | DS31: 1 | DT31: =IF(DR31="",0,LOOKUP(DR31,FACTORS!$L$9:$M$128)*DR$13*DS31) -> 166.5 | DV31: 1.1 | DW31: =IF(DU31="",0,LOOKUP(DU31,FACTORS!$L$9:$M$128)*DU$13*DV31) -> 0 | DY31: 1.1 | DZ31: =IF(DX31="",0,LOOKUP(DX31,FACTORS!$L$9:$M$128)*DX$13*DY31) -> 0 | EB31: 1 | EC31: =IF(EA31="",0,LOOKUP(EA31,FACTORS!$L$9:$M$128)*EA$13*EB31) -> 0 | EE31: 1 | EF31: =IF(ED31="",0,LOOKUP(ED31,FACTORS!$L$9:$M$128)*ED$13*EE31) -> 0 | EH31: 1 | EI31: =IF(EG31="",0,LOOKUP(EG31,FACTORS!$L$9:$M$128)*EG$13*EH31) -> 0 | EK31: 1 | EL31: =IF(EJ31="",0,LOOKUP(EJ31,FACTORS!$L$9:$M$128)*EJ$13*EK31) -> 0 | EN31: 1 | EO31: =IF(EM31="",0,LOOKUP(EM31,FACTORS!$L$9:$M$128)*EM$13*EN31) -> 0 | EQ31: 1 | ER31: =IF(EP31="",0,LOOKUP(EP31,FACTORS!$L$9:$M$128)*EP$13*EQ31) -> 0 | ET31: 1 | EU31: =IF(ES31="",0,LOOKUP(ES31,FACTORS!$L$9:$M$128)*ES$13*ET31) -> 0 | EW31: 1 | EX31: =IF(EV31="",0,LOOKUP(EV31,FACTORS!$L$9:$M$128)*EV$13*EW31) -> 0 | EZ31: 1 | FA31: =IF(EY31="",0,LOOKUP(EY31,FACTORS!$L$9:$M$128)*EY$13*EZ31) -> 0 | FC31: 1 | FD31: =IF(FB31="",0,LOOKUP(FB31,FACTORS!$L$9:$M$128)*FB$13*FC31) -> 0 | FF31: 1 | FG31: =IF(FE31="",0,LOOKUP(FE31,FACTORS!$L$9:$M$128)*FE$13*FF31) -> 0 | FI31: 1 | FJ31: =IF(FH31="",0,LOOKUP(FH31,FACTORS!$L$9:$M$128)*FH$13*FI31) -> 0 | FL31: 1 | FM31: =IF(FK31="",0,LOOKUP(FK31,FACTORS!$L$9:$M$128)*FK$13*FL31) -> 0
B32: 16 | C32: Pedro Pontes | D32: POR | F32: 581.15 | G32: 581,15 points | I32: 1.1 | J32: =IF(H32="",0,LOOKUP(H32,FACTORS!$L$9:$M$128)*H$13*I32) -> 0 | L32: 1.1 | M32: =IF(K32="",0,LOOKUP(K32,FACTORS!$L$9:$M$128)*K$13*L32) -> 0 | O32: 1.1 | P32: =IF(N32="",0,LOOKUP(N32,FACTORS!$L$9:$M$128)*N$13*O32) -> 0 | Q32: 17 | R32: 1 | S32: =IF(Q32="",0,LOOKUP(Q32,FACTORS!$L$9:$M$128)*Q$13*R32) -> 135.2 | U32: 1.1 | V32: =IF(T32="",0,LOOKUP(T32,FACTORS!$L$9:$M$128)*T$13*U32) -> 0 | X32: 1.1 | Y32: =IF(W32="",0,LOOKUP(W32,FACTORS!$L$9:$M$128)*W$13*X32) -> 0 | AA32: 1.1 | AB32: =IF(Z32="",0,LOOKUP(Z32,FACTORS!$L$9:$M$128)*Z$13*AA32) -> 0 | AD32: 1.1 | AE32: =IF(AC32="",0,LOOKUP(AC32,FACTORS!$L$9:$M$128)*AC$13*AD32) -> 0 | AG32: 1.1 | AH32: =IF(AF32="",0,LOOKUP(AF32,FACTORS!$L$9:$M$128)*AF$13*AG32) -> 0 | AJ32: 1.1 | AK32: =IF(AI32="",0,LOOKUP(AI32,FACTORS!$L$9:$M$128)*AI$13*AJ32) -> 0 | AM32: 1.1 | AN32: =IF(AL32="",0,LOOKUP(AL32,FACTORS!$L$9:$M$128)*AL$13*AM32) -> 0 | AP32: 1.1 | AQ32: =IF(AO32="",0,LOOKUP(AO32,FACTORS!$L$9:$M$128)*AO$13*AP32) -> 0 | AS32: 1.1 | AT32: =IF(AR32="",0,LOOKUP(AR32,FACTORS!$L$9:$M$128)*AR$13*AS32) -> 0 | AU32: 38 | AV32: 1.1 | AW32: =IF(AU32="",0,LOOKUP(AU32,FACTORS!$L$9:$M$128)*AU$13*AV32) -> 136.95 | AX32: 17 | AY32: 1 | AZ32: =IF(AX32="",0,LOOKUP(AX32,FACTORS!$L$9:$M$128)*AX$13*AY32) -> 156 | BB32: 1.1 | BC32: =IF(BA32="",0,LOOKUP(BA32,FACTORS!$L$9:$M$128)*BA$13*BB32) -> 0 | BE32: 1.1 | BF32: =IF(BD32="",0,LOOKUP(BD32,FACTORS!$L$9:$M$128)*BD$13*BE32) -> 0 | BH32: 1.1 | BI32: =IF(BG32="",0,LOOKUP(BG32,FACTORS!$L$9:$M$128)*BG$13*BH32) -> 0 | BK32: 1.1 | BL32: =IF(BJ32="",0,LOOKUP(BJ32,FACTORS!$L$9:$M$128)*BJ$13*BK32) -> 0 | BN32: 1.1 | BO32: =IF(BM32="",0,LOOKUP(BM32,FACTORS!$L$9:$M$128)*BM$13*BN32) -> 0 | BQ32: 1.1 | BR32: =IF(BP32="",0,LOOKUP(BP32,FACTORS!$L$9:$M$128)*BP$13*BQ32) -> 0 | BT32: 1.1 | BU32: =IF(BS32="",0,LOOKUP(BS32,FACTORS!$L$9:$M$128)*BS$13*BT32) -> 0 | BW32: 1.1 | BX32: =IF(BV32="",0,LOOKUP(BV32,FACTORS!$L$9:$M$128)*BV$13*BW32) -> 0 | BZ32: 1.1 | CA32: =IF(BY32="",0,LOOKUP(BY32,FACTORS!$L$9:$M$128)*BY$13*BZ32) -> 0 | CC32: 1.1 | CD32: =IF(CB32="",0,LOOKUP(CB32,FACTORS!$L$9:$M$128)*CB$13*CC32) -> 0 | CF32: 1.1 | CG32: =IF(CE32="",0,LOOKUP(CE32,FACTORS!$L$9:$M$128)*CE$13*CF32) -> 0 | CI32: 1.1 | CJ32: =IF(CH32="",0,LOOKUP(CH32,FACTORS!$L$9:$M$128)*CH$13*CI32) -> 0 | CL32: 1.1 | CM32: =IF(CK32="",0,LOOKUP(CK32,FACTORS!$L$9:$M$128)*CK$13*CL32) -> 0 | CO32: 1.1 | CP32: =IF(CN32="",0,LOOKUP(CN32,FACTORS!$L$9:$M$128)*CN$13*CO32) -> 0 | CR32: 1.1 | CS32: =IF(CQ32="",0,LOOKUP(CQ32,FACTORS!$L$9:$M$128)*CQ$13*CR32) -> 0 | CU32: 1.1 | CV32: =IF(CT32="",0,LOOKUP(CT32,FACTORS!$L$9:$M$128)*CT$13*CU32) -> 0 | CX32: 1.1 | CY32: =IF(CW32="",0,LOOKUP(CW32,FACTORS!$L$9:$M$128)*CW$13*CX32) -> 0 | DA32: 1.1 | DB32: =IF(CZ32="",0,LOOKUP(CZ32,FACTORS!$L$9:$M$128)*CZ$13*DA32) -> 0 | DC32: 19 | DD32: 1 | DE32: =IF(DC32="",0,LOOKUP(DC32,FACTORS!$L$9:$M$128)*DC$13*DD32) -> 153 | DG32: 1.1 | DH32: =IF(DF32="",0,LOOKUP(DF32,FACTORS!$L$9:$M$128)*DF$13*DG32) -> 0 | DJ32: 1.1 | DK32: =IF(DI32="",0,LOOKUP(DI32,FACTORS!$L$9:$M$128)*DI$13*DJ32) -> 0 | DM32: 1 | DN32: =IF(DL32="",0,LOOKUP(DL32,FACTORS!$L$9:$M$128)*DL$13*DM32) -> 0 | DP32: 1.1 | DQ32: =IF(DO32="",0,LOOKUP(DO32,FACTORS!$L$9:$M$128)*DO$13*DP32) -> 0 | DS32: 1.1 | DT32: =IF(DR32="",0,LOOKUP(DR32,FACTORS!$L$9:$M$128)*DR$13*DS32) -> 0 | DV32: 1.1 | DW32: =IF(DU32="",0,LOOKUP(DU32,FACTORS!$L$9:$M$128)*DU$13*DV32) -> 0 | DY32: 1.1 | DZ32: =IF(DX32="",0,LOOKUP(DX32,FACTORS!$L$9:$M$128)*DX$13*DY32) -> 0 | EB32: 1 | EC32: =IF(EA32="",0,LOOKUP(EA32,FACTORS!$L$9:$M$128)*EA$13*EB32) -> 0 | EE32: 1 | EF32: =IF(ED32="",0,LOOKUP(ED32,FACTORS!$L$9:$M$128)*ED$13*EE32) -> 0 | EH32: 1 | EI32: =IF(EG32="",0,LOOKUP(EG32,FACTORS!$L$9:$M$128)*EG$13*EH32) -> 0 | EK32: 1 | EL32: =IF(EJ32="",0,LOOKUP(EJ32,FACTORS!$L$9:$M$128)*EJ$13*EK32) -> 0 | EN32: 1 | EO32: =IF(EM32="",0,LOOKUP(EM32,FACTORS!$L$9:$M$128)*EM$13*EN32) -> 0 | EQ32: 1 | ER32: =IF(EP32="",0,LOOKUP(EP32,FACTORS!$L$9:$M$128)*EP$13*EQ32) -> 0 | ET32: 1 | EU32: =IF(ES32="",0,LOOKUP(ES32,FACTORS!$L$9:$M$128)*ES$13*ET32) -> 0 | EW32: 1 | EX32: =IF(EV32="",0,LOOKUP(EV32,FACTORS!$L$9:$M$128)*EV$13*EW32) -> 0 | EZ32: 1 | FA32: =IF(EY32="",0,LOOKUP(EY32,FACTORS!$L$9:$M$128)*EY$13*EZ32) -> 0 | FC32: 1 | FD32: =IF(FB32="",0,LOOKUP(FB32,FACTORS!$L$9:$M$128)*FB$13*FC32) -> 0 | FF32: 1 | FG32: =IF(FE32="",0,LOOKUP(FE32,FACTORS!$L$9:$M$128)*FE$13*FF32) -> 0 | FI32: 1 | FJ32: =IF(FH32="",0,LOOKUP(FH32,FACTORS!$L$9:$M$128)*FH$13*FI32) -> 0 | FL32: 1 | FM32: =IF(FK32="",0,LOOKUP(FK32,FACTORS!$L$9:$M$128)*FK$13*FL32) -> 0
B33: 17 | C33: Stefano Longhi | D33: ITA | F33: 561.74 | G33: 561,74 points | I33: 1.1 | J33: =IF(H33="",0,LOOKUP(H33,FACTORS!$L$9:$M$128)*H$13*I33) -> 0 | L33: 1.1 | M33: =IF(K33="",0,LOOKUP(K33,FACTORS!$L$9:$M$128)*K$13*L33) -> 0 | O33: 1.1 | P33: =IF(N33="",0,LOOKUP(N33,FACTORS!$L$9:$M$128)*N$13*O33) -> 0 | R33: 1.1 | S33: =IF(Q33="",0,LOOKUP(Q33,FACTORS!$L$9:$M$128)*Q$13*R33) -> 0 | U33: 1.1 | V33: =IF(T33="",0,LOOKUP(T33,FACTORS!$L$9:$M$128)*T$13*U33) -> 0 | X33: 1.1 | Y33: =IF(W33="",0,LOOKUP(W33,FACTORS!$L$9:$M$128)*W$13*X33) -> 0 | AA33: 1.1 | AB33: =IF(Z33="",0,LOOKUP(Z33,FACTORS!$L$9:$M$128)*Z$13*AA33) -> 0 | AD33: 1.1 | AE33: =IF(AC33="",0,LOOKUP(AC33,FACTORS!$L$9:$M$128)*AC$13*AD33) -> 0 | AG33: 1.1 | AH33: =IF(AF33="",0,LOOKUP(AF33,FACTORS!$L$9:$M$128)*AF$13*AG33) -> 0 | AJ33: 1.1 | AK33: =IF(AI33="",0,LOOKUP(AI33,FACTORS!$L$9:$M$128)*AI$13*AJ33) -> 0 | AM33: 1.1 | AN33: =IF(AL33="",0,LOOKUP(AL33,FACTORS!$L$9:$M$128)*AL$13*AM33) -> 0 | AP33: 1.1 | AQ33: =IF(AO33="",0,LOOKUP(AO33,FACTORS!$L$9:$M$128)*AO$13*AP33) -> 0 | AS33: 1.1 | AT33: =IF(AR33="",0,LOOKUP(AR33,FACTORS!$L$9:$M$128)*AR$13*AS33) -> 0 | AV33: 1.1 | AW33: =IF(AU33="",0,LOOKUP(AU33,FACTORS!$L$9:$M$128)*AU$13*AV33) -> 0 | AY33: 1.1 | AZ33: =IF(AX33="",0,LOOKUP(AX33,FACTORS!$L$9:$M$128)*AX$13*AY33) -> 0 | BB33: 1.1 | BC33: =IF(BA33="",0,LOOKUP(BA33,FACTORS!$L$9:$M$128)*BA$13*BB33) -> 0 | BE33: 1.1 | BF33: =IF(BD33="",0,LOOKUP(BD33,FACTORS!$L$9:$M$128)*BD$13*BE33) -> 0 | BH33: 1 | BI33: =IF(BG33="",0,LOOKUP(BG33,FACTORS!$L$9:$M$128)*BG$13*BH33) -> 0 | BJ33: 3 | BK33: 1 | BL33: =IF(BJ33="",0,LOOKUP(BJ33,FACTORS!$L$9:$M$128)*BJ$13*BK33) -> 177 | BN33: 1.1 | BO33: =IF(BM33="",0,LOOKUP(BM33,FACTORS!$L$9:$M$128)*BM$13*BN33) -> 0 | BQ33: 1.1 | BR33: =IF(BP33="",0,LOOKUP(BP33,FACTORS!$L$9:$M$128)*BP$13*BQ33) -> 0 | BT33: 1.1 | BU33: =IF(BS33="",0,LOOKUP(BS33,FACTORS!$L$9:$M$128)*BS$13*BT33) -> 0 | BW33: 1.1 | BX33: =IF(BV33="",0,LOOKUP(BV33,FACTORS!$L$9:$M$128)*BV$13*BW33) -> 0 | BZ33: 1.1 | CA33: =IF(BY33="",0,LOOKUP(BY33,FACTORS!$L$9:$M$128)*BY$13*BZ33) -> 0 | CC33: 1 | CD33: =IF(CB33="",0,LOOKUP(CB33,FACTORS!$L$9:$M$128)*CB$13*CC33) -> 0 | CF33: 1.1 | CG33: =IF(CE33="",0,LOOKUP(CE33,FACTORS!$L$9:$M$128)*CE$13*CF33) -> 0 | CI33: 1.1 | CJ33: =IF(CH33="",0,LOOKUP(CH33,FACTORS!$L$9:$M$128)*CH$13*CI33) -> 0 | CL33: 1 | CM33: =IF(CK33="",0,LOOKUP(CK33,FACTORS!$L$9:$M$128)*CK$13*CL33) -> 0 | CO33: 1.1 | CP33: =IF(CN33="",0,LOOKUP(CN33,FACTORS!$L$9:$M$128)*CN$13*CO33) -> 0 | CR33: 1.1 | CS33: =IF(CQ33="",0,LOOKUP(CQ33,FACTORS!$L$9:$M$128)*CQ$13*CR33) -> 0 | CT33: 3 | CU33: 1.1 | CV33: =IF(CT33="",0,LOOKUP(CT33,FACTORS!$L$9:$M$128)*CT$13*CU33) -> 168.74 | CX33: 1.1 | CY33: =IF(CW33="",0,LOOKUP(CW33,FACTORS!$L$9:$M$128)*CW$13*CX33) -> 0 | DA33: 1.1 | DB33: =IF(CZ33="",0,LOOKUP(CZ33,FACTORS!$L$9:$M$128)*CZ$13*DA33) -> 0 | DD33: 1.1 | DE33: =IF(DC33="",0,LOOKUP(DC33,FACTORS!$L$9:$M$128)*DC$13*DD33) -> 0 | DG33: 1.1 | DH33: =IF(DF33="",0,LOOKUP(DF33,FACTORS!$L$9:$M$128)*DF$13*DG33) -> 0 | DJ33: 1.1 | DK33: =IF(DI33="",0,LOOKUP(DI33,FACTORS!$L$9:$M$128)*DI$13*DJ33) -> 0 | DL33: 1 | DM33: 1 | DN33: =IF(DL33="",0,LOOKUP(DL33,FACTORS!$L$9:$M$128)*DL$13*DM33) -> 216 | DP33: 1.1 | DQ33: =IF(DO33="",0,LOOKUP(DO33,FACTORS!$L$9:$M$128)*DO$13*DP33) -> 0 | DS33: 1.1 | DT33: =IF(DR33="",0,LOOKUP(DR33,FACTORS!$L$9:$M$128)*DR$13*DS33) -> 0 | DV33: 1.1 | DW33: =IF(DU33="",0,LOOKUP(DU33,FACTORS!$L$9:$M$128)*DU$13*DV33) -> 0 | DY33: 1.1 | DZ33: =IF(DX33="",0,LOOKUP(DX33,FACTORS!$L$9:$M$128)*DX$13*DY33) -> 0 | EB33: 1 | EC33: =IF(EA33="",0,LOOKUP(EA33,FACTORS!$L$9:$M$128)*EA$13*EB33) -> 0 | EE33: 1 | EF33: =IF(ED33="",0,LOOKUP(ED33,FACTORS!$L$9:$M$128)*ED$13*EE33) -> 0 | EH33: 1 | EI33: =IF(EG33="",0,LOOKUP(EG33,FACTORS!$L$9:$M$128)*EG$13*EH33) -> 0 | EK33: 1 | EL33: =IF(EJ33="",0,LOOKUP(EJ33,FACTORS!$L$9:$M$128)*EJ$13*EK33) -> 0 | EN33: 1 | EO33: =IF(EM33="",0,LOOKUP(EM33,FACTORS!$L$9:$M$128)*EM$13*EN33) -> 0 | EQ33: 1 | ER33: =IF(EP33="",0,LOOKUP(EP33,FACTORS!$L$9:$M$128)*EP$13*EQ33) -> 0 | ET33: 1 | EU33: =IF(ES33="",0,LOOKUP(ES33,FACTORS!$L$9:$M$128)*ES$13*ET33) -> 0 | EW33: 1 | EX33: =IF(EV33="",0,LOOKUP(EV33,FACTORS!$L$9:$M$128)*EV$13*EW33) -> 0 | EZ33: 1 | FA33: =IF(EY33="",0,LOOKUP(EY33,FACTORS!$L$9:$M$128)*EY$13*EZ33) -> 0 | FC33: 1 | FD33: =IF(FB33="",0,LOOKUP(FB33,FACTORS!$L$9:$M$128)*FB$13*FC33) -> 0 | FF33: 1 | FG33: =IF(FE33="",0,LOOKUP(FE33,FACTORS!$L$9:$M$128)*FE$13*FF33) -> 0 | FI33: 1 | FJ33: =IF(FH33="",0,LOOKUP(FH33,FACTORS!$L$9:$M$128)*FH$13*FI33) -> 0 | FL33: 1 | FM33: =IF(FK33="",0,LOOKUP(FK33,FACTORS!$L$9:$M$128)*FK$13*FL33) -> 0
B34: 18 | C34: Fernando Madureira | D34: BRA | F34: 550.4 | G34: 550,4 points | I34: 1.1 | J34: =IF(H34="",0,LOOKUP(H34,FACTORS!$L$9:$M$128)*H$13*I34) -> 0 | K34: 47 | L34: 1 | M34: =IF(K34="",0,LOOKUP(K34,FACTORS!$L$9:$M$128)*K$13*L34) -> 111 | O34: 1.1 | P34: =IF(N34="",0,LOOKUP(N34,FACTORS!$L$9:$M$128)*N$13*O34) -> 0 | R34: 1.1 | S34: =IF(Q34="",0,LOOKUP(Q34,FACTORS!$L$9:$M$128)*Q$13*R34) -> 0 | U34: 1.1 | V34: =IF(T34="",0,LOOKUP(T34,FACTORS!$L$9:$M$128)*T$13*U34) -> 0 | W34: 10 | X34: 1 | Y34: =IF(W34="",0,LOOKUP(W34,FACTORS!$L$9:$M$128)*W$13*X34) -> 144.3 | AA34: 1.1 | AB34: =IF(Z34="",0,LOOKUP(Z34,FACTORS!$L$9:$M$128)*Z$13*AA34) -> 0 | AD34: 1.1 | AE34: =IF(AC34="",0,LOOKUP(AC34,FACTORS!$L$9:$M$128)*AC$13*AD34) -> 0 | AF34: 6 | AG34: 1 | AH34: =IF(AF34="",0,LOOKUP(AF34,FACTORS!$L$9:$M$128)*AF$13*AG34) -> 149.5 | AJ34: 1.1 | AK34: =IF(AI34="",0,LOOKUP(AI34,FACTORS!$L$9:$M$128)*AI$13*AJ34) -> 0 | AM34: 1.1 | AN34: =IF(AL34="",0,LOOKUP(AL34,FACTORS!$L$9:$M$128)*AL$13*AM34) -> 0 | AP34: 1.1 | AQ34: =IF(AO34="",0,LOOKUP(AO34,FACTORS!$L$9:$M$128)*AO$13*AP34) -> 0 | AS34: 1.1 | AT34: =IF(AR34="",0,LOOKUP(AR34,FACTORS!$L$9:$M$128)*AR$13*AS34) -> 0 | AV34: 1.1 | AW34: =IF(AU34="",0,LOOKUP(AU34,FACTORS!$L$9:$M$128)*AU$13*AV34) -> 0 | AY34: 1.1 | AZ34: =IF(AX34="",0,LOOKUP(AX34,FACTORS!$L$9:$M$128)*AX$13*AY34) -> 0 | BB34: 1.1 | BC34: =IF(BA34="",0,LOOKUP(BA34,FACTORS!$L$9:$M$128)*BA$13*BB34) -> 0 | BE34: 1.1 | BF34: =IF(BD34="",0,LOOKUP(BD34,FACTORS!$L$9:$M$128)*BD$13*BE34) -> 0 | BH34: 1.1 | BI34: =IF(BG34="",0,LOOKUP(BG34,FACTORS!$L$9:$M$128)*BG$13*BH34) -> 0 | BK34: 1.1 | BL34: =IF(BJ34="",0,LOOKUP(BJ34,FACTORS!$L$9:$M$128)*BJ$13*BK34) -> 0 | BN34: 1.1 | BO34: =IF(BM34="",0,LOOKUP(BM34,FACTORS!$L$9:$M$128)*BM$13*BN34) -> 0 | BQ34: 1.1 | BR34: =IF(BP34="",0,LOOKUP(BP34,FACTORS!$L$9:$M$128)*BP$13*BQ34) -> 0 | BT34: 1.1 | BU34: =IF(BS34="",0,LOOKUP(BS34,FACTORS!$L$9:$M$128)*BS$13*BT34) -> 0 | BW34: 1.1 | BX34: =IF(BV34="",0,LOOKUP(BV34,FACTORS!$L$9:$M$128)*BV$13*BW34) -> 0 | BZ34: 1.1 | CA34: =IF(BY34="",0,LOOKUP(BY34,FACTORS!$L$9:$M$128)*BY$13*BZ34) -> 0 | CC34: 1.1 | CD34: =IF(CB34="",0,LOOKUP(CB34,FACTORS!$L$9:$M$128)*CB$13*CC34) -> 0 | CF34: 1.1 | CG34: =IF(CE34="",0,LOOKUP(CE34,FACTORS!$L$9:$M$128)*CE$13*CF34) -> 0 | CI34: 1.1 | CJ34: =IF(CH34="",0,LOOKUP(CH34,FACTORS!$L$9:$M$128)*CH$13*CI34) -> 0 | CL34: 1.1 | CM34: =IF(CK34="",0,LOOKUP(CK34,FACTORS!$L$9:$M$128)*CK$13*CL34) -> 0 | CO34: 1.1 | CP34: =IF(CN34="",0,LOOKUP(CN34,FACTORS!$L$9:$M$128)*CN$13*CO34) -> 0 | CR34: 1.1 | CS34: =IF(CQ34="",0,LOOKUP(CQ34,FACTORS!$L$9:$M$128)*CQ$13*CR34) -> 0 | CU34: 1.1 | CV34: =IF(CT34="",0,LOOKUP(CT34,FACTORS!$L$9:$M$128)*CT$13*CU34) -> 0 | CX34: 1.1 | CY34: =IF(CW34="",0,LOOKUP(CW34,FACTORS!$L$9:$M$128)*CW$13*CX34) -> 0 | DA34: 1 | DB34: =IF(CZ34="",0,LOOKUP(CZ34,FACTORS!$L$9:$M$128)*CZ$13*DA34) -> 0 | DD34: 1.1 | DE34: =IF(DC34="",0,LOOKUP(DC34,FACTORS!$L$9:$M$128)*DC$13*DD34) -> 0 | DG34: 1.1 | DH34: =IF(DF34="",0,LOOKUP(DF34,FACTORS!$L$9:$M$128)*DF$13*DG34) -> 0 | DJ34: 1.1 | DK34: =IF(DI34="",0,LOOKUP(DI34,FACTORS!$L$9:$M$128)*DI$13*DJ34) -> 0 | DM34: 1 | DN34: =IF(DL34="",0,LOOKUP(DL34,FACTORS!$L$9:$M$128)*DL$13*DM34) -> 0 | DP34: 1.1 | DQ34: =IF(DO34="",0,LOOKUP(DO34,FACTORS!$L$9:$M$128)*DO$13*DP34) -> 0 | DS34: 1.1 | DT34: =IF(DR34="",0,LOOKUP(DR34,FACTORS!$L$9:$M$128)*DR$13*DS34) -> 0 | DV34: 1.1 | DW34: =IF(DU34="",0,LOOKUP(DU34,FACTORS!$L$9:$M$128)*DU$13*DV34) -> 0 | DX34: 9 | DY34: 1 | DZ34: =IF(DX34="",0,LOOKUP(DX34,FACTORS!$L$9:$M$128)*DX$13*DY34) -> 145.6 | EB34: 1 | EC34: =IF(EA34="",0,LOOKUP(EA34,FACTORS!$L$9:$M$128)*EA$13*EB34) -> 0 | EE34: 1 | EF34: =IF(ED34="",0,LOOKUP(ED34,FACTORS!$L$9:$M$128)*ED$13*EE34) -> 0 | EH34: 1 | EI34: =IF(EG34="",0,LOOKUP(EG34,FACTORS!$L$9:$M$128)*EG$13*EH34) -> 0 | EK34: 1 | EL34: =IF(EJ34="",0,LOOKUP(EJ34,FACTORS!$L$9:$M$128)*EJ$13*EK34) -> 0 | EN34: 1 | EO34: =IF(EM34="",0,LOOKUP(EM34,FACTORS!$L$9:$M$128)*EM$13*EN34) -> 0 | EQ34: 1 | ER34: =IF(EP34="",0,LOOKUP(EP34,FACTORS!$L$9:$M$128)*EP$13*EQ34) -> 0 | ET34: 1 | EU34: =IF(ES34="",0,LOOKUP(ES34,FACTORS!$L$9:$M$128)*ES$13*ET34) -> 0 | EW34: 1 | EX34: =IF(EV34="",0,LOOKUP(EV34,FACTORS!$L$9:$M$128)*EV$13*EW34) -> 0 | EZ34: 1 | FA34: =IF(EY34="",0,LOOKUP(EY34,FACTORS!$L$9:$M$128)*EY$13*EZ34) -> 0 | FC34: 1 | FD34: =IF(FB34="",0,LOOKUP(FB34,FACTORS!$L$9:$M$128)*FB$13*FC34) -> 0 | FF34: 1 | FG34: =IF(FE34="",0,LOOKUP(FE34,FACTORS!$L$9:$M$128)*FE$13*FF34) -> 0 | FI34: 1 | FJ34: =IF(FH34="",0,LOOKUP(FH34,FACTORS!$L$9:$M$128)*FH$13*FI34) -> 0 | FL34: 1 | FM34: =IF(FK34="",0,LOOKUP(FK34,FACTORS!$L$9:$M$128)*FK$13*FL34) -> 0
B35: 19 | C35: Andrew Klein | D35: USA | F35: 548.6 | G35: 548,6 points | I35: 1 | J35: =IF(H35="",0,LOOKUP(H35,FACTORS!$L$9:$M$128)*H$13*I35) -> 0 | L35: 1.1 | M35: =IF(K35="",0,LOOKUP(K35,FACTORS!$L$9:$M$128)*K$13*L35) -> 0 | N35: 14 | O35: 1 | P35: =IF(N35="",0,LOOKUP(N35,FACTORS!$L$9:$M$128)*N$13*O35) -> 139.1 | R35: 1.1 | S35: =IF(Q35="",0,LOOKUP(Q35,FACTORS!$L$9:$M$128)*Q$13*R35) -> 0 | U35: 1.1 | V35: =IF(T35="",0,LOOKUP(T35,FACTORS!$L$9:$M$128)*T$13*U35) -> 0 | X35: 1.1 | Y35: =IF(W35="",0,LOOKUP(W35,FACTORS!$L$9:$M$128)*W$13*X35) -> 0 | AA35: 1.1 | AB35: =IF(Z35="",0,LOOKUP(Z35,FACTORS!$L$9:$M$128)*Z$13*AA35) -> 0 | AD35: 1.1 | AE35: =IF(AC35="",0,LOOKUP(AC35,FACTORS!$L$9:$M$128)*AC$13*AD35) -> 0 | AG35: 1.1 | AH35: =IF(AF35="",0,LOOKUP(AF35,FACTORS!$L$9:$M$128)*AF$13*AG35) -> 0 | AJ35: 1.1 | AK35: =IF(AI35="",0,LOOKUP(AI35,FACTORS!$L$9:$M$128)*AI$13*AJ35) -> 0 | AM35: 1.1 | AN35: =IF(AL35="",0,LOOKUP(AL35,FACTORS!$L$9:$M$128)*AL$13*AM35) -> 0 | AP35: 1 | AQ35: =IF(AO35="",0,LOOKUP(AO35,FACTORS!$L$9:$M$128)*AO$13*AP35) -> 0 | AR35: 29 | AS35: 1 | AT35: =IF(AR35="",0,LOOKUP(AR35,FACTORS!$L$9:$M$128)*AR$13*AS35) -> 119.6 | AV35: 1.1 | AW35: =IF(AU35="",0,LOOKUP(AU35,FACTORS!$L$9:$M$128)*AU$13*AV35) -> 0 | AY35: 1.1 | AZ35: =IF(AX35="",0,LOOKUP(AX35,FACTORS!$L$9:$M$128)*AX$13*AY35) -> 0 | BB35: 1.1 | BC35: =IF(BA35="",0,LOOKUP(BA35,FACTORS!$L$9:$M$128)*BA$13*BB35) -> 0 | BD35: 12 | BE35: 1 | BF35: =IF(BD35="",0,LOOKUP(BD35,FACTORS!$L$9:$M$128)*BD$13*BE35) -> 141.7 | BH35: 1.1 | BI35: =IF(BG35="",0,LOOKUP(BG35,FACTORS!$L$9:$M$128)*BG$13*BH35) -> 0 | BK35: 1.1 | BL35: =IF(BJ35="",0,LOOKUP(BJ35,FACTORS!$L$9:$M$128)*BJ$13*BK35) -> 0 | BM35: 7 | BN35: 1 | BO35: =IF(BM35="",0,LOOKUP(BM35,FACTORS!$L$9:$M$128)*BM$13*BN35) -> 148.2 | BQ35: 1.1 | BR35: =IF(BP35="",0,LOOKUP(BP35,FACTORS!$L$9:$M$128)*BP$13*BQ35) -> 0 | BT35: 1.1 | BU35: =IF(BS35="",0,LOOKUP(BS35,FACTORS!$L$9:$M$128)*BS$13*BT35) -> 0 | BW35: 1.1 | BX35: =IF(BV35="",0,LOOKUP(BV35,FACTORS!$L$9:$M$128)*BV$13*BW35) -> 0 | BZ35: 1.1 | CA35: =IF(BY35="",0,LOOKUP(BY35,FACTORS!$L$9:$M$128)*BY$13*BZ35) -> 0 | CC35: 1.1 | CD35: =IF(CB35="",0,LOOKUP(CB35,FACTORS!$L$9:$M$128)*CB$13*CC35) -> 0 | CF35: 1.1 | CG35: =IF(CE35="",0,LOOKUP(CE35,FACTORS!$L$9:$M$128)*CE$13*CF35) -> 0 | CI35: 1.1 | CJ35: =IF(CH35="",0,LOOKUP(CH35,FACTORS!$L$9:$M$128)*CH$13*CI35) -> 0 | CL35: 1.1 | CM35: =IF(CK35="",0,LOOKUP(CK35,FACTORS!$L$9:$M$128)*CK$13*CL35) -> 0 | CO35: 1.1 | CP35: =IF(CN35="",0,LOOKUP(CN35,FACTORS!$L$9:$M$128)*CN$13*CO35) -> 0 | CR35: 1 | CS35: =IF(CQ35="",0,LOOKUP(CQ35,FACTORS!$L$9:$M$128)*CQ$13*CR35) -> 0 | CU35: 1.1 | CV35: =IF(CT35="",0,LOOKUP(CT35,FACTORS!$L$9:$M$128)*CT$13*CU35) -> 0 | CX35: 1.1 | CY35: =IF(CW35="",0,LOOKUP(CW35,FACTORS!$L$9:$M$128)*CW$13*CX35) -> 0 | DA35: 1.1 | DB35: =IF(CZ35="",0,LOOKUP(CZ35,FACTORS!$L$9:$M$128)*CZ$13*DA35) -> 0 | DD35: 1.1 | DE35: =IF(DC35="",0,LOOKUP(DC35,FACTORS!$L$9:$M$128)*DC$13*DD35) -> 0 | DG35: 1.1 | DH35: =IF(DF35="",0,LOOKUP(DF35,FACTORS!$L$9:$M$128)*DF$13*DG35) -> 0 | DJ35: 1 | DK35: =IF(DI35="",0,LOOKUP(DI35,FACTORS!$L$9:$M$128)*DI$13*DJ35) -> 0 | DM35: 1 | DN35: =IF(DL35="",0,LOOKUP(DL35,FACTORS!$L$9:$M$128)*DL$13*DM35) -> 0 | DP35: 1.1 | DQ35: =IF(DO35="",0,LOOKUP(DO35,FACTORS!$L$9:$M$128)*DO$13*DP35) -> 0 | DS35: 1 | DT35: =IF(DR35="",0,LOOKUP(DR35,FACTORS!$L$9:$M$128)*DR$13*DS35) -> 0 | DV35: 1.1 | DW35: =IF(DU35="",0,LOOKUP(DU35,FACTORS!$L$9:$M$128)*DU$13*DV35) -> 0 | DY35: 1.1 | DZ35: =IF(DX35="",0,LOOKUP(DX35,FACTORS!$L$9:$M$128)*DX$13*DY35) -> 0 | EB35: 1 | EC35: =IF(EA35="",0,LOOKUP(EA35,FACTORS!$L$9:$M$128)*EA$13*EB35) -> 0 | EE35: 1 | EF35: =IF(ED35="",0,LOOKUP(ED35,FACTORS!$L$9:$M$128)*ED$13*EE35) -> 0 | EH35: 1 | EI35: =IF(EG35="",0,LOOKUP(EG35,FACTORS!$L$9:$M$128)*EG$13*EH35) -> 0 | EK35: 1 | EL35: =IF(EJ35="",0,LOOKUP(EJ35,FACTORS!$L$9:$M$128)*EJ$13*EK35) -> 0 | EN35: 1 | EO35: =IF(EM35="",0,LOOKUP(EM35,FACTORS!$L$9:$M$128)*EM$13*EN35) -> 0 | EQ35: 1 | ER35: =IF(EP35="",0,LOOKUP(EP35,FACTORS!$L$9:$M$128)*EP$13*EQ35) -> 0 | ET35: 1 | EU35: =IF(ES35="",0,LOOKUP(ES35,FACTORS!$L$9:$M$128)*ES$13*ET35) -> 0 | EW35: 1 | EX35: =IF(EV35="",0,LOOKUP(EV35,FACTORS!$L$9:$M$128)*EV$13*EW35) -> 0 | EZ35: 1 | FA35: =IF(EY35="",0,LOOKUP(EY35,FACTORS!$L$9:$M$128)*EY$13*EZ35) -> 0 | FC35: 1 | FD35: =IF(FB35="",0,LOOKUP(FB35,FACTORS!$L$9:$M$128)*FB$13*FC35) -> 0 | FF35: 1 | FG35: =IF(FE35="",0,LOOKUP(FE35,FACTORS!$L$9:$M$128)*FE$13*FF35) -> 0 | FI35: 1 | FJ35: =IF(FH35="",0,LOOKUP(FH35,FACTORS!$L$9:$M$128)*FH$13*FI35) -> 0 | FL35: 1 | FM35: =IF(FK35="",0,LOOKUP(FK35,FACTORS!$L$9:$M$128)*FK$13*FL35) -> 0
B36: 20 | C36: Andrea Piazza | D36: ITA | F36: 540.1 | G36: 540,1 points | I36: 1.1 | J36: =IF(H36="",0,LOOKUP(H36,FACTORS!$L$9:$M$128)*H$13*I36) -> 0 | L36: 1.1 | M36: =IF(K36="",0,LOOKUP(K36,FACTORS!$L$9:$M$128)*K$13*L36) -> 0 | O36: 1.1 | P36: =IF(N36="",0,LOOKUP(N36,FACTORS!$L$9:$M$128)*N$13*O36) -> 0 | R36: 1.1 | S36: =IF(Q36="",0,LOOKUP(Q36,FACTORS!$L$9:$M$128)*Q$13*R36) -> 0 | U36: 1.1 | V36: =IF(T36="",0,LOOKUP(T36,FACTORS!$L$9:$M$128)*T$13*U36) -> 0 | X36: 1.1 | Y36: =IF(W36="",0,LOOKUP(W36,FACTORS!$L$9:$M$128)*W$13*X36) -> 0 | AA36: 1.1 | AB36: =IF(Z36="",0,LOOKUP(Z36,FACTORS!$L$9:$M$128)*Z$13*AA36) -> 0 | AD36: 1.1 | AE36: =IF(AC36="",0,LOOKUP(AC36,FACTORS!$L$9:$M$128)*AC$13*AD36) -> 0 | AG36: 1.1 | AH36: =IF(AF36="",0,LOOKUP(AF36,FACTORS!$L$9:$M$128)*AF$13*AG36) -> 0 | AJ36: 1.1 | AK36: =IF(AI36="",0,LOOKUP(AI36,FACTORS!$L$9:$M$128)*AI$13*AJ36) -> 0 | AM36: 1.1 | AN36: =IF(AL36="",0,LOOKUP(AL36,FACTORS!$L$9:$M$128)*AL$13*AM36) -> 0 | AP36: 1.1 | AQ36: =IF(AO36="",0,LOOKUP(AO36,FACTORS!$L$9:$M$128)*AO$13*AP36) -> 0 | AS36: 1.1 | AT36: =IF(AR36="",0,LOOKUP(AR36,FACTORS!$L$9:$M$128)*AR$13*AS36) -> 0 | AV36: 1.1 | AW36: =IF(AU36="",0,LOOKUP(AU36,FACTORS!$L$9:$M$128)*AU$13*AV36) -> 0 | AY36: 1.1 | AZ36: =IF(AX36="",0,LOOKUP(AX36,FACTORS!$L$9:$M$128)*AX$13*AY36) -> 0 | BB36: 1.1 | BC36: =IF(BA36="",0,LOOKUP(BA36,FACTORS!$L$9:$M$128)*BA$13*BB36) -> 0 | BE36: 1.1 | BF36: =IF(BD36="",0,LOOKUP(BD36,FACTORS!$L$9:$M$128)*BD$13*BE36) -> 0 | BH36: 1 | BI36: =IF(BG36="",0,LOOKUP(BG36,FACTORS!$L$9:$M$128)*BG$13*BH36) -> 0 | BK36: 1 | BL36: =IF(BJ36="",0,LOOKUP(BJ36,FACTORS!$L$9:$M$128)*BJ$13*BK36) -> 0 | BN36: 1.1 | BO36: =IF(BM36="",0,LOOKUP(BM36,FACTORS!$L$9:$M$128)*BM$13*BN36) -> 0 | BQ36: 1.1 | BR36: =IF(BP36="",0,LOOKUP(BP36,FACTORS!$L$9:$M$128)*BP$13*BQ36) -> 0 | BT36: 1.1 | BU36: =IF(BS36="",0,LOOKUP(BS36,FACTORS!$L$9:$M$128)*BS$13*BT36) -> 0 | BW36: 1.1 | BX36: =IF(BV36="",0,LOOKUP(BV36,FACTORS!$L$9:$M$128)*BV$13*BW36) -> 0 | BZ36: 1.1 | CA36: =IF(BY36="",0,LOOKUP(BY36,FACTORS!$L$9:$M$128)*BY$13*BZ36) -> 0 | CB36: 1 | CC36: 1 | CD36: =IF(CB36="",0,LOOKUP(CB36,FACTORS!$L$9:$M$128)*CB$13*CC36) -> 180 | CF36: 1.1 | CG36: =IF(CE36="",0,LOOKUP(CE36,FACTORS!$L$9:$M$128)*CE$13*CF36) -> 0 | CI36: 1.1 | CJ36: =IF(CH36="",0,LOOKUP(CH36,FACTORS!$L$9:$M$128)*CH$13*CI36) -> 0 | CK36: 6 | CL36: 1 | CM36: =IF(CK36="",0,LOOKUP(CK36,FACTORS!$L$9:$M$128)*CK$13*CL36) -> 149.5 | CO36: 1.1 | CP36: =IF(CN36="",0,LOOKUP(CN36,FACTORS!$L$9:$M$128)*CN$13*CO36) -> 0 | CR36: 1.1 | CS36: =IF(CQ36="",0,LOOKUP(CQ36,FACTORS!$L$9:$M$128)*CQ$13*CR36) -> 0 | CU36: 1.1 | CV36: =IF(CT36="",0,LOOKUP(CT36,FACTORS!$L$9:$M$128)*CT$13*CU36) -> 0 | CX36: 1.1 | CY36: =IF(CW36="",0,LOOKUP(CW36,FACTORS!$L$9:$M$128)*CW$13*CX36) -> 0 | DA36: 1.1 | DB36: =IF(CZ36="",0,LOOKUP(CZ36,FACTORS!$L$9:$M$128)*CZ$13*DA36) -> 0 | DD36: 1.1 | DE36: =IF(DC36="",0,LOOKUP(DC36,FACTORS!$L$9:$M$128)*DC$13*DD36) -> 0 | DG36: 1.1 | DH36: =IF(DF36="",0,LOOKUP(DF36,FACTORS!$L$9:$M$128)*DF$13*DG36) -> 0 | DJ36: 1.1 | DK36: =IF(DI36="",0,LOOKUP(DI36,FACTORS!$L$9:$M$128)*DI$13*DJ36) -> 0 | DL36: 4 | DM36: 1 | DN36: =IF(DL36="",0,LOOKUP(DL36,FACTORS!$L$9:$M$128)*DL$13*DM36) -> 210.6 | DP36: 1.1 | DQ36: =IF(DO36="",0,LOOKUP(DO36,FACTORS!$L$9:$M$128)*DO$13*DP36) -> 0 | DS36: 1.1 | DT36: =IF(DR36="",0,LOOKUP(DR36,FACTORS!$L$9:$M$128)*DR$13*DS36) -> 0 | DV36: 1.1 | DW36: =IF(DU36="",0,LOOKUP(DU36,FACTORS!$L$9:$M$128)*DU$13*DV36) -> 0 | DY36: 1.1 | DZ36: =IF(DX36="",0,LOOKUP(DX36,FACTORS!$L$9:$M$128)*DX$13*DY36) -> 0 | EB36: 1 | EC36: =IF(EA36="",0,LOOKUP(EA36,FACTORS!$L$9:$M$128)*EA$13*EB36) -> 0 | EE36: 1 | EF36: =IF(ED36="",0,LOOKUP(ED36,FACTORS!$L$9:$M$128)*ED$13*EE36) -> 0 | EH36: 1 | EI36: =IF(EG36="",0,LOOKUP(EG36,FACTORS!$L$9:$M$128)*EG$13*EH36) -> 0 | EK36: 1 | EL36: =IF(EJ36="",0,LOOKUP(EJ36,FACTORS!$L$9:$M$128)*EJ$13*EK36) -> 0 | EN36: 1 | EO36: =IF(EM36="",0,LOOKUP(EM36,FACTORS!$L$9:$M$128)*EM$13*EN36) -> 0 | EQ36: 1 | ER36: =IF(EP36="",0,LOOKUP(EP36,FACTORS!$L$9:$M$128)*EP$13*EQ36) -> 0 | ET36: 1 | EU36: =IF(ES36="",0,LOOKUP(ES36,FACTORS!$L$9:$M$128)*ES$13*ET36) -> 0 | EW36: 1 | EX36: =IF(EV36="",0,LOOKUP(EV36,FACTORS!$L$9:$M$128)*EV$13*EW36) -> 0 | EZ36: 1 | FA36: =IF(EY36="",0,LOOKUP(EY36,FACTORS!$L$9:$M$128)*EY$13*EZ36) -> 0 | FC36: 1 | FD36: =IF(FB36="",0,LOOKUP(FB36,FACTORS!$L$9:$M$128)*FB$13*FC36) -> 0 | FF36: 1 | FG36: =IF(FE36="",0,LOOKUP(FE36,FACTORS!$L$9:$M$128)*FE$13*FF36) -> 0 | FI36: 1 | FJ36: =IF(FH36="",0,LOOKUP(FH36,FACTORS!$L$9:$M$128)*FH$13*FI36) -> 0 | FL36: 1 | FM36: =IF(FK36="",0,LOOKUP(FK36,FACTORS!$L$9:$M$128)*FK$13*FL36) -> 0
B37: 20 | C37: Marta Pendesini | D37: ITA | F37: 540.1 | G37: 540,1 points | I37: 1.1 | J37: =IF(H37="",0,LOOKUP(H37,FACTORS!$L$9:$M$128)*H$13*I37) -> 0 | L37: 1.1 | M37: =IF(K37="",0,LOOKUP(K37,FACTORS!$L$9:$M$128)*K$13*L37) -> 0 | O37: 1.1 | P37: =IF(N37="",0,LOOKUP(N37,FACTORS!$L$9:$M$128)*N$13*O37) -> 0 | R37: 1.1 | S37: =IF(Q37="",0,LOOKUP(Q37,FACTORS!$L$9:$M$128)*Q$13*R37) -> 0 | U37: 1.1 | V37: =IF(T37="",0,LOOKUP(T37,FACTORS!$L$9:$M$128)*T$13*U37) -> 0 | X37: 1.1 | Y37: =IF(W37="",0,LOOKUP(W37,FACTORS!$L$9:$M$128)*W$13*X37) -> 0 | AA37: 1.1 | AB37: =IF(Z37="",0,LOOKUP(Z37,FACTORS!$L$9:$M$128)*Z$13*AA37) -> 0 | AD37: 1.1 | AE37: =IF(AC37="",0,LOOKUP(AC37,FACTORS!$L$9:$M$128)*AC$13*AD37) -> 0 | AG37: 1.1 | AH37: =IF(AF37="",0,LOOKUP(AF37,FACTORS!$L$9:$M$128)*AF$13*AG37) -> 0 | AJ37: 1.1 | AK37: =IF(AI37="",0,LOOKUP(AI37,FACTORS!$L$9:$M$128)*AI$13*AJ37) -> 0 | AM37: 1.1 | AN37: =IF(AL37="",0,LOOKUP(AL37,FACTORS!$L$9:$M$128)*AL$13*AM37) -> 0 | AP37: 1.1 | AQ37: =IF(AO37="",0,LOOKUP(AO37,FACTORS!$L$9:$M$128)*AO$13*AP37) -> 0 | AS37: 1.1 | AT37: =IF(AR37="",0,LOOKUP(AR37,FACTORS!$L$9:$M$128)*AR$13*AS37) -> 0 | AV37: 1.1 | AW37: =IF(AU37="",0,LOOKUP(AU37,FACTORS!$L$9:$M$128)*AU$13*AV37) -> 0 | AY37: 1.1 | AZ37: =IF(AX37="",0,LOOKUP(AX37,FACTORS!$L$9:$M$128)*AX$13*AY37) -> 0 | BB37: 1.1 | BC37: =IF(BA37="",0,LOOKUP(BA37,FACTORS!$L$9:$M$128)*BA$13*BB37) -> 0 | BE37: 1.1 | BF37: =IF(BD37="",0,LOOKUP(BD37,FACTORS!$L$9:$M$128)*BD$13*BE37) -> 0 | BH37: 1 | BI37: =IF(BG37="",0,LOOKUP(BG37,FACTORS!$L$9:$M$128)*BG$13*BH37) -> 0 | BK37: 1 | BL37: =IF(BJ37="",0,LOOKUP(BJ37,FACTORS!$L$9:$M$128)*BJ$13*BK37) -> 0 | BN37: 1.1 | BO37: =IF(BM37="",0,LOOKUP(BM37,FACTORS!$L$9:$M$128)*BM$13*BN37) -> 0 | BQ37: 1.1 | BR37: =IF(BP37="",0,LOOKUP(BP37,FACTORS!$L$9:$M$128)*BP$13*BQ37) -> 0 | BT37: 1.1 | BU37: =IF(BS37="",0,LOOKUP(BS37,FACTORS!$L$9:$M$128)*BS$13*BT37) -> 0 | BW37: 1.1 | BX37: =IF(BV37="",0,LOOKUP(BV37,FACTORS!$L$9:$M$128)*BV$13*BW37) -> 0 | BZ37: 1.1 | CA37: =IF(BY37="",0,LOOKUP(BY37,FACTORS!$L$9:$M$128)*BY$13*BZ37) -> 0 | CB37: 1 | CC37: 1 | CD37: =IF(CB37="",0,LOOKUP(CB37,FACTORS!$L$9:$M$128)*CB$13*CC37) -> 180 | CF37: 1.1 | CG37: =IF(CE37="",0,LOOKUP(CE37,FACTORS!$L$9:$M$128)*CE$13*CF37) -> 0 | CI37: 1.1 | CJ37: =IF(CH37="",0,LOOKUP(CH37,FACTORS!$L$9:$M$128)*CH$13*CI37) -> 0 | CK37: 6 | CL37: 1 | CM37: =IF(CK37="",0,LOOKUP(CK37,FACTORS!$L$9:$M$128)*CK$13*CL37) -> 149.5 | CO37: 1.1 | CP37: =IF(CN37="",0,LOOKUP(CN37,FACTORS!$L$9:$M$128)*CN$13*CO37) -> 0 | CR37: 1.1 | CS37: =IF(CQ37="",0,LOOKUP(CQ37,FACTORS!$L$9:$M$128)*CQ$13*CR37) -> 0 | CU37: 1.1 | CV37: =IF(CT37="",0,LOOKUP(CT37,FACTORS!$L$9:$M$128)*CT$13*CU37) -> 0 | CX37: 1.1 | CY37: =IF(CW37="",0,LOOKUP(CW37,FACTORS!$L$9:$M$128)*CW$13*CX37) -> 0 | DA37: 1.1 | DB37: =IF(CZ37="",0,LOOKUP(CZ37,FACTORS!$L$9:$M$128)*CZ$13*DA37) -> 0 | DD37: 1.1 | DE37: =IF(DC37="",0,LOOKUP(DC37,FACTORS!$L$9:$M$128)*DC$13*DD37) -> 0 | DG37: 1.1 | DH37: =IF(DF37="",0,LOOKUP(DF37,FACTORS!$L$9:$M$128)*DF$13*DG37) -> 0 | DJ37: 1.1 | DK37: =IF(DI37="",0,LOOKUP(DI37,FACTORS!$L$9:$M$128)*DI$13*DJ37) -> 0 | DL37: 4 | DM37: 1 | DN37: =IF(DL37="",0,LOOKUP(DL37,FACTORS!$L$9:$M$128)*DL$13*DM37) -> 210.6 | DP37: 1.1 | DQ37: =IF(DO37="",0,LOOKUP(DO37,FACTORS!$L$9:$M$128)*DO$13*DP37) -> 0 | DS37: 1.1 | DT37: =IF(DR37="",0,LOOKUP(DR37,FACTORS!$L$9:$M$128)*DR$13*DS37) -> 0 | DV37: 1.1 | DW37: =IF(DU37="",0,LOOKUP(DU37,FACTORS!$L$9:$M$128)*DU$13*DV37) -> 0 | DY37: 1.1 | DZ37: =IF(DX37="",0,LOOKUP(DX37,FACTORS!$L$9:$M$128)*DX$13*DY37) -> 0 | EB37: 1 | EC37: =IF(EA37="",0,LOOKUP(EA37,FACTORS!$L$9:$M$128)*EA$13*EB37) -> 0 | EE37: 1 | EF37: =IF(ED37="",0,LOOKUP(ED37,FACTORS!$L$9:$M$128)*ED$13*EE37) -> 0 | EH37: 1 | EI37: =IF(EG37="",0,LOOKUP(EG37,FACTORS!$L$9:$M$128)*EG$13*EH37) -> 0 | EK37: 1 | EL37: =IF(EJ37="",0,LOOKUP(EJ37,FACTORS!$L$9:$M$128)*EJ$13*EK37) -> 0 | EN37: 1 | EO37: =IF(EM37="",0,LOOKUP(EM37,FACTORS!$L$9:$M$128)*EM$13*EN37) -> 0 | EQ37: 1 | ER37: =IF(EP37="",0,LOOKUP(EP37,FACTORS!$L$9:$M$128)*EP$13*EQ37) -> 0 | ET37: 1 | EU37: =IF(ES37="",0,LOOKUP(ES37,FACTORS!$L$9:$M$128)*ES$13*ET37) -> 0 | EW37: 1 | EX37: =IF(EV37="",0,LOOKUP(EV37,FACTORS!$L$9:$M$128)*EV$13*EW37) -> 0 | EZ37: 1 | FA37: =IF(EY37="",0,LOOKUP(EY37,FACTORS!$L$9:$M$128)*EY$13*EZ37) -> 0 | FC37: 1 | FD37: =IF(FB37="",0,LOOKUP(FB37,FACTORS!$L$9:$M$128)*FB$13*FC37) -> 0 | FF37: 1 | FG37: =IF(FE37="",0,LOOKUP(FE37,FACTORS!$L$9:$M$128)*FE$13*FF37) -> 0 | FI37: 1 | FJ37: =IF(FH37="",0,LOOKUP(FH37,FACTORS!$L$9:$M$128)*FH$13*FI37) -> 0 | FL37: 1 | FM37: =IF(FK37="",0,LOOKUP(FK37,FACTORS!$L$9:$M$128)*FK$13*FL37) -> 0
B38: 22 | C38: Miguel Graça | D38: GER | F38: 528.88 | G38: 528,88 points | I38: 1.1 | J38: =IF(H38="",0,LOOKUP(H38,FACTORS!$L$9:$M$128)*H$13*I38) -> 0 | L38: 1.1 | M38: =IF(K38="",0,LOOKUP(K38,FACTORS!$L$9:$M$128)*K$13*L38) -> 0 | O38: 1.1 | P38: =IF(N38="",0,LOOKUP(N38,FACTORS!$L$9:$M$128)*N$13*O38) -> 0 | Q38: 5 | R38: 1.1 | S38: =IF(Q38="",0,LOOKUP(Q38,FACTORS!$L$9:$M$128)*Q$13*R38) -> 165.88 | U38: 1.1 | V38: =IF(T38="",0,LOOKUP(T38,FACTORS!$L$9:$M$128)*T$13*U38) -> 0 | X38: 1.1 | Y38: =IF(W38="",0,LOOKUP(W38,FACTORS!$L$9:$M$128)*W$13*X38) -> 0 | AA38: 1.1 | AB38: =IF(Z38="",0,LOOKUP(Z38,FACTORS!$L$9:$M$128)*Z$13*AA38) -> 0 | AD38: 1.1 | AE38: =IF(AC38="",0,LOOKUP(AC38,FACTORS!$L$9:$M$128)*AC$13*AD38) -> 0 | AG38: 1.1 | AH38: =IF(AF38="",0,LOOKUP(AF38,FACTORS!$L$9:$M$128)*AF$13*AG38) -> 0 | AJ38: 1.1 | AK38: =IF(AI38="",0,LOOKUP(AI38,FACTORS!$L$9:$M$128)*AI$13*AJ38) -> 0 | AM38: 1.1 | AN38: =IF(AL38="",0,LOOKUP(AL38,FACTORS!$L$9:$M$128)*AL$13*AM38) -> 0 | AP38: 1.1 | AQ38: =IF(AO38="",0,LOOKUP(AO38,FACTORS!$L$9:$M$128)*AO$13*AP38) -> 0 | AS38: 1.1 | AT38: =IF(AR38="",0,LOOKUP(AR38,FACTORS!$L$9:$M$128)*AR$13*AS38) -> 0 | AU38: 13 | AV38: 1.1 | AW38: =IF(AU38="",0,LOOKUP(AU38,FACTORS!$L$9:$M$128)*AU$13*AV38) -> 178.2 | AX38: 9 | AY38: 1.1 | AZ38: =IF(AX38="",0,LOOKUP(AX38,FACTORS!$L$9:$M$128)*AX$13*AY38) -> 184.8 | BB38: 1.1 | BC38: =IF(BA38="",0,LOOKUP(BA38,FACTORS!$L$9:$M$128)*BA$13*BB38) -> 0 | BE38: 1.1 | BF38: =IF(BD38="",0,LOOKUP(BD38,FACTORS!$L$9:$M$128)*BD$13*BE38) -> 0 | BH38: 1.1 | BI38: =IF(BG38="",0,LOOKUP(BG38,FACTORS!$L$9:$M$128)*BG$13*BH38) -> 0 | BK38: 1.1 | BL38: =IF(BJ38="",0,LOOKUP(BJ38,FACTORS!$L$9:$M$128)*BJ$13*BK38) -> 0 | BN38: 1.1 | BO38: =IF(BM38="",0,LOOKUP(BM38,FACTORS!$L$9:$M$128)*BM$13*BN38) -> 0 | BQ38: 1.1 | BR38: =IF(BP38="",0,LOOKUP(BP38,FACTORS!$L$9:$M$128)*BP$13*BQ38) -> 0 | BT38: 1.1 | BU38: =IF(BS38="",0,LOOKUP(BS38,FACTORS!$L$9:$M$128)*BS$13*BT38) -> 0 | BW38: 1.1 | BX38: =IF(BV38="",0,LOOKUP(BV38,FACTORS!$L$9:$M$128)*BV$13*BW38) -> 0 | BZ38: 1.1 | CA38: =IF(BY38="",0,LOOKUP(BY38,FACTORS!$L$9:$M$128)*BY$13*BZ38) -> 0 | CC38: 1.1 | CD38: =IF(CB38="",0,LOOKUP(CB38,FACTORS!$L$9:$M$128)*CB$13*CC38) -> 0 | CF38: 1.1 | CG38: =IF(CE38="",0,LOOKUP(CE38,FACTORS!$L$9:$M$128)*CE$13*CF38) -> 0 | CI38: 1.1 | CJ38: =IF(CH38="",0,LOOKUP(CH38,FACTORS!$L$9:$M$128)*CH$13*CI38) -> 0 | CL38: 1.1 | CM38: =IF(CK38="",0,LOOKUP(CK38,FACTORS!$L$9:$M$128)*CK$13*CL38) -> 0 | CO38: 1.1 | CP38: =IF(CN38="",0,LOOKUP(CN38,FACTORS!$L$9:$M$128)*CN$13*CO38) -> 0 | CR38: 1.1 | CS38: =IF(CQ38="",0,LOOKUP(CQ38,FACTORS!$L$9:$M$128)*CQ$13*CR38) -> 0 | CU38: 1.1 | CV38: =IF(CT38="",0,LOOKUP(CT38,FACTORS!$L$9:$M$128)*CT$13*CU38) -> 0 | CX38: 1.1 | CY38: =IF(CW38="",0,LOOKUP(CW38,FACTORS!$L$9:$M$128)*CW$13*CX38) -> 0 | DA38: 1.1 | DB38: =IF(CZ38="",0,LOOKUP(CZ38,FACTORS!$L$9:$M$128)*CZ$13*DA38) -> 0 | DD38: 1.1 | DE38: =IF(DC38="",0,LOOKUP(DC38,FACTORS!$L$9:$M$128)*DC$13*DD38) -> 0 | DG38: 1.1 | DH38: =IF(DF38="",0,LOOKUP(DF38,FACTORS!$L$9:$M$128)*DF$13*DG38) -> 0 | DJ38: 1.1 | DK38: =IF(DI38="",0,LOOKUP(DI38,FACTORS!$L$9:$M$128)*DI$13*DJ38) -> 0 | DM38: 1 | DN38: =IF(DL38="",0,LOOKUP(DL38,FACTORS!$L$9:$M$128)*DL$13*DM38) -> 0 | DP38: 1.1 | DQ38: =IF(DO38="",0,LOOKUP(DO38,FACTORS!$L$9:$M$128)*DO$13*DP38) -> 0 | DS38: 1.1 | DT38: =IF(DR38="",0,LOOKUP(DR38,FACTORS!$L$9:$M$128)*DR$13*DS38) -> 0 | DV38: 1.1 | DW38: =IF(DU38="",0,LOOKUP(DU38,FACTORS!$L$9:$M$128)*DU$13*DV38) -> 0 | DY38: 1.1 | DZ38: =IF(DX38="",0,LOOKUP(DX38,FACTORS!$L$9:$M$128)*DX$13*DY38) -> 0 | EB38: 1 | EC38: =IF(EA38="",0,LOOKUP(EA38,FACTORS!$L$9:$M$128)*EA$13*EB38) -> 0 | EE38: 1 | EF38: =IF(ED38="",0,LOOKUP(ED38,FACTORS!$L$9:$M$128)*ED$13*EE38) -> 0 | EH38: 1 | EI38: =IF(EG38="",0,LOOKUP(EG38,FACTORS!$L$9:$M$128)*EG$13*EH38) -> 0 | EK38: 1 | EL38: =IF(EJ38="",0,LOOKUP(EJ38,FACTORS!$L$9:$M$128)*EJ$13*EK38) -> 0 | EN38: 1 | EO38: =IF(EM38="",0,LOOKUP(EM38,FACTORS!$L$9:$M$128)*EM$13*EN38) -> 0 | EQ38: 1 | ER38: =IF(EP38="",0,LOOKUP(EP38,FACTORS!$L$9:$M$128)*EP$13*EQ38) -> 0 | ET38: 1 | EU38: =IF(ES38="",0,LOOKUP(ES38,FACTORS!$L$9:$M$128)*ES$13*ET38) -> 0 | EW38: 1 | EX38: =IF(EV38="",0,LOOKUP(EV38,FACTORS!$L$9:$M$128)*EV$13*EW38) -> 0 | EZ38: 1 | FA38: =IF(EY38="",0,LOOKUP(EY38,FACTORS!$L$9:$M$128)*EY$13*EZ38) -> 0 | FC38: 1 | FD38: =IF(FB38="",0,LOOKUP(FB38,FACTORS!$L$9:$M$128)*FB$13*FC38) -> 0 | FF38: 1 | FG38: =IF(FE38="",0,LOOKUP(FE38,FACTORS!$L$9:$M$128)*FE$13*FF38) -> 0 | FI38: 1 | FJ38: =IF(FH38="",0,LOOKUP(FH38,FACTORS!$L$9:$M$128)*FH$13*FI38) -> 0 | FL38: 1 | FM38: =IF(FK38="",0,LOOKUP(FK38,FACTORS!$L$9:$M$128)*FK$13*FL38) -> 0
B39: 22 | C39: Teresa Inacio | D39: GER | F39: 528.88 | G39: 528,88 points | I39: 1.1 | J39: =IF(H39="",0,LOOKUP(H39,FACTORS!$L$9:$M$128)*H$13*I39) -> 0 | L39: 1.1 | M39: =IF(K39="",0,LOOKUP(K39,FACTORS!$L$9:$M$128)*K$13*L39) -> 0 | O39: 1.1 | P39: =IF(N39="",0,LOOKUP(N39,FACTORS!$L$9:$M$128)*N$13*O39) -> 0 | Q39: 5 | R39: 1.1 | S39: =IF(Q39="",0,LOOKUP(Q39,FACTORS!$L$9:$M$128)*Q$13*R39) -> 165.88 | U39: 1.1 | V39: =IF(T39="",0,LOOKUP(T39,FACTORS!$L$9:$M$128)*T$13*U39) -> 0 | X39: 1.1 | Y39: =IF(W39="",0,LOOKUP(W39,FACTORS!$L$9:$M$128)*W$13*X39) -> 0 | AA39: 1.1 | AB39: =IF(Z39="",0,LOOKUP(Z39,FACTORS!$L$9:$M$128)*Z$13*AA39) -> 0 | AD39: 1.1 | AE39: =IF(AC39="",0,LOOKUP(AC39,FACTORS!$L$9:$M$128)*AC$13*AD39) -> 0 | AG39: 1.1 | AH39: =IF(AF39="",0,LOOKUP(AF39,FACTORS!$L$9:$M$128)*AF$13*AG39) -> 0 | AJ39: 1.1 | AK39: =IF(AI39="",0,LOOKUP(AI39,FACTORS!$L$9:$M$128)*AI$13*AJ39) -> 0 | AM39: 1.1 | AN39: =IF(AL39="",0,LOOKUP(AL39,FACTORS!$L$9:$M$128)*AL$13*AM39) -> 0 | AP39: 1.1 | AQ39: =IF(AO39="",0,LOOKUP(AO39,FACTORS!$L$9:$M$128)*AO$13*AP39) -> 0 | AS39: 1.1 | AT39: =IF(AR39="",0,LOOKUP(AR39,FACTORS!$L$9:$M$128)*AR$13*AS39) -> 0 | AU39: 13 | AV39: 1.1 | AW39: =IF(AU39="",0,LOOKUP(AU39,FACTORS!$L$9:$M$128)*AU$13*AV39) -> 178.2 | AX39: 9 | AY39: 1.1 | AZ39: =IF(AX39="",0,LOOKUP(AX39,FACTORS!$L$9:$M$128)*AX$13*AY39) -> 184.8 | BB39: 1.1 | BC39: =IF(BA39="",0,LOOKUP(BA39,FACTORS!$L$9:$M$128)*BA$13*BB39) -> 0 | BE39: 1.1 | BF39: =IF(BD39="",0,LOOKUP(BD39,FACTORS!$L$9:$M$128)*BD$13*BE39) -> 0 | BH39: 1.1 | BI39: =IF(BG39="",0,LOOKUP(BG39,FACTORS!$L$9:$M$128)*BG$13*BH39) -> 0 | BK39: 1.1 | BL39: =IF(BJ39="",0,LOOKUP(BJ39,FACTORS!$L$9:$M$128)*BJ$13*BK39) -> 0 | BN39: 1.1 | BO39: =IF(BM39="",0,LOOKUP(BM39,FACTORS!$L$9:$M$128)*BM$13*BN39) -> 0 | BQ39: 1.1 | BR39: =IF(BP39="",0,LOOKUP(BP39,FACTORS!$L$9:$M$128)*BP$13*BQ39) -> 0 | BT39: 1.1 | BU39: =IF(BS39="",0,LOOKUP(BS39,FACTORS!$L$9:$M$128)*BS$13*BT39) -> 0 | BW39: 1.1 | BX39: =IF(BV39="",0,LOOKUP(BV39,FACTORS!$L$9:$M$128)*BV$13*BW39) -> 0 | BZ39: 1.1 | CA39: =IF(BY39="",0,LOOKUP(BY39,FACTORS!$L$9:$M$128)*BY$13*BZ39) -> 0 | CC39: 1.1 | CD39: =IF(CB39="",0,LOOKUP(CB39,FACTORS!$L$9:$M$128)*CB$13*CC39) -> 0 | CF39: 1.1 | CG39: =IF(CE39="",0,LOOKUP(CE39,FACTORS!$L$9:$M$128)*CE$13*CF39) -> 0 | CI39: 1.1 | CJ39: =IF(CH39="",0,LOOKUP(CH39,FACTORS!$L$9:$M$128)*CH$13*CI39) -> 0 | CL39: 1.1 | CM39: =IF(CK39="",0,LOOKUP(CK39,FACTORS!$L$9:$M$128)*CK$13*CL39) -> 0 | CO39: 1.1 | CP39: =IF(CN39="",0,LOOKUP(CN39,FACTORS!$L$9:$M$128)*CN$13*CO39) -> 0 | CR39: 1.1 | CS39: =IF(CQ39="",0,LOOKUP(CQ39,FACTORS!$L$9:$M$128)*CQ$13*CR39) -> 0 | CU39: 1.1 | CV39: =IF(CT39="",0,LOOKUP(CT39,FACTORS!$L$9:$M$128)*CT$13*CU39) -> 0 | CX39: 1.1 | CY39: =IF(CW39="",0,LOOKUP(CW39,FACTORS!$L$9:$M$128)*CW$13*CX39) -> 0 | DA39: 1.1 | DB39: =IF(CZ39="",0,LOOKUP(CZ39,FACTORS!$L$9:$M$128)*CZ$13*DA39) -> 0 | DD39: 1.1 | DE39: =IF(DC39="",0,LOOKUP(DC39,FACTORS!$L$9:$M$128)*DC$13*DD39) -> 0 | DG39: 1.1 | DH39: =IF(DF39="",0,LOOKUP(DF39,FACTORS!$L$9:$M$128)*DF$13*DG39) -> 0 | DJ39: 1.1 | DK39: =IF(DI39="",0,LOOKUP(DI39,FACTORS!$L$9:$M$128)*DI$13*DJ39) -> 0 | DM39: 1 | DN39: =IF(DL39="",0,LOOKUP(DL39,FACTORS!$L$9:$M$128)*DL$13*DM39) -> 0 | DP39: 1.1 | DQ39: =IF(DO39="",0,LOOKUP(DO39,FACTORS!$L$9:$M$128)*DO$13*DP39) -> 0 | DS39: 1.1 | DT39: =IF(DR39="",0,LOOKUP(DR39,FACTORS!$L$9:$M$128)*DR$13*DS39) -> 0 | DV39: 1.1 | DW39: =IF(DU39="",0,LOOKUP(DU39,FACTORS!$L$9:$M$128)*DU$13*DV39) -> 0 | DY39: 1.1 | DZ39: =IF(DX39="",0,LOOKUP(DX39,FACTORS!$L$9:$M$128)*DX$13*DY39) -> 0 | EB39: 1 | EC39: =IF(EA39="",0,LOOKUP(EA39,FACTORS!$L$9:$M$128)*EA$13*EB39) -> 0 | EE39: 1 | EF39: =IF(ED39="",0,LOOKUP(ED39,FACTORS!$L$9:$M$128)*ED$13*EE39) -> 0 | EH39: 1 | EI39: =IF(EG39="",0,LOOKUP(EG39,FACTORS!$L$9:$M$128)*EG$13*EH39) -> 0 | EK39: 1 | EL39: =IF(EJ39="",0,LOOKUP(EJ39,FACTORS!$L$9:$M$128)*EJ$13*EK39) -> 0 | EN39: 1 | EO39: =IF(EM39="",0,LOOKUP(EM39,FACTORS!$L$9:$M$128)*EM$13*EN39) -> 0 | EQ39: 1 | ER39: =IF(EP39="",0,LOOKUP(EP39,FACTORS!$L$9:$M$128)*EP$13*EQ39) -> 0 | ET39: 1 | EU39: =IF(ES39="",0,LOOKUP(ES39,FACTORS!$L$9:$M$128)*ES$13*ET39) -> 0 | EW39: 1 | EX39: =IF(EV39="",0,LOOKUP(EV39,FACTORS!$L$9:$M$128)*EV$13*EW39) -> 0 | EZ39: 1 | FA39: =IF(EY39="",0,LOOKUP(EY39,FACTORS!$L$9:$M$128)*EY$13*EZ39) -> 0 | FC39: 1 | FD39: =IF(FB39="",0,LOOKUP(FB39,FACTORS!$L$9:$M$128)*FB$13*FC39) -> 0 | FF39: 1 | FG39: =IF(FE39="",0,LOOKUP(FE39,FACTORS!$L$9:$M$128)*FE$13*FF39) -> 0 | FI39: 1 | FJ39: =IF(FH39="",0,LOOKUP(FH39,FACTORS!$L$9:$M$128)*FH$13*FI39) -> 0 | FL39: 1 | FM39: =IF(FK39="",0,LOOKUP(FK39,FACTORS!$L$9:$M$128)*FK$13*FL39) -> 0
B40: 24 | C40: Martin Bebb | D40: USA | F40: 526.6 | G40: 526,6 points | I40: 1 | J40: =IF(H40="",0,LOOKUP(H40,FACTORS!$L$9:$M$128)*H$13*I40) -> 0 | L40: 1.1 | M40: =IF(K40="",0,LOOKUP(K40,FACTORS!$L$9:$M$128)*K$13*L40) -> 0 | O40: 1 | P40: =IF(N40="",0,LOOKUP(N40,FACTORS!$L$9:$M$128)*N$13*O40) -> 0 | R40: 1.1 | S40: =IF(Q40="",0,LOOKUP(Q40,FACTORS!$L$9:$M$128)*Q$13*R40) -> 0 | U40: 1.1 | V40: =IF(T40="",0,LOOKUP(T40,FACTORS!$L$9:$M$128)*T$13*U40) -> 0 | X40: 1.1 | Y40: =IF(W40="",0,LOOKUP(W40,FACTORS!$L$9:$M$128)*W$13*X40) -> 0 | AA40: 1.1 | AB40: =IF(Z40="",0,LOOKUP(Z40,FACTORS!$L$9:$M$128)*Z$13*AA40) -> 0 | AD40: 1.1 | AE40: =IF(AC40="",0,LOOKUP(AC40,FACTORS!$L$9:$M$128)*AC$13*AD40) -> 0 | AG40: 1.1 | AH40: =IF(AF40="",0,LOOKUP(AF40,FACTORS!$L$9:$M$128)*AF$13*AG40) -> 0 | AJ40: 1.1 | AK40: =IF(AI40="",0,LOOKUP(AI40,FACTORS!$L$9:$M$128)*AI$13*AJ40) -> 0 | AM40: 1.1 | AN40: =IF(AL40="",0,LOOKUP(AL40,FACTORS!$L$9:$M$128)*AL$13*AM40) -> 0 | AO40: 3 | AP40: 1 | AQ40: =IF(AO40="",0,LOOKUP(AO40,FACTORS!$L$9:$M$128)*AO$13*AP40) -> 153.4 | AR40: 32 | AS40: 1 | AT40: =IF(AR40="",0,LOOKUP(AR40,FACTORS!$L$9:$M$128)*AR$13*AS40) -> 115.7 | AV40: 1.1 | AW40: =IF(AU40="",0,LOOKUP(AU40,FACTORS!$L$9:$M$128)*AU$13*AV40) -> 0 | AY40: 1.1 | AZ40: =IF(AX40="",0,LOOKUP(AX40,FACTORS!$L$9:$M$128)*AX$13*AY40) -> 0 | BB40: 1.1 | BC40: =IF(BA40="",0,LOOKUP(BA40,FACTORS!$L$9:$M$128)*BA$13*BB40) -> 0 | BE40: 1 | BF40: =IF(BD40="",0,LOOKUP(BD40,FACTORS!$L$9:$M$128)*BD$13*BE40) -> 0 | BH40: 1.1 | BI40: =IF(BG40="",0,LOOKUP(BG40,FACTORS!$L$9:$M$128)*BG$13*BH40) -> 0 | BK40: 1.1 | BL40: =IF(BJ40="",0,LOOKUP(BJ40,FACTORS!$L$9:$M$128)*BJ$13*BK40) -> 0 | BN40: 1 | BO40: =IF(BM40="",0,LOOKUP(BM40,FACTORS!$L$9:$M$128)*BM$13*BN40) -> 0 | BQ40: 1.1 | BR40: =IF(BP40="",0,LOOKUP(BP40,FACTORS!$L$9:$M$128)*BP$13*BQ40) -> 0 | BT40: 1.1 | BU40: =IF(BS40="",0,LOOKUP(BS40,FACTORS!$L$9:$M$128)*BS$13*BT40) -> 0 | BW40: 1.1 | BX40: =IF(BV40="",0,LOOKUP(BV40,FACTORS!$L$9:$M$128)*BV$13*BW40) -> 0 | BZ40: 1.1 | CA40: =IF(BY40="",0,LOOKUP(BY40,FACTORS!$L$9:$M$128)*BY$13*BZ40) -> 0 | CC40: 1.1 | CD40: =IF(CB40="",0,LOOKUP(CB40,FACTORS!$L$9:$M$128)*CB$13*CC40) -> 0 | CF40: 1.1 | CG40: =IF(CE40="",0,LOOKUP(CE40,FACTORS!$L$9:$M$128)*CE$13*CF40) -> 0 | CI40: 1.1 | CJ40: =IF(CH40="",0,LOOKUP(CH40,FACTORS!$L$9:$M$128)*CH$13*CI40) -> 0 | CL40: 1.1 | CM40: =IF(CK40="",0,LOOKUP(CK40,FACTORS!$L$9:$M$128)*CK$13*CL40) -> 0 | CO40: 1.1 | CP40: =IF(CN40="",0,LOOKUP(CN40,FACTORS!$L$9:$M$128)*CN$13*CO40) -> 0 | CR40: 1 | CS40: =IF(CQ40="",0,LOOKUP(CQ40,FACTORS!$L$9:$M$128)*CQ$13*CR40) -> 0 | CU40: 1.1 | CV40: =IF(CT40="",0,LOOKUP(CT40,FACTORS!$L$9:$M$128)*CT$13*CU40) -> 0 | CX40: 1.1 | CY40: =IF(CW40="",0,LOOKUP(CW40,FACTORS!$L$9:$M$128)*CW$13*CX40) -> 0 | DA40: 1.1 | DB40: =IF(CZ40="",0,LOOKUP(CZ40,FACTORS!$L$9:$M$128)*CZ$13*DA40) -> 0 | DD40: 1.1 | DE40: =IF(DC40="",0,LOOKUP(DC40,FACTORS!$L$9:$M$128)*DC$13*DD40) -> 0 | DG40: 1.1 | DH40: =IF(DF40="",0,LOOKUP(DF40,FACTORS!$L$9:$M$128)*DF$13*DG40) -> 0 | DI40: 6 | DJ40: 1 | DK40: =IF(DI40="",0,LOOKUP(DI40,FACTORS!$L$9:$M$128)*DI$13*DJ40) -> 149.5 | DM40: 1 | DN40: =IF(DL40="",0,LOOKUP(DL40,FACTORS!$L$9:$M$128)*DL$13*DM40) -> 0 | DP40: 1.1 | DQ40: =IF(DO40="",0,LOOKUP(DO40,FACTORS!$L$9:$M$128)*DO$13*DP40) -> 0 | DR40: 49 | DS40: 1 | DT40: =IF(DR40="",0,LOOKUP(DR40,FACTORS!$L$9:$M$128)*DR$13*DS40) -> 108 | DV40: 1.1 | DW40: =IF(DU40="",0,LOOKUP(DU40,FACTORS!$L$9:$M$128)*DU$13*DV40) -> 0 | DY40: 1.1 | DZ40: =IF(DX40="",0,LOOKUP(DX40,FACTORS!$L$9:$M$128)*DX$13*DY40) -> 0 | EB40: 1 | EC40: =IF(EA40="",0,LOOKUP(EA40,FACTORS!$L$9:$M$128)*EA$13*EB40) -> 0 | EE40: 1 | EF40: =IF(ED40="",0,LOOKUP(ED40,FACTORS!$L$9:$M$128)*ED$13*EE40) -> 0 | EH40: 1 | EI40: =IF(EG40="",0,LOOKUP(EG40,FACTORS!$L$9:$M$128)*EG$13*EH40) -> 0 | EK40: 1 | EL40: =IF(EJ40="",0,LOOKUP(EJ40,FACTORS!$L$9:$M$128)*EJ$13*EK40) -> 0 | EN40: 1 | EO40: =IF(EM40="",0,LOOKUP(EM40,FACTORS!$L$9:$M$128)*EM$13*EN40) -> 0 | EQ40: 1 | ER40: =IF(EP40="",0,LOOKUP(EP40,FACTORS!$L$9:$M$128)*EP$13*EQ40) -> 0 | ET40: 1 | EU40: =IF(ES40="",0,LOOKUP(ES40,FACTORS!$L$9:$M$128)*ES$13*ET40) -> 0 | EW40: 1 | EX40: =IF(EV40="",0,LOOKUP(EV40,FACTORS!$L$9:$M$128)*EV$13*EW40) -> 0 | EZ40: 1 | FA40: =IF(EY40="",0,LOOKUP(EY40,FACTORS!$L$9:$M$128)*EY$13*EZ40) -> 0 | FC40: 1 | FD40: =IF(FB40="",0,LOOKUP(FB40,FACTORS!$L$9:$M$128)*FB$13*FC40) -> 0 | FF40: 1 | FG40: =IF(FE40="",0,LOOKUP(FE40,FACTORS!$L$9:$M$128)*FE$13*FF40) -> 0 | FI40: 1 | FJ40: =IF(FH40="",0,LOOKUP(FH40,FACTORS!$L$9:$M$128)*FH$13*FI40) -> 0 | FL40: 1 | FM40: =IF(FK40="",0,LOOKUP(FK40,FACTORS!$L$9:$M$128)*FK$13*FL40) -> 0
B41: 25 | C41: Tomasz Slodecki | D41: POL | F41: 525.98 | G41: 525,98 points | I41: 1.1 | J41: =IF(H41="",0,LOOKUP(H41,FACTORS!$L$9:$M$128)*H$13*I41) -> 0 | L41: 1.1 | M41: =IF(K41="",0,LOOKUP(K41,FACTORS!$L$9:$M$128)*K$13*L41) -> 0 | O41: 1.1 | P41: =IF(N41="",0,LOOKUP(N41,FACTORS!$L$9:$M$128)*N$13*O41) -> 0 | R41: 1.1 | S41: =IF(Q41="",0,LOOKUP(Q41,FACTORS!$L$9:$M$128)*Q$13*R41) -> 0 | U41: 1.1 | V41: =IF(T41="",0,LOOKUP(T41,FACTORS!$L$9:$M$128)*T$13*U41) -> 0 | X41: 1.1 | Y41: =IF(W41="",0,LOOKUP(W41,FACTORS!$L$9:$M$128)*W$13*X41) -> 0 | AA41: 1.1 | AB41: =IF(Z41="",0,LOOKUP(Z41,FACTORS!$L$9:$M$128)*Z$13*AA41) -> 0 | AD41: 1.1 | AE41: =IF(AC41="",0,LOOKUP(AC41,FACTORS!$L$9:$M$128)*AC$13*AD41) -> 0 | AG41: 1.1 | AH41: =IF(AF41="",0,LOOKUP(AF41,FACTORS!$L$9:$M$128)*AF$13*AG41) -> 0 | AJ41: 1.1 | AK41: =IF(AI41="",0,LOOKUP(AI41,FACTORS!$L$9:$M$128)*AI$13*AJ41) -> 0 | AM41: 1.1 | AN41: =IF(AL41="",0,LOOKUP(AL41,FACTORS!$L$9:$M$128)*AL$13*AM41) -> 0 | AP41: 1.1 | AQ41: =IF(AO41="",0,LOOKUP(AO41,FACTORS!$L$9:$M$128)*AO$13*AP41) -> 0 | AS41: 1.1 | AT41: =IF(AR41="",0,LOOKUP(AR41,FACTORS!$L$9:$M$128)*AR$13*AS41) -> 0 | AV41: 1.1 | AW41: =IF(AU41="",0,LOOKUP(AU41,FACTORS!$L$9:$M$128)*AU$13*AV41) -> 0 | AY41: 1.1 | AZ41: =IF(AX41="",0,LOOKUP(AX41,FACTORS!$L$9:$M$128)*AX$13*AY41) -> 0 | BB41: 1.1 | BC41: =IF(BA41="",0,LOOKUP(BA41,FACTORS!$L$9:$M$128)*BA$13*BB41) -> 0 | BE41: 1.1 | BF41: =IF(BD41="",0,LOOKUP(BD41,FACTORS!$L$9:$M$128)*BD$13*BE41) -> 0 | BH41: 1.1 | BI41: =IF(BG41="",0,LOOKUP(BG41,FACTORS!$L$9:$M$128)*BG$13*BH41) -> 0 | BK41: 1.1 | BL41: =IF(BJ41="",0,LOOKUP(BJ41,FACTORS!$L$9:$M$128)*BJ$13*BK41) -> 0 | BN41: 1.1 | BO41: =IF(BM41="",0,LOOKUP(BM41,FACTORS!$L$9:$M$128)*BM$13*BN41) -> 0 | BQ41: 1.1 | BR41: =IF(BP41="",0,LOOKUP(BP41,FACTORS!$L$9:$M$128)*BP$13*BQ41) -> 0 | BT41: 1.1 | BU41: =IF(BS41="",0,LOOKUP(BS41,FACTORS!$L$9:$M$128)*BS$13*BT41) -> 0 | BW41: 1.1 | BX41: =IF(BV41="",0,LOOKUP(BV41,FACTORS!$L$9:$M$128)*BV$13*BW41) -> 0 | BZ41: 1.1 | CA41: =IF(BY41="",0,LOOKUP(BY41,FACTORS!$L$9:$M$128)*BY$13*BZ41) -> 0 | CC41: 1.1 | CD41: =IF(CB41="",0,LOOKUP(CB41,FACTORS!$L$9:$M$128)*CB$13*CC41) -> 0 | CE41: 7 | CF41: 1 | CG41: =IF(CE41="",0,LOOKUP(CE41,FACTORS!$L$9:$M$128)*CE$13*CF41) -> 171 | CI41: 1.1 | CJ41: =IF(CH41="",0,LOOKUP(CH41,FACTORS!$L$9:$M$128)*CH$13*CI41) -> 0 | CK41: 15 | CL41: 1.1 | CM41: =IF(CK41="",0,LOOKUP(CK41,FACTORS!$L$9:$M$128)*CK$13*CL41) -> 151.58 | CO41: 1.1 | CP41: =IF(CN41="",0,LOOKUP(CN41,FACTORS!$L$9:$M$128)*CN$13*CO41) -> 0 | CR41: 1.1 | CS41: =IF(CQ41="",0,LOOKUP(CQ41,FACTORS!$L$9:$M$128)*CQ$13*CR41) -> 0 | CU41: 1.1 | CV41: =IF(CT41="",0,LOOKUP(CT41,FACTORS!$L$9:$M$128)*CT$13*CU41) -> 0 | CX41: 1.1 | CY41: =IF(CW41="",0,LOOKUP(CW41,FACTORS!$L$9:$M$128)*CW$13*CX41) -> 0 | DA41: 1.1 | DB41: =IF(CZ41="",0,LOOKUP(CZ41,FACTORS!$L$9:$M$128)*CZ$13*DA41) -> 0 | DD41: 1.1 | DE41: =IF(DC41="",0,LOOKUP(DC41,FACTORS!$L$9:$M$128)*DC$13*DD41) -> 0 | DG41: 1.1 | DH41: =IF(DF41="",0,LOOKUP(DF41,FACTORS!$L$9:$M$128)*DF$13*DG41) -> 0 | DJ41: 1.1 | DK41: =IF(DI41="",0,LOOKUP(DI41,FACTORS!$L$9:$M$128)*DI$13*DJ41) -> 0 | DL41: 8 | DM41: 1 | DN41: =IF(DL41="",0,LOOKUP(DL41,FACTORS!$L$9:$M$128)*DL$13*DM41) -> 203.4 | DP41: 1.1 | DQ41: =IF(DO41="",0,LOOKUP(DO41,FACTORS!$L$9:$M$128)*DO$13*DP41) -> 0 | DS41: 1.1 | DT41: =IF(DR41="",0,LOOKUP(DR41,FACTORS!$L$9:$M$128)*DR$13*DS41) -> 0 | DV41: 1 | DW41: =IF(DU41="",0,LOOKUP(DU41,FACTORS!$L$9:$M$128)*DU$13*DV41) -> 0 | DY41: 1.1 | DZ41: =IF(DX41="",0,LOOKUP(DX41,FACTORS!$L$9:$M$128)*DX$13*DY41) -> 0 | EB41: 1 | EC41: =IF(EA41="",0,LOOKUP(EA41,FACTORS!$L$9:$M$128)*EA$13*EB41) -> 0 | EE41: 1 | EF41: =IF(ED41="",0,LOOKUP(ED41,FACTORS!$L$9:$M$128)*ED$13*EE41) -> 0 | EH41: 1 | EI41: =IF(EG41="",0,LOOKUP(EG41,FACTORS!$L$9:$M$128)*EG$13*EH41) -> 0 | EK41: 1 | EL41: =IF(EJ41="",0,LOOKUP(EJ41,FACTORS!$L$9:$M$128)*EJ$13*EK41) -> 0 | EN41: 1 | EO41: =IF(EM41="",0,LOOKUP(EM41,FACTORS!$L$9:$M$128)*EM$13*EN41) -> 0 | EQ41: 1 | ER41: =IF(EP41="",0,LOOKUP(EP41,FACTORS!$L$9:$M$128)*EP$13*EQ41) -> 0 | ET41: 1 | EU41: =IF(ES41="",0,LOOKUP(ES41,FACTORS!$L$9:$M$128)*ES$13*ET41) -> 0 | EW41: 1 | EX41: =IF(EV41="",0,LOOKUP(EV41,FACTORS!$L$9:$M$128)*EV$13*EW41) -> 0 | EZ41: 1 | FA41: =IF(EY41="",0,LOOKUP(EY41,FACTORS!$L$9:$M$128)*EY$13*EZ41) -> 0 | FC41: 1 | FD41: =IF(FB41="",0,LOOKUP(FB41,FACTORS!$L$9:$M$128)*FB$13*FC41) -> 0 | FF41: 1 | FG41: =IF(FE41="",0,LOOKUP(FE41,FACTORS!$L$9:$M$128)*FE$13*FF41) -> 0 | FI41: 1 | FJ41: =IF(FH41="",0,LOOKUP(FH41,FACTORS!$L$9:$M$128)*FH$13*FI41) -> 0 | FL41: 1 | FM41: =IF(FK41="",0,LOOKUP(FK41,FACTORS!$L$9:$M$128)*FK$13*FL41) -> 0
B42: 25 | C42: Zbigniew Rakocy | D42: POL | F42: 525.98 | G42: 525,98 points | I42: 1.1 | J42: =IF(H42="",0,LOOKUP(H42,FACTORS!$L$9:$M$128)*H$13*I42) -> 0 | L42: 1.1 | M42: =IF(K42="",0,LOOKUP(K42,FACTORS!$L$9:$M$128)*K$13*L42) -> 0 | O42: 1.1 | P42: =IF(N42="",0,LOOKUP(N42,FACTORS!$L$9:$M$128)*N$13*O42) -> 0 | R42: 1.1 | S42: =IF(Q42="",0,LOOKUP(Q42,FACTORS!$L$9:$M$128)*Q$13*R42) -> 0 | U42: 1.1 | V42: =IF(T42="",0,LOOKUP(T42,FACTORS!$L$9:$M$128)*T$13*U42) -> 0 | X42: 1.1 | Y42: =IF(W42="",0,LOOKUP(W42,FACTORS!$L$9:$M$128)*W$13*X42) -> 0 | AA42: 1.1 | AB42: =IF(Z42="",0,LOOKUP(Z42,FACTORS!$L$9:$M$128)*Z$13*AA42) -> 0 | AD42: 1.1 | AE42: =IF(AC42="",0,LOOKUP(AC42,FACTORS!$L$9:$M$128)*AC$13*AD42) -> 0 | AG42: 1.1 | AH42: =IF(AF42="",0,LOOKUP(AF42,FACTORS!$L$9:$M$128)*AF$13*AG42) -> 0 | AJ42: 1.1 | AK42: =IF(AI42="",0,LOOKUP(AI42,FACTORS!$L$9:$M$128)*AI$13*AJ42) -> 0 | AM42: 1.1 | AN42: =IF(AL42="",0,LOOKUP(AL42,FACTORS!$L$9:$M$128)*AL$13*AM42) -> 0 | AP42: 1.1 | AQ42: =IF(AO42="",0,LOOKUP(AO42,FACTORS!$L$9:$M$128)*AO$13*AP42) -> 0 | AS42: 1.1 | AT42: =IF(AR42="",0,LOOKUP(AR42,FACTORS!$L$9:$M$128)*AR$13*AS42) -> 0 | AV42: 1.1 | AW42: =IF(AU42="",0,LOOKUP(AU42,FACTORS!$L$9:$M$128)*AU$13*AV42) -> 0 | AY42: 1.1 | AZ42: =IF(AX42="",0,LOOKUP(AX42,FACTORS!$L$9:$M$128)*AX$13*AY42) -> 0 | BB42: 1.1 | BC42: =IF(BA42="",0,LOOKUP(BA42,FACTORS!$L$9:$M$128)*BA$13*BB42) -> 0 | BE42: 1.1 | BF42: =IF(BD42="",0,LOOKUP(BD42,FACTORS!$L$9:$M$128)*BD$13*BE42) -> 0 | BH42: 1.1 | BI42: =IF(BG42="",0,LOOKUP(BG42,FACTORS!$L$9:$M$128)*BG$13*BH42) -> 0 | BK42: 1.1 | BL42: =IF(BJ42="",0,LOOKUP(BJ42,FACTORS!$L$9:$M$128)*BJ$13*BK42) -> 0 | BN42: 1.1 | BO42: =IF(BM42="",0,LOOKUP(BM42,FACTORS!$L$9:$M$128)*BM$13*BN42) -> 0 | BQ42: 1.1 | BR42: =IF(BP42="",0,LOOKUP(BP42,FACTORS!$L$9:$M$128)*BP$13*BQ42) -> 0 | BT42: 1.1 | BU42: =IF(BS42="",0,LOOKUP(BS42,FACTORS!$L$9:$M$128)*BS$13*BT42) -> 0 | BW42: 1.1 | BX42: =IF(BV42="",0,LOOKUP(BV42,FACTORS!$L$9:$M$128)*BV$13*BW42) -> 0 | BZ42: 1.1 | CA42: =IF(BY42="",0,LOOKUP(BY42,FACTORS!$L$9:$M$128)*BY$13*BZ42) -> 0 | CC42: 1.1 | CD42: =IF(CB42="",0,LOOKUP(CB42,FACTORS!$L$9:$M$128)*CB$13*CC42) -> 0 | CE42: 7 | CF42: 1 | CG42: =IF(CE42="",0,LOOKUP(CE42,FACTORS!$L$9:$M$128)*CE$13*CF42) -> 171 | CI42: 1.1 | CJ42: =IF(CH42="",0,LOOKUP(CH42,FACTORS!$L$9:$M$128)*CH$13*CI42) -> 0 | CK42: 15 | CL42: 1.1 | CM42: =IF(CK42="",0,LOOKUP(CK42,FACTORS!$L$9:$M$128)*CK$13*CL42) -> 151.58 | CO42: 1.1 | CP42: =IF(CN42="",0,LOOKUP(CN42,FACTORS!$L$9:$M$128)*CN$13*CO42) -> 0 | CR42: 1.1 | CS42: =IF(CQ42="",0,LOOKUP(CQ42,FACTORS!$L$9:$M$128)*CQ$13*CR42) -> 0 | CU42: 1.1 | CV42: =IF(CT42="",0,LOOKUP(CT42,FACTORS!$L$9:$M$128)*CT$13*CU42) -> 0 | CX42: 1.1 | CY42: =IF(CW42="",0,LOOKUP(CW42,FACTORS!$L$9:$M$128)*CW$13*CX42) -> 0 | DA42: 1.1 | DB42: =IF(CZ42="",0,LOOKUP(CZ42,FACTORS!$L$9:$M$128)*CZ$13*DA42) -> 0 | DD42: 1.1 | DE42: =IF(DC42="",0,LOOKUP(DC42,FACTORS!$L$9:$M$128)*DC$13*DD42) -> 0 | DG42: 1.1 | DH42: =IF(DF42="",0,LOOKUP(DF42,FACTORS!$L$9:$M$128)*DF$13*DG42) -> 0 | DJ42: 1.1 | DK42: =IF(DI42="",0,LOOKUP(DI42,FACTORS!$L$9:$M$128)*DI$13*DJ42) -> 0 | DL42: 8 | DM42: 1 | DN42: =IF(DL42="",0,LOOKUP(DL42,FACTORS!$L$9:$M$128)*DL$13*DM42) -> 203.4 | DP42: 1.1 | DQ42: =IF(DO42="",0,LOOKUP(DO42,FACTORS!$L$9:$M$128)*DO$13*DP42) -> 0 | DS42: 1.1 | DT42: =IF(DR42="",0,LOOKUP(DR42,FACTORS!$L$9:$M$128)*DR$13*DS42) -> 0 | DV42: 1 | DW42: =IF(DU42="",0,LOOKUP(DU42,FACTORS!$L$9:$M$128)*DU$13*DV42) -> 0 | DY42: 1.1 | DZ42: =IF(DX42="",0,LOOKUP(DX42,FACTORS!$L$9:$M$128)*DX$13*DY42) -> 0 | EB42: 1 | EC42: =IF(EA42="",0,LOOKUP(EA42,FACTORS!$L$9:$M$128)*EA$13*EB42) -> 0 | EE42: 1 | EF42: =IF(ED42="",0,LOOKUP(ED42,FACTORS!$L$9:$M$128)*ED$13*EE42) -> 0 | EH42: 1 | EI42: =IF(EG42="",0,LOOKUP(EG42,FACTORS!$L$9:$M$128)*EG$13*EH42) -> 0 | EK42: 1 | EL42: =IF(EJ42="",0,LOOKUP(EJ42,FACTORS!$L$9:$M$128)*EJ$13*EK42) -> 0 | EN42: 1 | EO42: =IF(EM42="",0,LOOKUP(EM42,FACTORS!$L$9:$M$128)*EM$13*EN42) -> 0 | EQ42: 1 | ER42: =IF(EP42="",0,LOOKUP(EP42,FACTORS!$L$9:$M$128)*EP$13*EQ42) -> 0 | ET42: 1 | EU42: =IF(ES42="",0,LOOKUP(ES42,FACTORS!$L$9:$M$128)*ES$13*ET42) -> 0 | EW42: 1 | EX42: =IF(EV42="",0,LOOKUP(EV42,FACTORS!$L$9:$M$128)*EV$13*EW42) -> 0 | EZ42: 1 | FA42: =IF(EY42="",0,LOOKUP(EY42,FACTORS!$L$9:$M$128)*EY$13*EZ42) -> 0 | FC42: 1 | FD42: =IF(FB42="",0,LOOKUP(FB42,FACTORS!$L$9:$M$128)*FB$13*FC42) -> 0 | FF42: 1 | FG42: =IF(FE42="",0,LOOKUP(FE42,FACTORS!$L$9:$M$128)*FE$13*FF42) -> 0 | FI42: 1 | FJ42: =IF(FH42="",0,LOOKUP(FH42,FACTORS!$L$9:$M$128)*FH$13*FI42) -> 0 | FL42: 1 | FM42: =IF(FK42="",0,LOOKUP(FK42,FACTORS!$L$9:$M$128)*FK$13*FL42) -> 0
B43: 27 | C43: Floriana Giraudo | D43: ITA | F43: 524.7 | G43: 524,7 points | I43: 1.1 | J43: =IF(H43="",0,LOOKUP(H43,FACTORS!$L$9:$M$128)*H$13*I43) -> 0 | L43: 1.1 | M43: =IF(K43="",0,LOOKUP(K43,FACTORS!$L$9:$M$128)*K$13*L43) -> 0 | O43: 1.1 | P43: =IF(N43="",0,LOOKUP(N43,FACTORS!$L$9:$M$128)*N$13*O43) -> 0 | R43: 1.1 | S43: =IF(Q43="",0,LOOKUP(Q43,FACTORS!$L$9:$M$128)*Q$13*R43) -> 0 | U43: 1.1 | V43: =IF(T43="",0,LOOKUP(T43,FACTORS!$L$9:$M$128)*T$13*U43) -> 0 | X43: 1.1 | Y43: =IF(W43="",0,LOOKUP(W43,FACTORS!$L$9:$M$128)*W$13*X43) -> 0 | AA43: 1.1 | AB43: =IF(Z43="",0,LOOKUP(Z43,FACTORS!$L$9:$M$128)*Z$13*AA43) -> 0 | AD43: 1.1 | AE43: =IF(AC43="",0,LOOKUP(AC43,FACTORS!$L$9:$M$128)*AC$13*AD43) -> 0 | AG43: 1.1 | AH43: =IF(AF43="",0,LOOKUP(AF43,FACTORS!$L$9:$M$128)*AF$13*AG43) -> 0 | AJ43: 1.1 | AK43: =IF(AI43="",0,LOOKUP(AI43,FACTORS!$L$9:$M$128)*AI$13*AJ43) -> 0 | AM43: 1.1 | AN43: =IF(AL43="",0,LOOKUP(AL43,FACTORS!$L$9:$M$128)*AL$13*AM43) -> 0 | AP43: 1.1 | AQ43: =IF(AO43="",0,LOOKUP(AO43,FACTORS!$L$9:$M$128)*AO$13*AP43) -> 0 | AS43: 1.1 | AT43: =IF(AR43="",0,LOOKUP(AR43,FACTORS!$L$9:$M$128)*AR$13*AS43) -> 0 | AV43: 1.1 | AW43: =IF(AU43="",0,LOOKUP(AU43,FACTORS!$L$9:$M$128)*AU$13*AV43) -> 0 | AY43: 1.1 | AZ43: =IF(AX43="",0,LOOKUP(AX43,FACTORS!$L$9:$M$128)*AX$13*AY43) -> 0 | BB43: 1.1 | BC43: =IF(BA43="",0,LOOKUP(BA43,FACTORS!$L$9:$M$128)*BA$13*BB43) -> 0 | BE43: 1.1 | BF43: =IF(BD43="",0,LOOKUP(BD43,FACTORS!$L$9:$M$128)*BD$13*BE43) -> 0 | BH43: 1 | BI43: =IF(BG43="",0,LOOKUP(BG43,FACTORS!$L$9:$M$128)*BG$13*BH43) -> 0 | BK43: 1 | BL43: =IF(BJ43="",0,LOOKUP(BJ43,FACTORS!$L$9:$M$128)*BJ$13*BK43) -> 0 | BN43: 1.1 | BO43: =IF(BM43="",0,LOOKUP(BM43,FACTORS!$L$9:$M$128)*BM$13*BN43) -> 0 | BQ43: 1.1 | BR43: =IF(BP43="",0,LOOKUP(BP43,FACTORS!$L$9:$M$128)*BP$13*BQ43) -> 0 | BT43: 1.1 | BU43: =IF(BS43="",0,LOOKUP(BS43,FACTORS!$L$9:$M$128)*BS$13*BT43) -> 0 | BW43: 1.1 | BX43: =IF(BV43="",0,LOOKUP(BV43,FACTORS!$L$9:$M$128)*BV$13*BW43) -> 0 | BZ43: 1.1 | CA43: =IF(BY43="",0,LOOKUP(BY43,FACTORS!$L$9:$M$128)*BY$13*BZ43) -> 0 | CB43: 4 | CC43: 1 | CD43: =IF(CB43="",0,LOOKUP(CB43,FACTORS!$L$9:$M$128)*CB$13*CC43) -> 175.5 | CF43: 1.1 | CG43: =IF(CE43="",0,LOOKUP(CE43,FACTORS!$L$9:$M$128)*CE$13*CF43) -> 0 | CI43: 1.1 | CJ43: =IF(CH43="",0,LOOKUP(CH43,FACTORS!$L$9:$M$128)*CH$13*CI43) -> 0 | CK43: 13 | CL43: 1 | CM43: =IF(CK43="",0,LOOKUP(CK43,FACTORS!$L$9:$M$128)*CK$13*CL43) -> 140.4 | CO43: 1.1 | CP43: =IF(CN43="",0,LOOKUP(CN43,FACTORS!$L$9:$M$128)*CN$13*CO43) -> 0 | CR43: 1.1 | CS43: =IF(CQ43="",0,LOOKUP(CQ43,FACTORS!$L$9:$M$128)*CQ$13*CR43) -> 0 | CU43: 1.1 | CV43: =IF(CT43="",0,LOOKUP(CT43,FACTORS!$L$9:$M$128)*CT$13*CU43) -> 0 | CX43: 1.1 | CY43: =IF(CW43="",0,LOOKUP(CW43,FACTORS!$L$9:$M$128)*CW$13*CX43) -> 0 | DA43: 1.1 | DB43: =IF(CZ43="",0,LOOKUP(CZ43,FACTORS!$L$9:$M$128)*CZ$13*DA43) -> 0 | DD43: 1.1 | DE43: =IF(DC43="",0,LOOKUP(DC43,FACTORS!$L$9:$M$128)*DC$13*DD43) -> 0 | DG43: 1.1 | DH43: =IF(DF43="",0,LOOKUP(DF43,FACTORS!$L$9:$M$128)*DF$13*DG43) -> 0 | DJ43: 1.1 | DK43: =IF(DI43="",0,LOOKUP(DI43,FACTORS!$L$9:$M$128)*DI$13*DJ43) -> 0 | DL43: 5 | DM43: 1 | DN43: =IF(DL43="",0,LOOKUP(DL43,FACTORS!$L$9:$M$128)*DL$13*DM43) -> 208.8 | DP43: 1.1 | DQ43: =IF(DO43="",0,LOOKUP(DO43,FACTORS!$L$9:$M$128)*DO$13*DP43) -> 0 | DS43: 1.1 | DT43: =IF(DR43="",0,LOOKUP(DR43,FACTORS!$L$9:$M$128)*DR$13*DS43) -> 0 | DV43: 1.1 | DW43: =IF(DU43="",0,LOOKUP(DU43,FACTORS!$L$9:$M$128)*DU$13*DV43) -> 0 | DY43: 1.1 | DZ43: =IF(DX43="",0,LOOKUP(DX43,FACTORS!$L$9:$M$128)*DX$13*DY43) -> 0 | EB43: 1 | EC43: =IF(EA43="",0,LOOKUP(EA43,FACTORS!$L$9:$M$128)*EA$13*EB43) -> 0 | EE43: 1 | EF43: =IF(ED43="",0,LOOKUP(ED43,FACTORS!$L$9:$M$128)*ED$13*EE43) -> 0 | EH43: 1 | EI43: =IF(EG43="",0,LOOKUP(EG43,FACTORS!$L$9:$M$128)*EG$13*EH43) -> 0 | EK43: 1 | EL43: =IF(EJ43="",0,LOOKUP(EJ43,FACTORS!$L$9:$M$128)*EJ$13*EK43) -> 0 | EN43: 1 | EO43: =IF(EM43="",0,LOOKUP(EM43,FACTORS!$L$9:$M$128)*EM$13*EN43) -> 0 | EQ43: 1 | ER43: =IF(EP43="",0,LOOKUP(EP43,FACTORS!$L$9:$M$128)*EP$13*EQ43) -> 0 | ET43: 1 | EU43: =IF(ES43="",0,LOOKUP(ES43,FACTORS!$L$9:$M$128)*ES$13*ET43) -> 0 | EW43: 1 | EX43: =IF(EV43="",0,LOOKUP(EV43,FACTORS!$L$9:$M$128)*EV$13*EW43) -> 0 | EZ43: 1 | FA43: =IF(EY43="",0,LOOKUP(EY43,FACTORS!$L$9:$M$128)*EY$13*EZ43) -> 0 | FC43: 1 | FD43: =IF(FB43="",0,LOOKUP(FB43,FACTORS!$L$9:$M$128)*FB$13*FC43) -> 0 | FF43: 1 | FG43: =IF(FE43="",0,LOOKUP(FE43,FACTORS!$L$9:$M$128)*FE$13*FF43) -> 0 | FI43: 1 | FJ43: =IF(FH43="",0,LOOKUP(FH43,FACTORS!$L$9:$M$128)*FH$13*FI43) -> 0 | FL43: 1 | FM43: =IF(FK43="",0,LOOKUP(FK43,FACTORS!$L$9:$M$128)*FK$13*FL43) -> 0
B44: 27 | C44: Silvano Zuanelli | D44: ITA | F44: 524.7 | G44: 524,7 points | I44: 1.1 | J44: =IF(H44="",0,LOOKUP(H44,FACTORS!$L$9:$M$128)*H$13*I44) -> 0 | L44: 1.1 | M44: =IF(K44="",0,LOOKUP(K44,FACTORS!$L$9:$M$128)*K$13*L44) -> 0 | O44: 1.1 | P44: =IF(N44="",0,LOOKUP(N44,FACTORS!$L$9:$M$128)*N$13*O44) -> 0 | R44: 1.1 | S44: =IF(Q44="",0,LOOKUP(Q44,FACTORS!$L$9:$M$128)*Q$13*R44) -> 0 | U44: 1.1 | V44: =IF(T44="",0,LOOKUP(T44,FACTORS!$L$9:$M$128)*T$13*U44) -> 0 | X44: 1.1 | Y44: =IF(W44="",0,LOOKUP(W44,FACTORS!$L$9:$M$128)*W$13*X44) -> 0 | AA44: 1.1 | AB44: =IF(Z44="",0,LOOKUP(Z44,FACTORS!$L$9:$M$128)*Z$13*AA44) -> 0 | AD44: 1.1 | AE44: =IF(AC44="",0,LOOKUP(AC44,FACTORS!$L$9:$M$128)*AC$13*AD44) -> 0 | AG44: 1.1 | AH44: =IF(AF44="",0,LOOKUP(AF44,FACTORS!$L$9:$M$128)*AF$13*AG44) -> 0 | AJ44: 1.1 | AK44: =IF(AI44="",0,LOOKUP(AI44,FACTORS!$L$9:$M$128)*AI$13*AJ44) -> 0 | AM44: 1.1 | AN44: =IF(AL44="",0,LOOKUP(AL44,FACTORS!$L$9:$M$128)*AL$13*AM44) -> 0 | AP44: 1.1 | AQ44: =IF(AO44="",0,LOOKUP(AO44,FACTORS!$L$9:$M$128)*AO$13*AP44) -> 0 | AS44: 1.1 | AT44: =IF(AR44="",0,LOOKUP(AR44,FACTORS!$L$9:$M$128)*AR$13*AS44) -> 0 | AV44: 1.1 | AW44: =IF(AU44="",0,LOOKUP(AU44,FACTORS!$L$9:$M$128)*AU$13*AV44) -> 0 | AY44: 1.1 | AZ44: =IF(AX44="",0,LOOKUP(AX44,FACTORS!$L$9:$M$128)*AX$13*AY44) -> 0 | BB44: 1.1 | BC44: =IF(BA44="",0,LOOKUP(BA44,FACTORS!$L$9:$M$128)*BA$13*BB44) -> 0 | BE44: 1.1 | BF44: =IF(BD44="",0,LOOKUP(BD44,FACTORS!$L$9:$M$128)*BD$13*BE44) -> 0 | BH44: 1 | BI44: =IF(BG44="",0,LOOKUP(BG44,FACTORS!$L$9:$M$128)*BG$13*BH44) -> 0 | BK44: 1 | BL44: =IF(BJ44="",0,LOOKUP(BJ44,FACTORS!$L$9:$M$128)*BJ$13*BK44) -> 0 | BN44: 1.1 | BO44: =IF(BM44="",0,LOOKUP(BM44,FACTORS!$L$9:$M$128)*BM$13*BN44) -> 0 | BQ44: 1.1 | BR44: =IF(BP44="",0,LOOKUP(BP44,FACTORS!$L$9:$M$128)*BP$13*BQ44) -> 0 | BT44: 1.1 | BU44: =IF(BS44="",0,LOOKUP(BS44,FACTORS!$L$9:$M$128)*BS$13*BT44) -> 0 | BW44: 1.1 | BX44: =IF(BV44="",0,LOOKUP(BV44,FACTORS!$L$9:$M$128)*BV$13*BW44) -> 0 | BZ44: 1.1 | CA44: =IF(BY44="",0,LOOKUP(BY44,FACTORS!$L$9:$M$128)*BY$13*BZ44) -> 0 | CB44: 4 | CC44: 1 | CD44: =IF(CB44="",0,LOOKUP(CB44,FACTORS!$L$9:$M$128)*CB$13*CC44) -> 175.5 | CF44: 1.1 | CG44: =IF(CE44="",0,LOOKUP(CE44,FACTORS!$L$9:$M$128)*CE$13*CF44) -> 0 | CI44: 1.1 | CJ44: =IF(CH44="",0,LOOKUP(CH44,FACTORS!$L$9:$M$128)*CH$13*CI44) -> 0 | CK44: 13 | CL44: 1 | CM44: =IF(CK44="",0,LOOKUP(CK44,FACTORS!$L$9:$M$128)*CK$13*CL44) -> 140.4 | CO44: 1.1 | CP44: =IF(CN44="",0,LOOKUP(CN44,FACTORS!$L$9:$M$128)*CN$13*CO44) -> 0 | CR44: 1.1 | CS44: =IF(CQ44="",0,LOOKUP(CQ44,FACTORS!$L$9:$M$128)*CQ$13*CR44) -> 0 | CU44: 1.1 | CV44: =IF(CT44="",0,LOOKUP(CT44,FACTORS!$L$9:$M$128)*CT$13*CU44) -> 0 | CX44: 1.1 | CY44: =IF(CW44="",0,LOOKUP(CW44,FACTORS!$L$9:$M$128)*CW$13*CX44) -> 0 | DA44: 1.1 | DB44: =IF(CZ44="",0,LOOKUP(CZ44,FACTORS!$L$9:$M$128)*CZ$13*DA44) -> 0 | DD44: 1.1 | DE44: =IF(DC44="",0,LOOKUP(DC44,FACTORS!$L$9:$M$128)*DC$13*DD44) -> 0 | DG44: 1.1 | DH44: =IF(DF44="",0,LOOKUP(DF44,FACTORS!$L$9:$M$128)*DF$13*DG44) -> 0 | DJ44: 1.1 | DK44: =IF(DI44="",0,LOOKUP(DI44,FACTORS!$L$9:$M$128)*DI$13*DJ44) -> 0 | DL44: 5 | DM44: 1 | DN44: =IF(DL44="",0,LOOKUP(DL44,FACTORS!$L$9:$M$128)*DL$13*DM44) -> 208.8 | DP44: 1.1 | DQ44: =IF(DO44="",0,LOOKUP(DO44,FACTORS!$L$9:$M$128)*DO$13*DP44) -> 0 | DS44: 1.1 | DT44: =IF(DR44="",0,LOOKUP(DR44,FACTORS!$L$9:$M$128)*DR$13*DS44) -> 0 | DV44: 1.1 | DW44: =IF(DU44="",0,LOOKUP(DU44,FACTORS!$L$9:$M$128)*DU$13*DV44) -> 0 | DY44: 1.1 | DZ44: =IF(DX44="",0,LOOKUP(DX44,FACTORS!$L$9:$M$128)*DX$13*DY44) -> 0 | EB44: 1 | EC44: =IF(EA44="",0,LOOKUP(EA44,FACTORS!$L$9:$M$128)*EA$13*EB44) -> 0 | EE44: 1 | EF44: =IF(ED44="",0,LOOKUP(ED44,FACTORS!$L$9:$M$128)*ED$13*EE44) -> 0 | EH44: 1 | EI44: =IF(EG44="",0,LOOKUP(EG44,FACTORS!$L$9:$M$128)*EG$13*EH44) -> 0 | EK44: 1 | EL44: =IF(EJ44="",0,LOOKUP(EJ44,FACTORS!$L$9:$M$128)*EJ$13*EK44) -> 0 | EN44: 1 | EO44: =IF(EM44="",0,LOOKUP(EM44,FACTORS!$L$9:$M$128)*EM$13*EN44) -> 0 | EQ44: 1 | ER44: =IF(EP44="",0,LOOKUP(EP44,FACTORS!$L$9:$M$128)*EP$13*EQ44) -> 0 | ET44: 1 | EU44: =IF(ES44="",0,LOOKUP(ES44,FACTORS!$L$9:$M$128)*ES$13*ET44) -> 0 | EW44: 1 | EX44: =IF(EV44="",0,LOOKUP(EV44,FACTORS!$L$9:$M$128)*EV$13*EW44) -> 0 | EZ44: 1 | FA44: =IF(EY44="",0,LOOKUP(EY44,FACTORS!$L$9:$M$128)*EY$13*EZ44) -> 0 | FC44: 1 | FD44: =IF(FB44="",0,LOOKUP(FB44,FACTORS!$L$9:$M$128)*FB$13*FC44) -> 0 | FF44: 1 | FG44: =IF(FE44="",0,LOOKUP(FE44,FACTORS!$L$9:$M$128)*FE$13*FF44) -> 0 | FI44: 1 | FJ44: =IF(FH44="",0,LOOKUP(FH44,FACTORS!$L$9:$M$128)*FH$13*FI44) -> 0 | FL44: 1 | FM44: =IF(FK44="",0,LOOKUP(FK44,FACTORS!$L$9:$M$128)*FK$13*FL44) -> 0
B45: 29 | C45: Mario Eugenio Bonetti Tavares | D45: BRA | F45: 522.7 | G45: 522,7 points | I45: 1.1 | J45: =IF(H45="",0,LOOKUP(H45,FACTORS!$L$9:$M$128)*H$13*I45) -> 0 | K45: 49 | L45: 1 | M45: =IF(K45="",0,LOOKUP(K45,FACTORS!$L$9:$M$128)*K$13*L45) -> 108 | O45: 1.1 | P45: =IF(N45="",0,LOOKUP(N45,FACTORS!$L$9:$M$128)*N$13*O45) -> 0 | R45: 1.1 | S45: =IF(Q45="",0,LOOKUP(Q45,FACTORS!$L$9:$M$128)*Q$13*R45) -> 0 | U45: 1.1 | V45: =IF(T45="",0,LOOKUP(T45,FACTORS!$L$9:$M$128)*T$13*U45) -> 0 | W45: 7 | X45: 1 | Y45: =IF(W45="",0,LOOKUP(W45,FACTORS!$L$9:$M$128)*W$13*X45) -> 148.2 | AA45: 1.1 | AB45: =IF(Z45="",0,LOOKUP(Z45,FACTORS!$L$9:$M$128)*Z$13*AA45) -> 0 | AD45: 1.1 | AE45: =IF(AC45="",0,LOOKUP(AC45,FACTORS!$L$9:$M$128)*AC$13*AD45) -> 0 | AF45: 5 | AG45: 1 | AH45: =IF(AF45="",0,LOOKUP(AF45,FACTORS!$L$9:$M$128)*AF$13*AG45) -> 150.8 | AJ45: 1.1 | AK45: =IF(AI45="",0,LOOKUP(AI45,FACTORS!$L$9:$M$128)*AI$13*AJ45) -> 0 | AM45: 1.1 | AN45: =IF(AL45="",0,LOOKUP(AL45,FACTORS!$L$9:$M$128)*AL$13*AM45) -> 0 | AP45: 1.1 | AQ45: =IF(AO45="",0,LOOKUP(AO45,FACTORS!$L$9:$M$128)*AO$13*AP45) -> 0 | AS45: 1.1 | AT45: =IF(AR45="",0,LOOKUP(AR45,FACTORS!$L$9:$M$128)*AR$13*AS45) -> 0 | AV45: 1.1 | AW45: =IF(AU45="",0,LOOKUP(AU45,FACTORS!$L$9:$M$128)*AU$13*AV45) -> 0 | AY45: 1.1 | AZ45: =IF(AX45="",0,LOOKUP(AX45,FACTORS!$L$9:$M$128)*AX$13*AY45) -> 0 | BB45: 1.1 | BC45: =IF(BA45="",0,LOOKUP(BA45,FACTORS!$L$9:$M$128)*BA$13*BB45) -> 0 | BE45: 1.1 | BF45: =IF(BD45="",0,LOOKUP(BD45,FACTORS!$L$9:$M$128)*BD$13*BE45) -> 0 | BH45: 1.1 | BI45: =IF(BG45="",0,LOOKUP(BG45,FACTORS!$L$9:$M$128)*BG$13*BH45) -> 0 | BK45: 1.1 | BL45: =IF(BJ45="",0,LOOKUP(BJ45,FACTORS!$L$9:$M$128)*BJ$13*BK45) -> 0 | BN45: 1.1 | BO45: =IF(BM45="",0,LOOKUP(BM45,FACTORS!$L$9:$M$128)*BM$13*BN45) -> 0 | BQ45: 1.1 | BR45: =IF(BP45="",0,LOOKUP(BP45,FACTORS!$L$9:$M$128)*BP$13*BQ45) -> 0 | BT45: 1.1 | BU45: =IF(BS45="",0,LOOKUP(BS45,FACTORS!$L$9:$M$128)*BS$13*BT45) -> 0 | BW45: 1.1 | BX45: =IF(BV45="",0,LOOKUP(BV45,FACTORS!$L$9:$M$128)*BV$13*BW45) -> 0 | BZ45: 1.1 | CA45: =IF(BY45="",0,LOOKUP(BY45,FACTORS!$L$9:$M$128)*BY$13*BZ45) -> 0 | CC45: 1.1 | CD45: =IF(CB45="",0,LOOKUP(CB45,FACTORS!$L$9:$M$128)*CB$13*CC45) -> 0 | CF45: 1.1 | CG45: =IF(CE45="",0,LOOKUP(CE45,FACTORS!$L$9:$M$128)*CE$13*CF45) -> 0 | CI45: 1.1 | CJ45: =IF(CH45="",0,LOOKUP(CH45,FACTORS!$L$9:$M$128)*CH$13*CI45) -> 0 | CL45: 1.1 | CM45: =IF(CK45="",0,LOOKUP(CK45,FACTORS!$L$9:$M$128)*CK$13*CL45) -> 0 | CO45: 1.1 | CP45: =IF(CN45="",0,LOOKUP(CN45,FACTORS!$L$9:$M$128)*CN$13*CO45) -> 0 | CR45: 1.1 | CS45: =IF(CQ45="",0,LOOKUP(CQ45,FACTORS!$L$9:$M$128)*CQ$13*CR45) -> 0 | CU45: 1.1 | CV45: =IF(CT45="",0,LOOKUP(CT45,FACTORS!$L$9:$M$128)*CT$13*CU45) -> 0 | CX45: 1.1 | CY45: =IF(CW45="",0,LOOKUP(CW45,FACTORS!$L$9:$M$128)*CW$13*CX45) -> 0 | DA45: 1 | DB45: =IF(CZ45="",0,LOOKUP(CZ45,FACTORS!$L$9:$M$128)*CZ$13*DA45) -> 0 | DD45: 1.1 | DE45: =IF(DC45="",0,LOOKUP(DC45,FACTORS!$L$9:$M$128)*DC$13*DD45) -> 0 | DG45: 1.1 | DH45: =IF(DF45="",0,LOOKUP(DF45,FACTORS!$L$9:$M$128)*DF$13*DG45) -> 0 | DJ45: 1.1 | DK45: =IF(DI45="",0,LOOKUP(DI45,FACTORS!$L$9:$M$128)*DI$13*DJ45) -> 0 | DM45: 1 | DN45: =IF(DL45="",0,LOOKUP(DL45,FACTORS!$L$9:$M$128)*DL$13*DM45) -> 0 | DP45: 1.1 | DQ45: =IF(DO45="",0,LOOKUP(DO45,FACTORS!$L$9:$M$128)*DO$13*DP45) -> 0 | DS45: 1.1 | DT45: =IF(DR45="",0,LOOKUP(DR45,FACTORS!$L$9:$M$128)*DR$13*DS45) -> 0 | DV45: 1.1 | DW45: =IF(DU45="",0,LOOKUP(DU45,FACTORS!$L$9:$M$128)*DU$13*DV45) -> 0 | DX45: 32 | DY45: 1 | DZ45: =IF(DX45="",0,LOOKUP(DX45,FACTORS!$L$9:$M$128)*DX$13*DY45) -> 115.7 | EB45: 1 | EC45: =IF(EA45="",0,LOOKUP(EA45,FACTORS!$L$9:$M$128)*EA$13*EB45) -> 0 | EE45: 1 | EF45: =IF(ED45="",0,LOOKUP(ED45,FACTORS!$L$9:$M$128)*ED$13*EE45) -> 0 | EH45: 1 | EI45: =IF(EG45="",0,LOOKUP(EG45,FACTORS!$L$9:$M$128)*EG$13*EH45) -> 0 | EK45: 1 | EL45: =IF(EJ45="",0,LOOKUP(EJ45,FACTORS!$L$9:$M$128)*EJ$13*EK45) -> 0 | EN45: 1 | EO45: =IF(EM45="",0,LOOKUP(EM45,FACTORS!$L$9:$M$128)*EM$13*EN45) -> 0 | EQ45: 1 | ER45: =IF(EP45="",0,LOOKUP(EP45,FACTORS!$L$9:$M$128)*EP$13*EQ45) -> 0 | ET45: 1 | EU45: =IF(ES45="",0,LOOKUP(ES45,FACTORS!$L$9:$M$128)*ES$13*ET45) -> 0 | EW45: 1 | EX45: =IF(EV45="",0,LOOKUP(EV45,FACTORS!$L$9:$M$128)*EV$13*EW45) -> 0 | EZ45: 1 | FA45: =IF(EY45="",0,LOOKUP(EY45,FACTORS!$L$9:$M$128)*EY$13*EZ45) -> 0 | FC45: 1 | FD45: =IF(FB45="",0,LOOKUP(FB45,FACTORS!$L$9:$M$128)*FB$13*FC45) -> 0 | FF45: 1 | FG45: =IF(FE45="",0,LOOKUP(FE45,FACTORS!$L$9:$M$128)*FE$13*FF45) -> 0 | FI45: 1 | FJ45: =IF(FH45="",0,LOOKUP(FH45,FACTORS!$L$9:$M$128)*FH$13*FI45) -> 0 | FL45: 1 | FM45: =IF(FK45="",0,LOOKUP(FK45,FACTORS!$L$9:$M$128)*FK$13*FL45) -> 0
B46: 30 | C46: Víctor Pérez | D46: ESP | F46: 518.7 | G46: 518,7 points | I46: 1.1 | J46: =IF(H46="",0,LOOKUP(H46,FACTORS!$L$9:$M$128)*H$13*I46) -> 0 | L46: 1.1 | M46: =IF(K46="",0,LOOKUP(K46,FACTORS!$L$9:$M$128)*K$13*L46) -> 0 | O46: 1.1 | P46: =IF(N46="",0,LOOKUP(N46,FACTORS!$L$9:$M$128)*N$13*O46) -> 0 | R46: 1.1 | S46: =IF(Q46="",0,LOOKUP(Q46,FACTORS!$L$9:$M$128)*Q$13*R46) -> 0 | U46: 1.1 | V46: =IF(T46="",0,LOOKUP(T46,FACTORS!$L$9:$M$128)*T$13*U46) -> 0 | X46: 1.1 | Y46: =IF(W46="",0,LOOKUP(W46,FACTORS!$L$9:$M$128)*W$13*X46) -> 0 | AA46: 1.1 | AB46: =IF(Z46="",0,LOOKUP(Z46,FACTORS!$L$9:$M$128)*Z$13*AA46) -> 0 | AD46: 1 | AE46: =IF(AC46="",0,LOOKUP(AC46,FACTORS!$L$9:$M$128)*AC$13*AD46) -> 0 | AG46: 1.1 | AH46: =IF(AF46="",0,LOOKUP(AF46,FACTORS!$L$9:$M$128)*AF$13*AG46) -> 0 | AI46: 1 | AJ46: 1.1 | AK46: =IF(AI46="",0,LOOKUP(AI46,FACTORS!$L$9:$M$128)*AI$13*AJ46) -> 171.6 | AM46: 1 | AN46: =IF(AL46="",0,LOOKUP(AL46,FACTORS!$L$9:$M$128)*AL$13*AM46) -> 0 | AP46: 1.1 | AQ46: =IF(AO46="",0,LOOKUP(AO46,FACTORS!$L$9:$M$128)*AO$13*AP46) -> 0 | AS46: 1.1 | AT46: =IF(AR46="",0,LOOKUP(AR46,FACTORS!$L$9:$M$128)*AR$13*AS46) -> 0 | AU46: 4 | AV46: 1 | AW46: =IF(AU46="",0,LOOKUP(AU46,FACTORS!$L$9:$M$128)*AU$13*AV46) -> 175.5 | AY46: 1.1 | AZ46: =IF(AX46="",0,LOOKUP(AX46,FACTORS!$L$9:$M$128)*AX$13*AY46) -> 0 | BA46: 1 | BB46: 1.1 | BC46: =IF(BA46="",0,LOOKUP(BA46,FACTORS!$L$9:$M$128)*BA$13*BB46) -> 171.6 | BE46: 1.1 | BF46: =IF(BD46="",0,LOOKUP(BD46,FACTORS!$L$9:$M$128)*BD$13*BE46) -> 0 | BH46: 1.1 | BI46: =IF(BG46="",0,LOOKUP(BG46,FACTORS!$L$9:$M$128)*BG$13*BH46) -> 0 | BK46: 1.1 | BL46: =IF(BJ46="",0,LOOKUP(BJ46,FACTORS!$L$9:$M$128)*BJ$13*BK46) -> 0 | BN46: 1.1 | BO46: =IF(BM46="",0,LOOKUP(BM46,FACTORS!$L$9:$M$128)*BM$13*BN46) -> 0 | BQ46: 1.1 | BR46: =IF(BP46="",0,LOOKUP(BP46,FACTORS!$L$9:$M$128)*BP$13*BQ46) -> 0 | BT46: 1.1 | BU46: =IF(BS46="",0,LOOKUP(BS46,FACTORS!$L$9:$M$128)*BS$13*BT46) -> 0 | BW46: 1.1 | BX46: =IF(BV46="",0,LOOKUP(BV46,FACTORS!$L$9:$M$128)*BV$13*BW46) -> 0 | BZ46: 1.1 | CA46: =IF(BY46="",0,LOOKUP(BY46,FACTORS!$L$9:$M$128)*BY$13*BZ46) -> 0 | CC46: 1.1 | CD46: =IF(CB46="",0,LOOKUP(CB46,FACTORS!$L$9:$M$128)*CB$13*CC46) -> 0 | CF46: 1.1 | CG46: =IF(CE46="",0,LOOKUP(CE46,FACTORS!$L$9:$M$128)*CE$13*CF46) -> 0 | CI46: 1.1 | CJ46: =IF(CH46="",0,LOOKUP(CH46,FACTORS!$L$9:$M$128)*CH$13*CI46) -> 0 | CL46: 1.1 | CM46: =IF(CK46="",0,LOOKUP(CK46,FACTORS!$L$9:$M$128)*CK$13*CL46) -> 0 | CO46: 1 | CP46: =IF(CN46="",0,LOOKUP(CN46,FACTORS!$L$9:$M$128)*CN$13*CO46) -> 0 | CR46: 1.1 | CS46: =IF(CQ46="",0,LOOKUP(CQ46,FACTORS!$L$9:$M$128)*CQ$13*CR46) -> 0 | CU46: 1.1 | CV46: =IF(CT46="",0,LOOKUP(CT46,FACTORS!$L$9:$M$128)*CT$13*CU46) -> 0 | CX46: 1.1 | CY46: =IF(CW46="",0,LOOKUP(CW46,FACTORS!$L$9:$M$128)*CW$13*CX46) -> 0 | DA46: 1.1 | DB46: =IF(CZ46="",0,LOOKUP(CZ46,FACTORS!$L$9:$M$128)*CZ$13*DA46) -> 0 | DD46: 1.1 | DE46: =IF(DC46="",0,LOOKUP(DC46,FACTORS!$L$9:$M$128)*DC$13*DD46) -> 0 | DG46: 1.1 | DH46: =IF(DF46="",0,LOOKUP(DF46,FACTORS!$L$9:$M$128)*DF$13*DG46) -> 0 | DJ46: 1.1 | DK46: =IF(DI46="",0,LOOKUP(DI46,FACTORS!$L$9:$M$128)*DI$13*DJ46) -> 0 | DM46: 1 | DN46: =IF(DL46="",0,LOOKUP(DL46,FACTORS!$L$9:$M$128)*DL$13*DM46) -> 0 | DP46: 1.1 | DQ46: =IF(DO46="",0,LOOKUP(DO46,FACTORS!$L$9:$M$128)*DO$13*DP46) -> 0 | DS46: 1.1 | DT46: =IF(DR46="",0,LOOKUP(DR46,FACTORS!$L$9:$M$128)*DR$13*DS46) -> 0 | DV46: 1.1 | DW46: =IF(DU46="",0,LOOKUP(DU46,FACTORS!$L$9:$M$128)*DU$13*DV46) -> 0 | DY46: 1.1 | DZ46: =IF(DX46="",0,LOOKUP(DX46,FACTORS!$L$9:$M$128)*DX$13*DY46) -> 0 | EB46: 1 | EC46: =IF(EA46="",0,LOOKUP(EA46,FACTORS!$L$9:$M$128)*EA$13*EB46) -> 0 | EE46: 1 | EF46: =IF(ED46="",0,LOOKUP(ED46,FACTORS!$L$9:$M$128)*ED$13*EE46) -> 0 | EH46: 1 | EI46: =IF(EG46="",0,LOOKUP(EG46,FACTORS!$L$9:$M$128)*EG$13*EH46) -> 0 | EK46: 1 | EL46: =IF(EJ46="",0,LOOKUP(EJ46,FACTORS!$L$9:$M$128)*EJ$13*EK46) -> 0 | EN46: 1 | EO46: =IF(EM46="",0,LOOKUP(EM46,FACTORS!$L$9:$M$128)*EM$13*EN46) -> 0 | EQ46: 1 | ER46: =IF(EP46="",0,LOOKUP(EP46,FACTORS!$L$9:$M$128)*EP$13*EQ46) -> 0 | ET46: 1 | EU46: =IF(ES46="",0,LOOKUP(ES46,FACTORS!$L$9:$M$128)*ES$13*ET46) -> 0 | EW46: 1 | EX46: =IF(EV46="",0,LOOKUP(EV46,FACTORS!$L$9:$M$128)*EV$13*EW46) -> 0 | EZ46: 1 | FA46: =IF(EY46="",0,LOOKUP(EY46,FACTORS!$L$9:$M$128)*EY$13*EZ46) -> 0 | FC46: 1 | FD46: =IF(FB46="",0,LOOKUP(FB46,FACTORS!$L$9:$M$128)*FB$13*FC46) -> 0 | FF46: 1 | FG46: =IF(FE46="",0,LOOKUP(FE46,FACTORS!$L$9:$M$128)*FE$13*FF46) -> 0 | FI46: 1 | FJ46: =IF(FH46="",0,LOOKUP(FH46,FACTORS!$L$9:$M$128)*FH$13*FI46) -> 0 | FL46: 1 | FM46: =IF(FK46="",0,LOOKUP(FK46,FACTORS!$L$9:$M$128)*FK$13*FL46) -> 0
B47: 31 | C47: Mafalda Pires | D47: POR | F47: 517.75 | G47: 517,75 points | I47: 1.1 | J47: =IF(H47="",0,LOOKUP(H47,FACTORS!$L$9:$M$128)*H$13*I47) -> 0 | L47: 1.1 | M47: =IF(K47="",0,LOOKUP(K47,FACTORS!$L$9:$M$128)*K$13*L47) -> 0 | O47: 1.1 | P47: =IF(N47="",0,LOOKUP(N47,FACTORS!$L$9:$M$128)*N$13*O47) -> 0 | Q47: 6 | R47: 1 | S47: =IF(Q47="",0,LOOKUP(Q47,FACTORS!$L$9:$M$128)*Q$13*R47) -> 149.5 | U47: 1.1 | V47: =IF(T47="",0,LOOKUP(T47,FACTORS!$L$9:$M$128)*T$13*U47) -> 0 | X47: 1.1 | Y47: =IF(W47="",0,LOOKUP(W47,FACTORS!$L$9:$M$128)*W$13*X47) -> 0 | AA47: 1.1 | AB47: =IF(Z47="",0,LOOKUP(Z47,FACTORS!$L$9:$M$128)*Z$13*AA47) -> 0 | AD47: 1.1 | AE47: =IF(AC47="",0,LOOKUP(AC47,FACTORS!$L$9:$M$128)*AC$13*AD47) -> 0 | AG47: 1.1 | AH47: =IF(AF47="",0,LOOKUP(AF47,FACTORS!$L$9:$M$128)*AF$13*AG47) -> 0 | AJ47: 1.1 | AK47: =IF(AI47="",0,LOOKUP(AI47,FACTORS!$L$9:$M$128)*AI$13*AJ47) -> 0 | AM47: 1.1 | AN47: =IF(AL47="",0,LOOKUP(AL47,FACTORS!$L$9:$M$128)*AL$13*AM47) -> 0 | AP47: 1.1 | AQ47: =IF(AO47="",0,LOOKUP(AO47,FACTORS!$L$9:$M$128)*AO$13*AP47) -> 0 | AS47: 1.1 | AT47: =IF(AR47="",0,LOOKUP(AR47,FACTORS!$L$9:$M$128)*AR$13*AS47) -> 0 | AU47: 6 | AV47: 1.1 | AW47: =IF(AU47="",0,LOOKUP(AU47,FACTORS!$L$9:$M$128)*AU$13*AV47) -> 189.75 | AY47: 1 | AZ47: =IF(AX47="",0,LOOKUP(AX47,FACTORS!$L$9:$M$128)*AX$13*AY47) -> 0 | BB47: 1.1 | BC47: =IF(BA47="",0,LOOKUP(BA47,FACTORS!$L$9:$M$128)*BA$13*BB47) -> 0 | BE47: 1.1 | BF47: =IF(BD47="",0,LOOKUP(BD47,FACTORS!$L$9:$M$128)*BD$13*BE47) -> 0 | BH47: 1.1 | BI47: =IF(BG47="",0,LOOKUP(BG47,FACTORS!$L$9:$M$128)*BG$13*BH47) -> 0 | BK47: 1.1 | BL47: =IF(BJ47="",0,LOOKUP(BJ47,FACTORS!$L$9:$M$128)*BJ$13*BK47) -> 0 | BN47: 1.1 | BO47: =IF(BM47="",0,LOOKUP(BM47,FACTORS!$L$9:$M$128)*BM$13*BN47) -> 0 | BQ47: 1.1 | BR47: =IF(BP47="",0,LOOKUP(BP47,FACTORS!$L$9:$M$128)*BP$13*BQ47) -> 0 | BT47: 1.1 | BU47: =IF(BS47="",0,LOOKUP(BS47,FACTORS!$L$9:$M$128)*BS$13*BT47) -> 0 | BW47: 1.1 | BX47: =IF(BV47="",0,LOOKUP(BV47,FACTORS!$L$9:$M$128)*BV$13*BW47) -> 0 | BZ47: 1.1 | CA47: =IF(BY47="",0,LOOKUP(BY47,FACTORS!$L$9:$M$128)*BY$13*BZ47) -> 0 | CC47: 1.1 | CD47: =IF(CB47="",0,LOOKUP(CB47,FACTORS!$L$9:$M$128)*CB$13*CC47) -> 0 | CF47: 1.1 | CG47: =IF(CE47="",0,LOOKUP(CE47,FACTORS!$L$9:$M$128)*CE$13*CF47) -> 0 | CI47: 1.1 | CJ47: =IF(CH47="",0,LOOKUP(CH47,FACTORS!$L$9:$M$128)*CH$13*CI47) -> 0 | CL47: 1.1 | CM47: =IF(CK47="",0,LOOKUP(CK47,FACTORS!$L$9:$M$128)*CK$13*CL47) -> 0 | CO47: 1.1 | CP47: =IF(CN47="",0,LOOKUP(CN47,FACTORS!$L$9:$M$128)*CN$13*CO47) -> 0 | CR47: 1.1 | CS47: =IF(CQ47="",0,LOOKUP(CQ47,FACTORS!$L$9:$M$128)*CQ$13*CR47) -> 0 | CU47: 1.1 | CV47: =IF(CT47="",0,LOOKUP(CT47,FACTORS!$L$9:$M$128)*CT$13*CU47) -> 0 | CX47: 1.1 | CY47: =IF(CW47="",0,LOOKUP(CW47,FACTORS!$L$9:$M$128)*CW$13*CX47) -> 0 | DA47: 1.1 | DB47: =IF(CZ47="",0,LOOKUP(CZ47,FACTORS!$L$9:$M$128)*CZ$13*DA47) -> 0 | DC47: 2 | DD47: 1 | DE47: =IF(DC47="",0,LOOKUP(DC47,FACTORS!$L$9:$M$128)*DC$13*DD47) -> 178.5 | DG47: 1.1 | DH47: =IF(DF47="",0,LOOKUP(DF47,FACTORS!$L$9:$M$128)*DF$13*DG47) -> 0 | DJ47: 1.1 | DK47: =IF(DI47="",0,LOOKUP(DI47,FACTORS!$L$9:$M$128)*DI$13*DJ47) -> 0 | DM47: 1 | DN47: =IF(DL47="",0,LOOKUP(DL47,FACTORS!$L$9:$M$128)*DL$13*DM47) -> 0 | DP47: 1.1 | DQ47: =IF(DO47="",0,LOOKUP(DO47,FACTORS!$L$9:$M$128)*DO$13*DP47) -> 0 | DS47: 1.1 | DT47: =IF(DR47="",0,LOOKUP(DR47,FACTORS!$L$9:$M$128)*DR$13*DS47) -> 0 | DV47: 1.1 | DW47: =IF(DU47="",0,LOOKUP(DU47,FACTORS!$L$9:$M$128)*DU$13*DV47) -> 0 | DY47: 1.1 | DZ47: =IF(DX47="",0,LOOKUP(DX47,FACTORS!$L$9:$M$128)*DX$13*DY47) -> 0 | EB47: 1 | EC47: =IF(EA47="",0,LOOKUP(EA47,FACTORS!$L$9:$M$128)*EA$13*EB47) -> 0 | EE47: 1 | EF47: =IF(ED47="",0,LOOKUP(ED47,FACTORS!$L$9:$M$128)*ED$13*EE47) -> 0 | EH47: 1 | EI47: =IF(EG47="",0,LOOKUP(EG47,FACTORS!$L$9:$M$128)*EG$13*EH47) -> 0 | EK47: 1 | EL47: =IF(EJ47="",0,LOOKUP(EJ47,FACTORS!$L$9:$M$128)*EJ$13*EK47) -> 0 | EN47: 1 | EO47: =IF(EM47="",0,LOOKUP(EM47,FACTORS!$L$9:$M$128)*EM$13*EN47) -> 0 | EQ47: 1 | ER47: =IF(EP47="",0,LOOKUP(EP47,FACTORS!$L$9:$M$128)*EP$13*EQ47) -> 0 | ET47: 1 | EU47: =IF(ES47="",0,LOOKUP(ES47,FACTORS!$L$9:$M$128)*ES$13*ET47) -> 0 | EW47: 1 | EX47: =IF(EV47="",0,LOOKUP(EV47,FACTORS!$L$9:$M$128)*EV$13*EW47) -> 0 | EZ47: 1 | FA47: =IF(EY47="",0,LOOKUP(EY47,FACTORS!$L$9:$M$128)*EY$13*EZ47) -> 0 | FC47: 1 | FD47: =IF(FB47="",0,LOOKUP(FB47,FACTORS!$L$9:$M$128)*FB$13*FC47) -> 0 | FF47: 1 | FG47: =IF(FE47="",0,LOOKUP(FE47,FACTORS!$L$9:$M$128)*FE$13*FF47) -> 0 | FI47: 1 | FJ47: =IF(FH47="",0,LOOKUP(FH47,FACTORS!$L$9:$M$128)*FH$13*FI47) -> 0 | FL47: 1 | FM47: =IF(FK47="",0,LOOKUP(FK47,FACTORS!$L$9:$M$128)*FK$13*FL47) -> 0
B48: 32 | C48: Tiago Roquette | D48: POR | F48: 513 | G48: 513 points | I48: 1.1 | J48: =IF(H48="",0,LOOKUP(H48,FACTORS!$L$9:$M$128)*H$13*I48) -> 0 | L48: 1.1 | M48: =IF(K48="",0,LOOKUP(K48,FACTORS!$L$9:$M$128)*K$13*L48) -> 0 | O48: 1.1 | P48: =IF(N48="",0,LOOKUP(N48,FACTORS!$L$9:$M$128)*N$13*O48) -> 0 | Q48: 1 | R48: 1 | S48: =IF(Q48="",0,LOOKUP(Q48,FACTORS!$L$9:$M$128)*Q$13*R48) -> 156 | U48: 1.1 | V48: =IF(T48="",0,LOOKUP(T48,FACTORS!$L$9:$M$128)*T$13*U48) -> 0 | X48: 1.1 | Y48: =IF(W48="",0,LOOKUP(W48,FACTORS!$L$9:$M$128)*W$13*X48) -> 0 | AA48: 1.1 | AB48: =IF(Z48="",0,LOOKUP(Z48,FACTORS!$L$9:$M$128)*Z$13*AA48) -> 0 | AD48: 1.1 | AE48: =IF(AC48="",0,LOOKUP(AC48,FACTORS!$L$9:$M$128)*AC$13*AD48) -> 0 | AG48: 1.1 | AH48: =IF(AF48="",0,LOOKUP(AF48,FACTORS!$L$9:$M$128)*AF$13*AG48) -> 0 | AJ48: 1.1 | AK48: =IF(AI48="",0,LOOKUP(AI48,FACTORS!$L$9:$M$128)*AI$13*AJ48) -> 0 | AM48: 1.1 | AN48: =IF(AL48="",0,LOOKUP(AL48,FACTORS!$L$9:$M$128)*AL$13*AM48) -> 0 | AP48: 1.1 | AQ48: =IF(AO48="",0,LOOKUP(AO48,FACTORS!$L$9:$M$128)*AO$13*AP48) -> 0 | AS48: 1.1 | AT48: =IF(AR48="",0,LOOKUP(AR48,FACTORS!$L$9:$M$128)*AR$13*AS48) -> 0 | AV48: 1.1 | AW48: =IF(AU48="",0,LOOKUP(AU48,FACTORS!$L$9:$M$128)*AU$13*AV48) -> 0 | AX48: 3 | AY48: 1 | AZ48: =IF(AX48="",0,LOOKUP(AX48,FACTORS!$L$9:$M$128)*AX$13*AY48) -> 177 | BB48: 1.1 | BC48: =IF(BA48="",0,LOOKUP(BA48,FACTORS!$L$9:$M$128)*BA$13*BB48) -> 0 | BE48: 1.1 | BF48: =IF(BD48="",0,LOOKUP(BD48,FACTORS!$L$9:$M$128)*BD$13*BE48) -> 0 | BH48: 1.1 | BI48: =IF(BG48="",0,LOOKUP(BG48,FACTORS!$L$9:$M$128)*BG$13*BH48) -> 0 | BK48: 1.1 | BL48: =IF(BJ48="",0,LOOKUP(BJ48,FACTORS!$L$9:$M$128)*BJ$13*BK48) -> 0 | BN48: 1.1 | BO48: =IF(BM48="",0,LOOKUP(BM48,FACTORS!$L$9:$M$128)*BM$13*BN48) -> 0 | BQ48: 1.1 | BR48: =IF(BP48="",0,LOOKUP(BP48,FACTORS!$L$9:$M$128)*BP$13*BQ48) -> 0 | BT48: 1.1 | BU48: =IF(BS48="",0,LOOKUP(BS48,FACTORS!$L$9:$M$128)*BS$13*BT48) -> 0 | BW48: 1.1 | BX48: =IF(BV48="",0,LOOKUP(BV48,FACTORS!$L$9:$M$128)*BV$13*BW48) -> 0 | BZ48: 1.1 | CA48: =IF(BY48="",0,LOOKUP(BY48,FACTORS!$L$9:$M$128)*BY$13*BZ48) -> 0 | CC48: 1.1 | CD48: =IF(CB48="",0,LOOKUP(CB48,FACTORS!$L$9:$M$128)*CB$13*CC48) -> 0 | CF48: 1.1 | CG48: =IF(CE48="",0,LOOKUP(CE48,FACTORS!$L$9:$M$128)*CE$13*CF48) -> 0 | CI48: 1.1 | CJ48: =IF(CH48="",0,LOOKUP(CH48,FACTORS!$L$9:$M$128)*CH$13*CI48) -> 0 | CL48: 1.1 | CM48: =IF(CK48="",0,LOOKUP(CK48,FACTORS!$L$9:$M$128)*CK$13*CL48) -> 0 | CO48: 1.1 | CP48: =IF(CN48="",0,LOOKUP(CN48,FACTORS!$L$9:$M$128)*CN$13*CO48) -> 0 | CR48: 1.1 | CS48: =IF(CQ48="",0,LOOKUP(CQ48,FACTORS!$L$9:$M$128)*CQ$13*CR48) -> 0 | CU48: 1.1 | CV48: =IF(CT48="",0,LOOKUP(CT48,FACTORS!$L$9:$M$128)*CT$13*CU48) -> 0 | CX48: 1.1 | CY48: =IF(CW48="",0,LOOKUP(CW48,FACTORS!$L$9:$M$128)*CW$13*CX48) -> 0 | DA48: 1.1 | DB48: =IF(CZ48="",0,LOOKUP(CZ48,FACTORS!$L$9:$M$128)*CZ$13*DA48) -> 0 | DC48: 1 | DD48: 1 | DE48: =IF(DC48="",0,LOOKUP(DC48,FACTORS!$L$9:$M$128)*DC$13*DD48) -> 180 | DG48: 1.1 | DH48: =IF(DF48="",0,LOOKUP(DF48,FACTORS!$L$9:$M$128)*DF$13*DG48) -> 0 | DJ48: 1.1 | DK48: =IF(DI48="",0,LOOKUP(DI48,FACTORS!$L$9:$M$128)*DI$13*DJ48) -> 0 | DM48: 1 | DN48: =IF(DL48="",0,LOOKUP(DL48,FACTORS!$L$9:$M$128)*DL$13*DM48) -> 0 | DP48: 1.1 | DQ48: =IF(DO48="",0,LOOKUP(DO48,FACTORS!$L$9:$M$128)*DO$13*DP48) -> 0 | DS48: 1.1 | DT48: =IF(DR48="",0,LOOKUP(DR48,FACTORS!$L$9:$M$128)*DR$13*DS48) -> 0 | DV48: 1.1 | DW48: =IF(DU48="",0,LOOKUP(DU48,FACTORS!$L$9:$M$128)*DU$13*DV48) -> 0 | DY48: 1.1 | DZ48: =IF(DX48="",0,LOOKUP(DX48,FACTORS!$L$9:$M$128)*DX$13*DY48) -> 0 | EB48: 1 | EC48: =IF(EA48="",0,LOOKUP(EA48,FACTORS!$L$9:$M$128)*EA$13*EB48) -> 0 | EE48: 1 | EF48: =IF(ED48="",0,LOOKUP(ED48,FACTORS!$L$9:$M$128)*ED$13*EE48) -> 0 | EH48: 1 | EI48: =IF(EG48="",0,LOOKUP(EG48,FACTORS!$L$9:$M$128)*EG$13*EH48) -> 0 | EK48: 1 | EL48: =IF(EJ48="",0,LOOKUP(EJ48,FACTORS!$L$9:$M$128)*EJ$13*EK48) -> 0 | EN48: 1 | EO48: =IF(EM48="",0,LOOKUP(EM48,FACTORS!$L$9:$M$128)*EM$13*EN48) -> 0 | EQ48: 1 | ER48: =IF(EP48="",0,LOOKUP(EP48,FACTORS!$L$9:$M$128)*EP$13*EQ48) -> 0 | ET48: 1 | EU48: =IF(ES48="",0,LOOKUP(ES48,FACTORS!$L$9:$M$128)*ES$13*ET48) -> 0 | EW48: 1 | EX48: =IF(EV48="",0,LOOKUP(EV48,FACTORS!$L$9:$M$128)*EV$13*EW48) -> 0 | EZ48: 1 | FA48: =IF(EY48="",0,LOOKUP(EY48,FACTORS!$L$9:$M$128)*EY$13*EZ48) -> 0 | FC48: 1 | FD48: =IF(FB48="",0,LOOKUP(FB48,FACTORS!$L$9:$M$128)*FB$13*FC48) -> 0 | FF48: 1 | FG48: =IF(FE48="",0,LOOKUP(FE48,FACTORS!$L$9:$M$128)*FE$13*FF48) -> 0 | FI48: 1 | FJ48: =IF(FH48="",0,LOOKUP(FH48,FACTORS!$L$9:$M$128)*FH$13*FI48) -> 0 | FL48: 1 | FM48: =IF(FK48="",0,LOOKUP(FK48,FACTORS!$L$9:$M$128)*FK$13*FL48) -> 0
B49: 33 | C49: Dario Uber | D49: ITA | F49: 509.7 | G49: 509,7 points | I49: =IF($D49=H$9,1,H$14) -> 1.1 | J49: =IF(H49="",0,LOOKUP(H49,FACTORS!$L$9:$M$128)*H$13*I49) -> 0 | L49: =IF($D49=K$9,1,K$14) -> 1.1 | M49: =IF(K49="",0,LOOKUP(K49,FACTORS!$L$9:$M$128)*K$13*L49) -> 0 | O49: 1.1 | P49: =IF(N49="",0,LOOKUP(N49,FACTORS!$L$9:$M$128)*N$13*O49) -> 0 | R49: 1.1 | S49: =IF(Q49="",0,LOOKUP(Q49,FACTORS!$L$9:$M$128)*Q$13*R49) -> 0 | U49: 1.1 | V49: =IF(T49="",0,LOOKUP(T49,FACTORS!$L$9:$M$128)*T$13*U49) -> 0 | X49: 1.1 | Y49: =IF(W49="",0,LOOKUP(W49,FACTORS!$L$9:$M$128)*W$13*X49) -> 0 | AA49: 1.1 | AB49: =IF(Z49="",0,LOOKUP(Z49,FACTORS!$L$9:$M$128)*Z$13*AA49) -> 0 | AD49: 1.1 | AE49: =IF(AC49="",0,LOOKUP(AC49,FACTORS!$L$9:$M$128)*AC$13*AD49) -> 0 | AG49: 1.1 | AH49: =IF(AF49="",0,LOOKUP(AF49,FACTORS!$L$9:$M$128)*AF$13*AG49) -> 0 | AJ49: 1.1 | AK49: =IF(AI49="",0,LOOKUP(AI49,FACTORS!$L$9:$M$128)*AI$13*AJ49) -> 0 | AM49: 1.1 | AN49: =IF(AL49="",0,LOOKUP(AL49,FACTORS!$L$9:$M$128)*AL$13*AM49) -> 0 | AP49: 1.1 | AQ49: =IF(AO49="",0,LOOKUP(AO49,FACTORS!$L$9:$M$128)*AO$13*AP49) -> 0 | AS49: 1.1 | AT49: =IF(AR49="",0,LOOKUP(AR49,FACTORS!$L$9:$M$128)*AR$13*AS49) -> 0 | AV49: 1.1 | AW49: =IF(AU49="",0,LOOKUP(AU49,FACTORS!$L$9:$M$128)*AU$13*AV49) -> 0 | AY49: 1.1 | AZ49: =IF(AX49="",0,LOOKUP(AX49,FACTORS!$L$9:$M$128)*AX$13*AY49) -> 0 | BB49: 1.1 | BC49: =IF(BA49="",0,LOOKUP(BA49,FACTORS!$L$9:$M$128)*BA$13*BB49) -> 0 | BE49: 1.1 | BF49: =IF(BD49="",0,LOOKUP(BD49,FACTORS!$L$9:$M$128)*BD$13*BE49) -> 0 | BH49: 1 | BI49: =IF(BG49="",0,LOOKUP(BG49,FACTORS!$L$9:$M$128)*BG$13*BH49) -> 0 | BK49: 1 | BL49: =IF(BJ49="",0,LOOKUP(BJ49,FACTORS!$L$9:$M$128)*BJ$13*BK49) -> 0 | BN49: 1.1 | BO49: =IF(BM49="",0,LOOKUP(BM49,FACTORS!$L$9:$M$128)*BM$13*BN49) -> 0 | BQ49: 1.1 | BR49: =IF(BP49="",0,LOOKUP(BP49,FACTORS!$L$9:$M$128)*BP$13*BQ49) -> 0 | BT49: 1.1 | BU49: =IF(BS49="",0,LOOKUP(BS49,FACTORS!$L$9:$M$128)*BS$13*BT49) -> 0 | BW49: 1.1 | BX49: =IF(BV49="",0,LOOKUP(BV49,FACTORS!$L$9:$M$128)*BV$13*BW49) -> 0 | BZ49: 1.1 | CA49: =IF(BY49="",0,LOOKUP(BY49,FACTORS!$L$9:$M$128)*BY$13*BZ49) -> 0 | CB49: 5 | CC49: 1 | CD49: =IF(CB49="",0,LOOKUP(CB49,FACTORS!$L$9:$M$128)*CB$13*CC49) -> 174 | CF49: 1.1 | CG49: =IF(CE49="",0,LOOKUP(CE49,FACTORS!$L$9:$M$128)*CE$13*CF49) -> 0 | CI49: 1.1 | CJ49: =IF(CH49="",0,LOOKUP(CH49,FACTORS!$L$9:$M$128)*CH$13*CI49) -> 0 | CK49: 22 | CL49: 1 | CM49: =IF(CK49="",0,LOOKUP(CK49,FACTORS!$L$9:$M$128)*CK$13*CL49) -> 128.7 | CO49: 1.1 | CP49: =IF(CN49="",0,LOOKUP(CN49,FACTORS!$L$9:$M$128)*CN$13*CO49) -> 0 | CR49: 1.1 | CS49: =IF(CQ49="",0,LOOKUP(CQ49,FACTORS!$L$9:$M$128)*CQ$13*CR49) -> 0 | CU49: 1.1 | CV49: =IF(CT49="",0,LOOKUP(CT49,FACTORS!$L$9:$M$128)*CT$13*CU49) -> 0 | CX49: 1.1 | CY49: =IF(CW49="",0,LOOKUP(CW49,FACTORS!$L$9:$M$128)*CW$13*CX49) -> 0 | DA49: 1.1 | DB49: =IF(CZ49="",0,LOOKUP(CZ49,FACTORS!$L$9:$M$128)*CZ$13*DA49) -> 0 | DD49: 1.1 | DE49: =IF(DC49="",0,LOOKUP(DC49,FACTORS!$L$9:$M$128)*DC$13*DD49) -> 0 | DG49: 1.1 | DH49: =IF(DF49="",0,LOOKUP(DF49,FACTORS!$L$9:$M$128)*DF$13*DG49) -> 0 | DJ49: 1.1 | DK49: =IF(DI49="",0,LOOKUP(DI49,FACTORS!$L$9:$M$128)*DI$13*DJ49) -> 0 | DL49: 6 | DM49: 1 | DN49: =IF(DL49="",0,LOOKUP(DL49,FACTORS!$L$9:$M$128)*DL$13*DM49) -> 207 | DP49: 1.1 | DQ49: =IF(DO49="",0,LOOKUP(DO49,FACTORS!$L$9:$M$128)*DO$13*DP49) -> 0 | DS49: 1.1 | DT49: =IF(DR49="",0,LOOKUP(DR49,FACTORS!$L$9:$M$128)*DR$13*DS49) -> 0 | DV49: 1.1 | DW49: =IF(DU49="",0,LOOKUP(DU49,FACTORS!$L$9:$M$128)*DU$13*DV49) -> 0 | DY49: 1.1 | DZ49: =IF(DX49="",0,LOOKUP(DX49,FACTORS!$L$9:$M$128)*DX$13*DY49) -> 0 | EB49: 1 | EC49: =IF(EA49="",0,LOOKUP(EA49,FACTORS!$L$9:$M$128)*EA$13*EB49) -> 0 | EE49: 1 | EF49: =IF(ED49="",0,LOOKUP(ED49,FACTORS!$L$9:$M$128)*ED$13*EE49) -> 0 | EH49: 1 | EI49: =IF(EG49="",0,LOOKUP(EG49,FACTORS!$L$9:$M$128)*EG$13*EH49) -> 0 | EK49: 1 | EL49: =IF(EJ49="",0,LOOKUP(EJ49,FACTORS!$L$9:$M$128)*EJ$13*EK49) -> 0 | EN49: 1 | EO49: =IF(EM49="",0,LOOKUP(EM49,FACTORS!$L$9:$M$128)*EM$13*EN49) -> 0 | EQ49: 1 | ER49: =IF(EP49="",0,LOOKUP(EP49,FACTORS!$L$9:$M$128)*EP$13*EQ49) -> 0 | ET49: 1 | EU49: =IF(ES49="",0,LOOKUP(ES49,FACTORS!$L$9:$M$128)*ES$13*ET49) -> 0 | EW49: 1 | EX49: =IF(EV49="",0,LOOKUP(EV49,FACTORS!$L$9:$M$128)*EV$13*EW49) -> 0 | EZ49: 1 | FA49: =IF(EY49="",0,LOOKUP(EY49,FACTORS!$L$9:$M$128)*EY$13*EZ49) -> 0 | FC49: 1 | FD49: =IF(FB49="",0,LOOKUP(FB49,FACTORS!$L$9:$M$128)*FB$13*FC49) -> 0 | FF49: 1 | FG49: =IF(FE49="",0,LOOKUP(FE49,FACTORS!$L$9:$M$128)*FE$13*FF49) -> 0 | FI49: 1 | FJ49: =IF(FH49="",0,LOOKUP(FH49,FACTORS!$L$9:$M$128)*FH$13*FI49) -> 0 | FL49: 1 | FM49: =IF(FK49="",0,LOOKUP(FK49,FACTORS!$L$9:$M$128)*FK$13*FL49) -> 0
B50: 34 | C50: Carlos Ordoñez Vergara | D50: ESP | F50: 509.4 | G50: 509,4 points | I50: 1.1 | J50: =IF(H50="",0,LOOKUP(H50,FACTORS!$L$9:$M$128)*H$13*I50) -> 0 | L50: 1.1 | M50: =IF(K50="",0,LOOKUP(K50,FACTORS!$L$9:$M$128)*K$13*L50) -> 0 | O50: 1.1 | P50: =IF(N50="",0,LOOKUP(N50,FACTORS!$L$9:$M$128)*N$13*O50) -> 0 | R50: 1.1 | S50: =IF(Q50="",0,LOOKUP(Q50,FACTORS!$L$9:$M$128)*Q$13*R50) -> 0 | U50: 1.1 | V50: =IF(T50="",0,LOOKUP(T50,FACTORS!$L$9:$M$128)*T$13*U50) -> 0 | X50: 1.1 | Y50: =IF(W50="",0,LOOKUP(W50,FACTORS!$L$9:$M$128)*W$13*X50) -> 0 | AA50: 1.1 | AB50: =IF(Z50="",0,LOOKUP(Z50,FACTORS!$L$9:$M$128)*Z$13*AA50) -> 0 | AC50: 7 | AD50: 1 | AE50: =IF(AC50="",0,LOOKUP(AC50,FACTORS!$L$9:$M$128)*AC$13*AD50) -> 148.2 | AG50: 1.1 | AH50: =IF(AF50="",0,LOOKUP(AF50,FACTORS!$L$9:$M$128)*AF$13*AG50) -> 0 | AJ50: 1.1 | AK50: =IF(AI50="",0,LOOKUP(AI50,FACTORS!$L$9:$M$128)*AI$13*AJ50) -> 0 | AM50: 1 | AN50: =IF(AL50="",0,LOOKUP(AL50,FACTORS!$L$9:$M$128)*AL$13*AM50) -> 0 | AP50: 1.1 | AQ50: =IF(AO50="",0,LOOKUP(AO50,FACTORS!$L$9:$M$128)*AO$13*AP50) -> 0 | AS50: 1.1 | AT50: =IF(AR50="",0,LOOKUP(AR50,FACTORS!$L$9:$M$128)*AR$13*AS50) -> 0 | AU50: 10 | AV50: 1 | AW50: =IF(AU50="",0,LOOKUP(AU50,FACTORS!$L$9:$M$128)*AU$13*AV50) -> 166.5 | AY50: 1.1 | AZ50: =IF(AX50="",0,LOOKUP(AX50,FACTORS!$L$9:$M$128)*AX$13*AY50) -> 0 | BB50: 1.1 | BC50: =IF(BA50="",0,LOOKUP(BA50,FACTORS!$L$9:$M$128)*BA$13*BB50) -> 0 | BE50: 1.1 | BF50: =IF(BD50="",0,LOOKUP(BD50,FACTORS!$L$9:$M$128)*BD$13*BE50) -> 0 | BH50: 1.1 | BI50: =IF(BG50="",0,LOOKUP(BG50,FACTORS!$L$9:$M$128)*BG$13*BH50) -> 0 | BK50: 1.1 | BL50: =IF(BJ50="",0,LOOKUP(BJ50,FACTORS!$L$9:$M$128)*BJ$13*BK50) -> 0 | BN50: 1.1 | BO50: =IF(BM50="",0,LOOKUP(BM50,FACTORS!$L$9:$M$128)*BM$13*BN50) -> 0 | BQ50: 1.1 | BR50: =IF(BP50="",0,LOOKUP(BP50,FACTORS!$L$9:$M$128)*BP$13*BQ50) -> 0 | BT50: 1.1 | BU50: =IF(BS50="",0,LOOKUP(BS50,FACTORS!$L$9:$M$128)*BS$13*BT50) -> 0 | BW50: 1.1 | BX50: =IF(BV50="",0,LOOKUP(BV50,FACTORS!$L$9:$M$128)*BV$13*BW50) -> 0 | BZ50: 1.1 | CA50: =IF(BY50="",0,LOOKUP(BY50,FACTORS!$L$9:$M$128)*BY$13*BZ50) -> 0 | CC50: 1.1 | CD50: =IF(CB50="",0,LOOKUP(CB50,FACTORS!$L$9:$M$128)*CB$13*CC50) -> 0 | CF50: 1.1 | CG50: =IF(CE50="",0,LOOKUP(CE50,FACTORS!$L$9:$M$128)*CE$13*CF50) -> 0 | CH50: 3 | CI50: 1.1 | CJ50: =IF(CH50="",0,LOOKUP(CH50,FACTORS!$L$9:$M$128)*CH$13*CI50) -> 194.7 | CL50: 1.1 | CM50: =IF(CK50="",0,LOOKUP(CK50,FACTORS!$L$9:$M$128)*CK$13*CL50) -> 0 | CO50: 1 | CP50: =IF(CN50="",0,LOOKUP(CN50,FACTORS!$L$9:$M$128)*CN$13*CO50) -> 0 | CR50: 1.1 | CS50: =IF(CQ50="",0,LOOKUP(CQ50,FACTORS!$L$9:$M$128)*CQ$13*CR50) -> 0 | CU50: 1.1 | CV50: =IF(CT50="",0,LOOKUP(CT50,FACTORS!$L$9:$M$128)*CT$13*CU50) -> 0 | CX50: 1.1 | CY50: =IF(CW50="",0,LOOKUP(CW50,FACTORS!$L$9:$M$128)*CW$13*CX50) -> 0 | DA50: 1.1 | DB50: =IF(CZ50="",0,LOOKUP(CZ50,FACTORS!$L$9:$M$128)*CZ$13*DA50) -> 0 | DD50: 1.1 | DE50: =IF(DC50="",0,LOOKUP(DC50,FACTORS!$L$9:$M$128)*DC$13*DD50) -> 0 | DG50: 1.1 | DH50: =IF(DF50="",0,LOOKUP(DF50,FACTORS!$L$9:$M$128)*DF$13*DG50) -> 0 | DJ50: 1.1 | DK50: =IF(DI50="",0,LOOKUP(DI50,FACTORS!$L$9:$M$128)*DI$13*DJ50) -> 0 | DM50: 1 | DN50: =IF(DL50="",0,LOOKUP(DL50,FACTORS!$L$9:$M$128)*DL$13*DM50) -> 0 | DP50: 1.1 | DQ50: =IF(DO50="",0,LOOKUP(DO50,FACTORS!$L$9:$M$128)*DO$13*DP50) -> 0 | DS50: 1.1 | DT50: =IF(DR50="",0,LOOKUP(DR50,FACTORS!$L$9:$M$128)*DR$13*DS50) -> 0 | DV50: 1.1 | DW50: =IF(DU50="",0,LOOKUP(DU50,FACTORS!$L$9:$M$128)*DU$13*DV50) -> 0 | DY50: 1.1 | DZ50: =IF(DX50="",0,LOOKUP(DX50,FACTORS!$L$9:$M$128)*DX$13*DY50) -> 0 | EB50: 1 | EC50: =IF(EA50="",0,LOOKUP(EA50,FACTORS!$L$9:$M$128)*EA$13*EB50) -> 0 | EE50: 1 | EF50: =IF(ED50="",0,LOOKUP(ED50,FACTORS!$L$9:$M$128)*ED$13*EE50) -> 0 | EH50: 1 | EI50: =IF(EG50="",0,LOOKUP(EG50,FACTORS!$L$9:$M$128)*EG$13*EH50) -> 0 | EK50: 1 | EL50: =IF(EJ50="",0,LOOKUP(EJ50,FACTORS!$L$9:$M$128)*EJ$13*EK50) -> 0 | EN50: 1 | EO50: =IF(EM50="",0,LOOKUP(EM50,FACTORS!$L$9:$M$128)*EM$13*EN50) -> 0 | EQ50: 1 | ER50: =IF(EP50="",0,LOOKUP(EP50,FACTORS!$L$9:$M$128)*EP$13*EQ50) -> 0 | ET50: 1 | EU50: =IF(ES50="",0,LOOKUP(ES50,FACTORS!$L$9:$M$128)*ES$13*ET50) -> 0 | EW50: 1 | EX50: =IF(EV50="",0,LOOKUP(EV50,FACTORS!$L$9:$M$128)*EV$13*EW50) -> 0 | EZ50: 1 | FA50: =IF(EY50="",0,LOOKUP(EY50,FACTORS!$L$9:$M$128)*EY$13*EZ50) -> 0 | FC50: 1 | FD50: =IF(FB50="",0,LOOKUP(FB50,FACTORS!$L$9:$M$128)*FB$13*FC50) -> 0 | FF50: 1 | FG50: =IF(FE50="",0,LOOKUP(FE50,FACTORS!$L$9:$M$128)*FE$13*FF50) -> 0 | FI50: 1 | FJ50: =IF(FH50="",0,LOOKUP(FH50,FACTORS!$L$9:$M$128)*FH$13*FI50) -> 0 | FL50: 1 | FM50: =IF(FK50="",0,LOOKUP(FK50,FACTORS!$L$9:$M$128)*FK$13*FL50) -> 0
B51: 35 | C51: Roberto Emer | D51: ITA | F51: 506 | G51: 506 points | I51: 1.1 | J51: =IF(H51="",0,LOOKUP(H51,FACTORS!$L$9:$M$128)*H$13*I51) -> 0 | L51: 1.1 | M51: =IF(K51="",0,LOOKUP(K51,FACTORS!$L$9:$M$128)*K$13*L51) -> 0 | O51: 1.1 | P51: =IF(N51="",0,LOOKUP(N51,FACTORS!$L$9:$M$128)*N$13*O51) -> 0 | R51: 1.1 | S51: =IF(Q51="",0,LOOKUP(Q51,FACTORS!$L$9:$M$128)*Q$13*R51) -> 0 | U51: 1.1 | V51: =IF(T51="",0,LOOKUP(T51,FACTORS!$L$9:$M$128)*T$13*U51) -> 0 | X51: 1.1 | Y51: =IF(W51="",0,LOOKUP(W51,FACTORS!$L$9:$M$128)*W$13*X51) -> 0 | AA51: 1.1 | AB51: =IF(Z51="",0,LOOKUP(Z51,FACTORS!$L$9:$M$128)*Z$13*AA51) -> 0 | AD51: 1.1 | AE51: =IF(AC51="",0,LOOKUP(AC51,FACTORS!$L$9:$M$128)*AC$13*AD51) -> 0 | AG51: 1.1 | AH51: =IF(AF51="",0,LOOKUP(AF51,FACTORS!$L$9:$M$128)*AF$13*AG51) -> 0 | AJ51: 1.1 | AK51: =IF(AI51="",0,LOOKUP(AI51,FACTORS!$L$9:$M$128)*AI$13*AJ51) -> 0 | AM51: 1.1 | AN51: =IF(AL51="",0,LOOKUP(AL51,FACTORS!$L$9:$M$128)*AL$13*AM51) -> 0 | AP51: 1.1 | AQ51: =IF(AO51="",0,LOOKUP(AO51,FACTORS!$L$9:$M$128)*AO$13*AP51) -> 0 | AS51: 1.1 | AT51: =IF(AR51="",0,LOOKUP(AR51,FACTORS!$L$9:$M$128)*AR$13*AS51) -> 0 | AV51: 1.1 | AW51: =IF(AU51="",0,LOOKUP(AU51,FACTORS!$L$9:$M$128)*AU$13*AV51) -> 0 | AY51: 1.1 | AZ51: =IF(AX51="",0,LOOKUP(AX51,FACTORS!$L$9:$M$128)*AX$13*AY51) -> 0 | BB51: 1.1 | BC51: =IF(BA51="",0,LOOKUP(BA51,FACTORS!$L$9:$M$128)*BA$13*BB51) -> 0 | BE51: 1.1 | BF51: =IF(BD51="",0,LOOKUP(BD51,FACTORS!$L$9:$M$128)*BD$13*BE51) -> 0 | BH51: 1 | BI51: =IF(BG51="",0,LOOKUP(BG51,FACTORS!$L$9:$M$128)*BG$13*BH51) -> 0 | BK51: 1 | BL51: =IF(BJ51="",0,LOOKUP(BJ51,FACTORS!$L$9:$M$128)*BJ$13*BK51) -> 0 | BN51: 1.1 | BO51: =IF(BM51="",0,LOOKUP(BM51,FACTORS!$L$9:$M$128)*BM$13*BN51) -> 0 | BQ51: 1.1 | BR51: =IF(BP51="",0,LOOKUP(BP51,FACTORS!$L$9:$M$128)*BP$13*BQ51) -> 0 | BT51: 1.1 | BU51: =IF(BS51="",0,LOOKUP(BS51,FACTORS!$L$9:$M$128)*BS$13*BT51) -> 0 | BW51: 1.1 | BX51: =IF(BV51="",0,LOOKUP(BV51,FACTORS!$L$9:$M$128)*BV$13*BW51) -> 0 | BZ51: 1.1 | CA51: =IF(BY51="",0,LOOKUP(BY51,FACTORS!$L$9:$M$128)*BY$13*BZ51) -> 0 | CB51: 7 | CC51: 1 | CD51: =IF(CB51="",0,LOOKUP(CB51,FACTORS!$L$9:$M$128)*CB$13*CC51) -> 171 | CF51: 1.1 | CG51: =IF(CE51="",0,LOOKUP(CE51,FACTORS!$L$9:$M$128)*CE$13*CF51) -> 0 | CI51: 1.1 | CJ51: =IF(CH51="",0,LOOKUP(CH51,FACTORS!$L$9:$M$128)*CH$13*CI51) -> 0 | CK51: 17 | CL51: 1 | CM51: =IF(CK51="",0,LOOKUP(CK51,FACTORS!$L$9:$M$128)*CK$13*CL51) -> 135.2 | CO51: 1.1 | CP51: =IF(CN51="",0,LOOKUP(CN51,FACTORS!$L$9:$M$128)*CN$13*CO51) -> 0 | CR51: 1.1 | CS51: =IF(CQ51="",0,LOOKUP(CQ51,FACTORS!$L$9:$M$128)*CQ$13*CR51) -> 0 | CU51: 1.1 | CV51: =IF(CT51="",0,LOOKUP(CT51,FACTORS!$L$9:$M$128)*CT$13*CU51) -> 0 | CX51: 1.1 | CY51: =IF(CW51="",0,LOOKUP(CW51,FACTORS!$L$9:$M$128)*CW$13*CX51) -> 0 | DA51: 1.1 | DB51: =IF(CZ51="",0,LOOKUP(CZ51,FACTORS!$L$9:$M$128)*CZ$13*DA51) -> 0 | DD51: 1.1 | DE51: =IF(DC51="",0,LOOKUP(DC51,FACTORS!$L$9:$M$128)*DC$13*DD51) -> 0 | DG51: 1.1 | DH51: =IF(DF51="",0,LOOKUP(DF51,FACTORS!$L$9:$M$128)*DF$13*DG51) -> 0 | DJ51: 1.1 | DK51: =IF(DI51="",0,LOOKUP(DI51,FACTORS!$L$9:$M$128)*DI$13*DJ51) -> 0 | DL51: 10 | DM51: 1 | DN51: =IF(DL51="",0,LOOKUP(DL51,FACTORS!$L$9:$M$128)*DL$13*DM51) -> 199.8 | DP51: 1.1 | DQ51: =IF(DO51="",0,LOOKUP(DO51,FACTORS!$L$9:$M$128)*DO$13*DP51) -> 0 | DS51: 1.1 | DT51: =IF(DR51="",0,LOOKUP(DR51,FACTORS!$L$9:$M$128)*DR$13*DS51) -> 0 | DV51: 1.1 | DW51: =IF(DU51="",0,LOOKUP(DU51,FACTORS!$L$9:$M$128)*DU$13*DV51) -> 0 | DY51: 1.1 | DZ51: =IF(DX51="",0,LOOKUP(DX51,FACTORS!$L$9:$M$128)*DX$13*DY51) -> 0 | EB51: 1 | EC51: =IF(EA51="",0,LOOKUP(EA51,FACTORS!$L$9:$M$128)*EA$13*EB51) -> 0 | EE51: 1 | EF51: =IF(ED51="",0,LOOKUP(ED51,FACTORS!$L$9:$M$128)*ED$13*EE51) -> 0 | EH51: 1 | EI51: =IF(EG51="",0,LOOKUP(EG51,FACTORS!$L$9:$M$128)*EG$13*EH51) -> 0 | EK51: 1 | EL51: =IF(EJ51="",0,LOOKUP(EJ51,FACTORS!$L$9:$M$128)*EJ$13*EK51) -> 0 | EN51: 1 | EO51: =IF(EM51="",0,LOOKUP(EM51,FACTORS!$L$9:$M$128)*EM$13*EN51) -> 0 | EQ51: 1 | ER51: =IF(EP51="",0,LOOKUP(EP51,FACTORS!$L$9:$M$128)*EP$13*EQ51) -> 0 | ET51: 1 | EU51: =IF(ES51="",0,LOOKUP(ES51,FACTORS!$L$9:$M$128)*ES$13*ET51) -> 0 | EW51: 1 | EX51: =IF(EV51="",0,LOOKUP(EV51,FACTORS!$L$9:$M$128)*EV$13*EW51) -> 0 | EZ51: 1 | FA51: =IF(EY51="",0,LOOKUP(EY51,FACTORS!$L$9:$M$128)*EY$13*EZ51) -> 0 | FC51: 1 | FD51: =IF(FB51="",0,LOOKUP(FB51,FACTORS!$L$9:$M$128)*FB$13*FC51) -> 0 | FF51: 1 | FG51: =IF(FE51="",0,LOOKUP(FE51,FACTORS!$L$9:$M$128)*FE$13*FF51) -> 0 | FI51: 1 | FJ51: =IF(FH51="",0,LOOKUP(FH51,FACTORS!$L$9:$M$128)*FH$13*FI51) -> 0 | FL51: 1 | FM51: =IF(FK51="",0,LOOKUP(FK51,FACTORS!$L$9:$M$128)*FK$13*FL51) -> 0
B52: 36 | C52: Pedro Barreto | D52: POR | F52: 504.4 | G52: 504,4 points | I52: 1.1 | J52: =IF(H52="",0,LOOKUP(H52,FACTORS!$L$9:$M$128)*H$13*I52) -> 0 | L52: 1.1 | M52: =IF(K52="",0,LOOKUP(K52,FACTORS!$L$9:$M$128)*K$13*L52) -> 0 | O52: 1.1 | P52: =IF(N52="",0,LOOKUP(N52,FACTORS!$L$9:$M$128)*N$13*O52) -> 0 | Q52: 3 | R52: 1 | S52: =IF(Q52="",0,LOOKUP(Q52,FACTORS!$L$9:$M$128)*Q$13*R52) -> 153.4 | U52: 1.1 | V52: =IF(T52="",0,LOOKUP(T52,FACTORS!$L$9:$M$128)*T$13*U52) -> 0 | X52: 1.1 | Y52: =IF(W52="",0,LOOKUP(W52,FACTORS!$L$9:$M$128)*W$13*X52) -> 0 | AA52: 1.1 | AB52: =IF(Z52="",0,LOOKUP(Z52,FACTORS!$L$9:$M$128)*Z$13*AA52) -> 0 | AD52: 1.1 | AE52: =IF(AC52="",0,LOOKUP(AC52,FACTORS!$L$9:$M$128)*AC$13*AD52) -> 0 | AG52: 1.1 | AH52: =IF(AF52="",0,LOOKUP(AF52,FACTORS!$L$9:$M$128)*AF$13*AG52) -> 0 | AJ52: 1.1 | AK52: =IF(AI52="",0,LOOKUP(AI52,FACTORS!$L$9:$M$128)*AI$13*AJ52) -> 0 | AM52: 1.1 | AN52: =IF(AL52="",0,LOOKUP(AL52,FACTORS!$L$9:$M$128)*AL$13*AM52) -> 0 | AP52: 1.1 | AQ52: =IF(AO52="",0,LOOKUP(AO52,FACTORS!$L$9:$M$128)*AO$13*AP52) -> 0 | AS52: 1.1 | AT52: =IF(AR52="",0,LOOKUP(AR52,FACTORS!$L$9:$M$128)*AR$13*AS52) -> 0 | AV52: 1.1 | AW52: =IF(AU52="",0,LOOKUP(AU52,FACTORS!$L$9:$M$128)*AU$13*AV52) -> 0 | AX52: 4 | AY52: 1 | AZ52: =IF(AX52="",0,LOOKUP(AX52,FACTORS!$L$9:$M$128)*AX$13*AY52) -> 175.5 | BB52: 1.1 | BC52: =IF(BA52="",0,LOOKUP(BA52,FACTORS!$L$9:$M$128)*BA$13*BB52) -> 0 | BE52: 1.1 | BF52: =IF(BD52="",0,LOOKUP(BD52,FACTORS!$L$9:$M$128)*BD$13*BE52) -> 0 | BH52: 1.1 | BI52: =IF(BG52="",0,LOOKUP(BG52,FACTORS!$L$9:$M$128)*BG$13*BH52) -> 0 | BK52: 1.1 | BL52: =IF(BJ52="",0,LOOKUP(BJ52,FACTORS!$L$9:$M$128)*BJ$13*BK52) -> 0 | BN52: 1.1 | BO52: =IF(BM52="",0,LOOKUP(BM52,FACTORS!$L$9:$M$128)*BM$13*BN52) -> 0 | BQ52: 1.1 | BR52: =IF(BP52="",0,LOOKUP(BP52,FACTORS!$L$9:$M$128)*BP$13*BQ52) -> 0 | BT52: 1.1 | BU52: =IF(BS52="",0,LOOKUP(BS52,FACTORS!$L$9:$M$128)*BS$13*BT52) -> 0 | BW52: 1.1 | BX52: =IF(BV52="",0,LOOKUP(BV52,FACTORS!$L$9:$M$128)*BV$13*BW52) -> 0 | BZ52: 1.1 | CA52: =IF(BY52="",0,LOOKUP(BY52,FACTORS!$L$9:$M$128)*BY$13*BZ52) -> 0 | CC52: 1.1 | CD52: =IF(CB52="",0,LOOKUP(CB52,FACTORS!$L$9:$M$128)*CB$13*CC52) -> 0 | CF52: 1.1 | CG52: =IF(CE52="",0,LOOKUP(CE52,FACTORS!$L$9:$M$128)*CE$13*CF52) -> 0 | CI52: 1.1 | CJ52: =IF(CH52="",0,LOOKUP(CH52,FACTORS!$L$9:$M$128)*CH$13*CI52) -> 0 | CL52: 1.1 | CM52: =IF(CK52="",0,LOOKUP(CK52,FACTORS!$L$9:$M$128)*CK$13*CL52) -> 0 | CO52: 1.1 | CP52: =IF(CN52="",0,LOOKUP(CN52,FACTORS!$L$9:$M$128)*CN$13*CO52) -> 0 | CR52: 1.1 | CS52: =IF(CQ52="",0,LOOKUP(CQ52,FACTORS!$L$9:$M$128)*CQ$13*CR52) -> 0 | CU52: 1.1 | CV52: =IF(CT52="",0,LOOKUP(CT52,FACTORS!$L$9:$M$128)*CT$13*CU52) -> 0 | CX52: 1.1 | CY52: =IF(CW52="",0,LOOKUP(CW52,FACTORS!$L$9:$M$128)*CW$13*CX52) -> 0 | DA52: 1.1 | DB52: =IF(CZ52="",0,LOOKUP(CZ52,FACTORS!$L$9:$M$128)*CZ$13*DA52) -> 0 | DC52: 4 | DD52: 1 | DE52: =IF(DC52="",0,LOOKUP(DC52,FACTORS!$L$9:$M$128)*DC$13*DD52) -> 175.5 | DG52: 1.1 | DH52: =IF(DF52="",0,LOOKUP(DF52,FACTORS!$L$9:$M$128)*DF$13*DG52) -> 0 | DJ52: 1.1 | DK52: =IF(DI52="",0,LOOKUP(DI52,FACTORS!$L$9:$M$128)*DI$13*DJ52) -> 0 | DM52: 1 | DN52: =IF(DL52="",0,LOOKUP(DL52,FACTORS!$L$9:$M$128)*DL$13*DM52) -> 0 | DP52: 1.1 | DQ52: =IF(DO52="",0,LOOKUP(DO52,FACTORS!$L$9:$M$128)*DO$13*DP52) -> 0 | DS52: 1.1 | DT52: =IF(DR52="",0,LOOKUP(DR52,FACTORS!$L$9:$M$128)*DR$13*DS52) -> 0 | DV52: 1.1 | DW52: =IF(DU52="",0,LOOKUP(DU52,FACTORS!$L$9:$M$128)*DU$13*DV52) -> 0 | DY52: 1.1 | DZ52: =IF(DX52="",0,LOOKUP(DX52,FACTORS!$L$9:$M$128)*DX$13*DY52) -> 0 | EB52: 1 | EC52: =IF(EA52="",0,LOOKUP(EA52,FACTORS!$L$9:$M$128)*EA$13*EB52) -> 0 | EE52: 1 | EF52: =IF(ED52="",0,LOOKUP(ED52,FACTORS!$L$9:$M$128)*ED$13*EE52) -> 0 | EH52: 1 | EI52: =IF(EG52="",0,LOOKUP(EG52,FACTORS!$L$9:$M$128)*EG$13*EH52) -> 0 | EK52: 1 | EL52: =IF(EJ52="",0,LOOKUP(EJ52,FACTORS!$L$9:$M$128)*EJ$13*EK52) -> 0 | EN52: 1 | EO52: =IF(EM52="",0,LOOKUP(EM52,FACTORS!$L$9:$M$128)*EM$13*EN52) -> 0 | EQ52: 1 | ER52: =IF(EP52="",0,LOOKUP(EP52,FACTORS!$L$9:$M$128)*EP$13*EQ52) -> 0 | ET52: 1 | EU52: =IF(ES52="",0,LOOKUP(ES52,FACTORS!$L$9:$M$128)*ES$13*ET52) -> 0 | EW52: 1 | EX52: =IF(EV52="",0,LOOKUP(EV52,FACTORS!$L$9:$M$128)*EV$13*EW52) -> 0 | EZ52: 1 | FA52: =IF(EY52="",0,LOOKUP(EY52,FACTORS!$L$9:$M$128)*EY$13*EZ52) -> 0 | FC52: 1 | FD52: =IF(FB52="",0,LOOKUP(FB52,FACTORS!$L$9:$M$128)*FB$13*FC52) -> 0 | FF52: 1 | FG52: =IF(FE52="",0,LOOKUP(FE52,FACTORS!$L$9:$M$128)*FE$13*FF52) -> 0 | FI52: 1 | FJ52: =IF(FH52="",0,LOOKUP(FH52,FACTORS!$L$9:$M$128)*FH$13*FI52) -> 0 | FL52: 1 | FM52: =IF(FK52="",0,LOOKUP(FK52,FACTORS!$L$9:$M$128)*FK$13*FL52) -> 0
B53: 36 | C53: Sofía Barreto | D53: POR | F53: 504.4 | G53: 504,4 points | I53: 1.1 | J53: =IF(H53="",0,LOOKUP(H53,FACTORS!$L$9:$M$128)*H$13*I53) -> 0 | L53: 1.1 | M53: =IF(K53="",0,LOOKUP(K53,FACTORS!$L$9:$M$128)*K$13*L53) -> 0 | O53: 1.1 | P53: =IF(N53="",0,LOOKUP(N53,FACTORS!$L$9:$M$128)*N$13*O53) -> 0 | Q53: 3 | R53: 1 | S53: =IF(Q53="",0,LOOKUP(Q53,FACTORS!$L$9:$M$128)*Q$13*R53) -> 153.4 | U53: 1.1 | V53: =IF(T53="",0,LOOKUP(T53,FACTORS!$L$9:$M$128)*T$13*U53) -> 0 | X53: 1.1 | Y53: =IF(W53="",0,LOOKUP(W53,FACTORS!$L$9:$M$128)*W$13*X53) -> 0 | AA53: 1.1 | AB53: =IF(Z53="",0,LOOKUP(Z53,FACTORS!$L$9:$M$128)*Z$13*AA53) -> 0 | AD53: 1.1 | AE53: =IF(AC53="",0,LOOKUP(AC53,FACTORS!$L$9:$M$128)*AC$13*AD53) -> 0 | AG53: 1.1 | AH53: =IF(AF53="",0,LOOKUP(AF53,FACTORS!$L$9:$M$128)*AF$13*AG53) -> 0 | AJ53: 1.1 | AK53: =IF(AI53="",0,LOOKUP(AI53,FACTORS!$L$9:$M$128)*AI$13*AJ53) -> 0 | AM53: 1.1 | AN53: =IF(AL53="",0,LOOKUP(AL53,FACTORS!$L$9:$M$128)*AL$13*AM53) -> 0 | AP53: 1.1 | AQ53: =IF(AO53="",0,LOOKUP(AO53,FACTORS!$L$9:$M$128)*AO$13*AP53) -> 0 | AS53: 1.1 | AT53: =IF(AR53="",0,LOOKUP(AR53,FACTORS!$L$9:$M$128)*AR$13*AS53) -> 0 | AV53: 1.1 | AW53: =IF(AU53="",0,LOOKUP(AU53,FACTORS!$L$9:$M$128)*AU$13*AV53) -> 0 | AX53: 4 | AY53: 1 | AZ53: =IF(AX53="",0,LOOKUP(AX53,FACTORS!$L$9:$M$128)*AX$13*AY53) -> 175.5 | BB53: 1.1 | BC53: =IF(BA53="",0,LOOKUP(BA53,FACTORS!$L$9:$M$128)*BA$13*BB53) -> 0 | BE53: 1.1 | BF53: =IF(BD53="",0,LOOKUP(BD53,FACTORS!$L$9:$M$128)*BD$13*BE53) -> 0 | BH53: 1.1 | BI53: =IF(BG53="",0,LOOKUP(BG53,FACTORS!$L$9:$M$128)*BG$13*BH53) -> 0 | BK53: 1.1 | BL53: =IF(BJ53="",0,LOOKUP(BJ53,FACTORS!$L$9:$M$128)*BJ$13*BK53) -> 0 | BN53: 1.1 | BO53: =IF(BM53="",0,LOOKUP(BM53,FACTORS!$L$9:$M$128)*BM$13*BN53) -> 0 | BQ53: 1.1 | BR53: =IF(BP53="",0,LOOKUP(BP53,FACTORS!$L$9:$M$128)*BP$13*BQ53) -> 0 | BT53: 1.1 | BU53: =IF(BS53="",0,LOOKUP(BS53,FACTORS!$L$9:$M$128)*BS$13*BT53) -> 0 | BW53: 1.1 | BX53: =IF(BV53="",0,LOOKUP(BV53,FACTORS!$L$9:$M$128)*BV$13*BW53) -> 0 | BZ53: 1.1 | CA53: =IF(BY53="",0,LOOKUP(BY53,FACTORS!$L$9:$M$128)*BY$13*BZ53) -> 0 | CC53: 1.1 | CD53: =IF(CB53="",0,LOOKUP(CB53,FACTORS!$L$9:$M$128)*CB$13*CC53) -> 0 | CF53: 1.1 | CG53: =IF(CE53="",0,LOOKUP(CE53,FACTORS!$L$9:$M$128)*CE$13*CF53) -> 0 | CI53: 1.1 | CJ53: =IF(CH53="",0,LOOKUP(CH53,FACTORS!$L$9:$M$128)*CH$13*CI53) -> 0 | CL53: 1.1 | CM53: =IF(CK53="",0,LOOKUP(CK53,FACTORS!$L$9:$M$128)*CK$13*CL53) -> 0 | CO53: 1.1 | CP53: =IF(CN53="",0,LOOKUP(CN53,FACTORS!$L$9:$M$128)*CN$13*CO53) -> 0 | CR53: 1.1 | CS53: =IF(CQ53="",0,LOOKUP(CQ53,FACTORS!$L$9:$M$128)*CQ$13*CR53) -> 0 | CU53: 1.1 | CV53: =IF(CT53="",0,LOOKUP(CT53,FACTORS!$L$9:$M$128)*CT$13*CU53) -> 0 | CX53: 1.1 | CY53: =IF(CW53="",0,LOOKUP(CW53,FACTORS!$L$9:$M$128)*CW$13*CX53) -> 0 | DA53: 1.1 | DB53: =IF(CZ53="",0,LOOKUP(CZ53,FACTORS!$L$9:$M$128)*CZ$13*DA53) -> 0 | DC53: 4 | DD53: 1 | DE53: =IF(DC53="",0,LOOKUP(DC53,FACTORS!$L$9:$M$128)*DC$13*DD53) -> 175.5 | DG53: 1.1 | DH53: =IF(DF53="",0,LOOKUP(DF53,FACTORS!$L$9:$M$128)*DF$13*DG53) -> 0 | DJ53: 1.1 | DK53: =IF(DI53="",0,LOOKUP(DI53,FACTORS!$L$9:$M$128)*DI$13*DJ53) -> 0 | DM53: 1 | DN53: =IF(DL53="",0,LOOKUP(DL53,FACTORS!$L$9:$M$128)*DL$13*DM53) -> 0 | DP53: 1.1 | DQ53: =IF(DO53="",0,LOOKUP(DO53,FACTORS!$L$9:$M$128)*DO$13*DP53) -> 0 | DS53: 1.1 | DT53: =IF(DR53="",0,LOOKUP(DR53,FACTORS!$L$9:$M$128)*DR$13*DS53) -> 0 | DV53: 1.1 | DW53: =IF(DU53="",0,LOOKUP(DU53,FACTORS!$L$9:$M$128)*DU$13*DV53) -> 0 | DY53: 1.1 | DZ53: =IF(DX53="",0,LOOKUP(DX53,FACTORS!$L$9:$M$128)*DX$13*DY53) -> 0 | EB53: 1 | EC53: =IF(EA53="",0,LOOKUP(EA53,FACTORS!$L$9:$M$128)*EA$13*EB53) -> 0 | EE53: 1 | EF53: =IF(ED53="",0,LOOKUP(ED53,FACTORS!$L$9:$M$128)*ED$13*EE53) -> 0 | EH53: 1 | EI53: =IF(EG53="",0,LOOKUP(EG53,FACTORS!$L$9:$M$128)*EG$13*EH53) -> 0 | EK53: 1 | EL53: =IF(EJ53="",0,LOOKUP(EJ53,FACTORS!$L$9:$M$128)*EJ$13*EK53) -> 0 | EN53: 1 | EO53: =IF(EM53="",0,LOOKUP(EM53,FACTORS!$L$9:$M$128)*EM$13*EN53) -> 0 | EQ53: 1 | ER53: =IF(EP53="",0,LOOKUP(EP53,FACTORS!$L$9:$M$128)*EP$13*EQ53) -> 0 | ET53: 1 | EU53: =IF(ES53="",0,LOOKUP(ES53,FACTORS!$L$9:$M$128)*ES$13*ET53) -> 0 | EW53: 1 | EX53: =IF(EV53="",0,LOOKUP(EV53,FACTORS!$L$9:$M$128)*EV$13*EW53) -> 0 | EZ53: 1 | FA53: =IF(EY53="",0,LOOKUP(EY53,FACTORS!$L$9:$M$128)*EY$13*EZ53) -> 0 | FC53: 1 | FD53: =IF(FB53="",0,LOOKUP(FB53,FACTORS!$L$9:$M$128)*FB$13*FC53) -> 0 | FF53: 1 | FG53: =IF(FE53="",0,LOOKUP(FE53,FACTORS!$L$9:$M$128)*FE$13*FF53) -> 0 | FI53: 1 | FJ53: =IF(FH53="",0,LOOKUP(FH53,FACTORS!$L$9:$M$128)*FH$13*FI53) -> 0 | FL53: 1 | FM53: =IF(FK53="",0,LOOKUP(FK53,FACTORS!$L$9:$M$128)*FK$13*FL53) -> 0
B54: 38 | C54: Luis Pessanha | D54: POR | F54: 499.35 | G54: 499,35 points | I54: 1.1 | J54: =IF(H54="",0,LOOKUP(H54,FACTORS!$L$9:$M$128)*H$13*I54) -> 0 | L54: 1.1 | M54: =IF(K54="",0,LOOKUP(K54,FACTORS!$L$9:$M$128)*K$13*L54) -> 0 | O54: 1.1 | P54: =IF(N54="",0,LOOKUP(N54,FACTORS!$L$9:$M$128)*N$13*O54) -> 0 | R54: 1 | S54: =IF(Q54="",0,LOOKUP(Q54,FACTORS!$L$9:$M$128)*Q$13*R54) -> 0 | U54: 1.1 | V54: =IF(T54="",0,LOOKUP(T54,FACTORS!$L$9:$M$128)*T$13*U54) -> 0 | X54: 1.1 | Y54: =IF(W54="",0,LOOKUP(W54,FACTORS!$L$9:$M$128)*W$13*X54) -> 0 | AA54: 1.1 | AB54: =IF(Z54="",0,LOOKUP(Z54,FACTORS!$L$9:$M$128)*Z$13*AA54) -> 0 | AD54: 1.1 | AE54: =IF(AC54="",0,LOOKUP(AC54,FACTORS!$L$9:$M$128)*AC$13*AD54) -> 0 | AG54: 1.1 | AH54: =IF(AF54="",0,LOOKUP(AF54,FACTORS!$L$9:$M$128)*AF$13*AG54) -> 0 | AJ54: 1.1 | AK54: =IF(AI54="",0,LOOKUP(AI54,FACTORS!$L$9:$M$128)*AI$13*AJ54) -> 0 | AM54: 1.1 | AN54: =IF(AL54="",0,LOOKUP(AL54,FACTORS!$L$9:$M$128)*AL$13*AM54) -> 0 | AP54: 1.1 | AQ54: =IF(AO54="",0,LOOKUP(AO54,FACTORS!$L$9:$M$128)*AO$13*AP54) -> 0 | AS54: 1.1 | AT54: =IF(AR54="",0,LOOKUP(AR54,FACTORS!$L$9:$M$128)*AR$13*AS54) -> 0 | AU54: 12 | AV54: 1.1 | AW54: =IF(AU54="",0,LOOKUP(AU54,FACTORS!$L$9:$M$128)*AU$13*AV54) -> 179.85 | AX54: 3 | AY54: 1 | AZ54: =IF(AX54="",0,LOOKUP(AX54,FACTORS!$L$9:$M$128)*AX$13*AY54) -> 177 | BB54: 1.1 | BC54: =IF(BA54="",0,LOOKUP(BA54,FACTORS!$L$9:$M$128)*BA$13*BB54) -> 0 | BE54: 1.1 | BF54: =IF(BD54="",0,LOOKUP(BD54,FACTORS!$L$9:$M$128)*BD$13*BE54) -> 0 | BH54: 1.1 | BI54: =IF(BG54="",0,LOOKUP(BG54,FACTORS!$L$9:$M$128)*BG$13*BH54) -> 0 | BK54: 1.1 | BL54: =IF(BJ54="",0,LOOKUP(BJ54,FACTORS!$L$9:$M$128)*BJ$13*BK54) -> 0 | BN54: 1.1 | BO54: =IF(BM54="",0,LOOKUP(BM54,FACTORS!$L$9:$M$128)*BM$13*BN54) -> 0 | BQ54: 1.1 | BR54: =IF(BP54="",0,LOOKUP(BP54,FACTORS!$L$9:$M$128)*BP$13*BQ54) -> 0 | BT54: 1.1 | BU54: =IF(BS54="",0,LOOKUP(BS54,FACTORS!$L$9:$M$128)*BS$13*BT54) -> 0 | BW54: 1.1 | BX54: =IF(BV54="",0,LOOKUP(BV54,FACTORS!$L$9:$M$128)*BV$13*BW54) -> 0 | BZ54: 1.1 | CA54: =IF(BY54="",0,LOOKUP(BY54,FACTORS!$L$9:$M$128)*BY$13*BZ54) -> 0 | CC54: 1.1 | CD54: =IF(CB54="",0,LOOKUP(CB54,FACTORS!$L$9:$M$128)*CB$13*CC54) -> 0 | CF54: 1.1 | CG54: =IF(CE54="",0,LOOKUP(CE54,FACTORS!$L$9:$M$128)*CE$13*CF54) -> 0 | CI54: 1.1 | CJ54: =IF(CH54="",0,LOOKUP(CH54,FACTORS!$L$9:$M$128)*CH$13*CI54) -> 0 | CL54: 1.1 | CM54: =IF(CK54="",0,LOOKUP(CK54,FACTORS!$L$9:$M$128)*CK$13*CL54) -> 0 | CO54: 1.1 | CP54: =IF(CN54="",0,LOOKUP(CN54,FACTORS!$L$9:$M$128)*CN$13*CO54) -> 0 | CR54: 1.1 | CS54: =IF(CQ54="",0,LOOKUP(CQ54,FACTORS!$L$9:$M$128)*CQ$13*CR54) -> 0 | CU54: 1.1 | CV54: =IF(CT54="",0,LOOKUP(CT54,FACTORS!$L$9:$M$128)*CT$13*CU54) -> 0 | CX54: 1.1 | CY54: =IF(CW54="",0,LOOKUP(CW54,FACTORS!$L$9:$M$128)*CW$13*CX54) -> 0 | DA54: 1.1 | DB54: =IF(CZ54="",0,LOOKUP(CZ54,FACTORS!$L$9:$M$128)*CZ$13*DA54) -> 0 | DC54: 26 | DD54: 1 | DE54: =IF(DC54="",0,LOOKUP(DC54,FACTORS!$L$9:$M$128)*DC$13*DD54) -> 142.5 | DG54: 1.1 | DH54: =IF(DF54="",0,LOOKUP(DF54,FACTORS!$L$9:$M$128)*DF$13*DG54) -> 0 | DJ54: 1.1 | DK54: =IF(DI54="",0,LOOKUP(DI54,FACTORS!$L$9:$M$128)*DI$13*DJ54) -> 0 | DM54: 1 | DN54: =IF(DL54="",0,LOOKUP(DL54,FACTORS!$L$9:$M$128)*DL$13*DM54) -> 0 | DP54: 1.1 | DQ54: =IF(DO54="",0,LOOKUP(DO54,FACTORS!$L$9:$M$128)*DO$13*DP54) -> 0 | DS54: 1.1 | DT54: =IF(DR54="",0,LOOKUP(DR54,FACTORS!$L$9:$M$128)*DR$13*DS54) -> 0 | DV54: 1.1 | DW54: =IF(DU54="",0,LOOKUP(DU54,FACTORS!$L$9:$M$128)*DU$13*DV54) -> 0 | DY54: 1.1 | DZ54: =IF(DX54="",0,LOOKUP(DX54,FACTORS!$L$9:$M$128)*DX$13*DY54) -> 0 | EB54: 1 | EC54: =IF(EA54="",0,LOOKUP(EA54,FACTORS!$L$9:$M$128)*EA$13*EB54) -> 0 | EE54: 1 | EF54: =IF(ED54="",0,LOOKUP(ED54,FACTORS!$L$9:$M$128)*ED$13*EE54) -> 0 | EH54: 1 | EI54: =IF(EG54="",0,LOOKUP(EG54,FACTORS!$L$9:$M$128)*EG$13*EH54) -> 0 | EK54: 1 | EL54: =IF(EJ54="",0,LOOKUP(EJ54,FACTORS!$L$9:$M$128)*EJ$13*EK54) -> 0 | EN54: 1 | EO54: =IF(EM54="",0,LOOKUP(EM54,FACTORS!$L$9:$M$128)*EM$13*EN54) -> 0 | EQ54: 1 | ER54: =IF(EP54="",0,LOOKUP(EP54,FACTORS!$L$9:$M$128)*EP$13*EQ54) -> 0 | ET54: 1 | EU54: =IF(ES54="",0,LOOKUP(ES54,FACTORS!$L$9:$M$128)*ES$13*ET54) -> 0 | EW54: 1 | EX54: =IF(EV54="",0,LOOKUP(EV54,FACTORS!$L$9:$M$128)*EV$13*EW54) -> 0 | EZ54: 1 | FA54: =IF(EY54="",0,LOOKUP(EY54,FACTORS!$L$9:$M$128)*EY$13*EZ54) -> 0 | FC54: 1 | FD54: =IF(FB54="",0,LOOKUP(FB54,FACTORS!$L$9:$M$128)*FB$13*FC54) -> 0 | FF54: 1 | FG54: =IF(FE54="",0,LOOKUP(FE54,FACTORS!$L$9:$M$128)*FE$13*FF54) -> 0 | FI54: 1 | FJ54: =IF(FH54="",0,LOOKUP(FH54,FACTORS!$L$9:$M$128)*FH$13*FI54) -> 0 | FL54: 1 | FM54: =IF(FK54="",0,LOOKUP(FK54,FACTORS!$L$9:$M$128)*FK$13*FL54) -> 0
B55: 39 | C55: Lukasz Sokolowski | D55: POL | F55: 496.09 | G55: 496,09 points | I55: 1.1 | J55: =IF(H55="",0,LOOKUP(H55,FACTORS!$L$9:$M$128)*H$13*I55) -> 0 | L55: 1.1 | M55: =IF(K55="",0,LOOKUP(K55,FACTORS!$L$9:$M$128)*K$13*L55) -> 0 | O55: 1.1 | P55: =IF(N55="",0,LOOKUP(N55,FACTORS!$L$9:$M$128)*N$13*O55) -> 0 | R55: 1.1 | S55: =IF(Q55="",0,LOOKUP(Q55,FACTORS!$L$9:$M$128)*Q$13*R55) -> 0 | U55: 1.1 | V55: =IF(T55="",0,LOOKUP(T55,FACTORS!$L$9:$M$128)*T$13*U55) -> 0 | X55: 1.1 | Y55: =IF(W55="",0,LOOKUP(W55,FACTORS!$L$9:$M$128)*W$13*X55) -> 0 | AA55: 1.1 | AB55: =IF(Z55="",0,LOOKUP(Z55,FACTORS!$L$9:$M$128)*Z$13*AA55) -> 0 | AD55: 1.1 | AE55: =IF(AC55="",0,LOOKUP(AC55,FACTORS!$L$9:$M$128)*AC$13*AD55) -> 0 | AG55: 1.1 | AH55: =IF(AF55="",0,LOOKUP(AF55,FACTORS!$L$9:$M$128)*AF$13*AG55) -> 0 | AJ55: 1.1 | AK55: =IF(AI55="",0,LOOKUP(AI55,FACTORS!$L$9:$M$128)*AI$13*AJ55) -> 0 | AM55: 1.1 | AN55: =IF(AL55="",0,LOOKUP(AL55,FACTORS!$L$9:$M$128)*AL$13*AM55) -> 0 | AP55: 1.1 | AQ55: =IF(AO55="",0,LOOKUP(AO55,FACTORS!$L$9:$M$128)*AO$13*AP55) -> 0 | AS55: 1.1 | AT55: =IF(AR55="",0,LOOKUP(AR55,FACTORS!$L$9:$M$128)*AR$13*AS55) -> 0 | AV55: 1.1 | AW55: =IF(AU55="",0,LOOKUP(AU55,FACTORS!$L$9:$M$128)*AU$13*AV55) -> 0 | AY55: 1.1 | AZ55: =IF(AX55="",0,LOOKUP(AX55,FACTORS!$L$9:$M$128)*AX$13*AY55) -> 0 | BB55: 1.1 | BC55: =IF(BA55="",0,LOOKUP(BA55,FACTORS!$L$9:$M$128)*BA$13*BB55) -> 0 | BE55: 1.1 | BF55: =IF(BD55="",0,LOOKUP(BD55,FACTORS!$L$9:$M$128)*BD$13*BE55) -> 0 | BH55: 1.1 | BI55: =IF(BG55="",0,LOOKUP(BG55,FACTORS!$L$9:$M$128)*BG$13*BH55) -> 0 | BK55: 1.1 | BL55: =IF(BJ55="",0,LOOKUP(BJ55,FACTORS!$L$9:$M$128)*BJ$13*BK55) -> 0 | BN55: 1.1 | BO55: =IF(BM55="",0,LOOKUP(BM55,FACTORS!$L$9:$M$128)*BM$13*BN55) -> 0 | BQ55: 1.1 | BR55: =IF(BP55="",0,LOOKUP(BP55,FACTORS!$L$9:$M$128)*BP$13*BQ55) -> 0 | BT55: 1.1 | BU55: =IF(BS55="",0,LOOKUP(BS55,FACTORS!$L$9:$M$128)*BS$13*BT55) -> 0 | BW55: 1.1 | BX55: =IF(BV55="",0,LOOKUP(BV55,FACTORS!$L$9:$M$128)*BV$13*BW55) -> 0 | BZ55: 1.1 | CA55: =IF(BY55="",0,LOOKUP(BY55,FACTORS!$L$9:$M$128)*BY$13*BZ55) -> 0 | CC55: 1.1 | CD55: =IF(CB55="",0,LOOKUP(CB55,FACTORS!$L$9:$M$128)*CB$13*CC55) -> 0 | CE55: 2 | CF55: 1 | CG55: =IF(CE55="",0,LOOKUP(CE55,FACTORS!$L$9:$M$128)*CE$13*CF55) -> 178.5 | CI55: 1.1 | CJ55: =IF(CH55="",0,LOOKUP(CH55,FACTORS!$L$9:$M$128)*CH$13*CI55) -> 0 | CK55: 8 | CL55: 1.1 | CM55: =IF(CK55="",0,LOOKUP(CK55,FACTORS!$L$9:$M$128)*CK$13*CL55) -> 161.59 | CO55: 1.1 | CP55: =IF(CN55="",0,LOOKUP(CN55,FACTORS!$L$9:$M$128)*CN$13*CO55) -> 0 | CR55: 1.1 | CS55: =IF(CQ55="",0,LOOKUP(CQ55,FACTORS!$L$9:$M$128)*CQ$13*CR55) -> 0 | CU55: 1.1 | CV55: =IF(CT55="",0,LOOKUP(CT55,FACTORS!$L$9:$M$128)*CT$13*CU55) -> 0 | CX55: 1.1 | CY55: =IF(CW55="",0,LOOKUP(CW55,FACTORS!$L$9:$M$128)*CW$13*CX55) -> 0 | DA55: 1.1 | DB55: =IF(CZ55="",0,LOOKUP(CZ55,FACTORS!$L$9:$M$128)*CZ$13*DA55) -> 0 | DD55: 1.1 | DE55: =IF(DC55="",0,LOOKUP(DC55,FACTORS!$L$9:$M$128)*DC$13*DD55) -> 0 | DG55: 1.1 | DH55: =IF(DF55="",0,LOOKUP(DF55,FACTORS!$L$9:$M$128)*DF$13*DG55) -> 0 | DJ55: 1.1 | DK55: =IF(DI55="",0,LOOKUP(DI55,FACTORS!$L$9:$M$128)*DI$13*DJ55) -> 0 | DM55: 1 | DN55: =IF(DL55="",0,LOOKUP(DL55,FACTORS!$L$9:$M$128)*DL$13*DM55) -> 0 | DP55: 1.1 | DQ55: =IF(DO55="",0,LOOKUP(DO55,FACTORS!$L$9:$M$128)*DO$13*DP55) -> 0 | DS55: 1.1 | DT55: =IF(DR55="",0,LOOKUP(DR55,FACTORS!$L$9:$M$128)*DR$13*DS55) -> 0 | DU55: 1 | DV55: 1 | DW55: =IF(DU55="",0,LOOKUP(DU55,FACTORS!$L$9:$M$128)*DU$13*DV55) -> 156 | DY55: 1.1 | DZ55: =IF(DX55="",0,LOOKUP(DX55,FACTORS!$L$9:$M$128)*DX$13*DY55) -> 0 | EB55: 1 | EC55: =IF(EA55="",0,LOOKUP(EA55,FACTORS!$L$9:$M$128)*EA$13*EB55) -> 0 | EE55: 1 | EF55: =IF(ED55="",0,LOOKUP(ED55,FACTORS!$L$9:$M$128)*ED$13*EE55) -> 0 | EH55: 1 | EI55: =IF(EG55="",0,LOOKUP(EG55,FACTORS!$L$9:$M$128)*EG$13*EH55) -> 0 | EK55: 1 | EL55: =IF(EJ55="",0,LOOKUP(EJ55,FACTORS!$L$9:$M$128)*EJ$13*EK55) -> 0 | EN55: 1 | EO55: =IF(EM55="",0,LOOKUP(EM55,FACTORS!$L$9:$M$128)*EM$13*EN55) -> 0 | EQ55: 1 | ER55: =IF(EP55="",0,LOOKUP(EP55,FACTORS!$L$9:$M$128)*EP$13*EQ55) -> 0 | ET55: 1 | EU55: =IF(ES55="",0,LOOKUP(ES55,FACTORS!$L$9:$M$128)*ES$13*ET55) -> 0 | EW55: 1 | EX55: =IF(EV55="",0,LOOKUP(EV55,FACTORS!$L$9:$M$128)*EV$13*EW55) -> 0 | EZ55: 1 | FA55: =IF(EY55="",0,LOOKUP(EY55,FACTORS!$L$9:$M$128)*EY$13*EZ55) -> 0 | FC55: 1 | FD55: =IF(FB55="",0,LOOKUP(FB55,FACTORS!$L$9:$M$128)*FB$13*FC55) -> 0 | FF55: 1 | FG55: =IF(FE55="",0,LOOKUP(FE55,FACTORS!$L$9:$M$128)*FE$13*FF55) -> 0 | FI55: 1 | FJ55: =IF(FH55="",0,LOOKUP(FH55,FACTORS!$L$9:$M$128)*FH$13*FI55) -> 0 | FL55: 1 | FM55: =IF(FK55="",0,LOOKUP(FK55,FACTORS!$L$9:$M$128)*FK$13*FL55) -> 0
B56: 39 | C56: Piotr Solocolowski | D56: POL | F56: 496.09 | G56: 496,09 points | I56: 1.1 | J56: =IF(H56="",0,LOOKUP(H56,FACTORS!$L$9:$M$128)*H$13*I56) -> 0 | L56: 1.1 | M56: =IF(K56="",0,LOOKUP(K56,FACTORS!$L$9:$M$128)*K$13*L56) -> 0 | O56: 1.1 | P56: =IF(N56="",0,LOOKUP(N56,FACTORS!$L$9:$M$128)*N$13*O56) -> 0 | R56: 1.1 | S56: =IF(Q56="",0,LOOKUP(Q56,FACTORS!$L$9:$M$128)*Q$13*R56) -> 0 | U56: 1.1 | V56: =IF(T56="",0,LOOKUP(T56,FACTORS!$L$9:$M$128)*T$13*U56) -> 0 | X56: 1.1 | Y56: =IF(W56="",0,LOOKUP(W56,FACTORS!$L$9:$M$128)*W$13*X56) -> 0 | AA56: 1.1 | AB56: =IF(Z56="",0,LOOKUP(Z56,FACTORS!$L$9:$M$128)*Z$13*AA56) -> 0 | AD56: 1.1 | AE56: =IF(AC56="",0,LOOKUP(AC56,FACTORS!$L$9:$M$128)*AC$13*AD56) -> 0 | AG56: 1.1 | AH56: =IF(AF56="",0,LOOKUP(AF56,FACTORS!$L$9:$M$128)*AF$13*AG56) -> 0 | AJ56: 1.1 | AK56: =IF(AI56="",0,LOOKUP(AI56,FACTORS!$L$9:$M$128)*AI$13*AJ56) -> 0 | AM56: 1.1 | AN56: =IF(AL56="",0,LOOKUP(AL56,FACTORS!$L$9:$M$128)*AL$13*AM56) -> 0 | AP56: 1.1 | AQ56: =IF(AO56="",0,LOOKUP(AO56,FACTORS!$L$9:$M$128)*AO$13*AP56) -> 0 | AS56: 1.1 | AT56: =IF(AR56="",0,LOOKUP(AR56,FACTORS!$L$9:$M$128)*AR$13*AS56) -> 0 | AV56: 1.1 | AW56: =IF(AU56="",0,LOOKUP(AU56,FACTORS!$L$9:$M$128)*AU$13*AV56) -> 0 | AY56: 1.1 | AZ56: =IF(AX56="",0,LOOKUP(AX56,FACTORS!$L$9:$M$128)*AX$13*AY56) -> 0 | BB56: 1.1 | BC56: =IF(BA56="",0,LOOKUP(BA56,FACTORS!$L$9:$M$128)*BA$13*BB56) -> 0 | BE56: 1.1 | BF56: =IF(BD56="",0,LOOKUP(BD56,FACTORS!$L$9:$M$128)*BD$13*BE56) -> 0 | BH56: 1.1 | BI56: =IF(BG56="",0,LOOKUP(BG56,FACTORS!$L$9:$M$128)*BG$13*BH56) -> 0 | BK56: 1.1 | BL56: =IF(BJ56="",0,LOOKUP(BJ56,FACTORS!$L$9:$M$128)*BJ$13*BK56) -> 0 | BN56: 1.1 | BO56: =IF(BM56="",0,LOOKUP(BM56,FACTORS!$L$9:$M$128)*BM$13*BN56) -> 0 | BQ56: 1.1 | BR56: =IF(BP56="",0,LOOKUP(BP56,FACTORS!$L$9:$M$128)*BP$13*BQ56) -> 0 | BT56: 1.1 | BU56: =IF(BS56="",0,LOOKUP(BS56,FACTORS!$L$9:$M$128)*BS$13*BT56) -> 0 | BW56: 1.1 | BX56: =IF(BV56="",0,LOOKUP(BV56,FACTORS!$L$9:$M$128)*BV$13*BW56) -> 0 | BZ56: 1.1 | CA56: =IF(BY56="",0,LOOKUP(BY56,FACTORS!$L$9:$M$128)*BY$13*BZ56) -> 0 | CC56: 1.1 | CD56: =IF(CB56="",0,LOOKUP(CB56,FACTORS!$L$9:$M$128)*CB$13*CC56) -> 0 | CE56: 2 | CF56: 1 | CG56: =IF(CE56="",0,LOOKUP(CE56,FACTORS!$L$9:$M$128)*CE$13*CF56) -> 178.5 | CI56: 1.1 | CJ56: =IF(CH56="",0,LOOKUP(CH56,FACTORS!$L$9:$M$128)*CH$13*CI56) -> 0 | CK56: 8 | CL56: 1.1 | CM56: =IF(CK56="",0,LOOKUP(CK56,FACTORS!$L$9:$M$128)*CK$13*CL56) -> 161.59 | CO56: 1.1 | CP56: =IF(CN56="",0,LOOKUP(CN56,FACTORS!$L$9:$M$128)*CN$13*CO56) -> 0 | CR56: 1.1 | CS56: =IF(CQ56="",0,LOOKUP(CQ56,FACTORS!$L$9:$M$128)*CQ$13*CR56) -> 0 | CU56: 1.1 | CV56: =IF(CT56="",0,LOOKUP(CT56,FACTORS!$L$9:$M$128)*CT$13*CU56) -> 0 | CX56: 1.1 | CY56: =IF(CW56="",0,LOOKUP(CW56,FACTORS!$L$9:$M$128)*CW$13*CX56) -> 0 | DA56: 1.1 | DB56: =IF(CZ56="",0,LOOKUP(CZ56,FACTORS!$L$9:$M$128)*CZ$13*DA56) -> 0 | DD56: 1.1 | DE56: =IF(DC56="",0,LOOKUP(DC56,FACTORS!$L$9:$M$128)*DC$13*DD56) -> 0 | DG56: 1.1 | DH56: =IF(DF56="",0,LOOKUP(DF56,FACTORS!$L$9:$M$128)*DF$13*DG56) -> 0 | DJ56: 1.1 | DK56: =IF(DI56="",0,LOOKUP(DI56,FACTORS!$L$9:$M$128)*DI$13*DJ56) -> 0 | DM56: 1 | DN56: =IF(DL56="",0,LOOKUP(DL56,FACTORS!$L$9:$M$128)*DL$13*DM56) -> 0 | DP56: 1.1 | DQ56: =IF(DO56="",0,LOOKUP(DO56,FACTORS!$L$9:$M$128)*DO$13*DP56) -> 0 | DS56: 1.1 | DT56: =IF(DR56="",0,LOOKUP(DR56,FACTORS!$L$9:$M$128)*DR$13*DS56) -> 0 | DU56: 1 | DV56: 1 | DW56: =IF(DU56="",0,LOOKUP(DU56,FACTORS!$L$9:$M$128)*DU$13*DV56) -> 156 | DY56: 1.1 | DZ56: =IF(DX56="",0,LOOKUP(DX56,FACTORS!$L$9:$M$128)*DX$13*DY56) -> 0 | EB56: 1 | EC56: =IF(EA56="",0,LOOKUP(EA56,FACTORS!$L$9:$M$128)*EA$13*EB56) -> 0 | EE56: 1 | EF56: =IF(ED56="",0,LOOKUP(ED56,FACTORS!$L$9:$M$128)*ED$13*EE56) -> 0 | EH56: 1 | EI56: =IF(EG56="",0,LOOKUP(EG56,FACTORS!$L$9:$M$128)*EG$13*EH56) -> 0 | EK56: 1 | EL56: =IF(EJ56="",0,LOOKUP(EJ56,FACTORS!$L$9:$M$128)*EJ$13*EK56) -> 0 | EN56: 1 | EO56: =IF(EM56="",0,LOOKUP(EM56,FACTORS!$L$9:$M$128)*EM$13*EN56) -> 0 | EQ56: 1 | ER56: =IF(EP56="",0,LOOKUP(EP56,FACTORS!$L$9:$M$128)*EP$13*EQ56) -> 0 | ET56: 1 | EU56: =IF(ES56="",0,LOOKUP(ES56,FACTORS!$L$9:$M$128)*ES$13*ET56) -> 0 | EW56: 1 | EX56: =IF(EV56="",0,LOOKUP(EV56,FACTORS!$L$9:$M$128)*EV$13*EW56) -> 0 | EZ56: 1 | FA56: =IF(EY56="",0,LOOKUP(EY56,FACTORS!$L$9:$M$128)*EY$13*EZ56) -> 0 | FC56: 1 | FD56: =IF(FB56="",0,LOOKUP(FB56,FACTORS!$L$9:$M$128)*FB$13*FC56) -> 0 | FF56: 1 | FG56: =IF(FE56="",0,LOOKUP(FE56,FACTORS!$L$9:$M$128)*FE$13*FF56) -> 0 | FI56: 1 | FJ56: =IF(FH56="",0,LOOKUP(FH56,FACTORS!$L$9:$M$128)*FH$13*FI56) -> 0 | FL56: 1 | FM56: =IF(FK56="",0,LOOKUP(FK56,FACTORS!$L$9:$M$128)*FK$13*FL56) -> 0
B57: 41 | C57: Rita Leal Faria | D57: POR | F57: 494.1 | G57: 494,1 points | I57: 1.1 | J57: =IF(H57="",0,LOOKUP(H57,FACTORS!$L$9:$M$128)*H$13*I57) -> 0 | L57: 1.1 | M57: =IF(K57="",0,LOOKUP(K57,FACTORS!$L$9:$M$128)*K$13*L57) -> 0 | O57: 1.1 | P57: =IF(N57="",0,LOOKUP(N57,FACTORS!$L$9:$M$128)*N$13*O57) -> 0 | Q57: 4 | R57: 1 | S57: =IF(Q57="",0,LOOKUP(Q57,FACTORS!$L$9:$M$128)*Q$13*R57) -> 152.1 | U57: 1.1 | V57: =IF(T57="",0,LOOKUP(T57,FACTORS!$L$9:$M$128)*T$13*U57) -> 0 | X57: 1.1 | Y57: =IF(W57="",0,LOOKUP(W57,FACTORS!$L$9:$M$128)*W$13*X57) -> 0 | AA57: 1.1 | AB57: =IF(Z57="",0,LOOKUP(Z57,FACTORS!$L$9:$M$128)*Z$13*AA57) -> 0 | AD57: 1.1 | AE57: =IF(AC57="",0,LOOKUP(AC57,FACTORS!$L$9:$M$128)*AC$13*AD57) -> 0 | AG57: 1.1 | AH57: =IF(AF57="",0,LOOKUP(AF57,FACTORS!$L$9:$M$128)*AF$13*AG57) -> 0 | AJ57: 1.1 | AK57: =IF(AI57="",0,LOOKUP(AI57,FACTORS!$L$9:$M$128)*AI$13*AJ57) -> 0 | AM57: 1.1 | AN57: =IF(AL57="",0,LOOKUP(AL57,FACTORS!$L$9:$M$128)*AL$13*AM57) -> 0 | AP57: 1.1 | AQ57: =IF(AO57="",0,LOOKUP(AO57,FACTORS!$L$9:$M$128)*AO$13*AP57) -> 0 | AS57: 1.1 | AT57: =IF(AR57="",0,LOOKUP(AR57,FACTORS!$L$9:$M$128)*AR$13*AS57) -> 0 | AV57: 1.1 | AW57: =IF(AU57="",0,LOOKUP(AU57,FACTORS!$L$9:$M$128)*AU$13*AV57) -> 0 | AX57: 5 | AY57: 1 | AZ57: =IF(AX57="",0,LOOKUP(AX57,FACTORS!$L$9:$M$128)*AX$13*AY57) -> 174 | BB57: 1.1 | BC57: =IF(BA57="",0,LOOKUP(BA57,FACTORS!$L$9:$M$128)*BA$13*BB57) -> 0 | BE57: 1.1 | BF57: =IF(BD57="",0,LOOKUP(BD57,FACTORS!$L$9:$M$128)*BD$13*BE57) -> 0 | BH57: 1.1 | BI57: =IF(BG57="",0,LOOKUP(BG57,FACTORS!$L$9:$M$128)*BG$13*BH57) -> 0 | BK57: 1.1 | BL57: =IF(BJ57="",0,LOOKUP(BJ57,FACTORS!$L$9:$M$128)*BJ$13*BK57) -> 0 | BN57: 1.1 | BO57: =IF(BM57="",0,LOOKUP(BM57,FACTORS!$L$9:$M$128)*BM$13*BN57) -> 0 | BQ57: 1.1 | BR57: =IF(BP57="",0,LOOKUP(BP57,FACTORS!$L$9:$M$128)*BP$13*BQ57) -> 0 | BT57: 1.1 | BU57: =IF(BS57="",0,LOOKUP(BS57,FACTORS!$L$9:$M$128)*BS$13*BT57) -> 0 | BW57: 1.1 | BX57: =IF(BV57="",0,LOOKUP(BV57,FACTORS!$L$9:$M$128)*BV$13*BW57) -> 0 | BZ57: 1.1 | CA57: =IF(BY57="",0,LOOKUP(BY57,FACTORS!$L$9:$M$128)*BY$13*BZ57) -> 0 | CC57: 1.1 | CD57: =IF(CB57="",0,LOOKUP(CB57,FACTORS!$L$9:$M$128)*CB$13*CC57) -> 0 | CF57: 1.1 | CG57: =IF(CE57="",0,LOOKUP(CE57,FACTORS!$L$9:$M$128)*CE$13*CF57) -> 0 | CI57: 1.1 | CJ57: =IF(CH57="",0,LOOKUP(CH57,FACTORS!$L$9:$M$128)*CH$13*CI57) -> 0 | CL57: 1.1 | CM57: =IF(CK57="",0,LOOKUP(CK57,FACTORS!$L$9:$M$128)*CK$13*CL57) -> 0 | CO57: 1.1 | CP57: =IF(CN57="",0,LOOKUP(CN57,FACTORS!$L$9:$M$128)*CN$13*CO57) -> 0 | CR57: 1.1 | CS57: =IF(CQ57="",0,LOOKUP(CQ57,FACTORS!$L$9:$M$128)*CQ$13*CR57) -> 0 | CU57: 1.1 | CV57: =IF(CT57="",0,LOOKUP(CT57,FACTORS!$L$9:$M$128)*CT$13*CU57) -> 0 | CX57: 1.1 | CY57: =IF(CW57="",0,LOOKUP(CW57,FACTORS!$L$9:$M$128)*CW$13*CX57) -> 0 | DA57: 1.1 | DB57: =IF(CZ57="",0,LOOKUP(CZ57,FACTORS!$L$9:$M$128)*CZ$13*DA57) -> 0 | DC57: 9 | DD57: 1 | DE57: =IF(DC57="",0,LOOKUP(DC57,FACTORS!$L$9:$M$128)*DC$13*DD57) -> 168 | DG57: 1.1 | DH57: =IF(DF57="",0,LOOKUP(DF57,FACTORS!$L$9:$M$128)*DF$13*DG57) -> 0 | DJ57: 1.1 | DK57: =IF(DI57="",0,LOOKUP(DI57,FACTORS!$L$9:$M$128)*DI$13*DJ57) -> 0 | DM57: 1 | DN57: =IF(DL57="",0,LOOKUP(DL57,FACTORS!$L$9:$M$128)*DL$13*DM57) -> 0 | DP57: 1.1 | DQ57: =IF(DO57="",0,LOOKUP(DO57,FACTORS!$L$9:$M$128)*DO$13*DP57) -> 0 | DS57: 1.1 | DT57: =IF(DR57="",0,LOOKUP(DR57,FACTORS!$L$9:$M$128)*DR$13*DS57) -> 0 | DV57: 1.1 | DW57: =IF(DU57="",0,LOOKUP(DU57,FACTORS!$L$9:$M$128)*DU$13*DV57) -> 0 | DY57: 1.1 | DZ57: =IF(DX57="",0,LOOKUP(DX57,FACTORS!$L$9:$M$128)*DX$13*DY57) -> 0 | EB57: 1 | EC57: =IF(EA57="",0,LOOKUP(EA57,FACTORS!$L$9:$M$128)*EA$13*EB57) -> 0 | EE57: 1 | EF57: =IF(ED57="",0,LOOKUP(ED57,FACTORS!$L$9:$M$128)*ED$13*EE57) -> 0 | EH57: 1 | EI57: =IF(EG57="",0,LOOKUP(EG57,FACTORS!$L$9:$M$128)*EG$13*EH57) -> 0 | EK57: 1 | EL57: =IF(EJ57="",0,LOOKUP(EJ57,FACTORS!$L$9:$M$128)*EJ$13*EK57) -> 0 | EN57: 1 | EO57: =IF(EM57="",0,LOOKUP(EM57,FACTORS!$L$9:$M$128)*EM$13*EN57) -> 0 | EQ57: 1 | ER57: =IF(EP57="",0,LOOKUP(EP57,FACTORS!$L$9:$M$128)*EP$13*EQ57) -> 0 | ET57: 1 | EU57: =IF(ES57="",0,LOOKUP(ES57,FACTORS!$L$9:$M$128)*ES$13*ET57) -> 0 | EW57: 1 | EX57: =IF(EV57="",0,LOOKUP(EV57,FACTORS!$L$9:$M$128)*EV$13*EW57) -> 0 | EZ57: 1 | FA57: =IF(EY57="",0,LOOKUP(EY57,FACTORS!$L$9:$M$128)*EY$13*EZ57) -> 0 | FC57: 1 | FD57: =IF(FB57="",0,LOOKUP(FB57,FACTORS!$L$9:$M$128)*FB$13*FC57) -> 0 | FF57: 1 | FG57: =IF(FE57="",0,LOOKUP(FE57,FACTORS!$L$9:$M$128)*FE$13*FF57) -> 0 | FI57: 1 | FJ57: =IF(FH57="",0,LOOKUP(FH57,FACTORS!$L$9:$M$128)*FH$13*FI57) -> 0 | FL57: 1 | FM57: =IF(FK57="",0,LOOKUP(FK57,FACTORS!$L$9:$M$128)*FK$13*FL57) -> 0
B58: 42 | C58: Kenneth Voss | D58: USA | F58: 493.5 | G58: 493,5 points | I58: 1 | J58: =IF(H58="",0,LOOKUP(H58,FACTORS!$L$9:$M$128)*H$13*I58) -> 0 | L58: 1.1 | M58: =IF(K58="",0,LOOKUP(K58,FACTORS!$L$9:$M$128)*K$13*L58) -> 0 | N58: 17 | O58: 1 | P58: =IF(N58="",0,LOOKUP(N58,FACTORS!$L$9:$M$128)*N$13*O58) -> 135.2 | R58: 1.1 | S58: =IF(Q58="",0,LOOKUP(Q58,FACTORS!$L$9:$M$128)*Q$13*R58) -> 0 | U58: 1.1 | V58: =IF(T58="",0,LOOKUP(T58,FACTORS!$L$9:$M$128)*T$13*U58) -> 0 | X58: 1.1 | Y58: =IF(W58="",0,LOOKUP(W58,FACTORS!$L$9:$M$128)*W$13*X58) -> 0 | AA58: 1.1 | AB58: =IF(Z58="",0,LOOKUP(Z58,FACTORS!$L$9:$M$128)*Z$13*AA58) -> 0 | AD58: 1.1 | AE58: =IF(AC58="",0,LOOKUP(AC58,FACTORS!$L$9:$M$128)*AC$13*AD58) -> 0 | AG58: 1.1 | AH58: =IF(AF58="",0,LOOKUP(AF58,FACTORS!$L$9:$M$128)*AF$13*AG58) -> 0 | AJ58: 1.1 | AK58: =IF(AI58="",0,LOOKUP(AI58,FACTORS!$L$9:$M$128)*AI$13*AJ58) -> 0 | AM58: 1.1 | AN58: =IF(AL58="",0,LOOKUP(AL58,FACTORS!$L$9:$M$128)*AL$13*AM58) -> 0 | AP58: 1 | AQ58: =IF(AO58="",0,LOOKUP(AO58,FACTORS!$L$9:$M$128)*AO$13*AP58) -> 0 | AR58: 36 | AS58: 1 | AT58: =IF(AR58="",0,LOOKUP(AR58,FACTORS!$L$9:$M$128)*AR$13*AS58) -> 110.5 | AV58: 1.1 | AW58: =IF(AU58="",0,LOOKUP(AU58,FACTORS!$L$9:$M$128)*AU$13*AV58) -> 0 | AY58: 1.1 | AZ58: =IF(AX58="",0,LOOKUP(AX58,FACTORS!$L$9:$M$128)*AX$13*AY58) -> 0 | BB58: 1.1 | BC58: =IF(BA58="",0,LOOKUP(BA58,FACTORS!$L$9:$M$128)*BA$13*BB58) -> 0 | BE58: 1 | BF58: =IF(BD58="",0,LOOKUP(BD58,FACTORS!$L$9:$M$128)*BD$13*BE58) -> 0 | BH58: 1.1 | BI58: =IF(BG58="",0,LOOKUP(BG58,FACTORS!$L$9:$M$128)*BG$13*BH58) -> 0 | BK58: 1.1 | BL58: =IF(BJ58="",0,LOOKUP(BJ58,FACTORS!$L$9:$M$128)*BJ$13*BK58) -> 0 | BM58: 10 | BN58: 1 | BO58: =IF(BM58="",0,LOOKUP(BM58,FACTORS!$L$9:$M$128)*BM$13*BN58) -> 144.3 | BQ58: 1.1 | BR58: =IF(BP58="",0,LOOKUP(BP58,FACTORS!$L$9:$M$128)*BP$13*BQ58) -> 0 | BT58: 1.1 | BU58: =IF(BS58="",0,LOOKUP(BS58,FACTORS!$L$9:$M$128)*BS$13*BT58) -> 0 | BW58: 1.1 | BX58: =IF(BV58="",0,LOOKUP(BV58,FACTORS!$L$9:$M$128)*BV$13*BW58) -> 0 | BZ58: 1.1 | CA58: =IF(BY58="",0,LOOKUP(BY58,FACTORS!$L$9:$M$128)*BY$13*BZ58) -> 0 | CC58: 1.1 | CD58: =IF(CB58="",0,LOOKUP(CB58,FACTORS!$L$9:$M$128)*CB$13*CC58) -> 0 | CF58: 1.1 | CG58: =IF(CE58="",0,LOOKUP(CE58,FACTORS!$L$9:$M$128)*CE$13*CF58) -> 0 | CI58: 1.1 | CJ58: =IF(CH58="",0,LOOKUP(CH58,FACTORS!$L$9:$M$128)*CH$13*CI58) -> 0 | CL58: 1.1 | CM58: =IF(CK58="",0,LOOKUP(CK58,FACTORS!$L$9:$M$128)*CK$13*CL58) -> 0 | CO58: 1.1 | CP58: =IF(CN58="",0,LOOKUP(CN58,FACTORS!$L$9:$M$128)*CN$13*CO58) -> 0 | CR58: 1 | CS58: =IF(CQ58="",0,LOOKUP(CQ58,FACTORS!$L$9:$M$128)*CQ$13*CR58) -> 0 | CU58: 1.1 | CV58: =IF(CT58="",0,LOOKUP(CT58,FACTORS!$L$9:$M$128)*CT$13*CU58) -> 0 | CX58: 1.1 | CY58: =IF(CW58="",0,LOOKUP(CW58,FACTORS!$L$9:$M$128)*CW$13*CX58) -> 0 | DA58: 1.1 | DB58: =IF(CZ58="",0,LOOKUP(CZ58,FACTORS!$L$9:$M$128)*CZ$13*DA58) -> 0 | DD58: 1.1 | DE58: =IF(DC58="",0,LOOKUP(DC58,FACTORS!$L$9:$M$128)*DC$13*DD58) -> 0 | DG58: 1.1 | DH58: =IF(DF58="",0,LOOKUP(DF58,FACTORS!$L$9:$M$128)*DF$13*DG58) -> 0 | DJ58: 1 | DK58: =IF(DI58="",0,LOOKUP(DI58,FACTORS!$L$9:$M$128)*DI$13*DJ58) -> 0 | DM58: 1 | DN58: =IF(DL58="",0,LOOKUP(DL58,FACTORS!$L$9:$M$128)*DL$13*DM58) -> 0 | DP58: 1.1 | DQ58: =IF(DO58="",0,LOOKUP(DO58,FACTORS!$L$9:$M$128)*DO$13*DP58) -> 0 | DR58: 52 | DS58: 1 | DT58: =IF(DR58="",0,LOOKUP(DR58,FACTORS!$L$9:$M$128)*DR$13*DS58) -> 103.5 | DV58: 1.1 | DW58: =IF(DU58="",0,LOOKUP(DU58,FACTORS!$L$9:$M$128)*DU$13*DV58) -> 0 | DY58: 1.1 | DZ58: =IF(DX58="",0,LOOKUP(DX58,FACTORS!$L$9:$M$128)*DX$13*DY58) -> 0 | EB58: 1 | EC58: =IF(EA58="",0,LOOKUP(EA58,FACTORS!$L$9:$M$128)*EA$13*EB58) -> 0 | EE58: 1 | EF58: =IF(ED58="",0,LOOKUP(ED58,FACTORS!$L$9:$M$128)*ED$13*EE58) -> 0 | EH58: 1 | EI58: =IF(EG58="",0,LOOKUP(EG58,FACTORS!$L$9:$M$128)*EG$13*EH58) -> 0 | EK58: 1 | EL58: =IF(EJ58="",0,LOOKUP(EJ58,FACTORS!$L$9:$M$128)*EJ$13*EK58) -> 0 | EN58: 1 | EO58: =IF(EM58="",0,LOOKUP(EM58,FACTORS!$L$9:$M$128)*EM$13*EN58) -> 0 | EQ58: 1 | ER58: =IF(EP58="",0,LOOKUP(EP58,FACTORS!$L$9:$M$128)*EP$13*EQ58) -> 0 | ET58: 1 | EU58: =IF(ES58="",0,LOOKUP(ES58,FACTORS!$L$9:$M$128)*ES$13*ET58) -> 0 | EW58: 1 | EX58: =IF(EV58="",0,LOOKUP(EV58,FACTORS!$L$9:$M$128)*EV$13*EW58) -> 0 | EZ58: 1 | FA58: =IF(EY58="",0,LOOKUP(EY58,FACTORS!$L$9:$M$128)*EY$13*EZ58) -> 0 | FC58: 1 | FD58: =IF(FB58="",0,LOOKUP(FB58,FACTORS!$L$9:$M$128)*FB$13*FC58) -> 0 | FF58: 1 | FG58: =IF(FE58="",0,LOOKUP(FE58,FACTORS!$L$9:$M$128)*FE$13*FF58) -> 0 | FI58: 1 | FJ58: =IF(FH58="",0,LOOKUP(FH58,FACTORS!$L$9:$M$128)*FH$13*FI58) -> 0 | FL58: 1 | FM58: =IF(FK58="",0,LOOKUP(FK58,FACTORS!$L$9:$M$128)*FK$13*FL58) -> 0
B59: 43 | C59: Doug Hart | D59: USA | F59: 492 | G59: 492 points | H59: 1 | I59: 1 | J59: =IF(H59="",0,LOOKUP(H59,FACTORS!$L$9:$M$128)*H$13*I59) -> 156 | L59: 1.1 | M59: =IF(K59="",0,LOOKUP(K59,FACTORS!$L$9:$M$128)*K$13*L59) -> 0 | O59: 1 | P59: =IF(N59="",0,LOOKUP(N59,FACTORS!$L$9:$M$128)*N$13*O59) -> 0 | R59: 1.1 | S59: =IF(Q59="",0,LOOKUP(Q59,FACTORS!$L$9:$M$128)*Q$13*R59) -> 0 | U59: 1.1 | V59: =IF(T59="",0,LOOKUP(T59,FACTORS!$L$9:$M$128)*T$13*U59) -> 0 | X59: 1.1 | Y59: =IF(W59="",0,LOOKUP(W59,FACTORS!$L$9:$M$128)*W$13*X59) -> 0 | AA59: 1.1 | AB59: =IF(Z59="",0,LOOKUP(Z59,FACTORS!$L$9:$M$128)*Z$13*AA59) -> 0 | AD59: 1.1 | AE59: =IF(AC59="",0,LOOKUP(AC59,FACTORS!$L$9:$M$128)*AC$13*AD59) -> 0 | AG59: 1.1 | AH59: =IF(AF59="",0,LOOKUP(AF59,FACTORS!$L$9:$M$128)*AF$13*AG59) -> 0 | AJ59: 1.1 | AK59: =IF(AI59="",0,LOOKUP(AI59,FACTORS!$L$9:$M$128)*AI$13*AJ59) -> 0 | AM59: 1.1 | AN59: =IF(AL59="",0,LOOKUP(AL59,FACTORS!$L$9:$M$128)*AL$13*AM59) -> 0 | AP59: 1 | AQ59: =IF(AO59="",0,LOOKUP(AO59,FACTORS!$L$9:$M$128)*AO$13*AP59) -> 0 | AS59: 1 | AT59: =IF(AR59="",0,LOOKUP(AR59,FACTORS!$L$9:$M$128)*AR$13*AS59) -> 0 | AV59: 1.1 | AW59: =IF(AU59="",0,LOOKUP(AU59,FACTORS!$L$9:$M$128)*AU$13*AV59) -> 0 | AY59: 1.1 | AZ59: =IF(AX59="",0,LOOKUP(AX59,FACTORS!$L$9:$M$128)*AX$13*AY59) -> 0 | BB59: 1.1 | BC59: =IF(BA59="",0,LOOKUP(BA59,FACTORS!$L$9:$M$128)*BA$13*BB59) -> 0 | BE59: 1 | BF59: =IF(BD59="",0,LOOKUP(BD59,FACTORS!$L$9:$M$128)*BD$13*BE59) -> 0 | BH59: 1.1 | BI59: =IF(BG59="",0,LOOKUP(BG59,FACTORS!$L$9:$M$128)*BG$13*BH59) -> 0 | BK59: 1.1 | BL59: =IF(BJ59="",0,LOOKUP(BJ59,FACTORS!$L$9:$M$128)*BJ$13*BK59) -> 0 | BN59: 1 | BO59: =IF(BM59="",0,LOOKUP(BM59,FACTORS!$L$9:$M$128)*BM$13*BN59) -> 0 | BQ59: 1.1 | BR59: =IF(BP59="",0,LOOKUP(BP59,FACTORS!$L$9:$M$128)*BP$13*BQ59) -> 0 | BT59: 1.1 | BU59: =IF(BS59="",0,LOOKUP(BS59,FACTORS!$L$9:$M$128)*BS$13*BT59) -> 0 | BW59: 1.1 | BX59: =IF(BV59="",0,LOOKUP(BV59,FACTORS!$L$9:$M$128)*BV$13*BW59) -> 0 | BZ59: 1.1 | CA59: =IF(BY59="",0,LOOKUP(BY59,FACTORS!$L$9:$M$128)*BY$13*BZ59) -> 0 | CC59: 1.1 | CD59: =IF(CB59="",0,LOOKUP(CB59,FACTORS!$L$9:$M$128)*CB$13*CC59) -> 0 | CF59: 1.1 | CG59: =IF(CE59="",0,LOOKUP(CE59,FACTORS!$L$9:$M$128)*CE$13*CF59) -> 0 | CI59: 1.1 | CJ59: =IF(CH59="",0,LOOKUP(CH59,FACTORS!$L$9:$M$128)*CH$13*CI59) -> 0 | CL59: 1.1 | CM59: =IF(CK59="",0,LOOKUP(CK59,FACTORS!$L$9:$M$128)*CK$13*CL59) -> 0 | CO59: 1.1 | CP59: =IF(CN59="",0,LOOKUP(CN59,FACTORS!$L$9:$M$128)*CN$13*CO59) -> 0 | CQ59: 1 | CR59: 1 | CS59: =IF(CQ59="",0,LOOKUP(CQ59,FACTORS!$L$9:$M$128)*CQ$13*CR59) -> 156 | CU59: 1.1 | CV59: =IF(CT59="",0,LOOKUP(CT59,FACTORS!$L$9:$M$128)*CT$13*CU59) -> 0 | CX59: 1.1 | CY59: =IF(CW59="",0,LOOKUP(CW59,FACTORS!$L$9:$M$128)*CW$13*CX59) -> 0 | DA59: 1.1 | DB59: =IF(CZ59="",0,LOOKUP(CZ59,FACTORS!$L$9:$M$128)*CZ$13*DA59) -> 0 | DD59: 1.1 | DE59: =IF(DC59="",0,LOOKUP(DC59,FACTORS!$L$9:$M$128)*DC$13*DD59) -> 0 | DG59: 1.1 | DH59: =IF(DF59="",0,LOOKUP(DF59,FACTORS!$L$9:$M$128)*DF$13*DG59) -> 0 | DJ59: 1 | DK59: =IF(DI59="",0,LOOKUP(DI59,FACTORS!$L$9:$M$128)*DI$13*DJ59) -> 0 | DM59: 1 | DN59: =IF(DL59="",0,LOOKUP(DL59,FACTORS!$L$9:$M$128)*DL$13*DM59) -> 0 | DP59: 1.1 | DQ59: =IF(DO59="",0,LOOKUP(DO59,FACTORS!$L$9:$M$128)*DO$13*DP59) -> 0 | DR59: 1 | DS59: 1 | DT59: =IF(DR59="",0,LOOKUP(DR59,FACTORS!$L$9:$M$128)*DR$13*DS59) -> 180 | DV59: 1.1 | DW59: =IF(DU59="",0,LOOKUP(DU59,FACTORS!$L$9:$M$128)*DU$13*DV59) -> 0 | DY59: 1.1 | DZ59: =IF(DX59="",0,LOOKUP(DX59,FACTORS!$L$9:$M$128)*DX$13*DY59) -> 0 | EB59: 1 | EC59: =IF(EA59="",0,LOOKUP(EA59,FACTORS!$L$9:$M$128)*EA$13*EB59) -> 0 | EE59: 1 | EF59: =IF(ED59="",0,LOOKUP(ED59,FACTORS!$L$9:$M$128)*ED$13*EE59) -> 0 | EH59: 1 | EI59: =IF(EG59="",0,LOOKUP(EG59,FACTORS!$L$9:$M$128)*EG$13*EH59) -> 0 | EK59: 1 | EL59: =IF(EJ59="",0,LOOKUP(EJ59,FACTORS!$L$9:$M$128)*EJ$13*EK59) -> 0 | EN59: 1 | EO59: =IF(EM59="",0,LOOKUP(EM59,FACTORS!$L$9:$M$128)*EM$13*EN59) -> 0 | EQ59: 1 | ER59: =IF(EP59="",0,LOOKUP(EP59,FACTORS!$L$9:$M$128)*EP$13*EQ59) -> 0 | ET59: 1 | EU59: =IF(ES59="",0,LOOKUP(ES59,FACTORS!$L$9:$M$128)*ES$13*ET59) -> 0 | EW59: 1 | EX59: =IF(EV59="",0,LOOKUP(EV59,FACTORS!$L$9:$M$128)*EV$13*EW59) -> 0 | EZ59: 1 | FA59: =IF(EY59="",0,LOOKUP(EY59,FACTORS!$L$9:$M$128)*EY$13*EZ59) -> 0 | FC59: 1 | FD59: =IF(FB59="",0,LOOKUP(FB59,FACTORS!$L$9:$M$128)*FB$13*FC59) -> 0 | FF59: 1 | FG59: =IF(FE59="",0,LOOKUP(FE59,FACTORS!$L$9:$M$128)*FE$13*FF59) -> 0 | FI59: 1 | FJ59: =IF(FH59="",0,LOOKUP(FH59,FACTORS!$L$9:$M$128)*FH$13*FI59) -> 0 | FL59: 1 | FM59: =IF(FK59="",0,LOOKUP(FK59,FACTORS!$L$9:$M$128)*FK$13*FL59) -> 0
B60: 44 | C60: Jordi Triay | D60: ESP | F60: 490.7 | G60: 490,7 points | I60: 1.1 | J60: =IF(H60="",0,LOOKUP(H60,FACTORS!$L$9:$M$128)*H$13*I60) -> 0 | L60: 1.1 | M60: =IF(K60="",0,LOOKUP(K60,FACTORS!$L$9:$M$128)*K$13*L60) -> 0 | O60: 1.1 | P60: =IF(N60="",0,LOOKUP(N60,FACTORS!$L$9:$M$128)*N$13*O60) -> 0 | R60: 1.1 | S60: =IF(Q60="",0,LOOKUP(Q60,FACTORS!$L$9:$M$128)*Q$13*R60) -> 0 | U60: 1.1 | V60: =IF(T60="",0,LOOKUP(T60,FACTORS!$L$9:$M$128)*T$13*U60) -> 0 | X60: 1.1 | Y60: =IF(W60="",0,LOOKUP(W60,FACTORS!$L$9:$M$128)*W$13*X60) -> 0 | AA60: 1.1 | AB60: =IF(Z60="",0,LOOKUP(Z60,FACTORS!$L$9:$M$128)*Z$13*AA60) -> 0 | AD60: 1 | AE60: =IF(AC60="",0,LOOKUP(AC60,FACTORS!$L$9:$M$128)*AC$13*AD60) -> 0 | AG60: 1.1 | AH60: =IF(AF60="",0,LOOKUP(AF60,FACTORS!$L$9:$M$128)*AF$13*AG60) -> 0 | AJ60: 1.1 | AK60: =IF(AI60="",0,LOOKUP(AI60,FACTORS!$L$9:$M$128)*AI$13*AJ60) -> 0 | AL60: 1 | AM60: 1 | AN60: =IF(AL60="",0,LOOKUP(AL60,FACTORS!$L$9:$M$128)*AL$13*AM60) -> 156 | AP60: 1.1 | AQ60: =IF(AO60="",0,LOOKUP(AO60,FACTORS!$L$9:$M$128)*AO$13*AP60) -> 0 | AS60: 1.1 | AT60: =IF(AR60="",0,LOOKUP(AR60,FACTORS!$L$9:$M$128)*AR$13*AS60) -> 0 | AU60: 1 | AV60: 1 | AW60: =IF(AU60="",0,LOOKUP(AU60,FACTORS!$L$9:$M$128)*AU$13*AV60) -> 180 | AY60: 1.1 | AZ60: =IF(AX60="",0,LOOKUP(AX60,FACTORS!$L$9:$M$128)*AX$13*AY60) -> 0 | BB60: 1.1 | BC60: =IF(BA60="",0,LOOKUP(BA60,FACTORS!$L$9:$M$128)*BA$13*BB60) -> 0 | BE60: 1.1 | BF60: =IF(BD60="",0,LOOKUP(BD60,FACTORS!$L$9:$M$128)*BD$13*BE60) -> 0 | BH60: 1.1 | BI60: =IF(BG60="",0,LOOKUP(BG60,FACTORS!$L$9:$M$128)*BG$13*BH60) -> 0 | BK60: 1.1 | BL60: =IF(BJ60="",0,LOOKUP(BJ60,FACTORS!$L$9:$M$128)*BJ$13*BK60) -> 0 | BN60: 1.1 | BO60: =IF(BM60="",0,LOOKUP(BM60,FACTORS!$L$9:$M$128)*BM$13*BN60) -> 0 | BQ60: 1.1 | BR60: =IF(BP60="",0,LOOKUP(BP60,FACTORS!$L$9:$M$128)*BP$13*BQ60) -> 0 | BT60: 1.1 | BU60: =IF(BS60="",0,LOOKUP(BS60,FACTORS!$L$9:$M$128)*BS$13*BT60) -> 0 | BW60: 1.1 | BX60: =IF(BV60="",0,LOOKUP(BV60,FACTORS!$L$9:$M$128)*BV$13*BW60) -> 0 | BZ60: 1.1 | CA60: =IF(BY60="",0,LOOKUP(BY60,FACTORS!$L$9:$M$128)*BY$13*BZ60) -> 0 | CC60: 1.1 | CD60: =IF(CB60="",0,LOOKUP(CB60,FACTORS!$L$9:$M$128)*CB$13*CC60) -> 0 | CF60: 1.1 | CG60: =IF(CE60="",0,LOOKUP(CE60,FACTORS!$L$9:$M$128)*CE$13*CF60) -> 0 | CI60: 1.1 | CJ60: =IF(CH60="",0,LOOKUP(CH60,FACTORS!$L$9:$M$128)*CH$13*CI60) -> 0 | CL60: 1.1 | CM60: =IF(CK60="",0,LOOKUP(CK60,FACTORS!$L$9:$M$128)*CK$13*CL60) -> 0 | CN60: 2 | CO60: 1 | CP60: =IF(CN60="",0,LOOKUP(CN60,FACTORS!$L$9:$M$128)*CN$13*CO60) -> 154.7 | CR60: 1.1 | CS60: =IF(CQ60="",0,LOOKUP(CQ60,FACTORS!$L$9:$M$128)*CQ$13*CR60) -> 0 | CU60: 1.1 | CV60: =IF(CT60="",0,LOOKUP(CT60,FACTORS!$L$9:$M$128)*CT$13*CU60) -> 0 | CX60: 1.1 | CY60: =IF(CW60="",0,LOOKUP(CW60,FACTORS!$L$9:$M$128)*CW$13*CX60) -> 0 | DA60: 1.1 | DB60: =IF(CZ60="",0,LOOKUP(CZ60,FACTORS!$L$9:$M$128)*CZ$13*DA60) -> 0 | DD60: 1.1 | DE60: =IF(DC60="",0,LOOKUP(DC60,FACTORS!$L$9:$M$128)*DC$13*DD60) -> 0 | DG60: 1.1 | DH60: =IF(DF60="",0,LOOKUP(DF60,FACTORS!$L$9:$M$128)*DF$13*DG60) -> 0 | DJ60: 1.1 | DK60: =IF(DI60="",0,LOOKUP(DI60,FACTORS!$L$9:$M$128)*DI$13*DJ60) -> 0 | DM60: 1 | DN60: =IF(DL60="",0,LOOKUP(DL60,FACTORS!$L$9:$M$128)*DL$13*DM60) -> 0 | DP60: 1.1 | DQ60: =IF(DO60="",0,LOOKUP(DO60,FACTORS!$L$9:$M$128)*DO$13*DP60) -> 0 | DS60: 1.1 | DT60: =IF(DR60="",0,LOOKUP(DR60,FACTORS!$L$9:$M$128)*DR$13*DS60) -> 0 | DV60: 1.1 | DW60: =IF(DU60="",0,LOOKUP(DU60,FACTORS!$L$9:$M$128)*DU$13*DV60) -> 0 | DY60: 1.1 | DZ60: =IF(DX60="",0,LOOKUP(DX60,FACTORS!$L$9:$M$128)*DX$13*DY60) -> 0 | EB60: 1 | EC60: =IF(EA60="",0,LOOKUP(EA60,FACTORS!$L$9:$M$128)*EA$13*EB60) -> 0 | EE60: 1 | EF60: =IF(ED60="",0,LOOKUP(ED60,FACTORS!$L$9:$M$128)*ED$13*EE60) -> 0 | EH60: 1 | EI60: =IF(EG60="",0,LOOKUP(EG60,FACTORS!$L$9:$M$128)*EG$13*EH60) -> 0 | EK60: 1 | EL60: =IF(EJ60="",0,LOOKUP(EJ60,FACTORS!$L$9:$M$128)*EJ$13*EK60) -> 0 | EN60: 1 | EO60: =IF(EM60="",0,LOOKUP(EM60,FACTORS!$L$9:$M$128)*EM$13*EN60) -> 0 | EQ60: 1 | ER60: =IF(EP60="",0,LOOKUP(EP60,FACTORS!$L$9:$M$128)*EP$13*EQ60) -> 0 | ET60: 1 | EU60: =IF(ES60="",0,LOOKUP(ES60,FACTORS!$L$9:$M$128)*ES$13*ET60) -> 0 | EW60: 1 | EX60: =IF(EV60="",0,LOOKUP(EV60,FACTORS!$L$9:$M$128)*EV$13*EW60) -> 0 | EZ60: 1 | FA60: =IF(EY60="",0,LOOKUP(EY60,FACTORS!$L$9:$M$128)*EY$13*EZ60) -> 0 | FC60: 1 | FD60: =IF(FB60="",0,LOOKUP(FB60,FACTORS!$L$9:$M$128)*FB$13*FC60) -> 0 | FF60: 1 | FG60: =IF(FE60="",0,LOOKUP(FE60,FACTORS!$L$9:$M$128)*FE$13*FF60) -> 0 | FI60: 1 | FJ60: =IF(FH60="",0,LOOKUP(FH60,FACTORS!$L$9:$M$128)*FH$13*FI60) -> 0 | FL60: 1 | FM60: =IF(FK60="",0,LOOKUP(FK60,FACTORS!$L$9:$M$128)*FK$13*FL60) -> 0
B61: 44 | C61: Lluis Mas | D61: ESP | F61: 490.7 | G61: 490,7 points | I61: 1.1 | J61: =IF(H61="",0,LOOKUP(H61,FACTORS!$L$9:$M$128)*H$13*I61) -> 0 | L61: 1.1 | M61: =IF(K61="",0,LOOKUP(K61,FACTORS!$L$9:$M$128)*K$13*L61) -> 0 | O61: 1.1 | P61: =IF(N61="",0,LOOKUP(N61,FACTORS!$L$9:$M$128)*N$13*O61) -> 0 | R61: 1.1 | S61: =IF(Q61="",0,LOOKUP(Q61,FACTORS!$L$9:$M$128)*Q$13*R61) -> 0 | U61: 1.1 | V61: =IF(T61="",0,LOOKUP(T61,FACTORS!$L$9:$M$128)*T$13*U61) -> 0 | X61: 1.1 | Y61: =IF(W61="",0,LOOKUP(W61,FACTORS!$L$9:$M$128)*W$13*X61) -> 0 | AA61: 1.1 | AB61: =IF(Z61="",0,LOOKUP(Z61,FACTORS!$L$9:$M$128)*Z$13*AA61) -> 0 | AD61: 1 | AE61: =IF(AC61="",0,LOOKUP(AC61,FACTORS!$L$9:$M$128)*AC$13*AD61) -> 0 | AG61: 1.1 | AH61: =IF(AF61="",0,LOOKUP(AF61,FACTORS!$L$9:$M$128)*AF$13*AG61) -> 0 | AJ61: 1.1 | AK61: =IF(AI61="",0,LOOKUP(AI61,FACTORS!$L$9:$M$128)*AI$13*AJ61) -> 0 | AL61: 1 | AM61: 1 | AN61: =IF(AL61="",0,LOOKUP(AL61,FACTORS!$L$9:$M$128)*AL$13*AM61) -> 156 | AP61: 1.1 | AQ61: =IF(AO61="",0,LOOKUP(AO61,FACTORS!$L$9:$M$128)*AO$13*AP61) -> 0 | AS61: 1.1 | AT61: =IF(AR61="",0,LOOKUP(AR61,FACTORS!$L$9:$M$128)*AR$13*AS61) -> 0 | AU61: 1 | AV61: 1 | AW61: =IF(AU61="",0,LOOKUP(AU61,FACTORS!$L$9:$M$128)*AU$13*AV61) -> 180 | AY61: 1.1 | AZ61: =IF(AX61="",0,LOOKUP(AX61,FACTORS!$L$9:$M$128)*AX$13*AY61) -> 0 | BB61: 1.1 | BC61: =IF(BA61="",0,LOOKUP(BA61,FACTORS!$L$9:$M$128)*BA$13*BB61) -> 0 | BE61: 1.1 | BF61: =IF(BD61="",0,LOOKUP(BD61,FACTORS!$L$9:$M$128)*BD$13*BE61) -> 0 | BH61: 1.1 | BI61: =IF(BG61="",0,LOOKUP(BG61,FACTORS!$L$9:$M$128)*BG$13*BH61) -> 0 | BK61: 1.1 | BL61: =IF(BJ61="",0,LOOKUP(BJ61,FACTORS!$L$9:$M$128)*BJ$13*BK61) -> 0 | BN61: 1.1 | BO61: =IF(BM61="",0,LOOKUP(BM61,FACTORS!$L$9:$M$128)*BM$13*BN61) -> 0 | BQ61: 1.1 | BR61: =IF(BP61="",0,LOOKUP(BP61,FACTORS!$L$9:$M$128)*BP$13*BQ61) -> 0 | BT61: 1.1 | BU61: =IF(BS61="",0,LOOKUP(BS61,FACTORS!$L$9:$M$128)*BS$13*BT61) -> 0 | BW61: 1.1 | BX61: =IF(BV61="",0,LOOKUP(BV61,FACTORS!$L$9:$M$128)*BV$13*BW61) -> 0 | BZ61: 1.1 | CA61: =IF(BY61="",0,LOOKUP(BY61,FACTORS!$L$9:$M$128)*BY$13*BZ61) -> 0 | CC61: 1.1 | CD61: =IF(CB61="",0,LOOKUP(CB61,FACTORS!$L$9:$M$128)*CB$13*CC61) -> 0 | CF61: 1.1 | CG61: =IF(CE61="",0,LOOKUP(CE61,FACTORS!$L$9:$M$128)*CE$13*CF61) -> 0 | CI61: 1.1 | CJ61: =IF(CH61="",0,LOOKUP(CH61,FACTORS!$L$9:$M$128)*CH$13*CI61) -> 0 | CL61: 1.1 | CM61: =IF(CK61="",0,LOOKUP(CK61,FACTORS!$L$9:$M$128)*CK$13*CL61) -> 0 | CN61: 2 | CO61: 1 | CP61: =IF(CN61="",0,LOOKUP(CN61,FACTORS!$L$9:$M$128)*CN$13*CO61) -> 154.7 | CR61: 1.1 | CS61: =IF(CQ61="",0,LOOKUP(CQ61,FACTORS!$L$9:$M$128)*CQ$13*CR61) -> 0 | CU61: 1.1 | CV61: =IF(CT61="",0,LOOKUP(CT61,FACTORS!$L$9:$M$128)*CT$13*CU61) -> 0 | CX61: 1.1 | CY61: =IF(CW61="",0,LOOKUP(CW61,FACTORS!$L$9:$M$128)*CW$13*CX61) -> 0 | DA61: 1.1 | DB61: =IF(CZ61="",0,LOOKUP(CZ61,FACTORS!$L$9:$M$128)*CZ$13*DA61) -> 0 | DD61: 1.1 | DE61: =IF(DC61="",0,LOOKUP(DC61,FACTORS!$L$9:$M$128)*DC$13*DD61) -> 0 | DG61: 1.1 | DH61: =IF(DF61="",0,LOOKUP(DF61,FACTORS!$L$9:$M$128)*DF$13*DG61) -> 0 | DJ61: 1.1 | DK61: =IF(DI61="",0,LOOKUP(DI61,FACTORS!$L$9:$M$128)*DI$13*DJ61) -> 0 | DM61: 1 | DN61: =IF(DL61="",0,LOOKUP(DL61,FACTORS!$L$9:$M$128)*DL$13*DM61) -> 0 | DP61: 1.1 | DQ61: =IF(DO61="",0,LOOKUP(DO61,FACTORS!$L$9:$M$128)*DO$13*DP61) -> 0 | DS61: 1.1 | DT61: =IF(DR61="",0,LOOKUP(DR61,FACTORS!$L$9:$M$128)*DR$13*DS61) -> 0 | DV61: 1.1 | DW61: =IF(DU61="",0,LOOKUP(DU61,FACTORS!$L$9:$M$128)*DU$13*DV61) -> 0 | DY61: 1.1 | DZ61: =IF(DX61="",0,LOOKUP(DX61,FACTORS!$L$9:$M$128)*DX$13*DY61) -> 0 | EB61: 1 | EC61: =IF(EA61="",0,LOOKUP(EA61,FACTORS!$L$9:$M$128)*EA$13*EB61) -> 0 | EE61: 1 | EF61: =IF(ED61="",0,LOOKUP(ED61,FACTORS!$L$9:$M$128)*ED$13*EE61) -> 0 | EH61: 1 | EI61: =IF(EG61="",0,LOOKUP(EG61,FACTORS!$L$9:$M$128)*EG$13*EH61) -> 0 | EK61: 1 | EL61: =IF(EJ61="",0,LOOKUP(EJ61,FACTORS!$L$9:$M$128)*EJ$13*EK61) -> 0 | EN61: 1 | EO61: =IF(EM61="",0,LOOKUP(EM61,FACTORS!$L$9:$M$128)*EM$13*EN61) -> 0 | EQ61: 1 | ER61: =IF(EP61="",0,LOOKUP(EP61,FACTORS!$L$9:$M$128)*EP$13*EQ61) -> 0 | ET61: 1 | EU61: =IF(ES61="",0,LOOKUP(ES61,FACTORS!$L$9:$M$128)*ES$13*ET61) -> 0 | EW61: 1 | EX61: =IF(EV61="",0,LOOKUP(EV61,FACTORS!$L$9:$M$128)*EV$13*EW61) -> 0 | EZ61: 1 | FA61: =IF(EY61="",0,LOOKUP(EY61,FACTORS!$L$9:$M$128)*EY$13*EZ61) -> 0 | FC61: 1 | FD61: =IF(FB61="",0,LOOKUP(FB61,FACTORS!$L$9:$M$128)*FB$13*FC61) -> 0 | FF61: 1 | FG61: =IF(FE61="",0,LOOKUP(FE61,FACTORS!$L$9:$M$128)*FE$13*FF61) -> 0 | FI61: 1 | FJ61: =IF(FH61="",0,LOOKUP(FH61,FACTORS!$L$9:$M$128)*FH$13*FI61) -> 0 | FL61: 1 | FM61: =IF(FK61="",0,LOOKUP(FK61,FACTORS!$L$9:$M$128)*FK$13*FL61) -> 0
B62: 46 | C62: Antonio Pereira | D62: POR | F62: 489.2 | G62: 489,2 points | I62: 1.1 | J62: =IF(H62="",0,LOOKUP(H62,FACTORS!$L$9:$M$128)*H$13*I62) -> 0 | L62: 1.1 | M62: =IF(K62="",0,LOOKUP(K62,FACTORS!$L$9:$M$128)*K$13*L62) -> 0 | O62: 1.1 | P62: =IF(N62="",0,LOOKUP(N62,FACTORS!$L$9:$M$128)*N$13*O62) -> 0 | Q62: 2 | R62: 1 | S62: =IF(Q62="",0,LOOKUP(Q62,FACTORS!$L$9:$M$128)*Q$13*R62) -> 154.7 | U62: 1.1 | V62: =IF(T62="",0,LOOKUP(T62,FACTORS!$L$9:$M$128)*T$13*U62) -> 0 | X62: 1.1 | Y62: =IF(W62="",0,LOOKUP(W62,FACTORS!$L$9:$M$128)*W$13*X62) -> 0 | AA62: 1.1 | AB62: =IF(Z62="",0,LOOKUP(Z62,FACTORS!$L$9:$M$128)*Z$13*AA62) -> 0 | AD62: 1.1 | AE62: =IF(AC62="",0,LOOKUP(AC62,FACTORS!$L$9:$M$128)*AC$13*AD62) -> 0 | AG62: 1.1 | AH62: =IF(AF62="",0,LOOKUP(AF62,FACTORS!$L$9:$M$128)*AF$13*AG62) -> 0 | AJ62: 1.1 | AK62: =IF(AI62="",0,LOOKUP(AI62,FACTORS!$L$9:$M$128)*AI$13*AJ62) -> 0 | AM62: 1.1 | AN62: =IF(AL62="",0,LOOKUP(AL62,FACTORS!$L$9:$M$128)*AL$13*AM62) -> 0 | AP62: 1.1 | AQ62: =IF(AO62="",0,LOOKUP(AO62,FACTORS!$L$9:$M$128)*AO$13*AP62) -> 0 | AS62: 1.1 | AT62: =IF(AR62="",0,LOOKUP(AR62,FACTORS!$L$9:$M$128)*AR$13*AS62) -> 0 | AV62: 1.1 | AW62: =IF(AU62="",0,LOOKUP(AU62,FACTORS!$L$9:$M$128)*AU$13*AV62) -> 0 | AX62: 8 | AY62: 1 | AZ62: =IF(AX62="",0,LOOKUP(AX62,FACTORS!$L$9:$M$128)*AX$13*AY62) -> 169.5 | BB62: 1.1 | BC62: =IF(BA62="",0,LOOKUP(BA62,FACTORS!$L$9:$M$128)*BA$13*BB62) -> 0 | BE62: 1.1 | BF62: =IF(BD62="",0,LOOKUP(BD62,FACTORS!$L$9:$M$128)*BD$13*BE62) -> 0 | BH62: 1.1 | BI62: =IF(BG62="",0,LOOKUP(BG62,FACTORS!$L$9:$M$128)*BG$13*BH62) -> 0 | BK62: 1.1 | BL62: =IF(BJ62="",0,LOOKUP(BJ62,FACTORS!$L$9:$M$128)*BJ$13*BK62) -> 0 | BN62: 1.1 | BO62: =IF(BM62="",0,LOOKUP(BM62,FACTORS!$L$9:$M$128)*BM$13*BN62) -> 0 | BQ62: 1.1 | BR62: =IF(BP62="",0,LOOKUP(BP62,FACTORS!$L$9:$M$128)*BP$13*BQ62) -> 0 | BT62: 1.1 | BU62: =IF(BS62="",0,LOOKUP(BS62,FACTORS!$L$9:$M$128)*BS$13*BT62) -> 0 | BW62: 1.1 | BX62: =IF(BV62="",0,LOOKUP(BV62,FACTORS!$L$9:$M$128)*BV$13*BW62) -> 0 | BZ62: 1.1 | CA62: =IF(BY62="",0,LOOKUP(BY62,FACTORS!$L$9:$M$128)*BY$13*BZ62) -> 0 | CC62: 1.1 | CD62: =IF(CB62="",0,LOOKUP(CB62,FACTORS!$L$9:$M$128)*CB$13*CC62) -> 0 | CF62: 1.1 | CG62: =IF(CE62="",0,LOOKUP(CE62,FACTORS!$L$9:$M$128)*CE$13*CF62) -> 0 | CI62: 1.1 | CJ62: =IF(CH62="",0,LOOKUP(CH62,FACTORS!$L$9:$M$128)*CH$13*CI62) -> 0 | CL62: 1.1 | CM62: =IF(CK62="",0,LOOKUP(CK62,FACTORS!$L$9:$M$128)*CK$13*CL62) -> 0 | CO62: 1.1 | CP62: =IF(CN62="",0,LOOKUP(CN62,FACTORS!$L$9:$M$128)*CN$13*CO62) -> 0 | CR62: 1.1 | CS62: =IF(CQ62="",0,LOOKUP(CQ62,FACTORS!$L$9:$M$128)*CQ$13*CR62) -> 0 | CU62: 1.1 | CV62: =IF(CT62="",0,LOOKUP(CT62,FACTORS!$L$9:$M$128)*CT$13*CU62) -> 0 | CX62: 1.1 | CY62: =IF(CW62="",0,LOOKUP(CW62,FACTORS!$L$9:$M$128)*CW$13*CX62) -> 0 | DA62: 1.1 | DB62: =IF(CZ62="",0,LOOKUP(CZ62,FACTORS!$L$9:$M$128)*CZ$13*DA62) -> 0 | DC62: 11 | DD62: 1 | DE62: =IF(DC62="",0,LOOKUP(DC62,FACTORS!$L$9:$M$128)*DC$13*DD62) -> 165 | DG62: 1.1 | DH62: =IF(DF62="",0,LOOKUP(DF62,FACTORS!$L$9:$M$128)*DF$13*DG62) -> 0 | DJ62: 1.1 | DK62: =IF(DI62="",0,LOOKUP(DI62,FACTORS!$L$9:$M$128)*DI$13*DJ62) -> 0 | DM62: 1 | DN62: =IF(DL62="",0,LOOKUP(DL62,FACTORS!$L$9:$M$128)*DL$13*DM62) -> 0 | DP62: 1.1 | DQ62: =IF(DO62="",0,LOOKUP(DO62,FACTORS!$L$9:$M$128)*DO$13*DP62) -> 0 | DS62: 1.1 | DT62: =IF(DR62="",0,LOOKUP(DR62,FACTORS!$L$9:$M$128)*DR$13*DS62) -> 0 | DV62: 1.1 | DW62: =IF(DU62="",0,LOOKUP(DU62,FACTORS!$L$9:$M$128)*DU$13*DV62) -> 0 | DY62: 1.1 | DZ62: =IF(DX62="",0,LOOKUP(DX62,FACTORS!$L$9:$M$128)*DX$13*DY62) -> 0 | EB62: 1 | EC62: =IF(EA62="",0,LOOKUP(EA62,FACTORS!$L$9:$M$128)*EA$13*EB62) -> 0 | EE62: 1 | EF62: =IF(ED62="",0,LOOKUP(ED62,FACTORS!$L$9:$M$128)*ED$13*EE62) -> 0 | EH62: 1 | EI62: =IF(EG62="",0,LOOKUP(EG62,FACTORS!$L$9:$M$128)*EG$13*EH62) -> 0 | EK62: 1 | EL62: =IF(EJ62="",0,LOOKUP(EJ62,FACTORS!$L$9:$M$128)*EJ$13*EK62) -> 0 | EN62: 1 | EO62: =IF(EM62="",0,LOOKUP(EM62,FACTORS!$L$9:$M$128)*EM$13*EN62) -> 0 | EQ62: 1 | ER62: =IF(EP62="",0,LOOKUP(EP62,FACTORS!$L$9:$M$128)*EP$13*EQ62) -> 0 | ET62: 1 | EU62: =IF(ES62="",0,LOOKUP(ES62,FACTORS!$L$9:$M$128)*ES$13*ET62) -> 0 | EW62: 1 | EX62: =IF(EV62="",0,LOOKUP(EV62,FACTORS!$L$9:$M$128)*EV$13*EW62) -> 0 | EZ62: 1 | FA62: =IF(EY62="",0,LOOKUP(EY62,FACTORS!$L$9:$M$128)*EY$13*EZ62) -> 0 | FC62: 1 | FD62: =IF(FB62="",0,LOOKUP(FB62,FACTORS!$L$9:$M$128)*FB$13*FC62) -> 0 | FF62: 1 | FG62: =IF(FE62="",0,LOOKUP(FE62,FACTORS!$L$9:$M$128)*FE$13*FF62) -> 0 | FI62: 1 | FJ62: =IF(FH62="",0,LOOKUP(FH62,FACTORS!$L$9:$M$128)*FH$13*FI62) -> 0 | FL62: 1 | FM62: =IF(FK62="",0,LOOKUP(FK62,FACTORS!$L$9:$M$128)*FK$13*FL62) -> 0
B63: 46 | C63: Luis Guedes de Queiroz | D63: POR | F63: 489.2 | G63: 489,2 points | I63: 1.1 | J63: =IF(H63="",0,LOOKUP(H63,FACTORS!$L$9:$M$128)*H$13*I63) -> 0 | L63: 1.1 | M63: =IF(K63="",0,LOOKUP(K63,FACTORS!$L$9:$M$128)*K$13*L63) -> 0 | O63: 1.1 | P63: =IF(N63="",0,LOOKUP(N63,FACTORS!$L$9:$M$128)*N$13*O63) -> 0 | Q63: 2 | R63: 1 | S63: =IF(Q63="",0,LOOKUP(Q63,FACTORS!$L$9:$M$128)*Q$13*R63) -> 154.7 | U63: 1.1 | V63: =IF(T63="",0,LOOKUP(T63,FACTORS!$L$9:$M$128)*T$13*U63) -> 0 | X63: 1.1 | Y63: =IF(W63="",0,LOOKUP(W63,FACTORS!$L$9:$M$128)*W$13*X63) -> 0 | AA63: 1.1 | AB63: =IF(Z63="",0,LOOKUP(Z63,FACTORS!$L$9:$M$128)*Z$13*AA63) -> 0 | AD63: 1.1 | AE63: =IF(AC63="",0,LOOKUP(AC63,FACTORS!$L$9:$M$128)*AC$13*AD63) -> 0 | AG63: 1.1 | AH63: =IF(AF63="",0,LOOKUP(AF63,FACTORS!$L$9:$M$128)*AF$13*AG63) -> 0 | AJ63: 1.1 | AK63: =IF(AI63="",0,LOOKUP(AI63,FACTORS!$L$9:$M$128)*AI$13*AJ63) -> 0 | AM63: 1.1 | AN63: =IF(AL63="",0,LOOKUP(AL63,FACTORS!$L$9:$M$128)*AL$13*AM63) -> 0 | AP63: 1.1 | AQ63: =IF(AO63="",0,LOOKUP(AO63,FACTORS!$L$9:$M$128)*AO$13*AP63) -> 0 | AS63: 1.1 | AT63: =IF(AR63="",0,LOOKUP(AR63,FACTORS!$L$9:$M$128)*AR$13*AS63) -> 0 | AV63: 1.1 | AW63: =IF(AU63="",0,LOOKUP(AU63,FACTORS!$L$9:$M$128)*AU$13*AV63) -> 0 | AX63: 8 | AY63: 1 | AZ63: =IF(AX63="",0,LOOKUP(AX63,FACTORS!$L$9:$M$128)*AX$13*AY63) -> 169.5 | BB63: 1.1 | BC63: =IF(BA63="",0,LOOKUP(BA63,FACTORS!$L$9:$M$128)*BA$13*BB63) -> 0 | BE63: 1.1 | BF63: =IF(BD63="",0,LOOKUP(BD63,FACTORS!$L$9:$M$128)*BD$13*BE63) -> 0 | BH63: 1.1 | BI63: =IF(BG63="",0,LOOKUP(BG63,FACTORS!$L$9:$M$128)*BG$13*BH63) -> 0 | BK63: 1.1 | BL63: =IF(BJ63="",0,LOOKUP(BJ63,FACTORS!$L$9:$M$128)*BJ$13*BK63) -> 0 | BN63: 1.1 | BO63: =IF(BM63="",0,LOOKUP(BM63,FACTORS!$L$9:$M$128)*BM$13*BN63) -> 0 | BQ63: 1.1 | BR63: =IF(BP63="",0,LOOKUP(BP63,FACTORS!$L$9:$M$128)*BP$13*BQ63) -> 0 | BT63: 1.1 | BU63: =IF(BS63="",0,LOOKUP(BS63,FACTORS!$L$9:$M$128)*BS$13*BT63) -> 0 | BW63: 1.1 | BX63: =IF(BV63="",0,LOOKUP(BV63,FACTORS!$L$9:$M$128)*BV$13*BW63) -> 0 | BZ63: 1.1 | CA63: =IF(BY63="",0,LOOKUP(BY63,FACTORS!$L$9:$M$128)*BY$13*BZ63) -> 0 | CC63: 1.1 | CD63: =IF(CB63="",0,LOOKUP(CB63,FACTORS!$L$9:$M$128)*CB$13*CC63) -> 0 | CF63: 1.1 | CG63: =IF(CE63="",0,LOOKUP(CE63,FACTORS!$L$9:$M$128)*CE$13*CF63) -> 0 | CI63: 1.1 | CJ63: =IF(CH63="",0,LOOKUP(CH63,FACTORS!$L$9:$M$128)*CH$13*CI63) -> 0 | CL63: 1.1 | CM63: =IF(CK63="",0,LOOKUP(CK63,FACTORS!$L$9:$M$128)*CK$13*CL63) -> 0 | CO63: 1.1 | CP63: =IF(CN63="",0,LOOKUP(CN63,FACTORS!$L$9:$M$128)*CN$13*CO63) -> 0 | CR63: 1.1 | CS63: =IF(CQ63="",0,LOOKUP(CQ63,FACTORS!$L$9:$M$128)*CQ$13*CR63) -> 0 | CU63: 1.1 | CV63: =IF(CT63="",0,LOOKUP(CT63,FACTORS!$L$9:$M$128)*CT$13*CU63) -> 0 | CX63: 1.1 | CY63: =IF(CW63="",0,LOOKUP(CW63,FACTORS!$L$9:$M$128)*CW$13*CX63) -> 0 | DA63: 1.1 | DB63: =IF(CZ63="",0,LOOKUP(CZ63,FACTORS!$L$9:$M$128)*CZ$13*DA63) -> 0 | DC63: 11 | DD63: 1 | DE63: =IF(DC63="",0,LOOKUP(DC63,FACTORS!$L$9:$M$128)*DC$13*DD63) -> 165 | DG63: 1.1 | DH63: =IF(DF63="",0,LOOKUP(DF63,FACTORS!$L$9:$M$128)*DF$13*DG63) -> 0 | DJ63: 1.1 | DK63: =IF(DI63="",0,LOOKUP(DI63,FACTORS!$L$9:$M$128)*DI$13*DJ63) -> 0 | DM63: 1 | DN63: =IF(DL63="",0,LOOKUP(DL63,FACTORS!$L$9:$M$128)*DL$13*DM63) -> 0 | DP63: 1.1 | DQ63: =IF(DO63="",0,LOOKUP(DO63,FACTORS!$L$9:$M$128)*DO$13*DP63) -> 0 | DS63: 1.1 | DT63: =IF(DR63="",0,LOOKUP(DR63,FACTORS!$L$9:$M$128)*DR$13*DS63) -> 0 | DV63: 1.1 | DW63: =IF(DU63="",0,LOOKUP(DU63,FACTORS!$L$9:$M$128)*DU$13*DV63) -> 0 | DY63: 1.1 | DZ63: =IF(DX63="",0,LOOKUP(DX63,FACTORS!$L$9:$M$128)*DX$13*DY63) -> 0 | EB63: 1 | EC63: =IF(EA63="",0,LOOKUP(EA63,FACTORS!$L$9:$M$128)*EA$13*EB63) -> 0 | EE63: 1 | EF63: =IF(ED63="",0,LOOKUP(ED63,FACTORS!$L$9:$M$128)*ED$13*EE63) -> 0 | EH63: 1 | EI63: =IF(EG63="",0,LOOKUP(EG63,FACTORS!$L$9:$M$128)*EG$13*EH63) -> 0 | EK63: 1 | EL63: =IF(EJ63="",0,LOOKUP(EJ63,FACTORS!$L$9:$M$128)*EJ$13*EK63) -> 0 | EN63: 1 | EO63: =IF(EM63="",0,LOOKUP(EM63,FACTORS!$L$9:$M$128)*EM$13*EN63) -> 0 | EQ63: 1 | ER63: =IF(EP63="",0,LOOKUP(EP63,FACTORS!$L$9:$M$128)*EP$13*EQ63) -> 0 | ET63: 1 | EU63: =IF(ES63="",0,LOOKUP(ES63,FACTORS!$L$9:$M$128)*ES$13*ET63) -> 0 | EW63: 1 | EX63: =IF(EV63="",0,LOOKUP(EV63,FACTORS!$L$9:$M$128)*EV$13*EW63) -> 0 | EZ63: 1 | FA63: =IF(EY63="",0,LOOKUP(EY63,FACTORS!$L$9:$M$128)*EY$13*EZ63) -> 0 | FC63: 1 | FD63: =IF(FB63="",0,LOOKUP(FB63,FACTORS!$L$9:$M$128)*FB$13*FC63) -> 0 | FF63: 1 | FG63: =IF(FE63="",0,LOOKUP(FE63,FACTORS!$L$9:$M$128)*FE$13*FF63) -> 0 | FI63: 1 | FJ63: =IF(FH63="",0,LOOKUP(FH63,FACTORS!$L$9:$M$128)*FH$13*FI63) -> 0 | FL63: 1 | FM63: =IF(FK63="",0,LOOKUP(FK63,FACTORS!$L$9:$M$128)*FK$13*FL63) -> 0
B64: 48 | C64: Janet Krefting | D64: NOR | F64: 488.15 | G64: 488,15 points | I64: 1.1 | J64: =IF(H64="",0,LOOKUP(H64,FACTORS!$L$9:$M$128)*H$13*I64) -> 0 | L64: 1.1 | M64: =IF(K64="",0,LOOKUP(K64,FACTORS!$L$9:$M$128)*K$13*L64) -> 0 | O64: 1.1 | P64: =IF(N64="",0,LOOKUP(N64,FACTORS!$L$9:$M$128)*N$13*O64) -> 0 | R64: 1.1 | S64: =IF(Q64="",0,LOOKUP(Q64,FACTORS!$L$9:$M$128)*Q$13*R64) -> 0 | U64: 1.1 | V64: =IF(T64="",0,LOOKUP(T64,FACTORS!$L$9:$M$128)*T$13*U64) -> 0 | X64: 1.1 | Y64: =IF(W64="",0,LOOKUP(W64,FACTORS!$L$9:$M$128)*W$13*X64) -> 0 | AA64: 1.1 | AB64: =IF(Z64="",0,LOOKUP(Z64,FACTORS!$L$9:$M$128)*Z$13*AA64) -> 0 | AD64: 1.1 | AE64: =IF(AC64="",0,LOOKUP(AC64,FACTORS!$L$9:$M$128)*AC$13*AD64) -> 0 | AG64: 1.1 | AH64: =IF(AF64="",0,LOOKUP(AF64,FACTORS!$L$9:$M$128)*AF$13*AG64) -> 0 | AJ64: 1.1 | AK64: =IF(AI64="",0,LOOKUP(AI64,FACTORS!$L$9:$M$128)*AI$13*AJ64) -> 0 | AM64: 1.1 | AN64: =IF(AL64="",0,LOOKUP(AL64,FACTORS!$L$9:$M$128)*AL$13*AM64) -> 0 | AP64: 1.1 | AQ64: =IF(AO64="",0,LOOKUP(AO64,FACTORS!$L$9:$M$128)*AO$13*AP64) -> 0 | AS64: 1.1 | AT64: =IF(AR64="",0,LOOKUP(AR64,FACTORS!$L$9:$M$128)*AR$13*AS64) -> 0 | AV64: 1.1 | AW64: =IF(AU64="",0,LOOKUP(AU64,FACTORS!$L$9:$M$128)*AU$13*AV64) -> 0 | AY64: 1.1 | AZ64: =IF(AX64="",0,LOOKUP(AX64,FACTORS!$L$9:$M$128)*AX$13*AY64) -> 0 | BB64: 1.1 | BC64: =IF(BA64="",0,LOOKUP(BA64,FACTORS!$L$9:$M$128)*BA$13*BB64) -> 0 | BE64: 1.1 | BF64: =IF(BD64="",0,LOOKUP(BD64,FACTORS!$L$9:$M$128)*BD$13*BE64) -> 0 | BH64: 1.1 | BI64: =IF(BG64="",0,LOOKUP(BG64,FACTORS!$L$9:$M$128)*BG$13*BH64) -> 0 | BK64: 1.1 | BL64: =IF(BJ64="",0,LOOKUP(BJ64,FACTORS!$L$9:$M$128)*BJ$13*BK64) -> 0 | BN64: 1.1 | BO64: =IF(BM64="",0,LOOKUP(BM64,FACTORS!$L$9:$M$128)*BM$13*BN64) -> 0 | BQ64: 1.1 | BR64: =IF(BP64="",0,LOOKUP(BP64,FACTORS!$L$9:$M$128)*BP$13*BQ64) -> 0 | BT64: 1.1 | BU64: =IF(BS64="",0,LOOKUP(BS64,FACTORS!$L$9:$M$128)*BS$13*BT64) -> 0 | BV64: 1 | BW64: 1.1 | BX64: =IF(BV64="",0,LOOKUP(BV64,FACTORS!$L$9:$M$128)*BV$13*BW64) -> 171.6 | BY64: 6 | BZ64: 1.1 | CA64: =IF(BY64="",0,LOOKUP(BY64,FACTORS!$L$9:$M$128)*BY$13*BZ64) -> 164.45 | CC64: 1.1 | CD64: =IF(CB64="",0,LOOKUP(CB64,FACTORS!$L$9:$M$128)*CB$13*CC64) -> 0 | CF64: 1.1 | CG64: =IF(CE64="",0,LOOKUP(CE64,FACTORS!$L$9:$M$128)*CE$13*CF64) -> 0 | CI64: 1.1 | CJ64: =IF(CH64="",0,LOOKUP(CH64,FACTORS!$L$9:$M$128)*CH$13*CI64) -> 0 | CL64: 1.1 | CM64: =IF(CK64="",0,LOOKUP(CK64,FACTORS!$L$9:$M$128)*CK$13*CL64) -> 0 | CO64: 1.1 | CP64: =IF(CN64="",0,LOOKUP(CN64,FACTORS!$L$9:$M$128)*CN$13*CO64) -> 0 | CR64: 1.1 | CS64: =IF(CQ64="",0,LOOKUP(CQ64,FACTORS!$L$9:$M$128)*CQ$13*CR64) -> 0 | CU64: 1.1 | CV64: =IF(CT64="",0,LOOKUP(CT64,FACTORS!$L$9:$M$128)*CT$13*CU64) -> 0 | CX64: 1.1 | CY64: =IF(CW64="",0,LOOKUP(CW64,FACTORS!$L$9:$M$128)*CW$13*CX64) -> 0 | DA64: 1.1 | DB64: =IF(CZ64="",0,LOOKUP(CZ64,FACTORS!$L$9:$M$128)*CZ$13*DA64) -> 0 | DD64: 1.1 | DE64: =IF(DC64="",0,LOOKUP(DC64,FACTORS!$L$9:$M$128)*DC$13*DD64) -> 0 | DG64: 1.1 | DH64: =IF(DF64="",0,LOOKUP(DF64,FACTORS!$L$9:$M$128)*DF$13*DG64) -> 0 | DJ64: 1.1 | DK64: =IF(DI64="",0,LOOKUP(DI64,FACTORS!$L$9:$M$128)*DI$13*DJ64) -> 0 | DM64: 1 | DN64: =IF(DL64="",0,LOOKUP(DL64,FACTORS!$L$9:$M$128)*DL$13*DM64) -> 0 | DO64: 4 | DP64: 1 | DQ64: =IF(DO64="",0,LOOKUP(DO64,FACTORS!$L$9:$M$128)*DO$13*DP64) -> 152.1 | DS64: 1.1 | DT64: =IF(DR64="",0,LOOKUP(DR64,FACTORS!$L$9:$M$128)*DR$13*DS64) -> 0 | DV64: 1.1 | DW64: =IF(DU64="",0,LOOKUP(DU64,FACTORS!$L$9:$M$128)*DU$13*DV64) -> 0 | DY64: 1.1 | DZ64: =IF(DX64="",0,LOOKUP(DX64,FACTORS!$L$9:$M$128)*DX$13*DY64) -> 0 | EB64: 1 | EC64: =IF(EA64="",0,LOOKUP(EA64,FACTORS!$L$9:$M$128)*EA$13*EB64) -> 0 | EE64: 1 | EF64: =IF(ED64="",0,LOOKUP(ED64,FACTORS!$L$9:$M$128)*ED$13*EE64) -> 0 | EH64: 1 | EI64: =IF(EG64="",0,LOOKUP(EG64,FACTORS!$L$9:$M$128)*EG$13*EH64) -> 0 | EK64: 1 | EL64: =IF(EJ64="",0,LOOKUP(EJ64,FACTORS!$L$9:$M$128)*EJ$13*EK64) -> 0 | EN64: 1 | EO64: =IF(EM64="",0,LOOKUP(EM64,FACTORS!$L$9:$M$128)*EM$13*EN64) -> 0 | EQ64: 1 | ER64: =IF(EP64="",0,LOOKUP(EP64,FACTORS!$L$9:$M$128)*EP$13*EQ64) -> 0 | ET64: 1 | EU64: =IF(ES64="",0,LOOKUP(ES64,FACTORS!$L$9:$M$128)*ES$13*ET64) -> 0 | EW64: 1 | EX64: =IF(EV64="",0,LOOKUP(EV64,FACTORS!$L$9:$M$128)*EV$13*EW64) -> 0 | EZ64: 1 | FA64: =IF(EY64="",0,LOOKUP(EY64,FACTORS!$L$9:$M$128)*EY$13*EZ64) -> 0 | FC64: 1 | FD64: =IF(FB64="",0,LOOKUP(FB64,FACTORS!$L$9:$M$128)*FB$13*FC64) -> 0 | FF64: 1 | FG64: =IF(FE64="",0,LOOKUP(FE64,FACTORS!$L$9:$M$128)*FE$13*FF64) -> 0 | FI64: 1 | FJ64: =IF(FH64="",0,LOOKUP(FH64,FACTORS!$L$9:$M$128)*FH$13*FI64) -> 0 | FL64: 1 | FM64: =IF(FK64="",0,LOOKUP(FK64,FACTORS!$L$9:$M$128)*FK$13*FL64) -> 0
B65: 49 | C65: Ryan Hopps | D65: USA | F65: 486.8 | G65: 486,8 points | H65: 5 | I65: 1 | J65: =IF(H65="",0,LOOKUP(H65,FACTORS!$L$9:$M$128)*H$13*I65) -> 150.8 | L65: 1.1 | M65: =IF(K65="",0,LOOKUP(K65,FACTORS!$L$9:$M$128)*K$13*L65) -> 0 | O65: 1 | P65: =IF(N65="",0,LOOKUP(N65,FACTORS!$L$9:$M$128)*N$13*O65) -> 0 | R65: 1.1 | S65: =IF(Q65="",0,LOOKUP(Q65,FACTORS!$L$9:$M$128)*Q$13*R65) -> 0 | U65: 1.1 | V65: =IF(T65="",0,LOOKUP(T65,FACTORS!$L$9:$M$128)*T$13*U65) -> 0 | X65: 1.1 | Y65: =IF(W65="",0,LOOKUP(W65,FACTORS!$L$9:$M$128)*W$13*X65) -> 0 | AA65: 1.1 | AB65: =IF(Z65="",0,LOOKUP(Z65,FACTORS!$L$9:$M$128)*Z$13*AA65) -> 0 | AD65: 1.1 | AE65: =IF(AC65="",0,LOOKUP(AC65,FACTORS!$L$9:$M$128)*AC$13*AD65) -> 0 | AG65: 1.1 | AH65: =IF(AF65="",0,LOOKUP(AF65,FACTORS!$L$9:$M$128)*AF$13*AG65) -> 0 | AJ65: 1.1 | AK65: =IF(AI65="",0,LOOKUP(AI65,FACTORS!$L$9:$M$128)*AI$13*AJ65) -> 0 | AM65: 1.1 | AN65: =IF(AL65="",0,LOOKUP(AL65,FACTORS!$L$9:$M$128)*AL$13*AM65) -> 0 | AP65: 1 | AQ65: =IF(AO65="",0,LOOKUP(AO65,FACTORS!$L$9:$M$128)*AO$13*AP65) -> 0 | AS65: 1 | AT65: =IF(AR65="",0,LOOKUP(AR65,FACTORS!$L$9:$M$128)*AR$13*AS65) -> 0 | AV65: 1.1 | AW65: =IF(AU65="",0,LOOKUP(AU65,FACTORS!$L$9:$M$128)*AU$13*AV65) -> 0 | AY65: 1.1 | AZ65: =IF(AX65="",0,LOOKUP(AX65,FACTORS!$L$9:$M$128)*AX$13*AY65) -> 0 | BB65: 1.1 | BC65: =IF(BA65="",0,LOOKUP(BA65,FACTORS!$L$9:$M$128)*BA$13*BB65) -> 0 | BE65: 1 | BF65: =IF(BD65="",0,LOOKUP(BD65,FACTORS!$L$9:$M$128)*BD$13*BE65) -> 0 | BH65: 1.1 | BI65: =IF(BG65="",0,LOOKUP(BG65,FACTORS!$L$9:$M$128)*BG$13*BH65) -> 0 | BK65: 1.1 | BL65: =IF(BJ65="",0,LOOKUP(BJ65,FACTORS!$L$9:$M$128)*BJ$13*BK65) -> 0 | BN65: 1 | BO65: =IF(BM65="",0,LOOKUP(BM65,FACTORS!$L$9:$M$128)*BM$13*BN65) -> 0 | BQ65: 1.1 | BR65: =IF(BP65="",0,LOOKUP(BP65,FACTORS!$L$9:$M$128)*BP$13*BQ65) -> 0 | BT65: 1.1 | BU65: =IF(BS65="",0,LOOKUP(BS65,FACTORS!$L$9:$M$128)*BS$13*BT65) -> 0 | BW65: 1.1 | BX65: =IF(BV65="",0,LOOKUP(BV65,FACTORS!$L$9:$M$128)*BV$13*BW65) -> 0 | BZ65: 1.1 | CA65: =IF(BY65="",0,LOOKUP(BY65,FACTORS!$L$9:$M$128)*BY$13*BZ65) -> 0 | CC65: 1.1 | CD65: =IF(CB65="",0,LOOKUP(CB65,FACTORS!$L$9:$M$128)*CB$13*CC65) -> 0 | CF65: 1.1 | CG65: =IF(CE65="",0,LOOKUP(CE65,FACTORS!$L$9:$M$128)*CE$13*CF65) -> 0 | CI65: 1.1 | CJ65: =IF(CH65="",0,LOOKUP(CH65,FACTORS!$L$9:$M$128)*CH$13*CI65) -> 0 | CL65: 1.1 | CM65: =IF(CK65="",0,LOOKUP(CK65,FACTORS!$L$9:$M$128)*CK$13*CL65) -> 0 | CO65: 1.1 | CP65: =IF(CN65="",0,LOOKUP(CN65,FACTORS!$L$9:$M$128)*CN$13*CO65) -> 0 | CQ65: 1 | CR65: 1 | CS65: =IF(CQ65="",0,LOOKUP(CQ65,FACTORS!$L$9:$M$128)*CQ$13*CR65) -> 156 | CU65: 1.1 | CV65: =IF(CT65="",0,LOOKUP(CT65,FACTORS!$L$9:$M$128)*CT$13*CU65) -> 0 | CX65: 1.1 | CY65: =IF(CW65="",0,LOOKUP(CW65,FACTORS!$L$9:$M$128)*CW$13*CX65) -> 0 | DA65: 1.1 | DB65: =IF(CZ65="",0,LOOKUP(CZ65,FACTORS!$L$9:$M$128)*CZ$13*DA65) -> 0 | DD65: 1.1 | DE65: =IF(DC65="",0,LOOKUP(DC65,FACTORS!$L$9:$M$128)*DC$13*DD65) -> 0 | DG65: 1.1 | DH65: =IF(DF65="",0,LOOKUP(DF65,FACTORS!$L$9:$M$128)*DF$13*DG65) -> 0 | DJ65: 1 | DK65: =IF(DI65="",0,LOOKUP(DI65,FACTORS!$L$9:$M$128)*DI$13*DJ65) -> 0 | DM65: 1 | DN65: =IF(DL65="",0,LOOKUP(DL65,FACTORS!$L$9:$M$128)*DL$13*DM65) -> 0 | DP65: 1.1 | DQ65: =IF(DO65="",0,LOOKUP(DO65,FACTORS!$L$9:$M$128)*DO$13*DP65) -> 0 | DR65: 1 | DS65: 1 | DT65: =IF(DR65="",0,LOOKUP(DR65,FACTORS!$L$9:$M$128)*DR$13*DS65) -> 180 | DV65: 1.1 | DW65: =IF(DU65="",0,LOOKUP(DU65,FACTORS!$L$9:$M$128)*DU$13*DV65) -> 0 | DY65: 1.1 | DZ65: =IF(DX65="",0,LOOKUP(DX65,FACTORS!$L$9:$M$128)*DX$13*DY65) -> 0 | EB65: 1 | EC65: =IF(EA65="",0,LOOKUP(EA65,FACTORS!$L$9:$M$128)*EA$13*EB65) -> 0 | EE65: 1 | EF65: =IF(ED65="",0,LOOKUP(ED65,FACTORS!$L$9:$M$128)*ED$13*EE65) -> 0 | EH65: 1 | EI65: =IF(EG65="",0,LOOKUP(EG65,FACTORS!$L$9:$M$128)*EG$13*EH65) -> 0 | EK65: 1 | EL65: =IF(EJ65="",0,LOOKUP(EJ65,FACTORS!$L$9:$M$128)*EJ$13*EK65) -> 0 | EN65: 1 | EO65: =IF(EM65="",0,LOOKUP(EM65,FACTORS!$L$9:$M$128)*EM$13*EN65) -> 0 | EQ65: 1 | ER65: =IF(EP65="",0,LOOKUP(EP65,FACTORS!$L$9:$M$128)*EP$13*EQ65) -> 0 | ET65: 1 | EU65: =IF(ES65="",0,LOOKUP(ES65,FACTORS!$L$9:$M$128)*ES$13*ET65) -> 0 | EW65: 1 | EX65: =IF(EV65="",0,LOOKUP(EV65,FACTORS!$L$9:$M$128)*EV$13*EW65) -> 0 | EZ65: 1 | FA65: =IF(EY65="",0,LOOKUP(EY65,FACTORS!$L$9:$M$128)*EY$13*EZ65) -> 0 | FC65: 1 | FD65: =IF(FB65="",0,LOOKUP(FB65,FACTORS!$L$9:$M$128)*FB$13*FC65) -> 0 | FF65: 1 | FG65: =IF(FE65="",0,LOOKUP(FE65,FACTORS!$L$9:$M$128)*FE$13*FF65) -> 0 | FI65: 1 | FJ65: =IF(FH65="",0,LOOKUP(FH65,FACTORS!$L$9:$M$128)*FH$13*FI65) -> 0 | FL65: 1 | FM65: =IF(FK65="",0,LOOKUP(FK65,FACTORS!$L$9:$M$128)*FK$13*FL65) -> 0
B66: 50 | C66: Kathleen Tocke | D66: USA | F66: 482 | G66: 482 points | I66: 1 | J66: =IF(H66="",0,LOOKUP(H66,FACTORS!$L$9:$M$128)*H$13*I66) -> 0 | L66: 1.1 | M66: =IF(K66="",0,LOOKUP(K66,FACTORS!$L$9:$M$128)*K$13*L66) -> 0 | N66: 7 | O66: 1 | P66: =IF(N66="",0,LOOKUP(N66,FACTORS!$L$9:$M$128)*N$13*O66) -> 148.2 | R66: 1.1 | S66: =IF(Q66="",0,LOOKUP(Q66,FACTORS!$L$9:$M$128)*Q$13*R66) -> 0 | U66: 1.1 | V66: =IF(T66="",0,LOOKUP(T66,FACTORS!$L$9:$M$128)*T$13*U66) -> 0 | X66: 1.1 | Y66: =IF(W66="",0,LOOKUP(W66,FACTORS!$L$9:$M$128)*W$13*X66) -> 0 | AA66: 1.1 | AB66: =IF(Z66="",0,LOOKUP(Z66,FACTORS!$L$9:$M$128)*Z$13*AA66) -> 0 | AD66: 1.1 | AE66: =IF(AC66="",0,LOOKUP(AC66,FACTORS!$L$9:$M$128)*AC$13*AD66) -> 0 | AG66: 1.1 | AH66: =IF(AF66="",0,LOOKUP(AF66,FACTORS!$L$9:$M$128)*AF$13*AG66) -> 0 | AJ66: 1.1 | AK66: =IF(AI66="",0,LOOKUP(AI66,FACTORS!$L$9:$M$128)*AI$13*AJ66) -> 0 | AM66: 1.1 | AN66: =IF(AL66="",0,LOOKUP(AL66,FACTORS!$L$9:$M$128)*AL$13*AM66) -> 0 | AP66: 1 | AQ66: =IF(AO66="",0,LOOKUP(AO66,FACTORS!$L$9:$M$128)*AO$13*AP66) -> 0 | AR66: 29 | AS66: 1 | AT66: =IF(AR66="",0,LOOKUP(AR66,FACTORS!$L$9:$M$128)*AR$13*AS66) -> 119.6 | AV66: 1.1 | AW66: =IF(AU66="",0,LOOKUP(AU66,FACTORS!$L$9:$M$128)*AU$13*AV66) -> 0 | AY66: 1.1 | AZ66: =IF(AX66="",0,LOOKUP(AX66,FACTORS!$L$9:$M$128)*AX$13*AY66) -> 0 | BB66: 1.1 | BC66: =IF(BA66="",0,LOOKUP(BA66,FACTORS!$L$9:$M$128)*BA$13*BB66) -> 0 | BE66: 1 | BF66: =IF(BD66="",0,LOOKUP(BD66,FACTORS!$L$9:$M$128)*BD$13*BE66) -> 0 | BH66: 1.1 | BI66: =IF(BG66="",0,LOOKUP(BG66,FACTORS!$L$9:$M$128)*BG$13*BH66) -> 0 | BK66: 1.1 | BL66: =IF(BJ66="",0,LOOKUP(BJ66,FACTORS!$L$9:$M$128)*BJ$13*BK66) -> 0 | BN66: 1 | BO66: =IF(BM66="",0,LOOKUP(BM66,FACTORS!$L$9:$M$128)*BM$13*BN66) -> 0 | BQ66: 1.1 | BR66: =IF(BP66="",0,LOOKUP(BP66,FACTORS!$L$9:$M$128)*BP$13*BQ66) -> 0 | BT66: 1.1 | BU66: =IF(BS66="",0,LOOKUP(BS66,FACTORS!$L$9:$M$128)*BS$13*BT66) -> 0 | BW66: 1.1 | BX66: =IF(BV66="",0,LOOKUP(BV66,FACTORS!$L$9:$M$128)*BV$13*BW66) -> 0 | BZ66: 1.1 | CA66: =IF(BY66="",0,LOOKUP(BY66,FACTORS!$L$9:$M$128)*BY$13*BZ66) -> 0 | CC66: 1.1 | CD66: =IF(CB66="",0,LOOKUP(CB66,FACTORS!$L$9:$M$128)*CB$13*CC66) -> 0 | CF66: 1.1 | CG66: =IF(CE66="",0,LOOKUP(CE66,FACTORS!$L$9:$M$128)*CE$13*CF66) -> 0 | CI66: 1.1 | CJ66: =IF(CH66="",0,LOOKUP(CH66,FACTORS!$L$9:$M$128)*CH$13*CI66) -> 0 | CL66: 1.1 | CM66: =IF(CK66="",0,LOOKUP(CK66,FACTORS!$L$9:$M$128)*CK$13*CL66) -> 0 | CO66: 1.1 | CP66: =IF(CN66="",0,LOOKUP(CN66,FACTORS!$L$9:$M$128)*CN$13*CO66) -> 0 | CR66: 1 | CS66: =IF(CQ66="",0,LOOKUP(CQ66,FACTORS!$L$9:$M$128)*CQ$13*CR66) -> 0 | CU66: 1.1 | CV66: =IF(CT66="",0,LOOKUP(CT66,FACTORS!$L$9:$M$128)*CT$13*CU66) -> 0 | CX66: 1.1 | CY66: =IF(CW66="",0,LOOKUP(CW66,FACTORS!$L$9:$M$128)*CW$13*CX66) -> 0 | DA66: 1.1 | DB66: =IF(CZ66="",0,LOOKUP(CZ66,FACTORS!$L$9:$M$128)*CZ$13*DA66) -> 0 | DD66: 1.1 | DE66: =IF(DC66="",0,LOOKUP(DC66,FACTORS!$L$9:$M$128)*DC$13*DD66) -> 0 | DG66: 1.1 | DH66: =IF(DF66="",0,LOOKUP(DF66,FACTORS!$L$9:$M$128)*DF$13*DG66) -> 0 | DJ66: 1 | DK66: =IF(DI66="",0,LOOKUP(DI66,FACTORS!$L$9:$M$128)*DI$13*DJ66) -> 0 | DL66: 2 | DM66: 1 | DN66: =IF(DL66="",0,LOOKUP(DL66,FACTORS!$L$9:$M$128)*DL$13*DM66) -> 214.2 | DP66: 1.1 | DQ66: =IF(DO66="",0,LOOKUP(DO66,FACTORS!$L$9:$M$128)*DO$13*DP66) -> 0 | DS66: 1 | DT66: =IF(DR66="",0,LOOKUP(DR66,FACTORS!$L$9:$M$128)*DR$13*DS66) -> 0 | DV66: 1.1 | DW66: =IF(DU66="",0,LOOKUP(DU66,FACTORS!$L$9:$M$128)*DU$13*DV66) -> 0 | DY66: 1.1 | DZ66: =IF(DX66="",0,LOOKUP(DX66,FACTORS!$L$9:$M$128)*DX$13*DY66) -> 0 | EB66: 1 | EC66: =IF(EA66="",0,LOOKUP(EA66,FACTORS!$L$9:$M$128)*EA$13*EB66) -> 0 | EE66: 1 | EF66: =IF(ED66="",0,LOOKUP(ED66,FACTORS!$L$9:$M$128)*ED$13*EE66) -> 0 | EH66: 1 | EI66: =IF(EG66="",0,LOOKUP(EG66,FACTORS!$L$9:$M$128)*EG$13*EH66) -> 0 | EK66: 1 | EL66: =IF(EJ66="",0,LOOKUP(EJ66,FACTORS!$L$9:$M$128)*EJ$13*EK66) -> 0 | EN66: 1 | EO66: =IF(EM66="",0,LOOKUP(EM66,FACTORS!$L$9:$M$128)*EM$13*EN66) -> 0 | EQ66: 1 | ER66: =IF(EP66="",0,LOOKUP(EP66,FACTORS!$L$9:$M$128)*EP$13*EQ66) -> 0 | ET66: 1 | EU66: =IF(ES66="",0,LOOKUP(ES66,FACTORS!$L$9:$M$128)*ES$13*ET66) -> 0 | EW66: 1 | EX66: =IF(EV66="",0,LOOKUP(EV66,FACTORS!$L$9:$M$128)*EV$13*EW66) -> 0 | EZ66: 1 | FA66: =IF(EY66="",0,LOOKUP(EY66,FACTORS!$L$9:$M$128)*EY$13*EZ66) -> 0 | FC66: 1 | FD66: =IF(FB66="",0,LOOKUP(FB66,FACTORS!$L$9:$M$128)*FB$13*FC66) -> 0 | FF66: 1 | FG66: =IF(FE66="",0,LOOKUP(FE66,FACTORS!$L$9:$M$128)*FE$13*FF66) -> 0 | FI66: 1 | FJ66: =IF(FH66="",0,LOOKUP(FH66,FACTORS!$L$9:$M$128)*FH$13*FI66) -> 0 | FL66: 1 | FM66: =IF(FK66="",0,LOOKUP(FK66,FACTORS!$L$9:$M$128)*FK$13*FL66) -> 0
B67: 51 | C67: Augie Díaz | D67: USA | F67: 480.4 | G67: 480,4 points | I67: =IF($D$17=H$9,1,H$14) -> 1.1 | J67: =IF(H67="",0,LOOKUP(H67,FACTORS!$L$9:$M$128)*H$13*I67) -> 0 | L67: =IF($D$17=K$9,1,K$14) -> 1 | M67: =IF(K67="",0,LOOKUP(K67,FACTORS!$L$9:$M$128)*K$13*L67) -> 0 | N67: 1 | O67: 1 | P67: =IF(N67="",0,LOOKUP(N67,FACTORS!$L$9:$M$128)*N$13*O67) -> 156 | R67: 1.1 | S67: =IF(Q67="",0,LOOKUP(Q67,FACTORS!$L$9:$M$128)*Q$13*R67) -> 0 | U67: 1.1 | V67: =IF(T67="",0,LOOKUP(T67,FACTORS!$L$9:$M$128)*T$13*U67) -> 0 | X67: 1.1 | Y67: =IF(W67="",0,LOOKUP(W67,FACTORS!$L$9:$M$128)*W$13*X67) -> 0 | AA67: 1.1 | AB67: =IF(Z67="",0,LOOKUP(Z67,FACTORS!$L$9:$M$128)*Z$13*AA67) -> 0 | AD67: 1.1 | AE67: =IF(AC67="",0,LOOKUP(AC67,FACTORS!$L$9:$M$128)*AC$13*AD67) -> 0 | AG67: 1.1 | AH67: =IF(AF67="",0,LOOKUP(AF67,FACTORS!$L$9:$M$128)*AF$13*AG67) -> 0 | AJ67: 1.1 | AK67: =IF(AI67="",0,LOOKUP(AI67,FACTORS!$L$9:$M$128)*AI$13*AJ67) -> 0 | AM67: 1.1 | AN67: =IF(AL67="",0,LOOKUP(AL67,FACTORS!$L$9:$M$128)*AL$13*AM67) -> 0 | AP67: 1 | AQ67: =IF(AO67="",0,LOOKUP(AO67,FACTORS!$L$9:$M$128)*AO$13*AP67) -> 0 | AR67: 3 | AS67: 1 | AT67: =IF(AR67="",0,LOOKUP(AR67,FACTORS!$L$9:$M$128)*AR$13*AS67) -> 153.4 | AV67: 1.1 | AW67: =IF(AU67="",0,LOOKUP(AU67,FACTORS!$L$9:$M$128)*AU$13*AV67) -> 0 | AY67: 1.1 | AZ67: =IF(AX67="",0,LOOKUP(AX67,FACTORS!$L$9:$M$128)*AX$13*AY67) -> 0 | BB67: 1.1 | BC67: =IF(BA67="",0,LOOKUP(BA67,FACTORS!$L$9:$M$128)*BA$13*BB67) -> 0 | BE67: 1 | BF67: =IF(BD67="",0,LOOKUP(BD67,FACTORS!$L$9:$M$128)*BD$13*BE67) -> 0 | BH67: 1.1 | BI67: =IF(BG67="",0,LOOKUP(BG67,FACTORS!$L$9:$M$128)*BG$13*BH67) -> 0 | BK67: 1.1 | BL67: =IF(BJ67="",0,LOOKUP(BJ67,FACTORS!$L$9:$M$128)*BJ$13*BK67) -> 0 | BN67: 1 | BO67: =IF(BM67="",0,LOOKUP(BM67,FACTORS!$L$9:$M$128)*BM$13*BN67) -> 0 | BQ67: 1.1 | BR67: =IF(BP67="",0,LOOKUP(BP67,FACTORS!$L$9:$M$128)*BP$13*BQ67) -> 0 | BT67: 1.1 | BU67: =IF(BS67="",0,LOOKUP(BS67,FACTORS!$L$9:$M$128)*BS$13*BT67) -> 0 | BW67: 1.1 | BX67: =IF(BV67="",0,LOOKUP(BV67,FACTORS!$L$9:$M$128)*BV$13*BW67) -> 0 | BZ67: 1.1 | CA67: =IF(BY67="",0,LOOKUP(BY67,FACTORS!$L$9:$M$128)*BY$13*BZ67) -> 0 | CC67: 1.1 | CD67: =IF(CB67="",0,LOOKUP(CB67,FACTORS!$L$9:$M$128)*CB$13*CC67) -> 0 | CF67: 1.1 | CG67: =IF(CE67="",0,LOOKUP(CE67,FACTORS!$L$9:$M$128)*CE$13*CF67) -> 0 | CI67: 1.1 | CJ67: =IF(CH67="",0,LOOKUP(CH67,FACTORS!$L$9:$M$128)*CH$13*CI67) -> 0 | CL67: 1.1 | CM67: =IF(CK67="",0,LOOKUP(CK67,FACTORS!$L$9:$M$128)*CK$13*CL67) -> 0 | CO67: 1.1 | CP67: =IF(CN67="",0,LOOKUP(CN67,FACTORS!$L$9:$M$128)*CN$13*CO67) -> 0 | CR67: 1 | CS67: =IF(CQ67="",0,LOOKUP(CQ67,FACTORS!$L$9:$M$128)*CQ$13*CR67) -> 0 | CU67: 1.1 | CV67: =IF(CT67="",0,LOOKUP(CT67,FACTORS!$L$9:$M$128)*CT$13*CU67) -> 0 | CX67: 1.1 | CY67: =IF(CW67="",0,LOOKUP(CW67,FACTORS!$L$9:$M$128)*CW$13*CX67) -> 0 | DA67: 1.1 | DB67: =IF(CZ67="",0,LOOKUP(CZ67,FACTORS!$L$9:$M$128)*CZ$13*DA67) -> 0 | DD67: 1.1 | DE67: =IF(DC67="",0,LOOKUP(DC67,FACTORS!$L$9:$M$128)*DC$13*DD67) -> 0 | DG67: 1.1 | DH67: =IF(DF67="",0,LOOKUP(DF67,FACTORS!$L$9:$M$128)*DF$13*DG67) -> 0 | DJ67: 1 | DK67: =IF(DI67="",0,LOOKUP(DI67,FACTORS!$L$9:$M$128)*DI$13*DJ67) -> 0 | DM67: 1 | DN67: =IF(DL67="",0,LOOKUP(DL67,FACTORS!$L$9:$M$128)*DL$13*DM67) -> 0 | DP67: 1.1 | DQ67: =IF(DO67="",0,LOOKUP(DO67,FACTORS!$L$9:$M$128)*DO$13*DP67) -> 0 | DR67: 7 | DS67: 1 | DT67: =IF(DR67="",0,LOOKUP(DR67,FACTORS!$L$9:$M$128)*DR$13*DS67) -> 171 | DV67: 1.1 | DW67: =IF(DU67="",0,LOOKUP(DU67,FACTORS!$L$9:$M$128)*DU$13*DV67) -> 0 | DY67: 1.1 | DZ67: =IF(DX67="",0,LOOKUP(DX67,FACTORS!$L$9:$M$128)*DX$13*DY67) -> 0 | EB67: 1 | EC67: =IF(EA67="",0,LOOKUP(EA67,FACTORS!$L$9:$M$128)*EA$13*EB67) -> 0 | EE67: 1 | EF67: =IF(ED67="",0,LOOKUP(ED67,FACTORS!$L$9:$M$128)*ED$13*EE67) -> 0 | EH67: 1 | EI67: =IF(EG67="",0,LOOKUP(EG67,FACTORS!$L$9:$M$128)*EG$13*EH67) -> 0 | EK67: 1 | EL67: =IF(EJ67="",0,LOOKUP(EJ67,FACTORS!$L$9:$M$128)*EJ$13*EK67) -> 0 | EN67: 1 | EO67: =IF(EM67="",0,LOOKUP(EM67,FACTORS!$L$9:$M$128)*EM$13*EN67) -> 0 | EQ67: 1 | ER67: =IF(EP67="",0,LOOKUP(EP67,FACTORS!$L$9:$M$128)*EP$13*EQ67) -> 0 | ET67: 1 | EU67: =IF(ES67="",0,LOOKUP(ES67,FACTORS!$L$9:$M$128)*ES$13*ET67) -> 0 | EW67: 1 | EX67: =IF(EV67="",0,LOOKUP(EV67,FACTORS!$L$9:$M$128)*EV$13*EW67) -> 0 | EZ67: 1 | FA67: =IF(EY67="",0,LOOKUP(EY67,FACTORS!$L$9:$M$128)*EY$13*EZ67) -> 0 | FC67: 1 | FD67: =IF(FB67="",0,LOOKUP(FB67,FACTORS!$L$9:$M$128)*FB$13*FC67) -> 0 | FF67: 1 | FG67: =IF(FE67="",0,LOOKUP(FE67,FACTORS!$L$9:$M$128)*FE$13*FF67) -> 0 | FI67: 1 | FJ67: =IF(FH67="",0,LOOKUP(FH67,FACTORS!$L$9:$M$128)*FH$13*FI67) -> 0 | FL67: 1 | FM67: =IF(FK67="",0,LOOKUP(FK67,FACTORS!$L$9:$M$128)*FK$13*FL67) -> 0
B68: 52 | C68: George Szabo | D68: USA | F68: 480.1 | G68: 480,1 points | H68: 3 | I68: =IF($D68=H$9,1,H$14) -> 1 | J68: =IF(H68="",0,LOOKUP(H68,FACTORS!$L$9:$M$128)*H$13*I68) -> 153.4 | L68: =IF($D68=K$9,1,K$14) -> 1.1 | M68: =IF(K68="",0,LOOKUP(K68,FACTORS!$L$9:$M$128)*K$13*L68) -> 0 | O68: 1 | P68: =IF(N68="",0,LOOKUP(N68,FACTORS!$L$9:$M$128)*N$13*O68) -> 0 | R68: 1.1 | S68: =IF(Q68="",0,LOOKUP(Q68,FACTORS!$L$9:$M$128)*Q$13*R68) -> 0 | U68: 1.1 | V68: =IF(T68="",0,LOOKUP(T68,FACTORS!$L$9:$M$128)*T$13*U68) -> 0 | X68: 1.1 | Y68: =IF(W68="",0,LOOKUP(W68,FACTORS!$L$9:$M$128)*W$13*X68) -> 0 | AA68: 1.1 | AB68: =IF(Z68="",0,LOOKUP(Z68,FACTORS!$L$9:$M$128)*Z$13*AA68) -> 0 | AD68: 1.1 | AE68: =IF(AC68="",0,LOOKUP(AC68,FACTORS!$L$9:$M$128)*AC$13*AD68) -> 0 | AG68: 1.1 | AH68: =IF(AF68="",0,LOOKUP(AF68,FACTORS!$L$9:$M$128)*AF$13*AG68) -> 0 | AJ68: 1.1 | AK68: =IF(AI68="",0,LOOKUP(AI68,FACTORS!$L$9:$M$128)*AI$13*AJ68) -> 0 | AM68: 1.1 | AN68: =IF(AL68="",0,LOOKUP(AL68,FACTORS!$L$9:$M$128)*AL$13*AM68) -> 0 | AP68: 1 | AQ68: =IF(AO68="",0,LOOKUP(AO68,FACTORS!$L$9:$M$128)*AO$13*AP68) -> 0 | AR68: 7 | AS68: 1 | AT68: =IF(AR68="",0,LOOKUP(AR68,FACTORS!$L$9:$M$128)*AR$13*AS68) -> 148.2 | AV68: 1.1 | AW68: =IF(AU68="",0,LOOKUP(AU68,FACTORS!$L$9:$M$128)*AU$13*AV68) -> 0 | AY68: 1.1 | AZ68: =IF(AX68="",0,LOOKUP(AX68,FACTORS!$L$9:$M$128)*AX$13*AY68) -> 0 | BB68: 1.1 | BC68: =IF(BA68="",0,LOOKUP(BA68,FACTORS!$L$9:$M$128)*BA$13*BB68) -> 0 | BE68: 1 | BF68: =IF(BD68="",0,LOOKUP(BD68,FACTORS!$L$9:$M$128)*BD$13*BE68) -> 0 | BH68: 1.1 | BI68: =IF(BG68="",0,LOOKUP(BG68,FACTORS!$L$9:$M$128)*BG$13*BH68) -> 0 | BK68: 1.1 | BL68: =IF(BJ68="",0,LOOKUP(BJ68,FACTORS!$L$9:$M$128)*BJ$13*BK68) -> 0 | BN68: 1 | BO68: =IF(BM68="",0,LOOKUP(BM68,FACTORS!$L$9:$M$128)*BM$13*BN68) -> 0 | BQ68: 1.1 | BR68: =IF(BP68="",0,LOOKUP(BP68,FACTORS!$L$9:$M$128)*BP$13*BQ68) -> 0 | BT68: 1.1 | BU68: =IF(BS68="",0,LOOKUP(BS68,FACTORS!$L$9:$M$128)*BS$13*BT68) -> 0 | BW68: 1.1 | BX68: =IF(BV68="",0,LOOKUP(BV68,FACTORS!$L$9:$M$128)*BV$13*BW68) -> 0 | BZ68: 1.1 | CA68: =IF(BY68="",0,LOOKUP(BY68,FACTORS!$L$9:$M$128)*BY$13*BZ68) -> 0 | CC68: 1.1 | CD68: =IF(CB68="",0,LOOKUP(CB68,FACTORS!$L$9:$M$128)*CB$13*CC68) -> 0 | CF68: 1.1 | CG68: =IF(CE68="",0,LOOKUP(CE68,FACTORS!$L$9:$M$128)*CE$13*CF68) -> 0 | CI68: 1.1 | CJ68: =IF(CH68="",0,LOOKUP(CH68,FACTORS!$L$9:$M$128)*CH$13*CI68) -> 0 | CL68: 1.1 | CM68: =IF(CK68="",0,LOOKUP(CK68,FACTORS!$L$9:$M$128)*CK$13*CL68) -> 0 | CO68: 1.1 | CP68: =IF(CN68="",0,LOOKUP(CN68,FACTORS!$L$9:$M$128)*CN$13*CO68) -> 0 | CR68: 1 | CS68: =IF(CQ68="",0,LOOKUP(CQ68,FACTORS!$L$9:$M$128)*CQ$13*CR68) -> 0 | CU68: 1.1 | CV68: =IF(CT68="",0,LOOKUP(CT68,FACTORS!$L$9:$M$128)*CT$13*CU68) -> 0 | CX68: 1.1 | CY68: =IF(CW68="",0,LOOKUP(CW68,FACTORS!$L$9:$M$128)*CW$13*CX68) -> 0 | DA68: 1.1 | DB68: =IF(CZ68="",0,LOOKUP(CZ68,FACTORS!$L$9:$M$128)*CZ$13*DA68) -> 0 | DD68: 1.1 | DE68: =IF(DC68="",0,LOOKUP(DC68,FACTORS!$L$9:$M$128)*DC$13*DD68) -> 0 | DG68: 1.1 | DH68: =IF(DF68="",0,LOOKUP(DF68,FACTORS!$L$9:$M$128)*DF$13*DG68) -> 0 | DJ68: 1 | DK68: =IF(DI68="",0,LOOKUP(DI68,FACTORS!$L$9:$M$128)*DI$13*DJ68) -> 0 | DM68: 1 | DN68: =IF(DL68="",0,LOOKUP(DL68,FACTORS!$L$9:$M$128)*DL$13*DM68) -> 0 | DP68: 1.1 | DQ68: =IF(DO68="",0,LOOKUP(DO68,FACTORS!$L$9:$M$128)*DO$13*DP68) -> 0 | DR68: 2 | DS68: 1 | DT68: =IF(DR68="",0,LOOKUP(DR68,FACTORS!$L$9:$M$128)*DR$13*DS68) -> 178.5 | DV68: 1.1 | DW68: =IF(DU68="",0,LOOKUP(DU68,FACTORS!$L$9:$M$128)*DU$13*DV68) -> 0 | DY68: 1.1 | DZ68: =IF(DX68="",0,LOOKUP(DX68,FACTORS!$L$9:$M$128)*DX$13*DY68) -> 0 | EB68: 1 | EC68: =IF(EA68="",0,LOOKUP(EA68,FACTORS!$L$9:$M$128)*EA$13*EB68) -> 0 | EE68: 1 | EF68: =IF(ED68="",0,LOOKUP(ED68,FACTORS!$L$9:$M$128)*ED$13*EE68) -> 0 | EH68: 1 | EI68: =IF(EG68="",0,LOOKUP(EG68,FACTORS!$L$9:$M$128)*EG$13*EH68) -> 0 | EK68: 1 | EL68: =IF(EJ68="",0,LOOKUP(EJ68,FACTORS!$L$9:$M$128)*EJ$13*EK68) -> 0 | EN68: 1 | EO68: =IF(EM68="",0,LOOKUP(EM68,FACTORS!$L$9:$M$128)*EM$13*EN68) -> 0 | EQ68: 1 | ER68: =IF(EP68="",0,LOOKUP(EP68,FACTORS!$L$9:$M$128)*EP$13*EQ68) -> 0 | ET68: 1 | EU68: =IF(ES68="",0,LOOKUP(ES68,FACTORS!$L$9:$M$128)*ES$13*ET68) -> 0 | EW68: 1 | EX68: =IF(EV68="",0,LOOKUP(EV68,FACTORS!$L$9:$M$128)*EV$13*EW68) -> 0 | EZ68: 1 | FA68: =IF(EY68="",0,LOOKUP(EY68,FACTORS!$L$9:$M$128)*EY$13*EZ68) -> 0 | FC68: 1 | FD68: =IF(FB68="",0,LOOKUP(FB68,FACTORS!$L$9:$M$128)*FB$13*FC68) -> 0 | FF68: 1 | FG68: =IF(FE68="",0,LOOKUP(FE68,FACTORS!$L$9:$M$128)*FE$13*FF68) -> 0 | FI68: 1 | FJ68: =IF(FH68="",0,LOOKUP(FH68,FACTORS!$L$9:$M$128)*FH$13*FI68) -> 0 | FL68: 1 | FM68: =IF(FK68="",0,LOOKUP(FK68,FACTORS!$L$9:$M$128)*FK$13*FL68) -> 0
B69: 53 | C69: Maria Örn | D69: SWE | F69: 479.44 | G69: 479,44 points | I69: 1.1 | J69: =IF(H69="",0,LOOKUP(H69,FACTORS!$L$9:$M$128)*H$13*I69) -> 0 | L69: 1.1 | M69: =IF(K69="",0,LOOKUP(K69,FACTORS!$L$9:$M$128)*K$13*L69) -> 0 | O69: 1.1 | P69: =IF(N69="",0,LOOKUP(N69,FACTORS!$L$9:$M$128)*N$13*O69) -> 0 | R69: 1.1 | S69: =IF(Q69="",0,LOOKUP(Q69,FACTORS!$L$9:$M$128)*Q$13*R69) -> 0 | U69: 1.1 | V69: =IF(T69="",0,LOOKUP(T69,FACTORS!$L$9:$M$128)*T$13*U69) -> 0 | X69: 1.1 | Y69: =IF(W69="",0,LOOKUP(W69,FACTORS!$L$9:$M$128)*W$13*X69) -> 0 | AA69: 1.1 | AB69: =IF(Z69="",0,LOOKUP(Z69,FACTORS!$L$9:$M$128)*Z$13*AA69) -> 0 | AD69: 1.1 | AE69: =IF(AC69="",0,LOOKUP(AC69,FACTORS!$L$9:$M$128)*AC$13*AD69) -> 0 | AG69: 1.1 | AH69: =IF(AF69="",0,LOOKUP(AF69,FACTORS!$L$9:$M$128)*AF$13*AG69) -> 0 | AJ69: 1.1 | AK69: =IF(AI69="",0,LOOKUP(AI69,FACTORS!$L$9:$M$128)*AI$13*AJ69) -> 0 | AM69: 1.1 | AN69: =IF(AL69="",0,LOOKUP(AL69,FACTORS!$L$9:$M$128)*AL$13*AM69) -> 0 | AP69: 1.1 | AQ69: =IF(AO69="",0,LOOKUP(AO69,FACTORS!$L$9:$M$128)*AO$13*AP69) -> 0 | AS69: 1.1 | AT69: =IF(AR69="",0,LOOKUP(AR69,FACTORS!$L$9:$M$128)*AR$13*AS69) -> 0 | AV69: 1.1 | AW69: =IF(AU69="",0,LOOKUP(AU69,FACTORS!$L$9:$M$128)*AU$13*AV69) -> 0 | AY69: 1.1 | AZ69: =IF(AX69="",0,LOOKUP(AX69,FACTORS!$L$9:$M$128)*AX$13*AY69) -> 0 | BB69: 1.1 | BC69: =IF(BA69="",0,LOOKUP(BA69,FACTORS!$L$9:$M$128)*BA$13*BB69) -> 0 | BE69: 1.1 | BF69: =IF(BD69="",0,LOOKUP(BD69,FACTORS!$L$9:$M$128)*BD$13*BE69) -> 0 | BH69: 1.1 | BI69: =IF(BG69="",0,LOOKUP(BG69,FACTORS!$L$9:$M$128)*BG$13*BH69) -> 0 | BK69: 1.1 | BL69: =IF(BJ69="",0,LOOKUP(BJ69,FACTORS!$L$9:$M$128)*BJ$13*BK69) -> 0 | BN69: 1.1 | BO69: =IF(BM69="",0,LOOKUP(BM69,FACTORS!$L$9:$M$128)*BM$13*BN69) -> 0 | BQ69: 1.1 | BR69: =IF(BP69="",0,LOOKUP(BP69,FACTORS!$L$9:$M$128)*BP$13*BQ69) -> 0 | BT69: 1.1 | BU69: =IF(BS69="",0,LOOKUP(BS69,FACTORS!$L$9:$M$128)*BS$13*BT69) -> 0 | BV69: 3 | BW69: 1 | BX69: =IF(BV69="",0,LOOKUP(BV69,FACTORS!$L$9:$M$128)*BV$13*BW69) -> 153.4 | BY69: 5 | BZ69: 1.1 | CA69: =IF(BY69="",0,LOOKUP(BY69,FACTORS!$L$9:$M$128)*BY$13*BZ69) -> 165.88 | CC69: 1.1 | CD69: =IF(CB69="",0,LOOKUP(CB69,FACTORS!$L$9:$M$128)*CB$13*CC69) -> 0 | CF69: 1.1 | CG69: =IF(CE69="",0,LOOKUP(CE69,FACTORS!$L$9:$M$128)*CE$13*CF69) -> 0 | CI69: 1.1 | CJ69: =IF(CH69="",0,LOOKUP(CH69,FACTORS!$L$9:$M$128)*CH$13*CI69) -> 0 | CL69: 1.1 | CM69: =IF(CK69="",0,LOOKUP(CK69,FACTORS!$L$9:$M$128)*CK$13*CL69) -> 0 | CO69: 1.1 | CP69: =IF(CN69="",0,LOOKUP(CN69,FACTORS!$L$9:$M$128)*CN$13*CO69) -> 0 | CR69: 1.1 | CS69: =IF(CQ69="",0,LOOKUP(CQ69,FACTORS!$L$9:$M$128)*CQ$13*CR69) -> 0 | CU69: 1.1 | CV69: =IF(CT69="",0,LOOKUP(CT69,FACTORS!$L$9:$M$128)*CT$13*CU69) -> 0 | CX69: 1.1 | CY69: =IF(CW69="",0,LOOKUP(CW69,FACTORS!$L$9:$M$128)*CW$13*CX69) -> 0 | DA69: 1.1 | DB69: =IF(CZ69="",0,LOOKUP(CZ69,FACTORS!$L$9:$M$128)*CZ$13*DA69) -> 0 | DD69: 1.1 | DE69: =IF(DC69="",0,LOOKUP(DC69,FACTORS!$L$9:$M$128)*DC$13*DD69) -> 0 | DG69: 1.1 | DH69: =IF(DF69="",0,LOOKUP(DF69,FACTORS!$L$9:$M$128)*DF$13*DG69) -> 0 | DJ69: 1.1 | DK69: =IF(DI69="",0,LOOKUP(DI69,FACTORS!$L$9:$M$128)*DI$13*DJ69) -> 0 | DM69: 1 | DN69: =IF(DL69="",0,LOOKUP(DL69,FACTORS!$L$9:$M$128)*DL$13*DM69) -> 0 | DO69: 9 | DP69: 1.1 | DQ69: =IF(DO69="",0,LOOKUP(DO69,FACTORS!$L$9:$M$128)*DO$13*DP69) -> 160.16 | DS69: 1.1 | DT69: =IF(DR69="",0,LOOKUP(DR69,FACTORS!$L$9:$M$128)*DR$13*DS69) -> 0 | DV69: 1.1 | DW69: =IF(DU69="",0,LOOKUP(DU69,FACTORS!$L$9:$M$128)*DU$13*DV69) -> 0 | DY69: 1.1 | DZ69: =IF(DX69="",0,LOOKUP(DX69,FACTORS!$L$9:$M$128)*DX$13*DY69) -> 0 | EB69: 1 | EC69: =IF(EA69="",0,LOOKUP(EA69,FACTORS!$L$9:$M$128)*EA$13*EB69) -> 0 | EE69: 1 | EF69: =IF(ED69="",0,LOOKUP(ED69,FACTORS!$L$9:$M$128)*ED$13*EE69) -> 0 | EH69: 1 | EI69: =IF(EG69="",0,LOOKUP(EG69,FACTORS!$L$9:$M$128)*EG$13*EH69) -> 0 | EK69: 1 | EL69: =IF(EJ69="",0,LOOKUP(EJ69,FACTORS!$L$9:$M$128)*EJ$13*EK69) -> 0 | EN69: 1 | EO69: =IF(EM69="",0,LOOKUP(EM69,FACTORS!$L$9:$M$128)*EM$13*EN69) -> 0 | EQ69: 1 | ER69: =IF(EP69="",0,LOOKUP(EP69,FACTORS!$L$9:$M$128)*EP$13*EQ69) -> 0 | ET69: 1 | EU69: =IF(ES69="",0,LOOKUP(ES69,FACTORS!$L$9:$M$128)*ES$13*ET69) -> 0 | EW69: 1 | EX69: =IF(EV69="",0,LOOKUP(EV69,FACTORS!$L$9:$M$128)*EV$13*EW69) -> 0 | EZ69: 1 | FA69: =IF(EY69="",0,LOOKUP(EY69,FACTORS!$L$9:$M$128)*EY$13*EZ69) -> 0 | FC69: 1 | FD69: =IF(FB69="",0,LOOKUP(FB69,FACTORS!$L$9:$M$128)*FB$13*FC69) -> 0 | FF69: 1 | FG69: =IF(FE69="",0,LOOKUP(FE69,FACTORS!$L$9:$M$128)*FE$13*FF69) -> 0 | FI69: 1 | FJ69: =IF(FH69="",0,LOOKUP(FH69,FACTORS!$L$9:$M$128)*FH$13*FI69) -> 0 | FL69: 1 | FM69: =IF(FK69="",0,LOOKUP(FK69,FACTORS!$L$9:$M$128)*FK$13*FL69) -> 0
B70: 54 | C70: Leonardo Franzini | D70: ITA | F70: 477.77 | G70: 477,77 points | I70: 1.1 | J70: =IF(H70="",0,LOOKUP(H70,FACTORS!$L$9:$M$128)*H$13*I70) -> 0 | L70: 1.1 | M70: =IF(K70="",0,LOOKUP(K70,FACTORS!$L$9:$M$128)*K$13*L70) -> 0 | O70: 1.1 | P70: =IF(N70="",0,LOOKUP(N70,FACTORS!$L$9:$M$128)*N$13*O70) -> 0 | R70: 1.1 | S70: =IF(Q70="",0,LOOKUP(Q70,FACTORS!$L$9:$M$128)*Q$13*R70) -> 0 | U70: 1.1 | V70: =IF(T70="",0,LOOKUP(T70,FACTORS!$L$9:$M$128)*T$13*U70) -> 0 | X70: 1.1 | Y70: =IF(W70="",0,LOOKUP(W70,FACTORS!$L$9:$M$128)*W$13*X70) -> 0 | AA70: 1.1 | AB70: =IF(Z70="",0,LOOKUP(Z70,FACTORS!$L$9:$M$128)*Z$13*AA70) -> 0 | AD70: 1.1 | AE70: =IF(AC70="",0,LOOKUP(AC70,FACTORS!$L$9:$M$128)*AC$13*AD70) -> 0 | AG70: 1.1 | AH70: =IF(AF70="",0,LOOKUP(AF70,FACTORS!$L$9:$M$128)*AF$13*AG70) -> 0 | AJ70: 1.1 | AK70: =IF(AI70="",0,LOOKUP(AI70,FACTORS!$L$9:$M$128)*AI$13*AJ70) -> 0 | AM70: 1.1 | AN70: =IF(AL70="",0,LOOKUP(AL70,FACTORS!$L$9:$M$128)*AL$13*AM70) -> 0 | AP70: 1.1 | AQ70: =IF(AO70="",0,LOOKUP(AO70,FACTORS!$L$9:$M$128)*AO$13*AP70) -> 0 | AS70: 1.1 | AT70: =IF(AR70="",0,LOOKUP(AR70,FACTORS!$L$9:$M$128)*AR$13*AS70) -> 0 | AV70: 1.1 | AW70: =IF(AU70="",0,LOOKUP(AU70,FACTORS!$L$9:$M$128)*AU$13*AV70) -> 0 | AY70: 1.1 | AZ70: =IF(AX70="",0,LOOKUP(AX70,FACTORS!$L$9:$M$128)*AX$13*AY70) -> 0 | BB70: 1.1 | BC70: =IF(BA70="",0,LOOKUP(BA70,FACTORS!$L$9:$M$128)*BA$13*BB70) -> 0 | BE70: 1.1 | BF70: =IF(BD70="",0,LOOKUP(BD70,FACTORS!$L$9:$M$128)*BD$13*BE70) -> 0 | BH70: 1 | BI70: =IF(BG70="",0,LOOKUP(BG70,FACTORS!$L$9:$M$128)*BG$13*BH70) -> 0 | BJ70: 13 | BK70: 1 | BL70: =IF(BJ70="",0,LOOKUP(BJ70,FACTORS!$L$9:$M$128)*BJ$13*BK70) -> 162 | BN70: 1.1 | BO70: =IF(BM70="",0,LOOKUP(BM70,FACTORS!$L$9:$M$128)*BM$13*BN70) -> 0 | BQ70: 1.1 | BR70: =IF(BP70="",0,LOOKUP(BP70,FACTORS!$L$9:$M$128)*BP$13*BQ70) -> 0 | BT70: 1.1 | BU70: =IF(BS70="",0,LOOKUP(BS70,FACTORS!$L$9:$M$128)*BS$13*BT70) -> 0 | BW70: 1.1 | BX70: =IF(BV70="",0,LOOKUP(BV70,FACTORS!$L$9:$M$128)*BV$13*BW70) -> 0 | BZ70: 1.1 | CA70: =IF(BY70="",0,LOOKUP(BY70,FACTORS!$L$9:$M$128)*BY$13*BZ70) -> 0 | CC70: 1 | CD70: =IF(CB70="",0,LOOKUP(CB70,FACTORS!$L$9:$M$128)*CB$13*CC70) -> 0 | CF70: 1.1 | CG70: =IF(CE70="",0,LOOKUP(CE70,FACTORS!$L$9:$M$128)*CE$13*CF70) -> 0 | CI70: 1.1 | CJ70: =IF(CH70="",0,LOOKUP(CH70,FACTORS!$L$9:$M$128)*CH$13*CI70) -> 0 | CK70: 9 | CL70: 1 | CM70: =IF(CK70="",0,LOOKUP(CK70,FACTORS!$L$9:$M$128)*CK$13*CL70) -> 145.6 | CO70: 1.1 | CP70: =IF(CN70="",0,LOOKUP(CN70,FACTORS!$L$9:$M$128)*CN$13*CO70) -> 0 | CR70: 1.1 | CS70: =IF(CQ70="",0,LOOKUP(CQ70,FACTORS!$L$9:$M$128)*CQ$13*CR70) -> 0 | CT70: 2 | CU70: 1.1 | CV70: =IF(CT70="",0,LOOKUP(CT70,FACTORS!$L$9:$M$128)*CT$13*CU70) -> 170.17 | CX70: 1.1 | CY70: =IF(CW70="",0,LOOKUP(CW70,FACTORS!$L$9:$M$128)*CW$13*CX70) -> 0 | DA70: 1.1 | DB70: =IF(CZ70="",0,LOOKUP(CZ70,FACTORS!$L$9:$M$128)*CZ$13*DA70) -> 0 | DD70: 1.1 | DE70: =IF(DC70="",0,LOOKUP(DC70,FACTORS!$L$9:$M$128)*DC$13*DD70) -> 0 | DG70: 1.1 | DH70: =IF(DF70="",0,LOOKUP(DF70,FACTORS!$L$9:$M$128)*DF$13*DG70) -> 0 | DJ70: 1.1 | DK70: =IF(DI70="",0,LOOKUP(DI70,FACTORS!$L$9:$M$128)*DI$13*DJ70) -> 0 | DM70: 1 | DN70: =IF(DL70="",0,LOOKUP(DL70,FACTORS!$L$9:$M$128)*DL$13*DM70) -> 0 | DP70: 1.1 | DQ70: =IF(DO70="",0,LOOKUP(DO70,FACTORS!$L$9:$M$128)*DO$13*DP70) -> 0 | DS70: 1.1 | DT70: =IF(DR70="",0,LOOKUP(DR70,FACTORS!$L$9:$M$128)*DR$13*DS70) -> 0 | DV70: 1.1 | DW70: =IF(DU70="",0,LOOKUP(DU70,FACTORS!$L$9:$M$128)*DU$13*DV70) -> 0 | DY70: 1.1 | DZ70: =IF(DX70="",0,LOOKUP(DX70,FACTORS!$L$9:$M$128)*DX$13*DY70) -> 0 | EB70: 1 | EC70: =IF(EA70="",0,LOOKUP(EA70,FACTORS!$L$9:$M$128)*EA$13*EB70) -> 0 | EE70: 1 | EF70: =IF(ED70="",0,LOOKUP(ED70,FACTORS!$L$9:$M$128)*ED$13*EE70) -> 0 | EH70: 1 | EI70: =IF(EG70="",0,LOOKUP(EG70,FACTORS!$L$9:$M$128)*EG$13*EH70) -> 0 | EK70: 1 | EL70: =IF(EJ70="",0,LOOKUP(EJ70,FACTORS!$L$9:$M$128)*EJ$13*EK70) -> 0 | EN70: 1 | EO70: =IF(EM70="",0,LOOKUP(EM70,FACTORS!$L$9:$M$128)*EM$13*EN70) -> 0 | EQ70: 1 | ER70: =IF(EP70="",0,LOOKUP(EP70,FACTORS!$L$9:$M$128)*EP$13*EQ70) -> 0 | ET70: 1 | EU70: =IF(ES70="",0,LOOKUP(ES70,FACTORS!$L$9:$M$128)*ES$13*ET70) -> 0 | EW70: 1 | EX70: =IF(EV70="",0,LOOKUP(EV70,FACTORS!$L$9:$M$128)*EV$13*EW70) -> 0 | EZ70: 1 | FA70: =IF(EY70="",0,LOOKUP(EY70,FACTORS!$L$9:$M$128)*EY$13*EZ70) -> 0 | FC70: 1 | FD70: =IF(FB70="",0,LOOKUP(FB70,FACTORS!$L$9:$M$128)*FB$13*FC70) -> 0 | FF70: 1 | FG70: =IF(FE70="",0,LOOKUP(FE70,FACTORS!$L$9:$M$128)*FE$13*FF70) -> 0 | FI70: 1 | FJ70: =IF(FH70="",0,LOOKUP(FH70,FACTORS!$L$9:$M$128)*FH$13*FI70) -> 0 | FL70: 1 | FM70: =IF(FK70="",0,LOOKUP(FK70,FACTORS!$L$9:$M$128)*FK$13*FL70) -> 0
B71: 55 | C71: Nicole Popp | D71: USA | F71: 476 | G71: 476 points | I71: 1 | J71: =IF(H71="",0,LOOKUP(H71,FACTORS!$L$9:$M$128)*H$13*I71) -> 0 | L71: 1.1 | M71: =IF(K71="",0,LOOKUP(K71,FACTORS!$L$9:$M$128)*K$13*L71) -> 0 | O71: 1 | P71: =IF(N71="",0,LOOKUP(N71,FACTORS!$L$9:$M$128)*N$13*O71) -> 0 | R71: 1.1 | S71: =IF(Q71="",0,LOOKUP(Q71,FACTORS!$L$9:$M$128)*Q$13*R71) -> 0 | U71: 1.1 | V71: =IF(T71="",0,LOOKUP(T71,FACTORS!$L$9:$M$128)*T$13*U71) -> 0 | X71: 1.1 | Y71: =IF(W71="",0,LOOKUP(W71,FACTORS!$L$9:$M$128)*W$13*X71) -> 0 | AA71: 1.1 | AB71: =IF(Z71="",0,LOOKUP(Z71,FACTORS!$L$9:$M$128)*Z$13*AA71) -> 0 | AD71: 1.1 | AE71: =IF(AC71="",0,LOOKUP(AC71,FACTORS!$L$9:$M$128)*AC$13*AD71) -> 0 | AG71: 1.1 | AH71: =IF(AF71="",0,LOOKUP(AF71,FACTORS!$L$9:$M$128)*AF$13*AG71) -> 0 | AJ71: 1.1 | AK71: =IF(AI71="",0,LOOKUP(AI71,FACTORS!$L$9:$M$128)*AI$13*AJ71) -> 0 | AM71: 1.1 | AN71: =IF(AL71="",0,LOOKUP(AL71,FACTORS!$L$9:$M$128)*AL$13*AM71) -> 0 | AP71: 1 | AQ71: =IF(AO71="",0,LOOKUP(AO71,FACTORS!$L$9:$M$128)*AO$13*AP71) -> 0 | AR71: 8 | AS71: 1 | AT71: =IF(AR71="",0,LOOKUP(AR71,FACTORS!$L$9:$M$128)*AR$13*AS71) -> 146.9 | AV71: 1.1 | AW71: =IF(AU71="",0,LOOKUP(AU71,FACTORS!$L$9:$M$128)*AU$13*AV71) -> 0 | AY71: 1.1 | AZ71: =IF(AX71="",0,LOOKUP(AX71,FACTORS!$L$9:$M$128)*AX$13*AY71) -> 0 | BB71: 1.1 | BC71: =IF(BA71="",0,LOOKUP(BA71,FACTORS!$L$9:$M$128)*BA$13*BB71) -> 0 | BD71: 4 | BE71: 1 | BF71: =IF(BD71="",0,LOOKUP(BD71,FACTORS!$L$9:$M$128)*BD$13*BE71) -> 152.1 | BH71: 1.1 | BI71: =IF(BG71="",0,LOOKUP(BG71,FACTORS!$L$9:$M$128)*BG$13*BH71) -> 0 | BK71: 1.1 | BL71: =IF(BJ71="",0,LOOKUP(BJ71,FACTORS!$L$9:$M$128)*BJ$13*BK71) -> 0 | BN71: 1 | BO71: =IF(BM71="",0,LOOKUP(BM71,FACTORS!$L$9:$M$128)*BM$13*BN71) -> 0 | BQ71: 1.1 | BR71: =IF(BP71="",0,LOOKUP(BP71,FACTORS!$L$9:$M$128)*BP$13*BQ71) -> 0 | BT71: 1.1 | BU71: =IF(BS71="",0,LOOKUP(BS71,FACTORS!$L$9:$M$128)*BS$13*BT71) -> 0 | BW71: 1.1 | BX71: =IF(BV71="",0,LOOKUP(BV71,FACTORS!$L$9:$M$128)*BV$13*BW71) -> 0 | BZ71: 1.1 | CA71: =IF(BY71="",0,LOOKUP(BY71,FACTORS!$L$9:$M$128)*BY$13*BZ71) -> 0 | CC71: 1.1 | CD71: =IF(CB71="",0,LOOKUP(CB71,FACTORS!$L$9:$M$128)*CB$13*CC71) -> 0 | CF71: 1.1 | CG71: =IF(CE71="",0,LOOKUP(CE71,FACTORS!$L$9:$M$128)*CE$13*CF71) -> 0 | CI71: 1.1 | CJ71: =IF(CH71="",0,LOOKUP(CH71,FACTORS!$L$9:$M$128)*CH$13*CI71) -> 0 | CL71: 1.1 | CM71: =IF(CK71="",0,LOOKUP(CK71,FACTORS!$L$9:$M$128)*CK$13*CL71) -> 0 | CO71: 1.1 | CP71: =IF(CN71="",0,LOOKUP(CN71,FACTORS!$L$9:$M$128)*CN$13*CO71) -> 0 | CR71: 1 | CS71: =IF(CQ71="",0,LOOKUP(CQ71,FACTORS!$L$9:$M$128)*CQ$13*CR71) -> 0 | CU71: 1.1 | CV71: =IF(CT71="",0,LOOKUP(CT71,FACTORS!$L$9:$M$128)*CT$13*CU71) -> 0 | CX71: 1.1 | CY71: =IF(CW71="",0,LOOKUP(CW71,FACTORS!$L$9:$M$128)*CW$13*CX71) -> 0 | DA71: 1.1 | DB71: =IF(CZ71="",0,LOOKUP(CZ71,FACTORS!$L$9:$M$128)*CZ$13*DA71) -> 0 | DD71: 1.1 | DE71: =IF(DC71="",0,LOOKUP(DC71,FACTORS!$L$9:$M$128)*DC$13*DD71) -> 0 | DG71: 1.1 | DH71: =IF(DF71="",0,LOOKUP(DF71,FACTORS!$L$9:$M$128)*DF$13*DG71) -> 0 | DJ71: 1 | DK71: =IF(DI71="",0,LOOKUP(DI71,FACTORS!$L$9:$M$128)*DI$13*DJ71) -> 0 | DM71: 1 | DN71: =IF(DL71="",0,LOOKUP(DL71,FACTORS!$L$9:$M$128)*DL$13*DM71) -> 0 | DP71: 1.1 | DQ71: =IF(DO71="",0,LOOKUP(DO71,FACTORS!$L$9:$M$128)*DO$13*DP71) -> 0 | DR71: 3 | DS71: 1 | DT71: =IF(DR71="",0,LOOKUP(DR71,FACTORS!$L$9:$M$128)*DR$13*DS71) -> 177 | DV71: 1.1 | DW71: =IF(DU71="",0,LOOKUP(DU71,FACTORS!$L$9:$M$128)*DU$13*DV71) -> 0 | DY71: 1.1 | DZ71: =IF(DX71="",0,LOOKUP(DX71,FACTORS!$L$9:$M$128)*DX$13*DY71) -> 0 | EB71: 1 | EC71: =IF(EA71="",0,LOOKUP(EA71,FACTORS!$L$9:$M$128)*EA$13*EB71) -> 0 | EE71: 1 | EF71: =IF(ED71="",0,LOOKUP(ED71,FACTORS!$L$9:$M$128)*ED$13*EE71) -> 0 | EH71: 1 | EI71: =IF(EG71="",0,LOOKUP(EG71,FACTORS!$L$9:$M$128)*EG$13*EH71) -> 0 | EK71: 1 | EL71: =IF(EJ71="",0,LOOKUP(EJ71,FACTORS!$L$9:$M$128)*EJ$13*EK71) -> 0 | EN71: 1 | EO71: =IF(EM71="",0,LOOKUP(EM71,FACTORS!$L$9:$M$128)*EM$13*EN71) -> 0 | EQ71: 1 | ER71: =IF(EP71="",0,LOOKUP(EP71,FACTORS!$L$9:$M$128)*EP$13*EQ71) -> 0 | ET71: 1 | EU71: =IF(ES71="",0,LOOKUP(ES71,FACTORS!$L$9:$M$128)*ES$13*ET71) -> 0 | EW71: 1 | EX71: =IF(EV71="",0,LOOKUP(EV71,FACTORS!$L$9:$M$128)*EV$13*EW71) -> 0 | EZ71: 1 | FA71: =IF(EY71="",0,LOOKUP(EY71,FACTORS!$L$9:$M$128)*EY$13*EZ71) -> 0 | FC71: 1 | FD71: =IF(FB71="",0,LOOKUP(FB71,FACTORS!$L$9:$M$128)*FB$13*FC71) -> 0 | FF71: 1 | FG71: =IF(FE71="",0,LOOKUP(FE71,FACTORS!$L$9:$M$128)*FE$13*FF71) -> 0 | FI71: 1 | FJ71: =IF(FH71="",0,LOOKUP(FH71,FACTORS!$L$9:$M$128)*FH$13*FI71) -> 0 | FL71: 1 | FM71: =IF(FK71="",0,LOOKUP(FK71,FACTORS!$L$9:$M$128)*FK$13*FL71) -> 0
B72: 56 | C72: Jensen Mctighe | D72: USA | F72: 474.5 | G72: 474,5 points | I72: 1 | J72: =IF(H72="",0,LOOKUP(H72,FACTORS!$L$9:$M$128)*H$13*I72) -> 0 | L72: 1.1 | M72: =IF(K72="",0,LOOKUP(K72,FACTORS!$L$9:$M$128)*K$13*L72) -> 0 | N72: 10 | O72: 1 | P72: =IF(N72="",0,LOOKUP(N72,FACTORS!$L$9:$M$128)*N$13*O72) -> 144.3 | R72: 1.1 | S72: =IF(Q72="",0,LOOKUP(Q72,FACTORS!$L$9:$M$128)*Q$13*R72) -> 0 | U72: 1.1 | V72: =IF(T72="",0,LOOKUP(T72,FACTORS!$L$9:$M$128)*T$13*U72) -> 0 | X72: 1.1 | Y72: =IF(W72="",0,LOOKUP(W72,FACTORS!$L$9:$M$128)*W$13*X72) -> 0 | AA72: 1.1 | AB72: =IF(Z72="",0,LOOKUP(Z72,FACTORS!$L$9:$M$128)*Z$13*AA72) -> 0 | AD72: 1.1 | AE72: =IF(AC72="",0,LOOKUP(AC72,FACTORS!$L$9:$M$128)*AC$13*AD72) -> 0 | AG72: 1.1 | AH72: =IF(AF72="",0,LOOKUP(AF72,FACTORS!$L$9:$M$128)*AF$13*AG72) -> 0 | AJ72: 1.1 | AK72: =IF(AI72="",0,LOOKUP(AI72,FACTORS!$L$9:$M$128)*AI$13*AJ72) -> 0 | AM72: 1.1 | AN72: =IF(AL72="",0,LOOKUP(AL72,FACTORS!$L$9:$M$128)*AL$13*AM72) -> 0 | AP72: 1 | AQ72: =IF(AO72="",0,LOOKUP(AO72,FACTORS!$L$9:$M$128)*AO$13*AP72) -> 0 | AR72: 2 | AS72: 1 | AT72: =IF(AR72="",0,LOOKUP(AR72,FACTORS!$L$9:$M$128)*AR$13*AS72) -> 154.7 | AV72: 1.1 | AW72: =IF(AU72="",0,LOOKUP(AU72,FACTORS!$L$9:$M$128)*AU$13*AV72) -> 0 | AY72: 1.1 | AZ72: =IF(AX72="",0,LOOKUP(AX72,FACTORS!$L$9:$M$128)*AX$13*AY72) -> 0 | BB72: 1.1 | BC72: =IF(BA72="",0,LOOKUP(BA72,FACTORS!$L$9:$M$128)*BA$13*BB72) -> 0 | BE72: 1 | BF72: =IF(BD72="",0,LOOKUP(BD72,FACTORS!$L$9:$M$128)*BD$13*BE72) -> 0 | BH72: 1.1 | BI72: =IF(BG72="",0,LOOKUP(BG72,FACTORS!$L$9:$M$128)*BG$13*BH72) -> 0 | BK72: 1.1 | BL72: =IF(BJ72="",0,LOOKUP(BJ72,FACTORS!$L$9:$M$128)*BJ$13*BK72) -> 0 | BN72: 1 | BO72: =IF(BM72="",0,LOOKUP(BM72,FACTORS!$L$9:$M$128)*BM$13*BN72) -> 0 | BQ72: 1.1 | BR72: =IF(BP72="",0,LOOKUP(BP72,FACTORS!$L$9:$M$128)*BP$13*BQ72) -> 0 | BT72: 1.1 | BU72: =IF(BS72="",0,LOOKUP(BS72,FACTORS!$L$9:$M$128)*BS$13*BT72) -> 0 | BW72: 1.1 | BX72: =IF(BV72="",0,LOOKUP(BV72,FACTORS!$L$9:$M$128)*BV$13*BW72) -> 0 | BZ72: 1.1 | CA72: =IF(BY72="",0,LOOKUP(BY72,FACTORS!$L$9:$M$128)*BY$13*BZ72) -> 0 | CC72: 1.1 | CD72: =IF(CB72="",0,LOOKUP(CB72,FACTORS!$L$9:$M$128)*CB$13*CC72) -> 0 | CF72: 1.1 | CG72: =IF(CE72="",0,LOOKUP(CE72,FACTORS!$L$9:$M$128)*CE$13*CF72) -> 0 | CI72: 1.1 | CJ72: =IF(CH72="",0,LOOKUP(CH72,FACTORS!$L$9:$M$128)*CH$13*CI72) -> 0 | CL72: 1.1 | CM72: =IF(CK72="",0,LOOKUP(CK72,FACTORS!$L$9:$M$128)*CK$13*CL72) -> 0 | CO72: 1.1 | CP72: =IF(CN72="",0,LOOKUP(CN72,FACTORS!$L$9:$M$128)*CN$13*CO72) -> 0 | CR72: 1 | CS72: =IF(CQ72="",0,LOOKUP(CQ72,FACTORS!$L$9:$M$128)*CQ$13*CR72) -> 0 | CU72: 1.1 | CV72: =IF(CT72="",0,LOOKUP(CT72,FACTORS!$L$9:$M$128)*CT$13*CU72) -> 0 | CX72: 1.1 | CY72: =IF(CW72="",0,LOOKUP(CW72,FACTORS!$L$9:$M$128)*CW$13*CX72) -> 0 | DA72: 1.1 | DB72: =IF(CZ72="",0,LOOKUP(CZ72,FACTORS!$L$9:$M$128)*CZ$13*DA72) -> 0 | DD72: 1.1 | DE72: =IF(DC72="",0,LOOKUP(DC72,FACTORS!$L$9:$M$128)*DC$13*DD72) -> 0 | DG72: 1.1 | DH72: =IF(DF72="",0,LOOKUP(DF72,FACTORS!$L$9:$M$128)*DF$13*DG72) -> 0 | DJ72: 1 | DK72: =IF(DI72="",0,LOOKUP(DI72,FACTORS!$L$9:$M$128)*DI$13*DJ72) -> 0 | DM72: 1 | DN72: =IF(DL72="",0,LOOKUP(DL72,FACTORS!$L$9:$M$128)*DL$13*DM72) -> 0 | DP72: 1.1 | DQ72: =IF(DO72="",0,LOOKUP(DO72,FACTORS!$L$9:$M$128)*DO$13*DP72) -> 0 | DR72: 4 | DS72: 1 | DT72: =IF(DR72="",0,LOOKUP(DR72,FACTORS!$L$9:$M$128)*DR$13*DS72) -> 175.5 | DV72: 1.1 | DW72: =IF(DU72="",0,LOOKUP(DU72,FACTORS!$L$9:$M$128)*DU$13*DV72) -> 0 | DY72: 1.1 | DZ72: =IF(DX72="",0,LOOKUP(DX72,FACTORS!$L$9:$M$128)*DX$13*DY72) -> 0 | EB72: 1 | EC72: =IF(EA72="",0,LOOKUP(EA72,FACTORS!$L$9:$M$128)*EA$13*EB72) -> 0 | EE72: 1 | EF72: =IF(ED72="",0,LOOKUP(ED72,FACTORS!$L$9:$M$128)*ED$13*EE72) -> 0 | EH72: 1 | EI72: =IF(EG72="",0,LOOKUP(EG72,FACTORS!$L$9:$M$128)*EG$13*EH72) -> 0 | EK72: 1 | EL72: =IF(EJ72="",0,LOOKUP(EJ72,FACTORS!$L$9:$M$128)*EJ$13*EK72) -> 0 | EN72: 1 | EO72: =IF(EM72="",0,LOOKUP(EM72,FACTORS!$L$9:$M$128)*EM$13*EN72) -> 0 | EQ72: 1 | ER72: =IF(EP72="",0,LOOKUP(EP72,FACTORS!$L$9:$M$128)*EP$13*EQ72) -> 0 | ET72: 1 | EU72: =IF(ES72="",0,LOOKUP(ES72,FACTORS!$L$9:$M$128)*ES$13*ET72) -> 0 | EW72: 1 | EX72: =IF(EV72="",0,LOOKUP(EV72,FACTORS!$L$9:$M$128)*EV$13*EW72) -> 0 | EZ72: 1 | FA72: =IF(EY72="",0,LOOKUP(EY72,FACTORS!$L$9:$M$128)*EY$13*EZ72) -> 0 | FC72: 1 | FD72: =IF(FB72="",0,LOOKUP(FB72,FACTORS!$L$9:$M$128)*FB$13*FC72) -> 0 | FF72: 1 | FG72: =IF(FE72="",0,LOOKUP(FE72,FACTORS!$L$9:$M$128)*FE$13*FF72) -> 0 | FI72: 1 | FJ72: =IF(FH72="",0,LOOKUP(FH72,FACTORS!$L$9:$M$128)*FH$13*FI72) -> 0 | FL72: 1 | FM72: =IF(FK72="",0,LOOKUP(FK72,FACTORS!$L$9:$M$128)*FK$13*FL72) -> 0
B73: 57 | C73: Breno V. Bianchi | D73: BRA | F73: 473.9 | G73: 473,9 points | I73: 1.1 | J73: =IF(H73="",0,LOOKUP(H73,FACTORS!$L$9:$M$128)*H$13*I73) -> 0 | K73: 7 | L73: 1 | M73: =IF(K73="",0,LOOKUP(K73,FACTORS!$L$9:$M$128)*K$13*L73) -> 171 | O73: 1.1 | P73: =IF(N73="",0,LOOKUP(N73,FACTORS!$L$9:$M$128)*N$13*O73) -> 0 | R73: 1.1 | S73: =IF(Q73="",0,LOOKUP(Q73,FACTORS!$L$9:$M$128)*Q$13*R73) -> 0 | U73: 1.1 | V73: =IF(T73="",0,LOOKUP(T73,FACTORS!$L$9:$M$128)*T$13*U73) -> 0 | W73: 1 | X73: 1 | Y73: =IF(W73="",0,LOOKUP(W73,FACTORS!$L$9:$M$128)*W$13*X73) -> 156 | AA73: 1.1 | AB73: =IF(Z73="",0,LOOKUP(Z73,FACTORS!$L$9:$M$128)*Z$13*AA73) -> 0 | AD73: 1.1 | AE73: =IF(AC73="",0,LOOKUP(AC73,FACTORS!$L$9:$M$128)*AC$13*AD73) -> 0 | AG73: 1 | AH73: =IF(AF73="",0,LOOKUP(AF73,FACTORS!$L$9:$M$128)*AF$13*AG73) -> 0 | AJ73: 1.1 | AK73: =IF(AI73="",0,LOOKUP(AI73,FACTORS!$L$9:$M$128)*AI$13*AJ73) -> 0 | AM73: 1.1 | AN73: =IF(AL73="",0,LOOKUP(AL73,FACTORS!$L$9:$M$128)*AL$13*AM73) -> 0 | AP73: 1.1 | AQ73: =IF(AO73="",0,LOOKUP(AO73,FACTORS!$L$9:$M$128)*AO$13*AP73) -> 0 | AS73: 1.1 | AT73: =IF(AR73="",0,LOOKUP(AR73,FACTORS!$L$9:$M$128)*AR$13*AS73) -> 0 | AV73: 1.1 | AW73: =IF(AU73="",0,LOOKUP(AU73,FACTORS!$L$9:$M$128)*AU$13*AV73) -> 0 | AY73: 1.1 | AZ73: =IF(AX73="",0,LOOKUP(AX73,FACTORS!$L$9:$M$128)*AX$13*AY73) -> 0 | BB73: 1.1 | BC73: =IF(BA73="",0,LOOKUP(BA73,FACTORS!$L$9:$M$128)*BA$13*BB73) -> 0 | BE73: 1.1 | BF73: =IF(BD73="",0,LOOKUP(BD73,FACTORS!$L$9:$M$128)*BD$13*BE73) -> 0 | BH73: 1.1 | BI73: =IF(BG73="",0,LOOKUP(BG73,FACTORS!$L$9:$M$128)*BG$13*BH73) -> 0 | BK73: 1.1 | BL73: =IF(BJ73="",0,LOOKUP(BJ73,FACTORS!$L$9:$M$128)*BJ$13*BK73) -> 0 | BN73: 1.1 | BO73: =IF(BM73="",0,LOOKUP(BM73,FACTORS!$L$9:$M$128)*BM$13*BN73) -> 0 | BQ73: 1.1 | BR73: =IF(BP73="",0,LOOKUP(BP73,FACTORS!$L$9:$M$128)*BP$13*BQ73) -> 0 | BT73: 1.1 | BU73: =IF(BS73="",0,LOOKUP(BS73,FACTORS!$L$9:$M$128)*BS$13*BT73) -> 0 | BW73: 1.1 | BX73: =IF(BV73="",0,LOOKUP(BV73,FACTORS!$L$9:$M$128)*BV$13*BW73) -> 0 | BZ73: 1.1 | CA73: =IF(BY73="",0,LOOKUP(BY73,FACTORS!$L$9:$M$128)*BY$13*BZ73) -> 0 | CC73: 1.1 | CD73: =IF(CB73="",0,LOOKUP(CB73,FACTORS!$L$9:$M$128)*CB$13*CC73) -> 0 | CF73: 1.1 | CG73: =IF(CE73="",0,LOOKUP(CE73,FACTORS!$L$9:$M$128)*CE$13*CF73) -> 0 | CI73: 1.1 | CJ73: =IF(CH73="",0,LOOKUP(CH73,FACTORS!$L$9:$M$128)*CH$13*CI73) -> 0 | CL73: 1.1 | CM73: =IF(CK73="",0,LOOKUP(CK73,FACTORS!$L$9:$M$128)*CK$13*CL73) -> 0 | CO73: 1.1 | CP73: =IF(CN73="",0,LOOKUP(CN73,FACTORS!$L$9:$M$128)*CN$13*CO73) -> 0 | CR73: 1.1 | CS73: =IF(CQ73="",0,LOOKUP(CQ73,FACTORS!$L$9:$M$128)*CQ$13*CR73) -> 0 | CU73: 1.1 | CV73: =IF(CT73="",0,LOOKUP(CT73,FACTORS!$L$9:$M$128)*CT$13*CU73) -> 0 | CX73: 1.1 | CY73: =IF(CW73="",0,LOOKUP(CW73,FACTORS!$L$9:$M$128)*CW$13*CX73) -> 0 | DA73: 1 | DB73: =IF(CZ73="",0,LOOKUP(CZ73,FACTORS!$L$9:$M$128)*CZ$13*DA73) -> 0 | DD73: 1.1 | DE73: =IF(DC73="",0,LOOKUP(DC73,FACTORS!$L$9:$M$128)*DC$13*DD73) -> 0 | DG73: 1.1 | DH73: =IF(DF73="",0,LOOKUP(DF73,FACTORS!$L$9:$M$128)*DF$13*DG73) -> 0 | DJ73: 1.1 | DK73: =IF(DI73="",0,LOOKUP(DI73,FACTORS!$L$9:$M$128)*DI$13*DJ73) -> 0 | DM73: 1 | DN73: =IF(DL73="",0,LOOKUP(DL73,FACTORS!$L$9:$M$128)*DL$13*DM73) -> 0 | DP73: 1.1 | DQ73: =IF(DO73="",0,LOOKUP(DO73,FACTORS!$L$9:$M$128)*DO$13*DP73) -> 0 | DS73: 1.1 | DT73: =IF(DR73="",0,LOOKUP(DR73,FACTORS!$L$9:$M$128)*DR$13*DS73) -> 0 | DV73: 1.1 | DW73: =IF(DU73="",0,LOOKUP(DU73,FACTORS!$L$9:$M$128)*DU$13*DV73) -> 0 | DX73: 8 | DY73: 1 | DZ73: =IF(DX73="",0,LOOKUP(DX73,FACTORS!$L$9:$M$128)*DX$13*DY73) -> 146.9 | EB73: 1 | EC73: =IF(EA73="",0,LOOKUP(EA73,FACTORS!$L$9:$M$128)*EA$13*EB73) -> 0 | EE73: 1 | EF73: =IF(ED73="",0,LOOKUP(ED73,FACTORS!$L$9:$M$128)*ED$13*EE73) -> 0 | EH73: 1 | EI73: =IF(EG73="",0,LOOKUP(EG73,FACTORS!$L$9:$M$128)*EG$13*EH73) -> 0 | EK73: 1 | EL73: =IF(EJ73="",0,LOOKUP(EJ73,FACTORS!$L$9:$M$128)*EJ$13*EK73) -> 0 | EN73: 1 | EO73: =IF(EM73="",0,LOOKUP(EM73,FACTORS!$L$9:$M$128)*EM$13*EN73) -> 0 | EQ73: 1 | ER73: =IF(EP73="",0,LOOKUP(EP73,FACTORS!$L$9:$M$128)*EP$13*EQ73) -> 0 | ET73: 1 | EU73: =IF(ES73="",0,LOOKUP(ES73,FACTORS!$L$9:$M$128)*ES$13*ET73) -> 0 | EW73: 1 | EX73: =IF(EV73="",0,LOOKUP(EV73,FACTORS!$L$9:$M$128)*EV$13*EW73) -> 0 | EZ73: 1 | FA73: =IF(EY73="",0,LOOKUP(EY73,FACTORS!$L$9:$M$128)*EY$13*EZ73) -> 0 | FC73: 1 | FD73: =IF(FB73="",0,LOOKUP(FB73,FACTORS!$L$9:$M$128)*FB$13*FC73) -> 0 | FF73: 1 | FG73: =IF(FE73="",0,LOOKUP(FE73,FACTORS!$L$9:$M$128)*FE$13*FF73) -> 0 | FI73: 1 | FJ73: =IF(FH73="",0,LOOKUP(FH73,FACTORS!$L$9:$M$128)*FH$13*FI73) -> 0 | FL73: 1 | FM73: =IF(FK73="",0,LOOKUP(FK73,FACTORS!$L$9:$M$128)*FK$13*FL73) -> 0
B74: 58 | C74: Andrea Gemini | D74: ITA | F74: 473.7 | G74: 473,7 points | I74: 1.1 | J74: =IF(H74="",0,LOOKUP(H74,FACTORS!$L$9:$M$128)*H$13*I74) -> 0 | L74: 1.1 | M74: =IF(K74="",0,LOOKUP(K74,FACTORS!$L$9:$M$128)*K$13*L74) -> 0 | O74: 1.1 | P74: =IF(N74="",0,LOOKUP(N74,FACTORS!$L$9:$M$128)*N$13*O74) -> 0 | R74: 1.1 | S74: =IF(Q74="",0,LOOKUP(Q74,FACTORS!$L$9:$M$128)*Q$13*R74) -> 0 | U74: 1.1 | V74: =IF(T74="",0,LOOKUP(T74,FACTORS!$L$9:$M$128)*T$13*U74) -> 0 | X74: 1.1 | Y74: =IF(W74="",0,LOOKUP(W74,FACTORS!$L$9:$M$128)*W$13*X74) -> 0 | AA74: 1.1 | AB74: =IF(Z74="",0,LOOKUP(Z74,FACTORS!$L$9:$M$128)*Z$13*AA74) -> 0 | AD74: 1.1 | AE74: =IF(AC74="",0,LOOKUP(AC74,FACTORS!$L$9:$M$128)*AC$13*AD74) -> 0 | AG74: 1.1 | AH74: =IF(AF74="",0,LOOKUP(AF74,FACTORS!$L$9:$M$128)*AF$13*AG74) -> 0 | AJ74: 1.1 | AK74: =IF(AI74="",0,LOOKUP(AI74,FACTORS!$L$9:$M$128)*AI$13*AJ74) -> 0 | AM74: 1.1 | AN74: =IF(AL74="",0,LOOKUP(AL74,FACTORS!$L$9:$M$128)*AL$13*AM74) -> 0 | AP74: 1.1 | AQ74: =IF(AO74="",0,LOOKUP(AO74,FACTORS!$L$9:$M$128)*AO$13*AP74) -> 0 | AR74: 31 | AS74: 1.1 | AT74: =IF(AR74="",0,LOOKUP(AR74,FACTORS!$L$9:$M$128)*AR$13*AS74) -> 128.7 | AV74: 1.1 | AW74: =IF(AU74="",0,LOOKUP(AU74,FACTORS!$L$9:$M$128)*AU$13*AV74) -> 0 | AY74: 1.1 | AZ74: =IF(AX74="",0,LOOKUP(AX74,FACTORS!$L$9:$M$128)*AX$13*AY74) -> 0 | BB74: 1.1 | BC74: =IF(BA74="",0,LOOKUP(BA74,FACTORS!$L$9:$M$128)*BA$13*BB74) -> 0 | BE74: 1.1 | BF74: =IF(BD74="",0,LOOKUP(BD74,FACTORS!$L$9:$M$128)*BD$13*BE74) -> 0 | BG74: 2 | BH74: 1 | BI74: =IF(BG74="",0,LOOKUP(BG74,FACTORS!$L$9:$M$128)*BG$13*BH74) -> 178.5 | BJ74: 10 | BK74: 1 | BL74: =IF(BJ74="",0,LOOKUP(BJ74,FACTORS!$L$9:$M$128)*BJ$13*BK74) -> 166.5 | BN74: 1.1 | BO74: =IF(BM74="",0,LOOKUP(BM74,FACTORS!$L$9:$M$128)*BM$13*BN74) -> 0 | BQ74: 1.1 | BR74: =IF(BP74="",0,LOOKUP(BP74,FACTORS!$L$9:$M$128)*BP$13*BQ74) -> 0 | BT74: 1.1 | BU74: =IF(BS74="",0,LOOKUP(BS74,FACTORS!$L$9:$M$128)*BS$13*BT74) -> 0 | BW74: 1.1 | BX74: =IF(BV74="",0,LOOKUP(BV74,FACTORS!$L$9:$M$128)*BV$13*BW74) -> 0 | BZ74: 1.1 | CA74: =IF(BY74="",0,LOOKUP(BY74,FACTORS!$L$9:$M$128)*BY$13*BZ74) -> 0 | CC74: 1 | CD74: =IF(CB74="",0,LOOKUP(CB74,FACTORS!$L$9:$M$128)*CB$13*CC74) -> 0 | CF74: 1.1 | CG74: =IF(CE74="",0,LOOKUP(CE74,FACTORS!$L$9:$M$128)*CE$13*CF74) -> 0 | CI74: 1.1 | CJ74: =IF(CH74="",0,LOOKUP(CH74,FACTORS!$L$9:$M$128)*CH$13*CI74) -> 0 | CL74: 1 | CM74: =IF(CK74="",0,LOOKUP(CK74,FACTORS!$L$9:$M$128)*CK$13*CL74) -> 0 | CO74: 1.1 | CP74: =IF(CN74="",0,LOOKUP(CN74,FACTORS!$L$9:$M$128)*CN$13*CO74) -> 0 | CR74: 1.1 | CS74: =IF(CQ74="",0,LOOKUP(CQ74,FACTORS!$L$9:$M$128)*CQ$13*CR74) -> 0 | CU74: 1.1 | CV74: =IF(CT74="",0,LOOKUP(CT74,FACTORS!$L$9:$M$128)*CT$13*CU74) -> 0 | CX74: 1.1 | CY74: =IF(CW74="",0,LOOKUP(CW74,FACTORS!$L$9:$M$128)*CW$13*CX74) -> 0 | DA74: 1.1 | DB74: =IF(CZ74="",0,LOOKUP(CZ74,FACTORS!$L$9:$M$128)*CZ$13*DA74) -> 0 | DD74: 1.1 | DE74: =IF(DC74="",0,LOOKUP(DC74,FACTORS!$L$9:$M$128)*DC$13*DD74) -> 0 | DG74: 1.1 | DH74: =IF(DF74="",0,LOOKUP(DF74,FACTORS!$L$9:$M$128)*DF$13*DG74) -> 0 | DJ74: 1.1 | DK74: =IF(DI74="",0,LOOKUP(DI74,FACTORS!$L$9:$M$128)*DI$13*DJ74) -> 0 | DM74: 1 | DN74: =IF(DL74="",0,LOOKUP(DL74,FACTORS!$L$9:$M$128)*DL$13*DM74) -> 0 | DP74: 1.1 | DQ74: =IF(DO74="",0,LOOKUP(DO74,FACTORS!$L$9:$M$128)*DO$13*DP74) -> 0 | DS74: 1.1 | DT74: =IF(DR74="",0,LOOKUP(DR74,FACTORS!$L$9:$M$128)*DR$13*DS74) -> 0 | DV74: 1.1 | DW74: =IF(DU74="",0,LOOKUP(DU74,FACTORS!$L$9:$M$128)*DU$13*DV74) -> 0 | DY74: 1.1 | DZ74: =IF(DX74="",0,LOOKUP(DX74,FACTORS!$L$9:$M$128)*DX$13*DY74) -> 0 | EB74: 1 | EC74: =IF(EA74="",0,LOOKUP(EA74,FACTORS!$L$9:$M$128)*EA$13*EB74) -> 0 | EE74: 1 | EF74: =IF(ED74="",0,LOOKUP(ED74,FACTORS!$L$9:$M$128)*ED$13*EE74) -> 0 | EH74: 1 | EI74: =IF(EG74="",0,LOOKUP(EG74,FACTORS!$L$9:$M$128)*EG$13*EH74) -> 0 | EK74: 1 | EL74: =IF(EJ74="",0,LOOKUP(EJ74,FACTORS!$L$9:$M$128)*EJ$13*EK74) -> 0 | EN74: 1 | EO74: =IF(EM74="",0,LOOKUP(EM74,FACTORS!$L$9:$M$128)*EM$13*EN74) -> 0 | EQ74: 1 | ER74: =IF(EP74="",0,LOOKUP(EP74,FACTORS!$L$9:$M$128)*EP$13*EQ74) -> 0 | ET74: 1 | EU74: =IF(ES74="",0,LOOKUP(ES74,FACTORS!$L$9:$M$128)*ES$13*ET74) -> 0 | EW74: 1 | EX74: =IF(EV74="",0,LOOKUP(EV74,FACTORS!$L$9:$M$128)*EV$13*EW74) -> 0 | EZ74: 1 | FA74: =IF(EY74="",0,LOOKUP(EY74,FACTORS!$L$9:$M$128)*EY$13*EZ74) -> 0 | FC74: 1 | FD74: =IF(FB74="",0,LOOKUP(FB74,FACTORS!$L$9:$M$128)*FB$13*FC74) -> 0 | FF74: 1 | FG74: =IF(FE74="",0,LOOKUP(FE74,FACTORS!$L$9:$M$128)*FE$13*FF74) -> 0 | FI74: 1 | FJ74: =IF(FH74="",0,LOOKUP(FH74,FACTORS!$L$9:$M$128)*FH$13*FI74) -> 0 | FL74: 1 | FM74: =IF(FK74="",0,LOOKUP(FK74,FACTORS!$L$9:$M$128)*FK$13*FL74) -> 0
